Workbook

Sheet Support (hidden)
A1: This Sheet will be hidden in release version
B3: Name: ActiveYears
B4: Years | C4: Visible | F4: SelectYears | H4: MonthsCY | K4: Months Custom | O4: Capacity | R4: Usage | T4: Energy Sources | Y4: Energy Units | AB4: EUgroups | AC4: EUitems
B5: =FinalYear -> 2029 | C5: =AND(B5>CurrentYear-NumberofYears,B5<=CurrentYear) -> FALSE | E5: 1 | F5: =IF(E5>CurrentYear-FirstYear+1,0,E5) -> 1 | H5: 1 | I5: =TEXT(DATE(2000,H5,1),"mmm") -> Jan | K5: =MONTH("1 "&FirstMonth) -> 1 | L5: =TEXT(DATE(2000,K5,1),"mmm") -> Jan | O5: HP | P5: ="1 "&O5&" / hr = " -> 1 HP / hr = | Q5: 0.745 | R5: kWh site | Y5: none | AB5: 1 | AC5: 1
B6: =B5-1 -> 2028 | C6: FALSE | E6: 2 | F6: 2 | H6: 2 | I6: Feb | K6: =IF(K5+1>12,1,K5+1) -> 2 | L6: Feb | O6: Watts | P6: 1 Watts / hr = | Q6: 0.001 | R6: kWh site | T6: Electricity Usage | U6: kWh | V6: ECcost | W6: ECusage | Y6: kWh | AB6: 2 | AC6: 2
B7: 2027 | C7: FALSE | E7: 3 | F7: 3 | H7: 3 | I7: Mar | K7: 3 | L7: Mar | O7: Kilowatts | P7: 1 Kilowatts / hr = | Q7: 1 | R7: kWh site | T7: Electricity Demand | U7: kW | V7: ECcost | W7: ECdemand | Y7: MMBtu | AB7: 3 | AC7: 3
B8: 2026 | C8: FALSE | E8: 4 | F8: 4 | H8: 4 | I8: Apr | K8: 4 | L8: Apr | O8: Megawatts | P8: 1 Megawatts / hr = | Q8: 1000 | R8: kWh site | T8: Electricity Fees | U8: none | V8: ECcost | W8: ECnone | Y8: Dtherm | AB8: 4 | AC8: 4
B9: 2025 | C9: FALSE | E9: 5 | F9: 5 | H9: 5 | I9: May | K9: 5 | L9: May | O9: Therms/hr | P9: 1 Therms/hr / hr = | Q9: 0.1 | R9: MMBtu | T9: Natural Gas | U9: Dtherm | V9: E2cost | W9: E2usage | AB9: 5 | AC9: 5
B10: 2024 | C10: FALSE | E10: 6 | F10: 6 | H10: 6 | I10: Jun | K10: 6 | L10: Jun | O10: Dekatherms/hr | P10: 1 Dekatherms/hr / hr = | Q10: 1 | R10: MMBtu | T10: LPG | U10: MMBtu | V10: EOcost | W10: EOusage | AB10: 6 | AC10: 6
B11: 2023 | C11: FALSE | E11: 7 | F11: 7 | H11: 7 | I11: Jul | K11: 7 | L11: Jul | O11: MMBtu/hr | P11: 1 MMBtu/hr / hr = | Q11: 1 | R11: MMBtu | T11: #1 Fuel Oil | U11: MMBtu | V11: EOcost | W11: EOusage | AB11: 7 | AC11: 7
B12: 2022 | C12: FALSE | E12: 8 | F12: 8 | H12: 8 | I12: Aug | K12: 8 | L12: Aug | T12: #2 Fuel Oil | U12: MMBtu | V12: EOcost | W12: EOusage | AB12: 8 | AC12: 8
B13: 2021 | C13: FALSE | E13: 9 | F13: 9 | H13: 9 | I13: Sep | K13: 9 | L13: Sep | T13: #4 Fuel Oil | U13: MMBtu | V13: EOcost | W13: EOusage | AB13: 9 | AC13: 9
B14: 2020 | C14: FALSE | E14: 10 | F14: 10 | H14: 10 | I14: Oct | K14: 10 | L14: Oct | T14: #6 Fuel Oil | U14: MMBtu | V14: EOcost | W14: EOusage | AB14: 10 | AC14: 10
B15: 2019 | C15: FALSE | F15: 0 | H15: 11 | I15: Nov | K15: 11 | L15: Nov | T15: Coal | U15: MMBtu | V15: EOcost | W15: EOusage | AC15: 11
B16: 2018 | C16: FALSE | F16: 0 | H16: 12 | I16: Dec | K16: 12 | L16: Dec | T16: Wood | U16: MMBtu | V16: EOcost | W16: EOusage | AC16: 12
B17: 2017 | C17: FALSE | T17: Paper | U17: MMBtu | V17: EOcost | W17: EOusage | AC17: 13
B18: 2016 | C18: FALSE | P18: Energy Uses Energy Types | T18: Other Gas | U18: MMBtu | V18: EOcost | W18: EOusage | AC18: 14
B19: 2015 | C19: TRUE | P19: Electricity | T19: Other Energy | U19: MMBtu | V19: EOcost | W19: EOusage | AC19: 15
B20: 2014 | C20: TRUE | P20: Natural Gas | AC20: 16
B21: 2013 | C21: TRUE | P21: Other | AC21: 17
B22: 2012 | C22: FALSE | AC22: 18
B23: 2011 | C23: FALSE | AC23: 19
B24: 2010 | C24: FALSE | AC24: 20
B25: 2009 | C25: FALSE | AC25: 21
B26: 2008 | C26: FALSE | AC26: 22
B27: 2007 | C27: FALSE | AC27: 23
B28: 2006 | C28: FALSE | AC28: 24
B29: 2005 | C29: FALSE | AC29: 25
AC30: 26
AC31: 27
B32: FinalYear | C32: 2029 | AC32: 28
B33: FirstYear | C33: =B29 -> 2005 | F33: version | G33: ="1.1" -> 1.1 | AC33: 29
F34: build date | G34: 2016.04.24 | AC34: 30
F35: developed by | G35: Michael B Muller
B36: MaxDisplayYear | C36: =CurrentYear -> 2015
B37: MinDisplayYear | C37: =C36-NumberofYears+1 -> 2013
B39: Year | C39: SelectYear
B40: 1 | C40: =C37 -> 2013
B41: 2 | C41: =IF(C40<>0,IF(C40+1>C$36,0,C40+1),0) -> 2014
B42: 3 | C42: 2015
B43: 4 | C43: 0
B44: 5 | C44: 0
B45: 6 | C45: 0
B46: 7 | C46: 0
B47: 8 | C47: 0
B48: 9 | C48: 0
B49: 10 | C49: 0
AK61: ='Energy Uses'!G15 -> 0 | AL61: =AL68 -> 2005 | AM61: =AM68 -> 2006 | AN61: 2007 | AO61: 2008 | AP61: 2009 | AQ61: 2010 | AR61: 2011 | AS61: 2012 | AT61: 2013 | AU61: 2014 | AV61: 2015 | AW61: 2016 | AX61: 2017 | AY61: 2018 | AZ61: 2019 | BA61: 2020 | BB61: 2021 | BC61: 2022 | BD61: 2023 | BE61: 2024 | BF61: 2025 | BG61: 2026 | BH61: 2027 | BI61: 2028 | BJ61: 2029
AK62: ='Energy Uses'!JL16 -> ENERGY USES | AL62: ='Energy Uses'!KK16 -> 0 | AM62: ='Energy Uses'!KJ16 -> 0 | AN62: ='Energy Uses'!KI16 -> 0 | AO62: ='Energy Uses'!KH16 -> 0 | AP62: ='Energy Uses'!KG16 -> 0 | AQ62: ='Energy Uses'!KF16 -> 0 | AR62: ='Energy Uses'!KE16 -> 0 | AS62: ='Energy Uses'!KD16 -> 0 | AT62: ='Energy Uses'!KC16 -> 25420.72963 | AU62: ='Energy Uses'!KB16 -> 25420.72963 | AV62: ='Energy Uses'!KA16 -> 21933.51517 | AW62: ='Energy Uses'!JZ16 -> 0 | AX62: ='Energy Uses'!JY16 -> 0 | AY62: ='Energy Uses'!JX16 -> 0 | AZ62: ='Energy Uses'!JW16 -> 0 | BA62: ='Energy Uses'!JV16 -> 0 | BB62: ='Energy Uses'!JU16 -> 0 | BC62: ='Energy Uses'!JT16 -> 0 | BD62: ='Energy Uses'!JS16 -> 0 | BE62: ='Energy Uses'!JR16 -> 0 | BF62: ='Energy Uses'!JQ16 -> 0 | BG62: ='Energy Uses'!JP16 -> 0 | BH62: ='Energy Uses'!JO16 -> 0 | BI62: ='Energy Uses'!JN16 -> 0 | BJ62: ='Energy Uses'!JM16 -> 0
AK63: ='Energy Uses'!JL17 -> CONSUMPTION* | AL63: ='Energy Uses'!KK17 -> 0 | AM63: ='Energy Uses'!KJ17 -> 0 | AN63: ='Energy Uses'!KI17 -> 0 | AO63: ='Energy Uses'!KH17 -> 0 | AP63: ='Energy Uses'!KG17 -> 0 | AQ63: ='Energy Uses'!KF17 -> 0 | AR63: ='Energy Uses'!KE17 -> 0 | AS63: ='Energy Uses'!KD17 -> 0 | AT63: ='Energy Uses'!KC17 -> 24585.43972 | AU63: ='Energy Uses'!KB17 -> 22228.9192 | AV63: ='Energy Uses'!KA17 -> 21170.8331 | AW63: ='Energy Uses'!JZ17 -> 0 | AX63: ='Energy Uses'!JY17 -> 0 | AY63: ='Energy Uses'!JX17 -> 0 | AZ63: ='Energy Uses'!JW17 -> 0 | BA63: ='Energy Uses'!JV17 -> 0 | BB63: ='Energy Uses'!JU17 -> 0 | BC63: ='Energy Uses'!JT17 -> 0 | BD63: ='Energy Uses'!JS17 -> 0 | BE63: ='Energy Uses'!JR17 -> 0 | BF63: ='Energy Uses'!JQ17 -> 0 | BG63: ='Energy Uses'!JP17 -> 0 | BH63: ='Energy Uses'!JO17 -> 0 | BI63: ='Energy Uses'!JN17 -> 0 | BJ63: ='Energy Uses'!JM17 -> 0
AK64: ='Energy Uses'!JL18 -> UNACCOUNTED FOR | AL64: ='Energy Uses'!KK18 -> 0 | AM64: ='Energy Uses'!KJ18 -> 0 | AN64: ='Energy Uses'!KI18 -> 0 | AO64: ='Energy Uses'!KH18 -> 0 | AP64: ='Energy Uses'!KG18 -> 0 | AQ64: ='Energy Uses'!KF18 -> 0 | AR64: ='Energy Uses'!KE18 -> 0 | AS64: ='Energy Uses'!KD18 -> 0 | AT64: ='Energy Uses'!KC18 -> -835.2899044 | AU64: ='Energy Uses'!KB18 -> -3191.810424 | AV64: ='Energy Uses'!KA18 -> -762.6820682 | AW64: ='Energy Uses'!JZ18 -> 0 | AX64: ='Energy Uses'!JY18 -> 0 | AY64: ='Energy Uses'!JX18 -> 0 | AZ64: ='Energy Uses'!JW18 -> 0 | BA64: ='Energy Uses'!JV18 -> 0 | BB64: ='Energy Uses'!JU18 -> 0 | BC64: ='Energy Uses'!JT18 -> 0 | BD64: ='Energy Uses'!JS18 -> 0 | BE64: ='Energy Uses'!JR18 -> 0 | BF64: ='Energy Uses'!JQ18 -> 0 | BG64: ='Energy Uses'!JP18 -> 0 | BH64: ='Energy Uses'!JO18 -> 0 | BI64: ='Energy Uses'!JN18 -> 0 | BJ64: ='Energy Uses'!JM18 -> 0
AK65: ='Energy Uses'!G20 -> 0 | AL65: ='Energy Uses'!KK20 -> 0 | AM65: ='Energy Uses'!KJ20 -> 0 | AN65: ='Energy Uses'!KI20 -> 0 | AO65: ='Energy Uses'!KH20 -> 0 | AP65: ='Energy Uses'!KG20 -> 0 | AQ65: ='Energy Uses'!KF20 -> 0 | AR65: ='Energy Uses'!KE20 -> 0 | AS65: ='Energy Uses'!KD20 -> 0 | AT65: ='Energy Uses'!KC20 -> 0 | AU65: ='Energy Uses'!KB20 -> 0 | AV65: ='Energy Uses'!KA20 -> 0 | AW65: ='Energy Uses'!JZ20 -> 0 | AX65: ='Energy Uses'!JY20 -> 0 | AY65: ='Energy Uses'!JX20 -> 0 | AZ65: ='Energy Uses'!JW20 -> 0 | BA65: ='Energy Uses'!JV20 -> 0 | BB65: ='Energy Uses'!JU20 -> 0 | BC65: ='Energy Uses'!JT20 -> 0 | BD65: ='Energy Uses'!JS20 -> 0 | BE65: ='Energy Uses'!JR20 -> 0 | BF65: ='Energy Uses'!JQ20 -> 0 | BG65: ='Energy Uses'!JP20 -> 0 | BH65: ='Energy Uses'!JO20 -> 0 | BI65: ='Energy Uses'!JN20 -> 0 | BJ65: ='Energy Uses'!JM20 -> 0
AI68: ='EU Charts'!AA3 -> 2015 | AL68: =AM68-1 -> 2005 | AM68: 2006 | AN68: 2007 | AO68: 2008 | AP68: 2009 | AQ68: 2010 | AR68: 2011 | AS68: 2012 | AT68: 2013 | AU68: 2014 | AV68: 2015 | AW68: 2016 | AX68: 2017 | AY68: 2018 | AZ68: 2019 | BA68: 2020 | BB68: 2021 | BC68: 2022 | BD68: 2023 | BE68: 2024 | BF68: 2025 | BG68: 2026 | BH68: 2027 | BI68: =BJ68-1 -> 2028 | BJ68: =FinalYear -> 2029
AG69: ='Energy Uses'!L5 -> TRUE | AH69: =AK69 -> Boiler House | AI69: =HLOOKUP(AI$68,$AL$68:$BJ$78,AJ69,) -> 9659.393113 | AJ69: 2 | AK69: ='Energy Uses'!F5 -> Boiler House | AL69: ='Energy Uses'!KK5 -> 0 | AM69: ='Energy Uses'!KJ5 -> 0 | AN69: ='Energy Uses'!KI5 -> 0 | AO69: ='Energy Uses'!KH5 -> 0 | AP69: ='Energy Uses'!KG5 -> 0 | AQ69: ='Energy Uses'!KF5 -> 0 | AR69: ='Energy Uses'!KE5 -> 0 | AS69: ='Energy Uses'!KD5 -> 0 | AT69: ='Energy Uses'!KC5 -> 13146.60757 | AU69: ='Energy Uses'!KB5 -> 13146.60757 | AV69: ='Energy Uses'!KA5 -> 9659.393113 | AW69: ='Energy Uses'!JZ5 -> 0 | AX69: ='Energy Uses'!JY5 -> 0 | AY69: ='Energy Uses'!JX5 -> 0 | AZ69: ='Energy Uses'!JW5 -> 0 | BA69: ='Energy Uses'!JV5 -> 0 | BB69: ='Energy Uses'!JU5 -> 0 | BC69: ='Energy Uses'!JT5 -> 0 | BD69: ='Energy Uses'!JS5 -> 0 | BE69: ='Energy Uses'!JR5 -> 0 | BF69: ='Energy Uses'!JQ5 -> 0 | BG69: ='Energy Uses'!JP5 -> 0 | BH69: ='Energy Uses'!JO5 -> 0 | BI69: ='Energy Uses'!JN5 -> 0 | BJ69: ='Energy Uses'!JM5 -> 0
AG70: ='Energy Uses'!L6 -> TRUE | AH70: Grinding Mill | AI70: 12274.12206 | AJ70: 3 | AK70: ='Energy Uses'!F6 -> Grinding Mill | AL70: ='Energy Uses'!KK6 -> 0 | AM70: ='Energy Uses'!KJ6 -> 0 | AN70: ='Energy Uses'!KI6 -> 0 | AO70: ='Energy Uses'!KH6 -> 0 | AP70: ='Energy Uses'!KG6 -> 0 | AQ70: ='Energy Uses'!KF6 -> 0 | AR70: ='Energy Uses'!KE6 -> 0 | AS70: ='Energy Uses'!KD6 -> 0 | AT70: ='Energy Uses'!KC6 -> 12274.12206 | AU70: ='Energy Uses'!KB6 -> 12274.12206 | AV70: ='Energy Uses'!KA6 -> 12274.12206 | AW70: ='Energy Uses'!JZ6 -> 0 | AX70: ='Energy Uses'!JY6 -> 0 | AY70: ='Energy Uses'!JX6 -> 0 | AZ70: ='Energy Uses'!JW6 -> 0 | BA70: ='Energy Uses'!JV6 -> 0 | BB70: ='Energy Uses'!JU6 -> 0 | BC70: ='Energy Uses'!JT6 -> 0 | BD70: ='Energy Uses'!JS6 -> 0 | BE70: ='Energy Uses'!JR6 -> 0 | BF70: ='Energy Uses'!JQ6 -> 0 | BG70: ='Energy Uses'!JP6 -> 0 | BH70: ='Energy Uses'!JO6 -> 0 | BI70: ='Energy Uses'!JN6 -> 0 | BJ70: ='Energy Uses'!JM6 -> 0
AG71: ='Energy Uses'!L7 -> FALSE | AH71: enter group name | AI71: 0 | AJ71: 4 | AK71: ='Energy Uses'!F7 -> enter group name | AL71: ='Energy Uses'!KK7 -> 0 | AM71: ='Energy Uses'!KJ7 -> 0 | AN71: ='Energy Uses'!KI7 -> 0 | AO71: ='Energy Uses'!KH7 -> 0 | AP71: ='Energy Uses'!KG7 -> 0 | AQ71: ='Energy Uses'!KF7 -> 0 | AR71: ='Energy Uses'!KE7 -> 0 | AS71: ='Energy Uses'!KD7 -> 0 | AT71: ='Energy Uses'!KC7 -> 0 | AU71: ='Energy Uses'!KB7 -> 0 | AV71: ='Energy Uses'!KA7 -> 0 | AW71: ='Energy Uses'!JZ7 -> 0 | AX71: ='Energy Uses'!JY7 -> 0 | AY71: ='Energy Uses'!JX7 -> 0 | AZ71: ='Energy Uses'!JW7 -> 0 | BA71: ='Energy Uses'!JV7 -> 0 | BB71: ='Energy Uses'!JU7 -> 0 | BC71: ='Energy Uses'!JT7 -> 0 | BD71: ='Energy Uses'!JS7 -> 0 | BE71: ='Energy Uses'!JR7 -> 0 | BF71: ='Energy Uses'!JQ7 -> 0 | BG71: ='Energy Uses'!JP7 -> 0 | BH71: ='Energy Uses'!JO7 -> 0 | BI71: ='Energy Uses'!JN7 -> 0 | BJ71: ='Energy Uses'!JM7 -> 0
AG72: ='Energy Uses'!L8 -> FALSE | AH72: enter group name | AI72: 0 | AJ72: 5 | AK72: ='Energy Uses'!F8 -> enter group name | AL72: ='Energy Uses'!KK8 -> 0 | AM72: ='Energy Uses'!KJ8 -> 0 | AN72: ='Energy Uses'!KI8 -> 0 | AO72: ='Energy Uses'!KH8 -> 0 | AP72: ='Energy Uses'!KG8 -> 0 | AQ72: ='Energy Uses'!KF8 -> 0 | AR72: ='Energy Uses'!KE8 -> 0 | AS72: ='Energy Uses'!KD8 -> 0 | AT72: ='Energy Uses'!KC8 -> 0 | AU72: ='Energy Uses'!KB8 -> 0 | AV72: ='Energy Uses'!KA8 -> 0 | AW72: ='Energy Uses'!JZ8 -> 0 | AX72: ='Energy Uses'!JY8 -> 0 | AY72: ='Energy Uses'!JX8 -> 0 | AZ72: ='Energy Uses'!JW8 -> 0 | BA72: ='Energy Uses'!JV8 -> 0 | BB72: ='Energy Uses'!JU8 -> 0 | BC72: ='Energy Uses'!JT8 -> 0 | BD72: ='Energy Uses'!JS8 -> 0 | BE72: ='Energy Uses'!JR8 -> 0 | BF72: ='Energy Uses'!JQ8 -> 0 | BG72: ='Energy Uses'!JP8 -> 0 | BH72: ='Energy Uses'!JO8 -> 0 | BI72: ='Energy Uses'!JN8 -> 0 | BJ72: ='Energy Uses'!JM8 -> 0
AG73: ='Energy Uses'!L9 -> FALSE | AH73: enter group name | AI73: 0 | AJ73: 6 | AK73: ='Energy Uses'!F9 -> enter group name | AL73: ='Energy Uses'!KK9 -> 0 | AM73: ='Energy Uses'!KJ9 -> 0 | AN73: ='Energy Uses'!KI9 -> 0 | AO73: ='Energy Uses'!KH9 -> 0 | AP73: ='Energy Uses'!KG9 -> 0 | AQ73: ='Energy Uses'!KF9 -> 0 | AR73: ='Energy Uses'!KE9 -> 0 | AS73: ='Energy Uses'!KD9 -> 0 | AT73: ='Energy Uses'!KC9 -> 0 | AU73: ='Energy Uses'!KB9 -> 0 | AV73: ='Energy Uses'!KA9 -> 0 | AW73: ='Energy Uses'!JZ9 -> 0 | AX73: ='Energy Uses'!JY9 -> 0 | AY73: ='Energy Uses'!JX9 -> 0 | AZ73: ='Energy Uses'!JW9 -> 0 | BA73: ='Energy Uses'!JV9 -> 0 | BB73: ='Energy Uses'!JU9 -> 0 | BC73: ='Energy Uses'!JT9 -> 0 | BD73: ='Energy Uses'!JS9 -> 0 | BE73: ='Energy Uses'!JR9 -> 0 | BF73: ='Energy Uses'!JQ9 -> 0 | BG73: ='Energy Uses'!JP9 -> 0 | BH73: ='Energy Uses'!JO9 -> 0 | BI73: ='Energy Uses'!JN9 -> 0 | BJ73: ='Energy Uses'!JM9 -> 0
AG74: ='Energy Uses'!L10 -> FALSE | AH74: enter group name | AI74: 0 | AJ74: 7 | AK74: ='Energy Uses'!F10 -> enter group name | AL74: ='Energy Uses'!KK10 -> 0 | AM74: ='Energy Uses'!KJ10 -> 0 | AN74: ='Energy Uses'!KI10 -> 0 | AO74: ='Energy Uses'!KH10 -> 0 | AP74: ='Energy Uses'!KG10 -> 0 | AQ74: ='Energy Uses'!KF10 -> 0 | AR74: ='Energy Uses'!KE10 -> 0 | AS74: ='Energy Uses'!KD10 -> 0 | AT74: ='Energy Uses'!KC10 -> 0 | AU74: ='Energy Uses'!KB10 -> 0 | AV74: ='Energy Uses'!KA10 -> 0 | AW74: ='Energy Uses'!JZ10 -> 0 | AX74: ='Energy Uses'!JY10 -> 0 | AY74: ='Energy Uses'!JX10 -> 0 | AZ74: ='Energy Uses'!JW10 -> 0 | BA74: ='Energy Uses'!JV10 -> 0 | BB74: ='Energy Uses'!JU10 -> 0 | BC74: ='Energy Uses'!JT10 -> 0 | BD74: ='Energy Uses'!JS10 -> 0 | BE74: ='Energy Uses'!JR10 -> 0 | BF74: ='Energy Uses'!JQ10 -> 0 | BG74: ='Energy Uses'!JP10 -> 0 | BH74: ='Energy Uses'!JO10 -> 0 | BI74: ='Energy Uses'!JN10 -> 0 | BJ74: ='Energy Uses'!JM10 -> 0
AG75: ='Energy Uses'!L11 -> FALSE | AH75: enter group name | AI75: 0 | AJ75: 8 | AK75: ='Energy Uses'!F11 -> enter group name | AL75: ='Energy Uses'!KK11 -> 0 | AM75: ='Energy Uses'!KJ11 -> 0 | AN75: ='Energy Uses'!KI11 -> 0 | AO75: ='Energy Uses'!KH11 -> 0 | AP75: ='Energy Uses'!KG11 -> 0 | AQ75: ='Energy Uses'!KF11 -> 0 | AR75: ='Energy Uses'!KE11 -> 0 | AS75: ='Energy Uses'!KD11 -> 0 | AT75: ='Energy Uses'!KC11 -> 0 | AU75: ='Energy Uses'!KB11 -> 0 | AV75: ='Energy Uses'!KA11 -> 0 | AW75: ='Energy Uses'!JZ11 -> 0 | AX75: ='Energy Uses'!JY11 -> 0 | AY75: ='Energy Uses'!JX11 -> 0 | AZ75: ='Energy Uses'!JW11 -> 0 | BA75: ='Energy Uses'!JV11 -> 0 | BB75: ='Energy Uses'!JU11 -> 0 | BC75: ='Energy Uses'!JT11 -> 0 | BD75: ='Energy Uses'!JS11 -> 0 | BE75: ='Energy Uses'!JR11 -> 0 | BF75: ='Energy Uses'!JQ11 -> 0 | BG75: ='Energy Uses'!JP11 -> 0 | BH75: ='Energy Uses'!JO11 -> 0 | BI75: ='Energy Uses'!JN11 -> 0 | BJ75: ='Energy Uses'!JM11 -> 0
AG76: ='Energy Uses'!L12 -> FALSE | AH76: enter group name | AI76: 0 | AJ76: 9 | AK76: ='Energy Uses'!F12 -> enter group name | AL76: ='Energy Uses'!KK12 -> 0 | AM76: ='Energy Uses'!KJ12 -> 0 | AN76: ='Energy Uses'!KI12 -> 0 | AO76: ='Energy Uses'!KH12 -> 0 | AP76: ='Energy Uses'!KG12 -> 0 | AQ76: ='Energy Uses'!KF12 -> 0 | AR76: ='Energy Uses'!KE12 -> 0 | AS76: ='Energy Uses'!KD12 -> 0 | AT76: ='Energy Uses'!KC12 -> 0 | AU76: ='Energy Uses'!KB12 -> 0 | AV76: ='Energy Uses'!KA12 -> 0 | AW76: ='Energy Uses'!JZ12 -> 0 | AX76: ='Energy Uses'!JY12 -> 0 | AY76: ='Energy Uses'!JX12 -> 0 | AZ76: ='Energy Uses'!JW12 -> 0 | BA76: ='Energy Uses'!JV12 -> 0 | BB76: ='Energy Uses'!JU12 -> 0 | BC76: ='Energy Uses'!JT12 -> 0 | BD76: ='Energy Uses'!JS12 -> 0 | BE76: ='Energy Uses'!JR12 -> 0 | BF76: ='Energy Uses'!JQ12 -> 0 | BG76: ='Energy Uses'!JP12 -> 0 | BH76: ='Energy Uses'!JO12 -> 0 | BI76: ='Energy Uses'!JN12 -> 0 | BJ76: ='Energy Uses'!JM12 -> 0
AG77: ='Energy Uses'!L13 -> FALSE | AH77: enter group name | AI77: 0 | AJ77: 10 | AK77: ='Energy Uses'!F13 -> enter group name | AL77: ='Energy Uses'!KK13 -> 0 | AM77: ='Energy Uses'!KJ13 -> 0 | AN77: ='Energy Uses'!KI13 -> 0 | AO77: ='Energy Uses'!KH13 -> 0 | AP77: ='Energy Uses'!KG13 -> 0 | AQ77: ='Energy Uses'!KF13 -> 0 | AR77: ='Energy Uses'!KE13 -> 0 | AS77: ='Energy Uses'!KD13 -> 0 | AT77: ='Energy Uses'!KC13 -> 0 | AU77: ='Energy Uses'!KB13 -> 0 | AV77: ='Energy Uses'!KA13 -> 0 | AW77: ='Energy Uses'!JZ13 -> 0 | AX77: ='Energy Uses'!JY13 -> 0 | AY77: ='Energy Uses'!JX13 -> 0 | AZ77: ='Energy Uses'!JW13 -> 0 | BA77: ='Energy Uses'!JV13 -> 0 | BB77: ='Energy Uses'!JU13 -> 0 | BC77: ='Energy Uses'!JT13 -> 0 | BD77: ='Energy Uses'!JS13 -> 0 | BE77: ='Energy Uses'!JR13 -> 0 | BF77: ='Energy Uses'!JQ13 -> 0 | BG77: ='Energy Uses'!JP13 -> 0 | BH77: ='Energy Uses'!JO13 -> 0 | BI77: ='Energy Uses'!JN13 -> 0 | BJ77: ='Energy Uses'!JM13 -> 0
AG78: ='Energy Uses'!L14 -> FALSE | AH78: enter group name | AI78: 0 | AJ78: 11 | AK78: ='Energy Uses'!F14 -> enter group name | AL78: ='Energy Uses'!KK14 -> 0 | AM78: ='Energy Uses'!KJ14 -> 0 | AN78: ='Energy Uses'!KI14 -> 0 | AO78: ='Energy Uses'!KH14 -> 0 | AP78: ='Energy Uses'!KG14 -> 0 | AQ78: ='Energy Uses'!KF14 -> 0 | AR78: ='Energy Uses'!KE14 -> 0 | AS78: ='Energy Uses'!KD14 -> 0 | AT78: ='Energy Uses'!KC14 -> 0 | AU78: ='Energy Uses'!KB14 -> 0 | AV78: ='Energy Uses'!KA14 -> 0 | AW78: ='Energy Uses'!JZ14 -> 0 | AX78: ='Energy Uses'!JY14 -> 0 | AY78: ='Energy Uses'!JX14 -> 0 | AZ78: ='Energy Uses'!JW14 -> 0 | BA78: ='Energy Uses'!JV14 -> 0 | BB78: ='Energy Uses'!JU14 -> 0 | BC78: ='Energy Uses'!JT14 -> 0 | BD78: ='Energy Uses'!JS14 -> 0 | BE78: ='Energy Uses'!JR14 -> 0 | BF78: ='Energy Uses'!JQ14 -> 0 | BG78: ='Energy Uses'!JP14 -> 0 | BH78: ='Energy Uses'!JO14 -> 0 | BI78: ='Energy Uses'!JN14 -> 0 | BJ78: ='Energy Uses'!JM14 -> 0
AG79: TRUE
AG80: TRUE | AI80: =$AI$68 -> 2015 | AL80: =AM80-1 -> 2005 | AM80: 2006 | AN80: 2007 | AO80: 2008 | AP80: 2009 | AQ80: 2010 | AR80: 2011 | AS80: 2012 | AT80: 2013 | AU80: 2014 | AV80: 2015 | AW80: 2016 | AX80: 2017 | AY80: 2018 | AZ80: 2019 | BA80: 2020 | BB80: 2021 | BC80: 2022 | BD80: 2023 | BE80: 2024 | BF80: 2025 | BG80: 2026 | BH80: 2027 | BI80: =BJ80-1 -> 2028 | BJ80: =FinalYear -> 2029
AG81: ='Energy Uses'!M26 -> TRUE | AH81: =AK81 -> Boiler | AI81: =HLOOKUP(AI$80,$AL$80:$BJ$110,AJ81,) -> 7000 | AJ81: 2 | AK81: ='Energy Uses'!C26 -> Boiler | AL81: ='Energy Uses'!KK26 -> 0 | AM81: ='Energy Uses'!KJ26 -> 0 | AN81: ='Energy Uses'!KI26 -> 0 | AO81: ='Energy Uses'!KH26 -> 0 | AP81: ='Energy Uses'!KG26 -> 0 | AQ81: ='Energy Uses'!KF26 -> 0 | AR81: ='Energy Uses'!KE26 -> 0 | AS81: ='Energy Uses'!KD26 -> 0 | AT81: ='Energy Uses'!KC26 -> 10500 | AU81: ='Energy Uses'!KB26 -> 10500 | AV81: ='Energy Uses'!KA26 -> 7000 | AW81: ='Energy Uses'!JZ26 -> 0 | AX81: ='Energy Uses'!JY26 -> 0 | AY81: ='Energy Uses'!JX26 -> 0 | AZ81: ='Energy Uses'!JW26 -> 0 | BA81: ='Energy Uses'!JV26 -> 0 | BB81: ='Energy Uses'!JU26 -> 0 | BC81: ='Energy Uses'!JT26 -> 0 | BD81: ='Energy Uses'!JS26 -> 0 | BE81: ='Energy Uses'!JR26 -> 0 | BF81: ='Energy Uses'!JQ26 -> 0 | BG81: ='Energy Uses'!JP26 -> 0 | BH81: ='Energy Uses'!JO26 -> 0 | BI81: ='Energy Uses'!JN26 -> 0 | BJ81: ='Energy Uses'!JM26 -> 0
AG82: ='Energy Uses'!M27 -> TRUE | AH82: Fans | AI82: =HLOOKUP(AI$80,$AL$80:$BJ$110,AJ82,) -> 818.274804 | AJ82: 3 | AK82: ='Energy Uses'!C27 -> Fans | AL82: ='Energy Uses'!KK27 -> 0 | AM82: ='Energy Uses'!KJ27 -> 0 | AN82: ='Energy Uses'!KI27 -> 0 | AO82: ='Energy Uses'!KH27 -> 0 | AP82: ='Energy Uses'!KG27 -> 0 | AQ82: ='Energy Uses'!KF27 -> 0 | AR82: ='Energy Uses'!KE27 -> 0 | AS82: ='Energy Uses'!KD27 -> 0 | AT82: ='Energy Uses'!KC27 -> 805.4892601 | AU82: ='Energy Uses'!KB27 -> 805.4892601 | AV82: ='Energy Uses'!KA27 -> 818.274804 | AW82: ='Energy Uses'!JZ27 -> 0 | AX82: ='Energy Uses'!JY27 -> 0 | AY82: ='Energy Uses'!JX27 -> 0 | AZ82: ='Energy Uses'!JW27 -> 0 | BA82: ='Energy Uses'!JV27 -> 0 | BB82: ='Energy Uses'!JU27 -> 0 | BC82: ='Energy Uses'!JT27 -> 0 | BD82: ='Energy Uses'!JS27 -> 0 | BE82: ='Energy Uses'!JR27 -> 0 | BF82: ='Energy Uses'!JQ27 -> 0 | BG82: ='Energy Uses'!JP27 -> 0 | BH82: ='Energy Uses'!JO27 -> 0 | BI82: ='Energy Uses'!JN27 -> 0 | BJ82: ='Energy Uses'!JM27 -> 0
AG83: ='Energy Uses'!M28 -> TRUE | AH83: Lights | AI83: 1841.118309 | AJ83: 4 | AK83: ='Energy Uses'!C28 -> Lights | AL83: ='Energy Uses'!KK28 -> 0 | AM83: ='Energy Uses'!KJ28 -> 0 | AN83: ='Energy Uses'!KI28 -> 0 | AO83: ='Energy Uses'!KH28 -> 0 | AP83: ='Energy Uses'!KG28 -> 0 | AQ83: ='Energy Uses'!KF28 -> 0 | AR83: ='Energy Uses'!KE28 -> 0 | AS83: ='Energy Uses'!KD28 -> 0 | AT83: ='Energy Uses'!KC28 -> 1841.118309 | AU83: ='Energy Uses'!KB28 -> 1841.118309 | AV83: ='Energy Uses'!KA28 -> 1841.118309 | AW83: ='Energy Uses'!JZ28 -> 0 | AX83: ='Energy Uses'!JY28 -> 0 | AY83: ='Energy Uses'!JX28 -> 0 | AZ83: ='Energy Uses'!JW28 -> 0 | BA83: ='Energy Uses'!JV28 -> 0 | BB83: ='Energy Uses'!JU28 -> 0 | BC83: ='Energy Uses'!JT28 -> 0 | BD83: ='Energy Uses'!JS28 -> 0 | BE83: ='Energy Uses'!JR28 -> 0 | BF83: ='Energy Uses'!JQ28 -> 0 | BG83: ='Energy Uses'!JP28 -> 0 | BH83: ='Energy Uses'!JO28 -> 0 | BI83: ='Energy Uses'!JN28 -> 0 | BJ83: ='Energy Uses'!JM28 -> 0
AG84: ='Energy Uses'!M29 -> FALSE | AH84: 0 | AI84: 0 | AJ84: 5 | AK84: ='Energy Uses'!C29 -> 0 | AL84: ='Energy Uses'!KK29 -> 0 | AM84: ='Energy Uses'!KJ29 -> 0 | AN84: ='Energy Uses'!KI29 -> 0 | AO84: ='Energy Uses'!KH29 -> 0 | AP84: ='Energy Uses'!KG29 -> 0 | AQ84: ='Energy Uses'!KF29 -> 0 | AR84: ='Energy Uses'!KE29 -> 0 | AS84: ='Energy Uses'!KD29 -> 0 | AT84: ='Energy Uses'!KC29 -> 0 | AU84: ='Energy Uses'!KB29 -> 0 | AV84: ='Energy Uses'!KA29 -> 0 | AW84: ='Energy Uses'!JZ29 -> 0 | AX84: ='Energy Uses'!JY29 -> 0 | AY84: ='Energy Uses'!JX29 -> 0 | AZ84: ='Energy Uses'!JW29 -> 0 | BA84: ='Energy Uses'!JV29 -> 0 | BB84: ='Energy Uses'!JU29 -> 0 | BC84: ='Energy Uses'!JT29 -> 0 | BD84: ='Energy Uses'!JS29 -> 0 | BE84: ='Energy Uses'!JR29 -> 0 | BF84: ='Energy Uses'!JQ29 -> 0 | BG84: ='Energy Uses'!JP29 -> 0 | BH84: ='Energy Uses'!JO29 -> 0 | BI84: ='Energy Uses'!JN29 -> 0 | BJ84: ='Energy Uses'!JM29 -> 0
AG85: ='Energy Uses'!M30 -> FALSE | AH85: 0 | AI85: 0 | AJ85: 6 | AK85: ='Energy Uses'!C30 -> 0 | AL85: ='Energy Uses'!KK30 -> 0 | AM85: ='Energy Uses'!KJ30 -> 0 | AN85: ='Energy Uses'!KI30 -> 0 | AO85: ='Energy Uses'!KH30 -> 0 | AP85: ='Energy Uses'!KG30 -> 0 | AQ85: ='Energy Uses'!KF30 -> 0 | AR85: ='Energy Uses'!KE30 -> 0 | AS85: ='Energy Uses'!KD30 -> 0 | AT85: ='Energy Uses'!KC30 -> 0 | AU85: ='Energy Uses'!KB30 -> 0 | AV85: ='Energy Uses'!KA30 -> 0 | AW85: ='Energy Uses'!JZ30 -> 0 | AX85: ='Energy Uses'!JY30 -> 0 | AY85: ='Energy Uses'!JX30 -> 0 | AZ85: ='Energy Uses'!JW30 -> 0 | BA85: ='Energy Uses'!JV30 -> 0 | BB85: ='Energy Uses'!JU30 -> 0 | BC85: ='Energy Uses'!JT30 -> 0 | BD85: ='Energy Uses'!JS30 -> 0 | BE85: ='Energy Uses'!JR30 -> 0 | BF85: ='Energy Uses'!JQ30 -> 0 | BG85: ='Energy Uses'!JP30 -> 0 | BH85: ='Energy Uses'!JO30 -> 0 | BI85: ='Energy Uses'!JN30 -> 0 | BJ85: ='Energy Uses'!JM30 -> 0
AG86: ='Energy Uses'!M31 -> FALSE | AH86: 0 | AI86: 0 | AJ86: 7 | AK86: ='Energy Uses'!C31 -> 0 | AL86: ='Energy Uses'!KK31 -> 0 | AM86: ='Energy Uses'!KJ31 -> 0 | AN86: ='Energy Uses'!KI31 -> 0 | AO86: ='Energy Uses'!KH31 -> 0 | AP86: ='Energy Uses'!KG31 -> 0 | AQ86: ='Energy Uses'!KF31 -> 0 | AR86: ='Energy Uses'!KE31 -> 0 | AS86: ='Energy Uses'!KD31 -> 0 | AT86: ='Energy Uses'!KC31 -> 0 | AU86: ='Energy Uses'!KB31 -> 0 | AV86: ='Energy Uses'!KA31 -> 0 | AW86: ='Energy Uses'!JZ31 -> 0 | AX86: ='Energy Uses'!JY31 -> 0 | AY86: ='Energy Uses'!JX31 -> 0 | AZ86: ='Energy Uses'!JW31 -> 0 | BA86: ='Energy Uses'!JV31 -> 0 | BB86: ='Energy Uses'!JU31 -> 0 | BC86: ='Energy Uses'!JT31 -> 0 | BD86: ='Energy Uses'!JS31 -> 0 | BE86: ='Energy Uses'!JR31 -> 0 | BF86: ='Energy Uses'!JQ31 -> 0 | BG86: ='Energy Uses'!JP31 -> 0 | BH86: ='Energy Uses'!JO31 -> 0 | BI86: ='Energy Uses'!JN31 -> 0 | BJ86: ='Energy Uses'!JM31 -> 0
AG87: ='Energy Uses'!M32 -> FALSE | AH87: 0 | AI87: =HLOOKUP(AI$80,$AL$80:$BJ$110,AJ87,) -> 0 | AJ87: 8 | AK87: ='Energy Uses'!C32 -> 0 | AL87: ='Energy Uses'!KK32 -> 0 | AM87: ='Energy Uses'!KJ32 -> 0 | AN87: ='Energy Uses'!KI32 -> 0 | AO87: ='Energy Uses'!KH32 -> 0 | AP87: ='Energy Uses'!KG32 -> 0 | AQ87: ='Energy Uses'!KF32 -> 0 | AR87: ='Energy Uses'!KE32 -> 0 | AS87: ='Energy Uses'!KD32 -> 0 | AT87: ='Energy Uses'!KC32 -> 0 | AU87: ='Energy Uses'!KB32 -> 0 | AV87: ='Energy Uses'!KA32 -> 0 | AW87: ='Energy Uses'!JZ32 -> 0 | AX87: ='Energy Uses'!JY32 -> 0 | AY87: ='Energy Uses'!JX32 -> 0 | AZ87: ='Energy Uses'!JW32 -> 0 | BA87: ='Energy Uses'!JV32 -> 0 | BB87: ='Energy Uses'!JU32 -> 0 | BC87: ='Energy Uses'!JT32 -> 0 | BD87: ='Energy Uses'!JS32 -> 0 | BE87: ='Energy Uses'!JR32 -> 0 | BF87: ='Energy Uses'!JQ32 -> 0 | BG87: ='Energy Uses'!JP32 -> 0 | BH87: ='Energy Uses'!JO32 -> 0 | BI87: ='Energy Uses'!JN32 -> 0 | BJ87: ='Energy Uses'!JM32 -> 0
AG88: ='Energy Uses'!M33 -> FALSE | AH88: 0 | AI88: 0 | AJ88: 9 | AK88: ='Energy Uses'!C33 -> 0 | AL88: ='Energy Uses'!KK33 -> 0 | AM88: ='Energy Uses'!KJ33 -> 0 | AN88: ='Energy Uses'!KI33 -> 0 | AO88: ='Energy Uses'!KH33 -> 0 | AP88: ='Energy Uses'!KG33 -> 0 | AQ88: ='Energy Uses'!KF33 -> 0 | AR88: ='Energy Uses'!KE33 -> 0 | AS88: ='Energy Uses'!KD33 -> 0 | AT88: ='Energy Uses'!KC33 -> 0 | AU88: ='Energy Uses'!KB33 -> 0 | AV88: ='Energy Uses'!KA33 -> 0 | AW88: ='Energy Uses'!JZ33 -> 0 | AX88: ='Energy Uses'!JY33 -> 0 | AY88: ='Energy Uses'!JX33 -> 0 | AZ88: ='Energy Uses'!JW33 -> 0 | BA88: ='Energy Uses'!JV33 -> 0 | BB88: ='Energy Uses'!JU33 -> 0 | BC88: ='Energy Uses'!JT33 -> 0 | BD88: ='Energy Uses'!JS33 -> 0 | BE88: ='Energy Uses'!JR33 -> 0 | BF88: ='Energy Uses'!JQ33 -> 0 | BG88: ='Energy Uses'!JP33 -> 0 | BH88: ='Energy Uses'!JO33 -> 0 | BI88: ='Energy Uses'!JN33 -> 0 | BJ88: ='Energy Uses'!JM33 -> 0
AG89: ='Energy Uses'!M34 -> FALSE | AH89: 0 | AI89: 0 | AJ89: 10 | AK89: ='Energy Uses'!C34 -> 0 | AL89: ='Energy Uses'!KK34 -> 0 | AM89: ='Energy Uses'!KJ34 -> 0 | AN89: ='Energy Uses'!KI34 -> 0 | AO89: ='Energy Uses'!KH34 -> 0 | AP89: ='Energy Uses'!KG34 -> 0 | AQ89: ='Energy Uses'!KF34 -> 0 | AR89: ='Energy Uses'!KE34 -> 0 | AS89: ='Energy Uses'!KD34 -> 0 | AT89: ='Energy Uses'!KC34 -> 0 | AU89: ='Energy Uses'!KB34 -> 0 | AV89: ='Energy Uses'!KA34 -> 0 | AW89: ='Energy Uses'!JZ34 -> 0 | AX89: ='Energy Uses'!JY34 -> 0 | AY89: ='Energy Uses'!JX34 -> 0 | AZ89: ='Energy Uses'!JW34 -> 0 | BA89: ='Energy Uses'!JV34 -> 0 | BB89: ='Energy Uses'!JU34 -> 0 | BC89: ='Energy Uses'!JT34 -> 0 | BD89: ='Energy Uses'!JS34 -> 0 | BE89: ='Energy Uses'!JR34 -> 0 | BF89: ='Energy Uses'!JQ34 -> 0 | BG89: ='Energy Uses'!JP34 -> 0 | BH89: ='Energy Uses'!JO34 -> 0 | BI89: ='Energy Uses'!JN34 -> 0 | BJ89: ='Energy Uses'!JM34 -> 0
AG90: ='Energy Uses'!M35 -> FALSE | AH90: 0 | AI90: 0 | AJ90: 11 | AK90: ='Energy Uses'!C35 -> 0 | AL90: ='Energy Uses'!KK35 -> 0 | AM90: ='Energy Uses'!KJ35 -> 0 | AN90: ='Energy Uses'!KI35 -> 0 | AO90: ='Energy Uses'!KH35 -> 0 | AP90: ='Energy Uses'!KG35 -> 0 | AQ90: ='Energy Uses'!KF35 -> 0 | AR90: ='Energy Uses'!KE35 -> 0 | AS90: ='Energy Uses'!KD35 -> 0 | AT90: ='Energy Uses'!KC35 -> 0 | AU90: ='Energy Uses'!KB35 -> 0 | AV90: ='Energy Uses'!KA35 -> 0 | AW90: ='Energy Uses'!JZ35 -> 0 | AX90: ='Energy Uses'!JY35 -> 0 | AY90: ='Energy Uses'!JX35 -> 0 | AZ90: ='Energy Uses'!JW35 -> 0 | BA90: ='Energy Uses'!JV35 -> 0 | BB90: ='Energy Uses'!JU35 -> 0 | BC90: ='Energy Uses'!JT35 -> 0 | BD90: ='Energy Uses'!JS35 -> 0 | BE90: ='Energy Uses'!JR35 -> 0 | BF90: ='Energy Uses'!JQ35 -> 0 | BG90: ='Energy Uses'!JP35 -> 0 | BH90: ='Energy Uses'!JO35 -> 0 | BI90: ='Energy Uses'!JN35 -> 0 | BJ90: ='Energy Uses'!JM35 -> 0
AG91: ='Energy Uses'!M36 -> FALSE | AH91: 0 | AI91: 0 | AJ91: 12 | AK91: ='Energy Uses'!C36 -> 0 | AL91: ='Energy Uses'!KK36 -> 0 | AM91: ='Energy Uses'!KJ36 -> 0 | AN91: ='Energy Uses'!KI36 -> 0 | AO91: ='Energy Uses'!KH36 -> 0 | AP91: ='Energy Uses'!KG36 -> 0 | AQ91: ='Energy Uses'!KF36 -> 0 | AR91: ='Energy Uses'!KE36 -> 0 | AS91: ='Energy Uses'!KD36 -> 0 | AT91: ='Energy Uses'!KC36 -> 0 | AU91: ='Energy Uses'!KB36 -> 0 | AV91: ='Energy Uses'!KA36 -> 0 | AW91: ='Energy Uses'!JZ36 -> 0 | AX91: ='Energy Uses'!JY36 -> 0 | AY91: ='Energy Uses'!JX36 -> 0 | AZ91: ='Energy Uses'!JW36 -> 0 | BA91: ='Energy Uses'!JV36 -> 0 | BB91: ='Energy Uses'!JU36 -> 0 | BC91: ='Energy Uses'!JT36 -> 0 | BD91: ='Energy Uses'!JS36 -> 0 | BE91: ='Energy Uses'!JR36 -> 0 | BF91: ='Energy Uses'!JQ36 -> 0 | BG91: ='Energy Uses'!JP36 -> 0 | BH91: ='Energy Uses'!JO36 -> 0 | BI91: ='Energy Uses'!JN36 -> 0 | BJ91: ='Energy Uses'!JM36 -> 0
AG92: ='Energy Uses'!M37 -> FALSE | AH92: 0 | AI92: 0 | AJ92: 13 | AK92: ='Energy Uses'!C37 -> 0 | AL92: ='Energy Uses'!KK37 -> 0 | AM92: ='Energy Uses'!KJ37 -> 0 | AN92: ='Energy Uses'!KI37 -> 0 | AO92: ='Energy Uses'!KH37 -> 0 | AP92: ='Energy Uses'!KG37 -> 0 | AQ92: ='Energy Uses'!KF37 -> 0 | AR92: ='Energy Uses'!KE37 -> 0 | AS92: ='Energy Uses'!KD37 -> 0 | AT92: ='Energy Uses'!KC37 -> 0 | AU92: ='Energy Uses'!KB37 -> 0 | AV92: ='Energy Uses'!KA37 -> 0 | AW92: ='Energy Uses'!JZ37 -> 0 | AX92: ='Energy Uses'!JY37 -> 0 | AY92: ='Energy Uses'!JX37 -> 0 | AZ92: ='Energy Uses'!JW37 -> 0 | BA92: ='Energy Uses'!JV37 -> 0 | BB92: ='Energy Uses'!JU37 -> 0 | BC92: ='Energy Uses'!JT37 -> 0 | BD92: ='Energy Uses'!JS37 -> 0 | BE92: ='Energy Uses'!JR37 -> 0 | BF92: ='Energy Uses'!JQ37 -> 0 | BG92: ='Energy Uses'!JP37 -> 0 | BH92: ='Energy Uses'!JO37 -> 0 | BI92: ='Energy Uses'!JN37 -> 0 | BJ92: ='Energy Uses'!JM37 -> 0
AG93: ='Energy Uses'!M38 -> FALSE | AH93: 0 | AI93: 0 | AJ93: 14 | AK93: ='Energy Uses'!C38 -> 0 | AL93: ='Energy Uses'!KK38 -> 0 | AM93: ='Energy Uses'!KJ38 -> 0 | AN93: ='Energy Uses'!KI38 -> 0 | AO93: ='Energy Uses'!KH38 -> 0 | AP93: ='Energy Uses'!KG38 -> 0 | AQ93: ='Energy Uses'!KF38 -> 0 | AR93: ='Energy Uses'!KE38 -> 0 | AS93: ='Energy Uses'!KD38 -> 0 | AT93: ='Energy Uses'!KC38 -> 0 | AU93: ='Energy Uses'!KB38 -> 0 | AV93: ='Energy Uses'!KA38 -> 0 | AW93: ='Energy Uses'!JZ38 -> 0 | AX93: ='Energy Uses'!JY38 -> 0 | AY93: ='Energy Uses'!JX38 -> 0 | AZ93: ='Energy Uses'!JW38 -> 0 | BA93: ='Energy Uses'!JV38 -> 0 | BB93: ='Energy Uses'!JU38 -> 0 | BC93: ='Energy Uses'!JT38 -> 0 | BD93: ='Energy Uses'!JS38 -> 0 | BE93: ='Energy Uses'!JR38 -> 0 | BF93: ='Energy Uses'!JQ38 -> 0 | BG93: ='Energy Uses'!JP38 -> 0 | BH93: ='Energy Uses'!JO38 -> 0 | BI93: ='Energy Uses'!JN38 -> 0 | BJ93: ='Energy Uses'!JM38 -> 0
AG94: ='Energy Uses'!M39 -> FALSE | AH94: 0 | AI94: 0 | AJ94: 15 | AK94: ='Energy Uses'!C39 -> 0 | AL94: ='Energy Uses'!KK39 -> 0 | AM94: ='Energy Uses'!KJ39 -> 0 | AN94: ='Energy Uses'!KI39 -> 0 | AO94: ='Energy Uses'!KH39 -> 0 | AP94: ='Energy Uses'!KG39 -> 0 | AQ94: ='Energy Uses'!KF39 -> 0 | AR94: ='Energy Uses'!KE39 -> 0 | AS94: ='Energy Uses'!KD39 -> 0 | AT94: ='Energy Uses'!KC39 -> 0 | AU94: ='Energy Uses'!KB39 -> 0 | AV94: ='Energy Uses'!KA39 -> 0 | AW94: ='Energy Uses'!JZ39 -> 0 | AX94: ='Energy Uses'!JY39 -> 0 | AY94: ='Energy Uses'!JX39 -> 0 | AZ94: ='Energy Uses'!JW39 -> 0 | BA94: ='Energy Uses'!JV39 -> 0 | BB94: ='Energy Uses'!JU39 -> 0 | BC94: ='Energy Uses'!JT39 -> 0 | BD94: ='Energy Uses'!JS39 -> 0 | BE94: ='Energy Uses'!JR39 -> 0 | BF94: ='Energy Uses'!JQ39 -> 0 | BG94: ='Energy Uses'!JP39 -> 0 | BH94: ='Energy Uses'!JO39 -> 0 | BI94: ='Energy Uses'!JN39 -> 0 | BJ94: ='Energy Uses'!JM39 -> 0
AG95: ='Energy Uses'!M40 -> FALSE | AH95: 0 | AI95: 0 | AJ95: 16 | AK95: ='Energy Uses'!C40 -> 0 | AL95: ='Energy Uses'!KK40 -> 0 | AM95: ='Energy Uses'!KJ40 -> 0 | AN95: ='Energy Uses'!KI40 -> 0 | AO95: ='Energy Uses'!KH40 -> 0 | AP95: ='Energy Uses'!KG40 -> 0 | AQ95: ='Energy Uses'!KF40 -> 0 | AR95: ='Energy Uses'!KE40 -> 0 | AS95: ='Energy Uses'!KD40 -> 0 | AT95: ='Energy Uses'!KC40 -> 0 | AU95: ='Energy Uses'!KB40 -> 0 | AV95: ='Energy Uses'!KA40 -> 0 | AW95: ='Energy Uses'!JZ40 -> 0 | AX95: ='Energy Uses'!JY40 -> 0 | AY95: ='Energy Uses'!JX40 -> 0 | AZ95: ='Energy Uses'!JW40 -> 0 | BA95: ='Energy Uses'!JV40 -> 0 | BB95: ='Energy Uses'!JU40 -> 0 | BC95: ='Energy Uses'!JT40 -> 0 | BD95: ='Energy Uses'!JS40 -> 0 | BE95: ='Energy Uses'!JR40 -> 0 | BF95: ='Energy Uses'!JQ40 -> 0 | BG95: ='Energy Uses'!JP40 -> 0 | BH95: ='Energy Uses'!JO40 -> 0 | BI95: ='Energy Uses'!JN40 -> 0 | BJ95: ='Energy Uses'!JM40 -> 0
AG96: ='Energy Uses'!M41 -> FALSE | AH96: 0 | AI96: 0 | AJ96: 17 | AK96: ='Energy Uses'!C41 -> 0 | AL96: ='Energy Uses'!KK41 -> 0 | AM96: ='Energy Uses'!KJ41 -> 0 | AN96: ='Energy Uses'!KI41 -> 0 | AO96: ='Energy Uses'!KH41 -> 0 | AP96: ='Energy Uses'!KG41 -> 0 | AQ96: ='Energy Uses'!KF41 -> 0 | AR96: ='Energy Uses'!KE41 -> 0 | AS96: ='Energy Uses'!KD41 -> 0 | AT96: ='Energy Uses'!KC41 -> 0 | AU96: ='Energy Uses'!KB41 -> 0 | AV96: ='Energy Uses'!KA41 -> 0 | AW96: ='Energy Uses'!JZ41 -> 0 | AX96: ='Energy Uses'!JY41 -> 0 | AY96: ='Energy Uses'!JX41 -> 0 | AZ96: ='Energy Uses'!JW41 -> 0 | BA96: ='Energy Uses'!JV41 -> 0 | BB96: ='Energy Uses'!JU41 -> 0 | BC96: ='Energy Uses'!JT41 -> 0 | BD96: ='Energy Uses'!JS41 -> 0 | BE96: ='Energy Uses'!JR41 -> 0 | BF96: ='Energy Uses'!JQ41 -> 0 | BG96: ='Energy Uses'!JP41 -> 0 | BH96: ='Energy Uses'!JO41 -> 0 | BI96: ='Energy Uses'!JN41 -> 0 | BJ96: ='Energy Uses'!JM41 -> 0
AG97: ='Energy Uses'!M42 -> FALSE | AH97: 0 | AI97: 0 | AJ97: 18 | AK97: ='Energy Uses'!C42 -> 0 | AL97: ='Energy Uses'!KK42 -> 0 | AM97: ='Energy Uses'!KJ42 -> 0 | AN97: ='Energy Uses'!KI42 -> 0 | AO97: ='Energy Uses'!KH42 -> 0 | AP97: ='Energy Uses'!KG42 -> 0 | AQ97: ='Energy Uses'!KF42 -> 0 | AR97: ='Energy Uses'!KE42 -> 0 | AS97: ='Energy Uses'!KD42 -> 0 | AT97: ='Energy Uses'!KC42 -> 0 | AU97: ='Energy Uses'!KB42 -> 0 | AV97: ='Energy Uses'!KA42 -> 0 | AW97: ='Energy Uses'!JZ42 -> 0 | AX97: ='Energy Uses'!JY42 -> 0 | AY97: ='Energy Uses'!JX42 -> 0 | AZ97: ='Energy Uses'!JW42 -> 0 | BA97: ='Energy Uses'!JV42 -> 0 | BB97: ='Energy Uses'!JU42 -> 0 | BC97: ='Energy Uses'!JT42 -> 0 | BD97: ='Energy Uses'!JS42 -> 0 | BE97: ='Energy Uses'!JR42 -> 0 | BF97: ='Energy Uses'!JQ42 -> 0 | BG97: ='Energy Uses'!JP42 -> 0 | BH97: ='Energy Uses'!JO42 -> 0 | BI97: ='Energy Uses'!JN42 -> 0 | BJ97: ='Energy Uses'!JM42 -> 0
AG98: ='Energy Uses'!M43 -> FALSE | AH98: 0 | AI98: 0 | AJ98: 19 | AK98: ='Energy Uses'!C43 -> 0 | AL98: ='Energy Uses'!KK43 -> 0 | AM98: ='Energy Uses'!KJ43 -> 0 | AN98: ='Energy Uses'!KI43 -> 0 | AO98: ='Energy Uses'!KH43 -> 0 | AP98: ='Energy Uses'!KG43 -> 0 | AQ98: ='Energy Uses'!KF43 -> 0 | AR98: ='Energy Uses'!KE43 -> 0 | AS98: ='Energy Uses'!KD43 -> 0 | AT98: ='Energy Uses'!KC43 -> 0 | AU98: ='Energy Uses'!KB43 -> 0 | AV98: ='Energy Uses'!KA43 -> 0 | AW98: ='Energy Uses'!JZ43 -> 0 | AX98: ='Energy Uses'!JY43 -> 0 | AY98: ='Energy Uses'!JX43 -> 0 | AZ98: ='Energy Uses'!JW43 -> 0 | BA98: ='Energy Uses'!JV43 -> 0 | BB98: ='Energy Uses'!JU43 -> 0 | BC98: ='Energy Uses'!JT43 -> 0 | BD98: ='Energy Uses'!JS43 -> 0 | BE98: ='Energy Uses'!JR43 -> 0 | BF98: ='Energy Uses'!JQ43 -> 0 | BG98: ='Energy Uses'!JP43 -> 0 | BH98: ='Energy Uses'!JO43 -> 0 | BI98: ='Energy Uses'!JN43 -> 0 | BJ98: ='Energy Uses'!JM43 -> 0
AG99: ='Energy Uses'!M44 -> FALSE | AH99: 0 | AI99: 0 | AJ99: 20 | AK99: ='Energy Uses'!C44 -> 0 | AL99: ='Energy Uses'!KK44 -> 0 | AM99: ='Energy Uses'!KJ44 -> 0 | AN99: ='Energy Uses'!KI44 -> 0 | AO99: ='Energy Uses'!KH44 -> 0 | AP99: ='Energy Uses'!KG44 -> 0 | AQ99: ='Energy Uses'!KF44 -> 0 | AR99: ='Energy Uses'!KE44 -> 0 | AS99: ='Energy Uses'!KD44 -> 0 | AT99: ='Energy Uses'!KC44 -> 0 | AU99: ='Energy Uses'!KB44 -> 0 | AV99: ='Energy Uses'!KA44 -> 0 | AW99: ='Energy Uses'!JZ44 -> 0 | AX99: ='Energy Uses'!JY44 -> 0 | AY99: ='Energy Uses'!JX44 -> 0 | AZ99: ='Energy Uses'!JW44 -> 0 | BA99: ='Energy Uses'!JV44 -> 0 | BB99: ='Energy Uses'!JU44 -> 0 | BC99: ='Energy Uses'!JT44 -> 0 | BD99: ='Energy Uses'!JS44 -> 0 | BE99: ='Energy Uses'!JR44 -> 0 | BF99: ='Energy Uses'!JQ44 -> 0 | BG99: ='Energy Uses'!JP44 -> 0 | BH99: ='Energy Uses'!JO44 -> 0 | BI99: ='Energy Uses'!JN44 -> 0 | BJ99: ='Energy Uses'!JM44 -> 0
AG100: ='Energy Uses'!M45 -> FALSE | AH100: 0 | AI100: 0 | AJ100: 21 | AK100: ='Energy Uses'!C45 -> 0 | AL100: ='Energy Uses'!KK45 -> 0 | AM100: ='Energy Uses'!KJ45 -> 0 | AN100: ='Energy Uses'!KI45 -> 0 | AO100: ='Energy Uses'!KH45 -> 0 | AP100: ='Energy Uses'!KG45 -> 0 | AQ100: ='Energy Uses'!KF45 -> 0 | AR100: ='Energy Uses'!KE45 -> 0 | AS100: ='Energy Uses'!KD45 -> 0 | AT100: ='Energy Uses'!KC45 -> 0 | AU100: ='Energy Uses'!KB45 -> 0 | AV100: ='Energy Uses'!KA45 -> 0 | AW100: ='Energy Uses'!JZ45 -> 0 | AX100: ='Energy Uses'!JY45 -> 0 | AY100: ='Energy Uses'!JX45 -> 0 | AZ100: ='Energy Uses'!JW45 -> 0 | BA100: ='Energy Uses'!JV45 -> 0 | BB100: ='Energy Uses'!JU45 -> 0 | BC100: ='Energy Uses'!JT45 -> 0 | BD100: ='Energy Uses'!JS45 -> 0 | BE100: ='Energy Uses'!JR45 -> 0 | BF100: ='Energy Uses'!JQ45 -> 0 | BG100: ='Energy Uses'!JP45 -> 0 | BH100: ='Energy Uses'!JO45 -> 0 | BI100: ='Energy Uses'!JN45 -> 0 | BJ100: ='Energy Uses'!JM45 -> 0
AG101: ='Energy Uses'!M46 -> FALSE | AH101: 0 | AI101: 0 | AJ101: 22 | AK101: ='Energy Uses'!C46 -> 0 | AL101: ='Energy Uses'!KK46 -> 0 | AM101: ='Energy Uses'!KJ46 -> 0 | AN101: ='Energy Uses'!KI46 -> 0 | AO101: ='Energy Uses'!KH46 -> 0 | AP101: ='Energy Uses'!KG46 -> 0 | AQ101: ='Energy Uses'!KF46 -> 0 | AR101: ='Energy Uses'!KE46 -> 0 | AS101: ='Energy Uses'!KD46 -> 0 | AT101: ='Energy Uses'!KC46 -> 0 | AU101: ='Energy Uses'!KB46 -> 0 | AV101: ='Energy Uses'!KA46 -> 0 | AW101: ='Energy Uses'!JZ46 -> 0 | AX101: ='Energy Uses'!JY46 -> 0 | AY101: ='Energy Uses'!JX46 -> 0 | AZ101: ='Energy Uses'!JW46 -> 0 | BA101: ='Energy Uses'!JV46 -> 0 | BB101: ='Energy Uses'!JU46 -> 0 | BC101: ='Energy Uses'!JT46 -> 0 | BD101: ='Energy Uses'!JS46 -> 0 | BE101: ='Energy Uses'!JR46 -> 0 | BF101: ='Energy Uses'!JQ46 -> 0 | BG101: ='Energy Uses'!JP46 -> 0 | BH101: ='Energy Uses'!JO46 -> 0 | BI101: ='Energy Uses'!JN46 -> 0 | BJ101: ='Energy Uses'!JM46 -> 0
AG102: ='Energy Uses'!M47 -> FALSE | AH102: 0 | AI102: 0 | AJ102: 23 | AK102: ='Energy Uses'!C47 -> 0 | AL102: ='Energy Uses'!KK47 -> 0 | AM102: ='Energy Uses'!KJ47 -> 0 | AN102: ='Energy Uses'!KI47 -> 0 | AO102: ='Energy Uses'!KH47 -> 0 | AP102: ='Energy Uses'!KG47 -> 0 | AQ102: ='Energy Uses'!KF47 -> 0 | AR102: ='Energy Uses'!KE47 -> 0 | AS102: ='Energy Uses'!KD47 -> 0 | AT102: ='Energy Uses'!KC47 -> 0 | AU102: ='Energy Uses'!KB47 -> 0 | AV102: ='Energy Uses'!KA47 -> 0 | AW102: ='Energy Uses'!JZ47 -> 0 | AX102: ='Energy Uses'!JY47 -> 0 | AY102: ='Energy Uses'!JX47 -> 0 | AZ102: ='Energy Uses'!JW47 -> 0 | BA102: ='Energy Uses'!JV47 -> 0 | BB102: ='Energy Uses'!JU47 -> 0 | BC102: ='Energy Uses'!JT47 -> 0 | BD102: ='Energy Uses'!JS47 -> 0 | BE102: ='Energy Uses'!JR47 -> 0 | BF102: ='Energy Uses'!JQ47 -> 0 | BG102: ='Energy Uses'!JP47 -> 0 | BH102: ='Energy Uses'!JO47 -> 0 | BI102: ='Energy Uses'!JN47 -> 0 | BJ102: ='Energy Uses'!JM47 -> 0
AG103: ='Energy Uses'!M48 -> FALSE | AH103: 0 | AI103: 0 | AJ103: 24 | AK103: ='Energy Uses'!C48 -> 0 | AL103: ='Energy Uses'!KK48 -> 0 | AM103: ='Energy Uses'!KJ48 -> 0 | AN103: ='Energy Uses'!KI48 -> 0 | AO103: ='Energy Uses'!KH48 -> 0 | AP103: ='Energy Uses'!KG48 -> 0 | AQ103: ='Energy Uses'!KF48 -> 0 | AR103: ='Energy Uses'!KE48 -> 0 | AS103: ='Energy Uses'!KD48 -> 0 | AT103: ='Energy Uses'!KC48 -> 0 | AU103: ='Energy Uses'!KB48 -> 0 | AV103: ='Energy Uses'!KA48 -> 0 | AW103: ='Energy Uses'!JZ48 -> 0 | AX103: ='Energy Uses'!JY48 -> 0 | AY103: ='Energy Uses'!JX48 -> 0 | AZ103: ='Energy Uses'!JW48 -> 0 | BA103: ='Energy Uses'!JV48 -> 0 | BB103: ='Energy Uses'!JU48 -> 0 | BC103: ='Energy Uses'!JT48 -> 0 | BD103: ='Energy Uses'!JS48 -> 0 | BE103: ='Energy Uses'!JR48 -> 0 | BF103: ='Energy Uses'!JQ48 -> 0 | BG103: ='Energy Uses'!JP48 -> 0 | BH103: ='Energy Uses'!JO48 -> 0 | BI103: ='Energy Uses'!JN48 -> 0 | BJ103: ='Energy Uses'!JM48 -> 0
AG104: ='Energy Uses'!M49 -> FALSE | AH104: 0 | AI104: 0 | AJ104: 25 | AK104: ='Energy Uses'!C49 -> 0 | AL104: ='Energy Uses'!KK49 -> 0 | AM104: ='Energy Uses'!KJ49 -> 0 | AN104: ='Energy Uses'!KI49 -> 0 | AO104: ='Energy Uses'!KH49 -> 0 | AP104: ='Energy Uses'!KG49 -> 0 | AQ104: ='Energy Uses'!KF49 -> 0 | AR104: ='Energy Uses'!KE49 -> 0 | AS104: ='Energy Uses'!KD49 -> 0 | AT104: ='Energy Uses'!KC49 -> 0 | AU104: ='Energy Uses'!KB49 -> 0 | AV104: ='Energy Uses'!KA49 -> 0 | AW104: ='Energy Uses'!JZ49 -> 0 | AX104: ='Energy Uses'!JY49 -> 0 | AY104: ='Energy Uses'!JX49 -> 0 | AZ104: ='Energy Uses'!JW49 -> 0 | BA104: ='Energy Uses'!JV49 -> 0 | BB104: ='Energy Uses'!JU49 -> 0 | BC104: ='Energy Uses'!JT49 -> 0 | BD104: ='Energy Uses'!JS49 -> 0 | BE104: ='Energy Uses'!JR49 -> 0 | BF104: ='Energy Uses'!JQ49 -> 0 | BG104: ='Energy Uses'!JP49 -> 0 | BH104: ='Energy Uses'!JO49 -> 0 | BI104: ='Energy Uses'!JN49 -> 0 | BJ104: ='Energy Uses'!JM49 -> 0
AG105: ='Energy Uses'!M50 -> FALSE | AH105: 0 | AI105: 0 | AJ105: 26 | AK105: ='Energy Uses'!C50 -> 0 | AL105: ='Energy Uses'!KK50 -> 0 | AM105: ='Energy Uses'!KJ50 -> 0 | AN105: ='Energy Uses'!KI50 -> 0 | AO105: ='Energy Uses'!KH50 -> 0 | AP105: ='Energy Uses'!KG50 -> 0 | AQ105: ='Energy Uses'!KF50 -> 0 | AR105: ='Energy Uses'!KE50 -> 0 | AS105: ='Energy Uses'!KD50 -> 0 | AT105: ='Energy Uses'!KC50 -> 0 | AU105: ='Energy Uses'!KB50 -> 0 | AV105: ='Energy Uses'!KA50 -> 0 | AW105: ='Energy Uses'!JZ50 -> 0 | AX105: ='Energy Uses'!JY50 -> 0 | AY105: ='Energy Uses'!JX50 -> 0 | AZ105: ='Energy Uses'!JW50 -> 0 | BA105: ='Energy Uses'!JV50 -> 0 | BB105: ='Energy Uses'!JU50 -> 0 | BC105: ='Energy Uses'!JT50 -> 0 | BD105: ='Energy Uses'!JS50 -> 0 | BE105: ='Energy Uses'!JR50 -> 0 | BF105: ='Energy Uses'!JQ50 -> 0 | BG105: ='Energy Uses'!JP50 -> 0 | BH105: ='Energy Uses'!JO50 -> 0 | BI105: ='Energy Uses'!JN50 -> 0 | BJ105: ='Energy Uses'!JM50 -> 0
AG106: ='Energy Uses'!M51 -> FALSE | AH106: 0 | AI106: 0 | AJ106: 27 | AK106: ='Energy Uses'!C51 -> 0 | AL106: ='Energy Uses'!KK51 -> 0 | AM106: ='Energy Uses'!KJ51 -> 0 | AN106: ='Energy Uses'!KI51 -> 0 | AO106: ='Energy Uses'!KH51 -> 0 | AP106: ='Energy Uses'!KG51 -> 0 | AQ106: ='Energy Uses'!KF51 -> 0 | AR106: ='Energy Uses'!KE51 -> 0 | AS106: ='Energy Uses'!KD51 -> 0 | AT106: ='Energy Uses'!KC51 -> 0 | AU106: ='Energy Uses'!KB51 -> 0 | AV106: ='Energy Uses'!KA51 -> 0 | AW106: ='Energy Uses'!JZ51 -> 0 | AX106: ='Energy Uses'!JY51 -> 0 | AY106: ='Energy Uses'!JX51 -> 0 | AZ106: ='Energy Uses'!JW51 -> 0 | BA106: ='Energy Uses'!JV51 -> 0 | BB106: ='Energy Uses'!JU51 -> 0 | BC106: ='Energy Uses'!JT51 -> 0 | BD106: ='Energy Uses'!JS51 -> 0 | BE106: ='Energy Uses'!JR51 -> 0 | BF106: ='Energy Uses'!JQ51 -> 0 | BG106: ='Energy Uses'!JP51 -> 0 | BH106: ='Energy Uses'!JO51 -> 0 | BI106: ='Energy Uses'!JN51 -> 0 | BJ106: ='Energy Uses'!JM51 -> 0
AG107: ='Energy Uses'!M52 -> FALSE | AH107: 0 | AI107: 0 | AJ107: 28 | AK107: ='Energy Uses'!C52 -> 0 | AL107: ='Energy Uses'!KK52 -> 0 | AM107: ='Energy Uses'!KJ52 -> 0 | AN107: ='Energy Uses'!KI52 -> 0 | AO107: ='Energy Uses'!KH52 -> 0 | AP107: ='Energy Uses'!KG52 -> 0 | AQ107: ='Energy Uses'!KF52 -> 0 | AR107: ='Energy Uses'!KE52 -> 0 | AS107: ='Energy Uses'!KD52 -> 0 | AT107: ='Energy Uses'!KC52 -> 0 | AU107: ='Energy Uses'!KB52 -> 0 | AV107: ='Energy Uses'!KA52 -> 0 | AW107: ='Energy Uses'!JZ52 -> 0 | AX107: ='Energy Uses'!JY52 -> 0 | AY107: ='Energy Uses'!JX52 -> 0 | AZ107: ='Energy Uses'!JW52 -> 0 | BA107: ='Energy Uses'!JV52 -> 0 | BB107: ='Energy Uses'!JU52 -> 0 | BC107: ='Energy Uses'!JT52 -> 0 | BD107: ='Energy Uses'!JS52 -> 0 | BE107: ='Energy Uses'!JR52 -> 0 | BF107: ='Energy Uses'!JQ52 -> 0 | BG107: ='Energy Uses'!JP52 -> 0 | BH107: ='Energy Uses'!JO52 -> 0 | BI107: ='Energy Uses'!JN52 -> 0 | BJ107: ='Energy Uses'!JM52 -> 0
AG108: ='Energy Uses'!M53 -> FALSE | AH108: 0 | AI108: 0 | AJ108: 29 | AK108: ='Energy Uses'!C53 -> 0 | AL108: ='Energy Uses'!KK53 -> 0 | AM108: ='Energy Uses'!KJ53 -> 0 | AN108: ='Energy Uses'!KI53 -> 0 | AO108: ='Energy Uses'!KH53 -> 0 | AP108: ='Energy Uses'!KG53 -> 0 | AQ108: ='Energy Uses'!KF53 -> 0 | AR108: ='Energy Uses'!KE53 -> 0 | AS108: ='Energy Uses'!KD53 -> 0 | AT108: ='Energy Uses'!KC53 -> 0 | AU108: ='Energy Uses'!KB53 -> 0 | AV108: ='Energy Uses'!KA53 -> 0 | AW108: ='Energy Uses'!JZ53 -> 0 | AX108: ='Energy Uses'!JY53 -> 0 | AY108: ='Energy Uses'!JX53 -> 0 | AZ108: ='Energy Uses'!JW53 -> 0 | BA108: ='Energy Uses'!JV53 -> 0 | BB108: ='Energy Uses'!JU53 -> 0 | BC108: ='Energy Uses'!JT53 -> 0 | BD108: ='Energy Uses'!JS53 -> 0 | BE108: ='Energy Uses'!JR53 -> 0 | BF108: ='Energy Uses'!JQ53 -> 0 | BG108: ='Energy Uses'!JP53 -> 0 | BH108: ='Energy Uses'!JO53 -> 0 | BI108: ='Energy Uses'!JN53 -> 0 | BJ108: ='Energy Uses'!JM53 -> 0
AG109: ='Energy Uses'!M54 -> FALSE | AH109: 0 | AI109: 0 | AJ109: 30 | AK109: ='Energy Uses'!C54 -> 0 | AL109: ='Energy Uses'!KK54 -> 0 | AM109: ='Energy Uses'!KJ54 -> 0 | AN109: ='Energy Uses'!KI54 -> 0 | AO109: ='Energy Uses'!KH54 -> 0 | AP109: ='Energy Uses'!KG54 -> 0 | AQ109: ='Energy Uses'!KF54 -> 0 | AR109: ='Energy Uses'!KE54 -> 0 | AS109: ='Energy Uses'!KD54 -> 0 | AT109: ='Energy Uses'!KC54 -> 0 | AU109: ='Energy Uses'!KB54 -> 0 | AV109: ='Energy Uses'!KA54 -> 0 | AW109: ='Energy Uses'!JZ54 -> 0 | AX109: ='Energy Uses'!JY54 -> 0 | AY109: ='Energy Uses'!JX54 -> 0 | AZ109: ='Energy Uses'!JW54 -> 0 | BA109: ='Energy Uses'!JV54 -> 0 | BB109: ='Energy Uses'!JU54 -> 0 | BC109: ='Energy Uses'!JT54 -> 0 | BD109: ='Energy Uses'!JS54 -> 0 | BE109: ='Energy Uses'!JR54 -> 0 | BF109: ='Energy Uses'!JQ54 -> 0 | BG109: ='Energy Uses'!JP54 -> 0 | BH109: ='Energy Uses'!JO54 -> 0 | BI109: ='Energy Uses'!JN54 -> 0 | BJ109: ='Energy Uses'!JM54 -> 0
AG110: ='Energy Uses'!M55 -> FALSE | AH110: 0 | AI110: =HLOOKUP(AI$80,$AL$80:$BJ$110,AJ110,) -> 0 | AJ110: 31 | AK110: ='Energy Uses'!C55 -> 0 | AL110: ='Energy Uses'!KK55 -> 0 | AM110: ='Energy Uses'!KJ55 -> 0 | AN110: ='Energy Uses'!KI55 -> 0 | AO110: ='Energy Uses'!KH55 -> 0 | AP110: ='Energy Uses'!KG55 -> 0 | AQ110: ='Energy Uses'!KF55 -> 0 | AR110: ='Energy Uses'!KE55 -> 0 | AS110: ='Energy Uses'!KD55 -> 0 | AT110: ='Energy Uses'!KC55 -> 0 | AU110: ='Energy Uses'!KB55 -> 0 | AV110: ='Energy Uses'!KA55 -> 0 | AW110: ='Energy Uses'!JZ55 -> 0 | AX110: ='Energy Uses'!JY55 -> 0 | AY110: ='Energy Uses'!JX55 -> 0 | AZ110: ='Energy Uses'!JW55 -> 0 | BA110: ='Energy Uses'!JV55 -> 0 | BB110: ='Energy Uses'!JU55 -> 0 | BC110: ='Energy Uses'!JT55 -> 0 | BD110: ='Energy Uses'!JS55 -> 0 | BE110: ='Energy Uses'!JR55 -> 0 | BF110: ='Energy Uses'!JQ55 -> 0 | BG110: ='Energy Uses'!JP55 -> 0 | BH110: ='Energy Uses'!JO55 -> 0 | BI110: ='Energy Uses'!JN55 -> 0 | BJ110: ='Energy Uses'!JM55 -> 0
AG111: TRUE
AG112: TRUE | AI112: =$AI$68 -> 2015 | AL112: =AM112-1 -> 2005 | AM112: 2006 | AN112: 2007 | AO112: 2008 | AP112: 2009 | AQ112: 2010 | AR112: 2011 | AS112: 2012 | AT112: 2013 | AU112: 2014 | AV112: 2015 | AW112: 2016 | AX112: 2017 | AY112: 2018 | AZ112: 2019 | BA112: 2020 | BB112: 2021 | BC112: 2022 | BD112: 2023 | BE112: 2024 | BF112: 2025 | BG112: 2026 | BH112: 2027 | BI112: =BJ112-1 -> 2028 | BJ112: =FinalYear -> 2029
AG113: ='Energy Uses'!M67 -> TRUE | AH113: =AK113 -> Lights | AI113: =HLOOKUP(AI$112,$AL$112:$BJ$142,AJ113,) -> 3068.530515 | AJ113: 2 | AK113: ='Energy Uses'!C67 -> Lights | AL113: ='Energy Uses'!KK67 -> 0 | AM113: ='Energy Uses'!KJ67 -> 0 | AN113: ='Energy Uses'!KI67 -> 0 | AO113: ='Energy Uses'!KH67 -> 0 | AP113: ='Energy Uses'!KG67 -> 0 | AQ113: ='Energy Uses'!KF67 -> 0 | AR113: ='Energy Uses'!KE67 -> 0 | AS113: ='Energy Uses'!KD67 -> 0 | AT113: ='Energy Uses'!KC67 -> 3068.530515 | AU113: ='Energy Uses'!KB67 -> 3068.530515 | AV113: ='Energy Uses'!KA67 -> 3068.530515 | AW113: ='Energy Uses'!JZ67 -> 0 | AX113: ='Energy Uses'!JY67 -> 0 | AY113: ='Energy Uses'!JX67 -> 0 | AZ113: ='Energy Uses'!JW67 -> 0 | BA113: ='Energy Uses'!JV67 -> 0 | BB113: ='Energy Uses'!JU67 -> 0 | BC113: ='Energy Uses'!JT67 -> 0 | BD113: ='Energy Uses'!JS67 -> 0 | BE113: ='Energy Uses'!JR67 -> 0 | BF113: ='Energy Uses'!JQ67 -> 0 | BG113: ='Energy Uses'!JP67 -> 0 | BH113: ='Energy Uses'!JO67 -> 0 | BI113: ='Energy Uses'!JN67 -> 0 | BJ113: ='Energy Uses'!JM67 -> 0
AG114: ='Energy Uses'!M68 -> TRUE | AH114: Motors | AI114: =HLOOKUP(AI$112,$AL$112:$BJ$142,AJ114,) -> 9205.591544 | AJ114: 3 | AK114: ='Energy Uses'!C68 -> Motors | AL114: ='Energy Uses'!KK68 -> 0 | AM114: ='Energy Uses'!KJ68 -> 0 | AN114: ='Energy Uses'!KI68 -> 0 | AO114: ='Energy Uses'!KH68 -> 0 | AP114: ='Energy Uses'!KG68 -> 0 | AQ114: ='Energy Uses'!KF68 -> 0 | AR114: ='Energy Uses'!KE68 -> 0 | AS114: ='Energy Uses'!KD68 -> 0 | AT114: ='Energy Uses'!KC68 -> 9205.591544 | AU114: ='Energy Uses'!KB68 -> 9205.591544 | AV114: ='Energy Uses'!KA68 -> 9205.591544 | AW114: ='Energy Uses'!JZ68 -> 0 | AX114: ='Energy Uses'!JY68 -> 0 | AY114: ='Energy Uses'!JX68 -> 0 | AZ114: ='Energy Uses'!JW68 -> 0 | BA114: ='Energy Uses'!JV68 -> 0 | BB114: ='Energy Uses'!JU68 -> 0 | BC114: ='Energy Uses'!JT68 -> 0 | BD114: ='Energy Uses'!JS68 -> 0 | BE114: ='Energy Uses'!JR68 -> 0 | BF114: ='Energy Uses'!JQ68 -> 0 | BG114: ='Energy Uses'!JP68 -> 0 | BH114: ='Energy Uses'!JO68 -> 0 | BI114: ='Energy Uses'!JN68 -> 0 | BJ114: ='Energy Uses'!JM68 -> 0
AG115: ='Energy Uses'!M69 -> FALSE | AH115: 0 | AI115: 0 | AJ115: 4 | AK115: ='Energy Uses'!C69 -> 0 | AL115: ='Energy Uses'!KK69 -> 0 | AM115: ='Energy Uses'!KJ69 -> 0 | AN115: ='Energy Uses'!KI69 -> 0 | AO115: ='Energy Uses'!KH69 -> 0 | AP115: ='Energy Uses'!KG69 -> 0 | AQ115: ='Energy Uses'!KF69 -> 0 | AR115: ='Energy Uses'!KE69 -> 0 | AS115: ='Energy Uses'!KD69 -> 0 | AT115: ='Energy Uses'!KC69 -> 0 | AU115: ='Energy Uses'!KB69 -> 0 | AV115: ='Energy Uses'!KA69 -> 0 | AW115: ='Energy Uses'!JZ69 -> 0 | AX115: ='Energy Uses'!JY69 -> 0 | AY115: ='Energy Uses'!JX69 -> 0 | AZ115: ='Energy Uses'!JW69 -> 0 | BA115: ='Energy Uses'!JV69 -> 0 | BB115: ='Energy Uses'!JU69 -> 0 | BC115: ='Energy Uses'!JT69 -> 0 | BD115: ='Energy Uses'!JS69 -> 0 | BE115: ='Energy Uses'!JR69 -> 0 | BF115: ='Energy Uses'!JQ69 -> 0 | BG115: ='Energy Uses'!JP69 -> 0 | BH115: ='Energy Uses'!JO69 -> 0 | BI115: ='Energy Uses'!JN69 -> 0 | BJ115: ='Energy Uses'!JM69 -> 0
AG116: ='Energy Uses'!M70 -> FALSE | AH116: 0 | AI116: 0 | AJ116: 5 | AK116: ='Energy Uses'!C70 -> 0 | AL116: ='Energy Uses'!KK70 -> 0 | AM116: ='Energy Uses'!KJ70 -> 0 | AN116: ='Energy Uses'!KI70 -> 0 | AO116: ='Energy Uses'!KH70 -> 0 | AP116: ='Energy Uses'!KG70 -> 0 | AQ116: ='Energy Uses'!KF70 -> 0 | AR116: ='Energy Uses'!KE70 -> 0 | AS116: ='Energy Uses'!KD70 -> 0 | AT116: ='Energy Uses'!KC70 -> 0 | AU116: ='Energy Uses'!KB70 -> 0 | AV116: ='Energy Uses'!KA70 -> 0 | AW116: ='Energy Uses'!JZ70 -> 0 | AX116: ='Energy Uses'!JY70 -> 0 | AY116: ='Energy Uses'!JX70 -> 0 | AZ116: ='Energy Uses'!JW70 -> 0 | BA116: ='Energy Uses'!JV70 -> 0 | BB116: ='Energy Uses'!JU70 -> 0 | BC116: ='Energy Uses'!JT70 -> 0 | BD116: ='Energy Uses'!JS70 -> 0 | BE116: ='Energy Uses'!JR70 -> 0 | BF116: ='Energy Uses'!JQ70 -> 0 | BG116: ='Energy Uses'!JP70 -> 0 | BH116: ='Energy Uses'!JO70 -> 0 | BI116: ='Energy Uses'!JN70 -> 0 | BJ116: ='Energy Uses'!JM70 -> 0
AG117: ='Energy Uses'!M71 -> FALSE | AH117: 0 | AI117: 0 | AJ117: 6 | AK117: ='Energy Uses'!C71 -> 0 | AL117: ='Energy Uses'!KK71 -> 0 | AM117: ='Energy Uses'!KJ71 -> 0 | AN117: ='Energy Uses'!KI71 -> 0 | AO117: ='Energy Uses'!KH71 -> 0 | AP117: ='Energy Uses'!KG71 -> 0 | AQ117: ='Energy Uses'!KF71 -> 0 | AR117: ='Energy Uses'!KE71 -> 0 | AS117: ='Energy Uses'!KD71 -> 0 | AT117: ='Energy Uses'!KC71 -> 0 | AU117: ='Energy Uses'!KB71 -> 0 | AV117: ='Energy Uses'!KA71 -> 0 | AW117: ='Energy Uses'!JZ71 -> 0 | AX117: ='Energy Uses'!JY71 -> 0 | AY117: ='Energy Uses'!JX71 -> 0 | AZ117: ='Energy Uses'!JW71 -> 0 | BA117: ='Energy Uses'!JV71 -> 0 | BB117: ='Energy Uses'!JU71 -> 0 | BC117: ='Energy Uses'!JT71 -> 0 | BD117: ='Energy Uses'!JS71 -> 0 | BE117: ='Energy Uses'!JR71 -> 0 | BF117: ='Energy Uses'!JQ71 -> 0 | BG117: ='Energy Uses'!JP71 -> 0 | BH117: ='Energy Uses'!JO71 -> 0 | BI117: ='Energy Uses'!JN71 -> 0 | BJ117: ='Energy Uses'!JM71 -> 0
AG118: ='Energy Uses'!M72 -> FALSE | AH118: 0 | AI118: 0 | AJ118: 7 | AK118: ='Energy Uses'!C72 -> 0 | AL118: ='Energy Uses'!KK72 -> 0 | AM118: ='Energy Uses'!KJ72 -> 0 | AN118: ='Energy Uses'!KI72 -> 0 | AO118: ='Energy Uses'!KH72 -> 0 | AP118: ='Energy Uses'!KG72 -> 0 | AQ118: ='Energy Uses'!KF72 -> 0 | AR118: ='Energy Uses'!KE72 -> 0 | AS118: ='Energy Uses'!KD72 -> 0 | AT118: ='Energy Uses'!KC72 -> 0 | AU118: ='Energy Uses'!KB72 -> 0 | AV118: ='Energy Uses'!KA72 -> 0 | AW118: ='Energy Uses'!JZ72 -> 0 | AX118: ='Energy Uses'!JY72 -> 0 | AY118: ='Energy Uses'!JX72 -> 0 | AZ118: ='Energy Uses'!JW72 -> 0 | BA118: ='Energy Uses'!JV72 -> 0 | BB118: ='Energy Uses'!JU72 -> 0 | BC118: ='Energy Uses'!JT72 -> 0 | BD118: ='Energy Uses'!JS72 -> 0 | BE118: ='Energy Uses'!JR72 -> 0 | BF118: ='Energy Uses'!JQ72 -> 0 | BG118: ='Energy Uses'!JP72 -> 0 | BH118: ='Energy Uses'!JO72 -> 0 | BI118: ='Energy Uses'!JN72 -> 0 | BJ118: ='Energy Uses'!JM72 -> 0
AG119: ='Energy Uses'!M73 -> FALSE | AH119: 0 | AI119: 0 | AJ119: 8 | AK119: ='Energy Uses'!C73 -> 0 | AL119: ='Energy Uses'!KK73 -> 0 | AM119: ='Energy Uses'!KJ73 -> 0 | AN119: ='Energy Uses'!KI73 -> 0 | AO119: ='Energy Uses'!KH73 -> 0 | AP119: ='Energy Uses'!KG73 -> 0 | AQ119: ='Energy Uses'!KF73 -> 0 | AR119: ='Energy Uses'!KE73 -> 0 | AS119: ='Energy Uses'!KD73 -> 0 | AT119: ='Energy Uses'!KC73 -> 0 | AU119: ='Energy Uses'!KB73 -> 0 | AV119: ='Energy Uses'!KA73 -> 0 | AW119: ='Energy Uses'!JZ73 -> 0 | AX119: ='Energy Uses'!JY73 -> 0 | AY119: ='Energy Uses'!JX73 -> 0 | AZ119: ='Energy Uses'!JW73 -> 0 | BA119: ='Energy Uses'!JV73 -> 0 | BB119: ='Energy Uses'!JU73 -> 0 | BC119: ='Energy Uses'!JT73 -> 0 | BD119: ='Energy Uses'!JS73 -> 0 | BE119: ='Energy Uses'!JR73 -> 0 | BF119: ='Energy Uses'!JQ73 -> 0 | BG119: ='Energy Uses'!JP73 -> 0 | BH119: ='Energy Uses'!JO73 -> 0 | BI119: ='Energy Uses'!JN73 -> 0 | BJ119: ='Energy Uses'!JM73 -> 0
AG120: ='Energy Uses'!M74 -> FALSE | AH120: 0 | AI120: 0 | AJ120: 9 | AK120: ='Energy Uses'!C74 -> 0 | AL120: ='Energy Uses'!KK74 -> 0 | AM120: ='Energy Uses'!KJ74 -> 0 | AN120: ='Energy Uses'!KI74 -> 0 | AO120: ='Energy Uses'!KH74 -> 0 | AP120: ='Energy Uses'!KG74 -> 0 | AQ120: ='Energy Uses'!KF74 -> 0 | AR120: ='Energy Uses'!KE74 -> 0 | AS120: ='Energy Uses'!KD74 -> 0 | AT120: ='Energy Uses'!KC74 -> 0 | AU120: ='Energy Uses'!KB74 -> 0 | AV120: ='Energy Uses'!KA74 -> 0 | AW120: ='Energy Uses'!JZ74 -> 0 | AX120: ='Energy Uses'!JY74 -> 0 | AY120: ='Energy Uses'!JX74 -> 0 | AZ120: ='Energy Uses'!JW74 -> 0 | BA120: ='Energy Uses'!JV74 -> 0 | BB120: ='Energy Uses'!JU74 -> 0 | BC120: ='Energy Uses'!JT74 -> 0 | BD120: ='Energy Uses'!JS74 -> 0 | BE120: ='Energy Uses'!JR74 -> 0 | BF120: ='Energy Uses'!JQ74 -> 0 | BG120: ='Energy Uses'!JP74 -> 0 | BH120: ='Energy Uses'!JO74 -> 0 | BI120: ='Energy Uses'!JN74 -> 0 | BJ120: ='Energy Uses'!JM74 -> 0
AG121: ='Energy Uses'!M75 -> FALSE | AH121: 0 | AI121: 0 | AJ121: 10 | AK121: ='Energy Uses'!C75 -> 0 | AL121: ='Energy Uses'!KK75 -> 0 | AM121: ='Energy Uses'!KJ75 -> 0 | AN121: ='Energy Uses'!KI75 -> 0 | AO121: ='Energy Uses'!KH75 -> 0 | AP121: ='Energy Uses'!KG75 -> 0 | AQ121: ='Energy Uses'!KF75 -> 0 | AR121: ='Energy Uses'!KE75 -> 0 | AS121: ='Energy Uses'!KD75 -> 0 | AT121: ='Energy Uses'!KC75 -> 0 | AU121: ='Energy Uses'!KB75 -> 0 | AV121: ='Energy Uses'!KA75 -> 0 | AW121: ='Energy Uses'!JZ75 -> 0 | AX121: ='Energy Uses'!JY75 -> 0 | AY121: ='Energy Uses'!JX75 -> 0 | AZ121: ='Energy Uses'!JW75 -> 0 | BA121: ='Energy Uses'!JV75 -> 0 | BB121: ='Energy Uses'!JU75 -> 0 | BC121: ='Energy Uses'!JT75 -> 0 | BD121: ='Energy Uses'!JS75 -> 0 | BE121: ='Energy Uses'!JR75 -> 0 | BF121: ='Energy Uses'!JQ75 -> 0 | BG121: ='Energy Uses'!JP75 -> 0 | BH121: ='Energy Uses'!JO75 -> 0 | BI121: ='Energy Uses'!JN75 -> 0 | BJ121: ='Energy Uses'!JM75 -> 0
AG122: ='Energy Uses'!M76 -> FALSE | AH122: 0 | AI122: 0 | AJ122: 11 | AK122: ='Energy Uses'!C76 -> 0 | AL122: ='Energy Uses'!KK76 -> 0 | AM122: ='Energy Uses'!KJ76 -> 0 | AN122: ='Energy Uses'!KI76 -> 0 | AO122: ='Energy Uses'!KH76 -> 0 | AP122: ='Energy Uses'!KG76 -> 0 | AQ122: ='Energy Uses'!KF76 -> 0 | AR122: ='Energy Uses'!KE76 -> 0 | AS122: ='Energy Uses'!KD76 -> 0 | AT122: ='Energy Uses'!KC76 -> 0 | AU122: ='Energy Uses'!KB76 -> 0 | AV122: ='Energy Uses'!KA76 -> 0 | AW122: ='Energy Uses'!JZ76 -> 0 | AX122: ='Energy Uses'!JY76 -> 0 | AY122: ='Energy Uses'!JX76 -> 0 | AZ122: ='Energy Uses'!JW76 -> 0 | BA122: ='Energy Uses'!JV76 -> 0 | BB122: ='Energy Uses'!JU76 -> 0 | BC122: ='Energy Uses'!JT76 -> 0 | BD122: ='Energy Uses'!JS76 -> 0 | BE122: ='Energy Uses'!JR76 -> 0 | BF122: ='Energy Uses'!JQ76 -> 0 | BG122: ='Energy Uses'!JP76 -> 0 | BH122: ='Energy Uses'!JO76 -> 0 | BI122: ='Energy Uses'!JN76 -> 0 | BJ122: ='Energy Uses'!JM76 -> 0
AG123: ='Energy Uses'!M77 -> FALSE | AH123: 0 | AI123: 0 | AJ123: 12 | AK123: ='Energy Uses'!C77 -> 0 | AL123: ='Energy Uses'!KK77 -> 0 | AM123: ='Energy Uses'!KJ77 -> 0 | AN123: ='Energy Uses'!KI77 -> 0 | AO123: ='Energy Uses'!KH77 -> 0 | AP123: ='Energy Uses'!KG77 -> 0 | AQ123: ='Energy Uses'!KF77 -> 0 | AR123: ='Energy Uses'!KE77 -> 0 | AS123: ='Energy Uses'!KD77 -> 0 | AT123: ='Energy Uses'!KC77 -> 0 | AU123: ='Energy Uses'!KB77 -> 0 | AV123: ='Energy Uses'!KA77 -> 0 | AW123: ='Energy Uses'!JZ77 -> 0 | AX123: ='Energy Uses'!JY77 -> 0 | AY123: ='Energy Uses'!JX77 -> 0 | AZ123: ='Energy Uses'!JW77 -> 0 | BA123: ='Energy Uses'!JV77 -> 0 | BB123: ='Energy Uses'!JU77 -> 0 | BC123: ='Energy Uses'!JT77 -> 0 | BD123: ='Energy Uses'!JS77 -> 0 | BE123: ='Energy Uses'!JR77 -> 0 | BF123: ='Energy Uses'!JQ77 -> 0 | BG123: ='Energy Uses'!JP77 -> 0 | BH123: ='Energy Uses'!JO77 -> 0 | BI123: ='Energy Uses'!JN77 -> 0 | BJ123: ='Energy Uses'!JM77 -> 0
AG124: ='Energy Uses'!M78 -> FALSE | AH124: 0 | AI124: 0 | AJ124: 13 | AK124: ='Energy Uses'!C78 -> 0 | AL124: ='Energy Uses'!KK78 -> 0 | AM124: ='Energy Uses'!KJ78 -> 0 | AN124: ='Energy Uses'!KI78 -> 0 | AO124: ='Energy Uses'!KH78 -> 0 | AP124: ='Energy Uses'!KG78 -> 0 | AQ124: ='Energy Uses'!KF78 -> 0 | AR124: ='Energy Uses'!KE78 -> 0 | AS124: ='Energy Uses'!KD78 -> 0 | AT124: ='Energy Uses'!KC78 -> 0 | AU124: ='Energy Uses'!KB78 -> 0 | AV124: ='Energy Uses'!KA78 -> 0 | AW124: ='Energy Uses'!JZ78 -> 0 | AX124: ='Energy Uses'!JY78 -> 0 | AY124: ='Energy Uses'!JX78 -> 0 | AZ124: ='Energy Uses'!JW78 -> 0 | BA124: ='Energy Uses'!JV78 -> 0 | BB124: ='Energy Uses'!JU78 -> 0 | BC124: ='Energy Uses'!JT78 -> 0 | BD124: ='Energy Uses'!JS78 -> 0 | BE124: ='Energy Uses'!JR78 -> 0 | BF124: ='Energy Uses'!JQ78 -> 0 | BG124: ='Energy Uses'!JP78 -> 0 | BH124: ='Energy Uses'!JO78 -> 0 | BI124: ='Energy Uses'!JN78 -> 0 | BJ124: ='Energy Uses'!JM78 -> 0
AG125: ='Energy Uses'!M79 -> FALSE | AH125: 0 | AI125: 0 | AJ125: 14 | AK125: ='Energy Uses'!C79 -> 0 | AL125: ='Energy Uses'!KK79 -> 0 | AM125: ='Energy Uses'!KJ79 -> 0 | AN125: ='Energy Uses'!KI79 -> 0 | AO125: ='Energy Uses'!KH79 -> 0 | AP125: ='Energy Uses'!KG79 -> 0 | AQ125: ='Energy Uses'!KF79 -> 0 | AR125: ='Energy Uses'!KE79 -> 0 | AS125: ='Energy Uses'!KD79 -> 0 | AT125: ='Energy Uses'!KC79 -> 0 | AU125: ='Energy Uses'!KB79 -> 0 | AV125: ='Energy Uses'!KA79 -> 0 | AW125: ='Energy Uses'!JZ79 -> 0 | AX125: ='Energy Uses'!JY79 -> 0 | AY125: ='Energy Uses'!JX79 -> 0 | AZ125: ='Energy Uses'!JW79 -> 0 | BA125: ='Energy Uses'!JV79 -> 0 | BB125: ='Energy Uses'!JU79 -> 0 | BC125: ='Energy Uses'!JT79 -> 0 | BD125: ='Energy Uses'!JS79 -> 0 | BE125: ='Energy Uses'!JR79 -> 0 | BF125: ='Energy Uses'!JQ79 -> 0 | BG125: ='Energy Uses'!JP79 -> 0 | BH125: ='Energy Uses'!JO79 -> 0 | BI125: ='Energy Uses'!JN79 -> 0 | BJ125: ='Energy Uses'!JM79 -> 0
AG126: ='Energy Uses'!M80 -> FALSE | AH126: 0 | AI126: 0 | AJ126: 15 | AK126: ='Energy Uses'!C80 -> 0 | AL126: ='Energy Uses'!KK80 -> 0 | AM126: ='Energy Uses'!KJ80 -> 0 | AN126: ='Energy Uses'!KI80 -> 0 | AO126: ='Energy Uses'!KH80 -> 0 | AP126: ='Energy Uses'!KG80 -> 0 | AQ126: ='Energy Uses'!KF80 -> 0 | AR126: ='Energy Uses'!KE80 -> 0 | AS126: ='Energy Uses'!KD80 -> 0 | AT126: ='Energy Uses'!KC80 -> 0 | AU126: ='Energy Uses'!KB80 -> 0 | AV126: ='Energy Uses'!KA80 -> 0 | AW126: ='Energy Uses'!JZ80 -> 0 | AX126: ='Energy Uses'!JY80 -> 0 | AY126: ='Energy Uses'!JX80 -> 0 | AZ126: ='Energy Uses'!JW80 -> 0 | BA126: ='Energy Uses'!JV80 -> 0 | BB126: ='Energy Uses'!JU80 -> 0 | BC126: ='Energy Uses'!JT80 -> 0 | BD126: ='Energy Uses'!JS80 -> 0 | BE126: ='Energy Uses'!JR80 -> 0 | BF126: ='Energy Uses'!JQ80 -> 0 | BG126: ='Energy Uses'!JP80 -> 0 | BH126: ='Energy Uses'!JO80 -> 0 | BI126: ='Energy Uses'!JN80 -> 0 | BJ126: ='Energy Uses'!JM80 -> 0
AG127: ='Energy Uses'!M81 -> FALSE | AH127: 0 | AI127: 0 | AJ127: 16 | AK127: ='Energy Uses'!C81 -> 0 | AL127: ='Energy Uses'!KK81 -> 0 | AM127: ='Energy Uses'!KJ81 -> 0 | AN127: ='Energy Uses'!KI81 -> 0 | AO127: ='Energy Uses'!KH81 -> 0 | AP127: ='Energy Uses'!KG81 -> 0 | AQ127: ='Energy Uses'!KF81 -> 0 | AR127: ='Energy Uses'!KE81 -> 0 | AS127: ='Energy Uses'!KD81 -> 0 | AT127: ='Energy Uses'!KC81 -> 0 | AU127: ='Energy Uses'!KB81 -> 0 | AV127: ='Energy Uses'!KA81 -> 0 | AW127: ='Energy Uses'!JZ81 -> 0 | AX127: ='Energy Uses'!JY81 -> 0 | AY127: ='Energy Uses'!JX81 -> 0 | AZ127: ='Energy Uses'!JW81 -> 0 | BA127: ='Energy Uses'!JV81 -> 0 | BB127: ='Energy Uses'!JU81 -> 0 | BC127: ='Energy Uses'!JT81 -> 0 | BD127: ='Energy Uses'!JS81 -> 0 | BE127: ='Energy Uses'!JR81 -> 0 | BF127: ='Energy Uses'!JQ81 -> 0 | BG127: ='Energy Uses'!JP81 -> 0 | BH127: ='Energy Uses'!JO81 -> 0 | BI127: ='Energy Uses'!JN81 -> 0 | BJ127: ='Energy Uses'!JM81 -> 0
AG128: ='Energy Uses'!M82 -> FALSE | AH128: 0 | AI128: 0 | AJ128: 17 | AK128: ='Energy Uses'!C82 -> 0 | AL128: ='Energy Uses'!KK82 -> 0 | AM128: ='Energy Uses'!KJ82 -> 0 | AN128: ='Energy Uses'!KI82 -> 0 | AO128: ='Energy Uses'!KH82 -> 0 | AP128: ='Energy Uses'!KG82 -> 0 | AQ128: ='Energy Uses'!KF82 -> 0 | AR128: ='Energy Uses'!KE82 -> 0 | AS128: ='Energy Uses'!KD82 -> 0 | AT128: ='Energy Uses'!KC82 -> 0 | AU128: ='Energy Uses'!KB82 -> 0 | AV128: ='Energy Uses'!KA82 -> 0 | AW128: ='Energy Uses'!JZ82 -> 0 | AX128: ='Energy Uses'!JY82 -> 0 | AY128: ='Energy Uses'!JX82 -> 0 | AZ128: ='Energy Uses'!JW82 -> 0 | BA128: ='Energy Uses'!JV82 -> 0 | BB128: ='Energy Uses'!JU82 -> 0 | BC128: ='Energy Uses'!JT82 -> 0 | BD128: ='Energy Uses'!JS82 -> 0 | BE128: ='Energy Uses'!JR82 -> 0 | BF128: ='Energy Uses'!JQ82 -> 0 | BG128: ='Energy Uses'!JP82 -> 0 | BH128: ='Energy Uses'!JO82 -> 0 | BI128: ='Energy Uses'!JN82 -> 0 | BJ128: ='Energy Uses'!JM82 -> 0
AG129: ='Energy Uses'!M83 -> FALSE | AH129: 0 | AI129: 0 | AJ129: 18 | AK129: ='Energy Uses'!C83 -> 0 | AL129: ='Energy Uses'!KK83 -> 0 | AM129: ='Energy Uses'!KJ83 -> 0 | AN129: ='Energy Uses'!KI83 -> 0 | AO129: ='Energy Uses'!KH83 -> 0 | AP129: ='Energy Uses'!KG83 -> 0 | AQ129: ='Energy Uses'!KF83 -> 0 | AR129: ='Energy Uses'!KE83 -> 0 | AS129: ='Energy Uses'!KD83 -> 0 | AT129: ='Energy Uses'!KC83 -> 0 | AU129: ='Energy Uses'!KB83 -> 0 | AV129: ='Energy Uses'!KA83 -> 0 | AW129: ='Energy Uses'!JZ83 -> 0 | AX129: ='Energy Uses'!JY83 -> 0 | AY129: ='Energy Uses'!JX83 -> 0 | AZ129: ='Energy Uses'!JW83 -> 0 | BA129: ='Energy Uses'!JV83 -> 0 | BB129: ='Energy Uses'!JU83 -> 0 | BC129: ='Energy Uses'!JT83 -> 0 | BD129: ='Energy Uses'!JS83 -> 0 | BE129: ='Energy Uses'!JR83 -> 0 | BF129: ='Energy Uses'!JQ83 -> 0 | BG129: ='Energy Uses'!JP83 -> 0 | BH129: ='Energy Uses'!JO83 -> 0 | BI129: ='Energy Uses'!JN83 -> 0 | BJ129: ='Energy Uses'!JM83 -> 0
AG130: ='Energy Uses'!M84 -> FALSE | AH130: 0 | AI130: 0 | AJ130: 19 | AK130: ='Energy Uses'!C84 -> 0 | AL130: ='Energy Uses'!KK84 -> 0 | AM130: ='Energy Uses'!KJ84 -> 0 | AN130: ='Energy Uses'!KI84 -> 0 | AO130: ='Energy Uses'!KH84 -> 0 | AP130: ='Energy Uses'!KG84 -> 0 | AQ130: ='Energy Uses'!KF84 -> 0 | AR130: ='Energy Uses'!KE84 -> 0 | AS130: ='Energy Uses'!KD84 -> 0 | AT130: ='Energy Uses'!KC84 -> 0 | AU130: ='Energy Uses'!KB84 -> 0 | AV130: ='Energy Uses'!KA84 -> 0 | AW130: ='Energy Uses'!JZ84 -> 0 | AX130: ='Energy Uses'!JY84 -> 0 | AY130: ='Energy Uses'!JX84 -> 0 | AZ130: ='Energy Uses'!JW84 -> 0 | BA130: ='Energy Uses'!JV84 -> 0 | BB130: ='Energy Uses'!JU84 -> 0 | BC130: ='Energy Uses'!JT84 -> 0 | BD130: ='Energy Uses'!JS84 -> 0 | BE130: ='Energy Uses'!JR84 -> 0 | BF130: ='Energy Uses'!JQ84 -> 0 | BG130: ='Energy Uses'!JP84 -> 0 | BH130: ='Energy Uses'!JO84 -> 0 | BI130: ='Energy Uses'!JN84 -> 0 | BJ130: ='Energy Uses'!JM84 -> 0
AG131: ='Energy Uses'!M85 -> FALSE | AH131: 0 | AI131: 0 | AJ131: 20 | AK131: ='Energy Uses'!C85 -> 0 | AL131: ='Energy Uses'!KK85 -> 0 | AM131: ='Energy Uses'!KJ85 -> 0 | AN131: ='Energy Uses'!KI85 -> 0 | AO131: ='Energy Uses'!KH85 -> 0 | AP131: ='Energy Uses'!KG85 -> 0 | AQ131: ='Energy Uses'!KF85 -> 0 | AR131: ='Energy Uses'!KE85 -> 0 | AS131: ='Energy Uses'!KD85 -> 0 | AT131: ='Energy Uses'!KC85 -> 0 | AU131: ='Energy Uses'!KB85 -> 0 | AV131: ='Energy Uses'!KA85 -> 0 | AW131: ='Energy Uses'!JZ85 -> 0 | AX131: ='Energy Uses'!JY85 -> 0 | AY131: ='Energy Uses'!JX85 -> 0 | AZ131: ='Energy Uses'!JW85 -> 0 | BA131: ='Energy Uses'!JV85 -> 0 | BB131: ='Energy Uses'!JU85 -> 0 | BC131: ='Energy Uses'!JT85 -> 0 | BD131: ='Energy Uses'!JS85 -> 0 | BE131: ='Energy Uses'!JR85 -> 0 | BF131: ='Energy Uses'!JQ85 -> 0 | BG131: ='Energy Uses'!JP85 -> 0 | BH131: ='Energy Uses'!JO85 -> 0 | BI131: ='Energy Uses'!JN85 -> 0 | BJ131: ='Energy Uses'!JM85 -> 0
AG132: ='Energy Uses'!M86 -> FALSE | AH132: 0 | AI132: 0 | AJ132: 21 | AK132: ='Energy Uses'!C86 -> 0 | AL132: ='Energy Uses'!KK86 -> 0 | AM132: ='Energy Uses'!KJ86 -> 0 | AN132: ='Energy Uses'!KI86 -> 0 | AO132: ='Energy Uses'!KH86 -> 0 | AP132: ='Energy Uses'!KG86 -> 0 | AQ132: ='Energy Uses'!KF86 -> 0 | AR132: ='Energy Uses'!KE86 -> 0 | AS132: ='Energy Uses'!KD86 -> 0 | AT132: ='Energy Uses'!KC86 -> 0 | AU132: ='Energy Uses'!KB86 -> 0 | AV132: ='Energy Uses'!KA86 -> 0 | AW132: ='Energy Uses'!JZ86 -> 0 | AX132: ='Energy Uses'!JY86 -> 0 | AY132: ='Energy Uses'!JX86 -> 0 | AZ132: ='Energy Uses'!JW86 -> 0 | BA132: ='Energy Uses'!JV86 -> 0 | BB132: ='Energy Uses'!JU86 -> 0 | BC132: ='Energy Uses'!JT86 -> 0 | BD132: ='Energy Uses'!JS86 -> 0 | BE132: ='Energy Uses'!JR86 -> 0 | BF132: ='Energy Uses'!JQ86 -> 0 | BG132: ='Energy Uses'!JP86 -> 0 | BH132: ='Energy Uses'!JO86 -> 0 | BI132: ='Energy Uses'!JN86 -> 0 | BJ132: ='Energy Uses'!JM86 -> 0
AG133: ='Energy Uses'!M87 -> FALSE | AH133: 0 | AI133: 0 | AJ133: 22 | AK133: ='Energy Uses'!C87 -> 0 | AL133: ='Energy Uses'!KK87 -> 0 | AM133: ='Energy Uses'!KJ87 -> 0 | AN133: ='Energy Uses'!KI87 -> 0 | AO133: ='Energy Uses'!KH87 -> 0 | AP133: ='Energy Uses'!KG87 -> 0 | AQ133: ='Energy Uses'!KF87 -> 0 | AR133: ='Energy Uses'!KE87 -> 0 | AS133: ='Energy Uses'!KD87 -> 0 | AT133: ='Energy Uses'!KC87 -> 0 | AU133: ='Energy Uses'!KB87 -> 0 | AV133: ='Energy Uses'!KA87 -> 0 | AW133: ='Energy Uses'!JZ87 -> 0 | AX133: ='Energy Uses'!JY87 -> 0 | AY133: ='Energy Uses'!JX87 -> 0 | AZ133: ='Energy Uses'!JW87 -> 0 | BA133: ='Energy Uses'!JV87 -> 0 | BB133: ='Energy Uses'!JU87 -> 0 | BC133: ='Energy Uses'!JT87 -> 0 | BD133: ='Energy Uses'!JS87 -> 0 | BE133: ='Energy Uses'!JR87 -> 0 | BF133: ='Energy Uses'!JQ87 -> 0 | BG133: ='Energy Uses'!JP87 -> 0 | BH133: ='Energy Uses'!JO87 -> 0 | BI133: ='Energy Uses'!JN87 -> 0 | BJ133: ='Energy Uses'!JM87 -> 0
AG134: ='Energy Uses'!M88 -> FALSE | AH134: 0 | AI134: 0 | AJ134: 23 | AK134: ='Energy Uses'!C88 -> 0 | AL134: ='Energy Uses'!KK88 -> 0 | AM134: ='Energy Uses'!KJ88 -> 0 | AN134: ='Energy Uses'!KI88 -> 0 | AO134: ='Energy Uses'!KH88 -> 0 | AP134: ='Energy Uses'!KG88 -> 0 | AQ134: ='Energy Uses'!KF88 -> 0 | AR134: ='Energy Uses'!KE88 -> 0 | AS134: ='Energy Uses'!KD88 -> 0 | AT134: ='Energy Uses'!KC88 -> 0 | AU134: ='Energy Uses'!KB88 -> 0 | AV134: ='Energy Uses'!KA88 -> 0 | AW134: ='Energy Uses'!JZ88 -> 0 | AX134: ='Energy Uses'!JY88 -> 0 | AY134: ='Energy Uses'!JX88 -> 0 | AZ134: ='Energy Uses'!JW88 -> 0 | BA134: ='Energy Uses'!JV88 -> 0 | BB134: ='Energy Uses'!JU88 -> 0 | BC134: ='Energy Uses'!JT88 -> 0 | BD134: ='Energy Uses'!JS88 -> 0 | BE134: ='Energy Uses'!JR88 -> 0 | BF134: ='Energy Uses'!JQ88 -> 0 | BG134: ='Energy Uses'!JP88 -> 0 | BH134: ='Energy Uses'!JO88 -> 0 | BI134: ='Energy Uses'!JN88 -> 0 | BJ134: ='Energy Uses'!JM88 -> 0
AG135: ='Energy Uses'!M89 -> FALSE | AH135: 0 | AI135: 0 | AJ135: 24 | AK135: ='Energy Uses'!C89 -> 0 | AL135: ='Energy Uses'!KK89 -> 0 | AM135: ='Energy Uses'!KJ89 -> 0 | AN135: ='Energy Uses'!KI89 -> 0 | AO135: ='Energy Uses'!KH89 -> 0 | AP135: ='Energy Uses'!KG89 -> 0 | AQ135: ='Energy Uses'!KF89 -> 0 | AR135: ='Energy Uses'!KE89 -> 0 | AS135: ='Energy Uses'!KD89 -> 0 | AT135: ='Energy Uses'!KC89 -> 0 | AU135: ='Energy Uses'!KB89 -> 0 | AV135: ='Energy Uses'!KA89 -> 0 | AW135: ='Energy Uses'!JZ89 -> 0 | AX135: ='Energy Uses'!JY89 -> 0 | AY135: ='Energy Uses'!JX89 -> 0 | AZ135: ='Energy Uses'!JW89 -> 0 | BA135: ='Energy Uses'!JV89 -> 0 | BB135: ='Energy Uses'!JU89 -> 0 | BC135: ='Energy Uses'!JT89 -> 0 | BD135: ='Energy Uses'!JS89 -> 0 | BE135: ='Energy Uses'!JR89 -> 0 | BF135: ='Energy Uses'!JQ89 -> 0 | BG135: ='Energy Uses'!JP89 -> 0 | BH135: ='Energy Uses'!JO89 -> 0 | BI135: ='Energy Uses'!JN89 -> 0 | BJ135: ='Energy Uses'!JM89 -> 0
AG136: ='Energy Uses'!M90 -> FALSE | AH136: 0 | AI136: 0 | AJ136: 25 | AK136: ='Energy Uses'!C90 -> 0 | AL136: ='Energy Uses'!KK90 -> 0 | AM136: ='Energy Uses'!KJ90 -> 0 | AN136: ='Energy Uses'!KI90 -> 0 | AO136: ='Energy Uses'!KH90 -> 0 | AP136: ='Energy Uses'!KG90 -> 0 | AQ136: ='Energy Uses'!KF90 -> 0 | AR136: ='Energy Uses'!KE90 -> 0 | AS136: ='Energy Uses'!KD90 -> 0 | AT136: ='Energy Uses'!KC90 -> 0 | AU136: ='Energy Uses'!KB90 -> 0 | AV136: ='Energy Uses'!KA90 -> 0 | AW136: ='Energy Uses'!JZ90 -> 0 | AX136: ='Energy Uses'!JY90 -> 0 | AY136: ='Energy Uses'!JX90 -> 0 | AZ136: ='Energy Uses'!JW90 -> 0 | BA136: ='Energy Uses'!JV90 -> 0 | BB136: ='Energy Uses'!JU90 -> 0 | BC136: ='Energy Uses'!JT90 -> 0 | BD136: ='Energy Uses'!JS90 -> 0 | BE136: ='Energy Uses'!JR90 -> 0 | BF136: ='Energy Uses'!JQ90 -> 0 | BG136: ='Energy Uses'!JP90 -> 0 | BH136: ='Energy Uses'!JO90 -> 0 | BI136: ='Energy Uses'!JN90 -> 0 | BJ136: ='Energy Uses'!JM90 -> 0
AG137: ='Energy Uses'!M91 -> FALSE | AH137: 0 | AI137: 0 | AJ137: 26 | AK137: ='Energy Uses'!C91 -> 0 | AL137: ='Energy Uses'!KK91 -> 0 | AM137: ='Energy Uses'!KJ91 -> 0 | AN137: ='Energy Uses'!KI91 -> 0 | AO137: ='Energy Uses'!KH91 -> 0 | AP137: ='Energy Uses'!KG91 -> 0 | AQ137: ='Energy Uses'!KF91 -> 0 | AR137: ='Energy Uses'!KE91 -> 0 | AS137: ='Energy Uses'!KD91 -> 0 | AT137: ='Energy Uses'!KC91 -> 0 | AU137: ='Energy Uses'!KB91 -> 0 | AV137: ='Energy Uses'!KA91 -> 0 | AW137: ='Energy Uses'!JZ91 -> 0 | AX137: ='Energy Uses'!JY91 -> 0 | AY137: ='Energy Uses'!JX91 -> 0 | AZ137: ='Energy Uses'!JW91 -> 0 | BA137: ='Energy Uses'!JV91 -> 0 | BB137: ='Energy Uses'!JU91 -> 0 | BC137: ='Energy Uses'!JT91 -> 0 | BD137: ='Energy Uses'!JS91 -> 0 | BE137: ='Energy Uses'!JR91 -> 0 | BF137: ='Energy Uses'!JQ91 -> 0 | BG137: ='Energy Uses'!JP91 -> 0 | BH137: ='Energy Uses'!JO91 -> 0 | BI137: ='Energy Uses'!JN91 -> 0 | BJ137: ='Energy Uses'!JM91 -> 0
AG138: ='Energy Uses'!M92 -> FALSE | AH138: 0 | AI138: 0 | AJ138: 27 | AK138: ='Energy Uses'!C92 -> 0 | AL138: ='Energy Uses'!KK92 -> 0 | AM138: ='Energy Uses'!KJ92 -> 0 | AN138: ='Energy Uses'!KI92 -> 0 | AO138: ='Energy Uses'!KH92 -> 0 | AP138: ='Energy Uses'!KG92 -> 0 | AQ138: ='Energy Uses'!KF92 -> 0 | AR138: ='Energy Uses'!KE92 -> 0 | AS138: ='Energy Uses'!KD92 -> 0 | AT138: ='Energy Uses'!KC92 -> 0 | AU138: ='Energy Uses'!KB92 -> 0 | AV138: ='Energy Uses'!KA92 -> 0 | AW138: ='Energy Uses'!JZ92 -> 0 | AX138: ='Energy Uses'!JY92 -> 0 | AY138: ='Energy Uses'!JX92 -> 0 | AZ138: ='Energy Uses'!JW92 -> 0 | BA138: ='Energy Uses'!JV92 -> 0 | BB138: ='Energy Uses'!JU92 -> 0 | BC138: ='Energy Uses'!JT92 -> 0 | BD138: ='Energy Uses'!JS92 -> 0 | BE138: ='Energy Uses'!JR92 -> 0 | BF138: ='Energy Uses'!JQ92 -> 0 | BG138: ='Energy Uses'!JP92 -> 0 | BH138: ='Energy Uses'!JO92 -> 0 | BI138: ='Energy Uses'!JN92 -> 0 | BJ138: ='Energy Uses'!JM92 -> 0
AG139: ='Energy Uses'!M93 -> FALSE | AH139: 0 | AI139: 0 | AJ139: 28 | AK139: ='Energy Uses'!C93 -> 0 | AL139: ='Energy Uses'!KK93 -> 0 | AM139: ='Energy Uses'!KJ93 -> 0 | AN139: ='Energy Uses'!KI93 -> 0 | AO139: ='Energy Uses'!KH93 -> 0 | AP139: ='Energy Uses'!KG93 -> 0 | AQ139: ='Energy Uses'!KF93 -> 0 | AR139: ='Energy Uses'!KE93 -> 0 | AS139: ='Energy Uses'!KD93 -> 0 | AT139: ='Energy Uses'!KC93 -> 0 | AU139: ='Energy Uses'!KB93 -> 0 | AV139: ='Energy Uses'!KA93 -> 0 | AW139: ='Energy Uses'!JZ93 -> 0 | AX139: ='Energy Uses'!JY93 -> 0 | AY139: ='Energy Uses'!JX93 -> 0 | AZ139: ='Energy Uses'!JW93 -> 0 | BA139: ='Energy Uses'!JV93 -> 0 | BB139: ='Energy Uses'!JU93 -> 0 | BC139: ='Energy Uses'!JT93 -> 0 | BD139: ='Energy Uses'!JS93 -> 0 | BE139: ='Energy Uses'!JR93 -> 0 | BF139: ='Energy Uses'!JQ93 -> 0 | BG139: ='Energy Uses'!JP93 -> 0 | BH139: ='Energy Uses'!JO93 -> 0 | BI139: ='Energy Uses'!JN93 -> 0 | BJ139: ='Energy Uses'!JM93 -> 0
AG140: ='Energy Uses'!M94 -> FALSE | AH140: 0 | AI140: 0 | AJ140: 29 | AK140: ='Energy Uses'!C94 -> 0 | AL140: ='Energy Uses'!KK94 -> 0 | AM140: ='Energy Uses'!KJ94 -> 0 | AN140: ='Energy Uses'!KI94 -> 0 | AO140: ='Energy Uses'!KH94 -> 0 | AP140: ='Energy Uses'!KG94 -> 0 | AQ140: ='Energy Uses'!KF94 -> 0 | AR140: ='Energy Uses'!KE94 -> 0 | AS140: ='Energy Uses'!KD94 -> 0 | AT140: ='Energy Uses'!KC94 -> 0 | AU140: ='Energy Uses'!KB94 -> 0 | AV140: ='Energy Uses'!KA94 -> 0 | AW140: ='Energy Uses'!JZ94 -> 0 | AX140: ='Energy Uses'!JY94 -> 0 | AY140: ='Energy Uses'!JX94 -> 0 | AZ140: ='Energy Uses'!JW94 -> 0 | BA140: ='Energy Uses'!JV94 -> 0 | BB140: ='Energy Uses'!JU94 -> 0 | BC140: ='Energy Uses'!JT94 -> 0 | BD140: ='Energy Uses'!JS94 -> 0 | BE140: ='Energy Uses'!JR94 -> 0 | BF140: ='Energy Uses'!JQ94 -> 0 | BG140: ='Energy Uses'!JP94 -> 0 | BH140: ='Energy Uses'!JO94 -> 0 | BI140: ='Energy Uses'!JN94 -> 0 | BJ140: ='Energy Uses'!JM94 -> 0
AG141: ='Energy Uses'!M95 -> FALSE | AH141: 0 | AI141: 0 | AJ141: 30 | AK141: ='Energy Uses'!C95 -> 0 | AL141: ='Energy Uses'!KK95 -> 0 | AM141: ='Energy Uses'!KJ95 -> 0 | AN141: ='Energy Uses'!KI95 -> 0 | AO141: ='Energy Uses'!KH95 -> 0 | AP141: ='Energy Uses'!KG95 -> 0 | AQ141: ='Energy Uses'!KF95 -> 0 | AR141: ='Energy Uses'!KE95 -> 0 | AS141: ='Energy Uses'!KD95 -> 0 | AT141: ='Energy Uses'!KC95 -> 0 | AU141: ='Energy Uses'!KB95 -> 0 | AV141: ='Energy Uses'!KA95 -> 0 | AW141: ='Energy Uses'!JZ95 -> 0 | AX141: ='Energy Uses'!JY95 -> 0 | AY141: ='Energy Uses'!JX95 -> 0 | AZ141: ='Energy Uses'!JW95 -> 0 | BA141: ='Energy Uses'!JV95 -> 0 | BB141: ='Energy Uses'!JU95 -> 0 | BC141: ='Energy Uses'!JT95 -> 0 | BD141: ='Energy Uses'!JS95 -> 0 | BE141: ='Energy Uses'!JR95 -> 0 | BF141: ='Energy Uses'!JQ95 -> 0 | BG141: ='Energy Uses'!JP95 -> 0 | BH141: ='Energy Uses'!JO95 -> 0 | BI141: ='Energy Uses'!JN95 -> 0 | BJ141: ='Energy Uses'!JM95 -> 0
AG142: ='Energy Uses'!M96 -> FALSE | AH142: 0 | AI142: =HLOOKUP(AI$112,$AL$112:$BJ$142,AJ142,) -> 0 | AJ142: 31 | AK142: ='Energy Uses'!C96 -> 0 | AL142: ='Energy Uses'!KK96 -> 0 | AM142: ='Energy Uses'!KJ96 -> 0 | AN142: ='Energy Uses'!KI96 -> 0 | AO142: ='Energy Uses'!KH96 -> 0 | AP142: ='Energy Uses'!KG96 -> 0 | AQ142: ='Energy Uses'!KF96 -> 0 | AR142: ='Energy Uses'!KE96 -> 0 | AS142: ='Energy Uses'!KD96 -> 0 | AT142: ='Energy Uses'!KC96 -> 0 | AU142: ='Energy Uses'!KB96 -> 0 | AV142: ='Energy Uses'!KA96 -> 0 | AW142: ='Energy Uses'!JZ96 -> 0 | AX142: ='Energy Uses'!JY96 -> 0 | AY142: ='Energy Uses'!JX96 -> 0 | AZ142: ='Energy Uses'!JW96 -> 0 | BA142: ='Energy Uses'!JV96 -> 0 | BB142: ='Energy Uses'!JU96 -> 0 | BC142: ='Energy Uses'!JT96 -> 0 | BD142: ='Energy Uses'!JS96 -> 0 | BE142: ='Energy Uses'!JR96 -> 0 | BF142: ='Energy Uses'!JQ96 -> 0 | BG142: ='Energy Uses'!JP96 -> 0 | BH142: ='Energy Uses'!JO96 -> 0 | BI142: ='Energy Uses'!JN96 -> 0 | BJ142: ='Energy Uses'!JM96 -> 0
AG143: TRUE
AG144: TRUE | AI144: =$AI$68 -> 2015 | AL144: =AM144-1 -> 2005 | AM144: 2006 | AN144: 2007 | AO144: 2008 | AP144: 2009 | AQ144: 2010 | AR144: 2011 | AS144: 2012 | AT144: 2013 | AU144: 2014 | AV144: 2015 | AW144: 2016 | AX144: 2017 | AY144: 2018 | AZ144: 2019 | BA144: 2020 | BB144: 2021 | BC144: 2022 | BD144: 2023 | BE144: 2024 | BF144: 2025 | BG144: 2026 | BH144: 2027 | BI144: =BJ144-1 -> 2028 | BJ144: =FinalYear -> 2029
AG145: ='Energy Uses'!M108 -> FALSE | AH145: =AK145 -> 0 | AI145: =HLOOKUP(AI$144,$AL$144:$BJ$174,AJ145,) -> 0 | AJ145: 2 | AK145: ='Energy Uses'!C108 -> 0 | AL145: ='Energy Uses'!KK108 -> 0 | AM145: ='Energy Uses'!KJ108 -> 0 | AN145: ='Energy Uses'!KI108 -> 0 | AO145: ='Energy Uses'!KH108 -> 0 | AP145: ='Energy Uses'!KG108 -> 0 | AQ145: ='Energy Uses'!KF108 -> 0 | AR145: ='Energy Uses'!KE108 -> 0 | AS145: ='Energy Uses'!KD108 -> 0 | AT145: ='Energy Uses'!KC108 -> 0 | AU145: ='Energy Uses'!KB108 -> 0 | AV145: ='Energy Uses'!KA108 -> 0 | AW145: ='Energy Uses'!JZ108 -> 0 | AX145: ='Energy Uses'!JY108 -> 0 | AY145: ='Energy Uses'!JX108 -> 0 | AZ145: ='Energy Uses'!JW108 -> 0 | BA145: ='Energy Uses'!JV108 -> 0 | BB145: ='Energy Uses'!JU108 -> 0 | BC145: ='Energy Uses'!JT108 -> 0 | BD145: ='Energy Uses'!JS108 -> 0 | BE145: ='Energy Uses'!JR108 -> 0 | BF145: ='Energy Uses'!JQ108 -> 0 | BG145: ='Energy Uses'!JP108 -> 0 | BH145: ='Energy Uses'!JO108 -> 0 | BI145: ='Energy Uses'!JN108 -> 0 | BJ145: ='Energy Uses'!JM108 -> 0
AG146: ='Energy Uses'!M109 -> FALSE | AH146: 0 | AI146: =HLOOKUP(AI$144,$AL$144:$BJ$174,AJ146,) -> 0 | AJ146: 3 | AK146: ='Energy Uses'!C109 -> 0 | AL146: ='Energy Uses'!KK109 -> 0 | AM146: ='Energy Uses'!KJ109 -> 0 | AN146: ='Energy Uses'!KI109 -> 0 | AO146: ='Energy Uses'!KH109 -> 0 | AP146: ='Energy Uses'!KG109 -> 0 | AQ146: ='Energy Uses'!KF109 -> 0 | AR146: ='Energy Uses'!KE109 -> 0 | AS146: ='Energy Uses'!KD109 -> 0 | AT146: ='Energy Uses'!KC109 -> 0 | AU146: ='Energy Uses'!KB109 -> 0 | AV146: ='Energy Uses'!KA109 -> 0 | AW146: ='Energy Uses'!JZ109 -> 0 | AX146: ='Energy Uses'!JY109 -> 0 | AY146: ='Energy Uses'!JX109 -> 0 | AZ146: ='Energy Uses'!JW109 -> 0 | BA146: ='Energy Uses'!JV109 -> 0 | BB146: ='Energy Uses'!JU109 -> 0 | BC146: ='Energy Uses'!JT109 -> 0 | BD146: ='Energy Uses'!JS109 -> 0 | BE146: ='Energy Uses'!JR109 -> 0 | BF146: ='Energy Uses'!JQ109 -> 0 | BG146: ='Energy Uses'!JP109 -> 0 | BH146: ='Energy Uses'!JO109 -> 0 | BI146: ='Energy Uses'!JN109 -> 0 | BJ146: ='Energy Uses'!JM109 -> 0
AG147: ='Energy Uses'!M110 -> FALSE | AH147: 0 | AI147: 0 | AJ147: 4 | AK147: ='Energy Uses'!C110 -> 0 | AL147: ='Energy Uses'!KK110 -> 0 | AM147: ='Energy Uses'!KJ110 -> 0 | AN147: ='Energy Uses'!KI110 -> 0 | AO147: ='Energy Uses'!KH110 -> 0 | AP147: ='Energy Uses'!KG110 -> 0 | AQ147: ='Energy Uses'!KF110 -> 0 | AR147: ='Energy Uses'!KE110 -> 0 | AS147: ='Energy Uses'!KD110 -> 0 | AT147: ='Energy Uses'!KC110 -> 0 | AU147: ='Energy Uses'!KB110 -> 0 | AV147: ='Energy Uses'!KA110 -> 0 | AW147: ='Energy Uses'!JZ110 -> 0 | AX147: ='Energy Uses'!JY110 -> 0 | AY147: ='Energy Uses'!JX110 -> 0 | AZ147: ='Energy Uses'!JW110 -> 0 | BA147: ='Energy Uses'!JV110 -> 0 | BB147: ='Energy Uses'!JU110 -> 0 | BC147: ='Energy Uses'!JT110 -> 0 | BD147: ='Energy Uses'!JS110 -> 0 | BE147: ='Energy Uses'!JR110 -> 0 | BF147: ='Energy Uses'!JQ110 -> 0 | BG147: ='Energy Uses'!JP110 -> 0 | BH147: ='Energy Uses'!JO110 -> 0 | BI147: ='Energy Uses'!JN110 -> 0 | BJ147: ='Energy Uses'!JM110 -> 0
AG148: ='Energy Uses'!M111 -> FALSE | AH148: 0 | AI148: 0 | AJ148: 5 | AK148: ='Energy Uses'!C111 -> 0 | AL148: ='Energy Uses'!KK111 -> 0 | AM148: ='Energy Uses'!KJ111 -> 0 | AN148: ='Energy Uses'!KI111 -> 0 | AO148: ='Energy Uses'!KH111 -> 0 | AP148: ='Energy Uses'!KG111 -> 0 | AQ148: ='Energy Uses'!KF111 -> 0 | AR148: ='Energy Uses'!KE111 -> 0 | AS148: ='Energy Uses'!KD111 -> 0 | AT148: ='Energy Uses'!KC111 -> 0 | AU148: ='Energy Uses'!KB111 -> 0 | AV148: ='Energy Uses'!KA111 -> 0 | AW148: ='Energy Uses'!JZ111 -> 0 | AX148: ='Energy Uses'!JY111 -> 0 | AY148: ='Energy Uses'!JX111 -> 0 | AZ148: ='Energy Uses'!JW111 -> 0 | BA148: ='Energy Uses'!JV111 -> 0 | BB148: ='Energy Uses'!JU111 -> 0 | BC148: ='Energy Uses'!JT111 -> 0 | BD148: ='Energy Uses'!JS111 -> 0 | BE148: ='Energy Uses'!JR111 -> 0 | BF148: ='Energy Uses'!JQ111 -> 0 | BG148: ='Energy Uses'!JP111 -> 0 | BH148: ='Energy Uses'!JO111 -> 0 | BI148: ='Energy Uses'!JN111 -> 0 | BJ148: ='Energy Uses'!JM111 -> 0
AG149: ='Energy Uses'!M112 -> FALSE | AH149: 0 | AI149: 0 | AJ149: 6 | AK149: ='Energy Uses'!C112 -> 0 | AL149: ='Energy Uses'!KK112 -> 0 | AM149: ='Energy Uses'!KJ112 -> 0 | AN149: ='Energy Uses'!KI112 -> 0 | AO149: ='Energy Uses'!KH112 -> 0 | AP149: ='Energy Uses'!KG112 -> 0 | AQ149: ='Energy Uses'!KF112 -> 0 | AR149: ='Energy Uses'!KE112 -> 0 | AS149: ='Energy Uses'!KD112 -> 0 | AT149: ='Energy Uses'!KC112 -> 0 | AU149: ='Energy Uses'!KB112 -> 0 | AV149: ='Energy Uses'!KA112 -> 0 | AW149: ='Energy Uses'!JZ112 -> 0 | AX149: ='Energy Uses'!JY112 -> 0 | AY149: ='Energy Uses'!JX112 -> 0 | AZ149: ='Energy Uses'!JW112 -> 0 | BA149: ='Energy Uses'!JV112 -> 0 | BB149: ='Energy Uses'!JU112 -> 0 | BC149: ='Energy Uses'!JT112 -> 0 | BD149: ='Energy Uses'!JS112 -> 0 | BE149: ='Energy Uses'!JR112 -> 0 | BF149: ='Energy Uses'!JQ112 -> 0 | BG149: ='Energy Uses'!JP112 -> 0 | BH149: ='Energy Uses'!JO112 -> 0 | BI149: ='Energy Uses'!JN112 -> 0 | BJ149: ='Energy Uses'!JM112 -> 0
AG150: ='Energy Uses'!M113 -> FALSE | AH150: 0 | AI150: 0 | AJ150: 7 | AK150: ='Energy Uses'!C113 -> 0 | AL150: ='Energy Uses'!KK113 -> 0 | AM150: ='Energy Uses'!KJ113 -> 0 | AN150: ='Energy Uses'!KI113 -> 0 | AO150: ='Energy Uses'!KH113 -> 0 | AP150: ='Energy Uses'!KG113 -> 0 | AQ150: ='Energy Uses'!KF113 -> 0 | AR150: ='Energy Uses'!KE113 -> 0 | AS150: ='Energy Uses'!KD113 -> 0 | AT150: ='Energy Uses'!KC113 -> 0 | AU150: ='Energy Uses'!KB113 -> 0 | AV150: ='Energy Uses'!KA113 -> 0 | AW150: ='Energy Uses'!JZ113 -> 0 | AX150: ='Energy Uses'!JY113 -> 0 | AY150: ='Energy Uses'!JX113 -> 0 | AZ150: ='Energy Uses'!JW113 -> 0 | BA150: ='Energy Uses'!JV113 -> 0 | BB150: ='Energy Uses'!JU113 -> 0 | BC150: ='Energy Uses'!JT113 -> 0 | BD150: ='Energy Uses'!JS113 -> 0 | BE150: ='Energy Uses'!JR113 -> 0 | BF150: ='Energy Uses'!JQ113 -> 0 | BG150: ='Energy Uses'!JP113 -> 0 | BH150: ='Energy Uses'!JO113 -> 0 | BI150: ='Energy Uses'!JN113 -> 0 | BJ150: ='Energy Uses'!JM113 -> 0
AG151: ='Energy Uses'!M114 -> FALSE | AH151: 0 | AI151: 0 | AJ151: 8 | AK151: ='Energy Uses'!C114 -> 0 | AL151: ='Energy Uses'!KK114 -> 0 | AM151: ='Energy Uses'!KJ114 -> 0 | AN151: ='Energy Uses'!KI114 -> 0 | AO151: ='Energy Uses'!KH114 -> 0 | AP151: ='Energy Uses'!KG114 -> 0 | AQ151: ='Energy Uses'!KF114 -> 0 | AR151: ='Energy Uses'!KE114 -> 0 | AS151: ='Energy Uses'!KD114 -> 0 | AT151: ='Energy Uses'!KC114 -> 0 | AU151: ='Energy Uses'!KB114 -> 0 | AV151: ='Energy Uses'!KA114 -> 0 | AW151: ='Energy Uses'!JZ114 -> 0 | AX151: ='Energy Uses'!JY114 -> 0 | AY151: ='Energy Uses'!JX114 -> 0 | AZ151: ='Energy Uses'!JW114 -> 0 | BA151: ='Energy Uses'!JV114 -> 0 | BB151: ='Energy Uses'!JU114 -> 0 | BC151: ='Energy Uses'!JT114 -> 0 | BD151: ='Energy Uses'!JS114 -> 0 | BE151: ='Energy Uses'!JR114 -> 0 | BF151: ='Energy Uses'!JQ114 -> 0 | BG151: ='Energy Uses'!JP114 -> 0 | BH151: ='Energy Uses'!JO114 -> 0 | BI151: ='Energy Uses'!JN114 -> 0 | BJ151: ='Energy Uses'!JM114 -> 0
AG152: ='Energy Uses'!M115 -> FALSE | AH152: 0 | AI152: 0 | AJ152: 9 | AK152: ='Energy Uses'!C115 -> 0 | AL152: ='Energy Uses'!KK115 -> 0 | AM152: ='Energy Uses'!KJ115 -> 0 | AN152: ='Energy Uses'!KI115 -> 0 | AO152: ='Energy Uses'!KH115 -> 0 | AP152: ='Energy Uses'!KG115 -> 0 | AQ152: ='Energy Uses'!KF115 -> 0 | AR152: ='Energy Uses'!KE115 -> 0 | AS152: ='Energy Uses'!KD115 -> 0 | AT152: ='Energy Uses'!KC115 -> 0 | AU152: ='Energy Uses'!KB115 -> 0 | AV152: ='Energy Uses'!KA115 -> 0 | AW152: ='Energy Uses'!JZ115 -> 0 | AX152: ='Energy Uses'!JY115 -> 0 | AY152: ='Energy Uses'!JX115 -> 0 | AZ152: ='Energy Uses'!JW115 -> 0 | BA152: ='Energy Uses'!JV115 -> 0 | BB152: ='Energy Uses'!JU115 -> 0 | BC152: ='Energy Uses'!JT115 -> 0 | BD152: ='Energy Uses'!JS115 -> 0 | BE152: ='Energy Uses'!JR115 -> 0 | BF152: ='Energy Uses'!JQ115 -> 0 | BG152: ='Energy Uses'!JP115 -> 0 | BH152: ='Energy Uses'!JO115 -> 0 | BI152: ='Energy Uses'!JN115 -> 0 | BJ152: ='Energy Uses'!JM115 -> 0
AG153: ='Energy Uses'!M116 -> FALSE | AH153: 0 | AI153: 0 | AJ153: 10 | AK153: ='Energy Uses'!C116 -> 0 | AL153: ='Energy Uses'!KK116 -> 0 | AM153: ='Energy Uses'!KJ116 -> 0 | AN153: ='Energy Uses'!KI116 -> 0 | AO153: ='Energy Uses'!KH116 -> 0 | AP153: ='Energy Uses'!KG116 -> 0 | AQ153: ='Energy Uses'!KF116 -> 0 | AR153: ='Energy Uses'!KE116 -> 0 | AS153: ='Energy Uses'!KD116 -> 0 | AT153: ='Energy Uses'!KC116 -> 0 | AU153: ='Energy Uses'!KB116 -> 0 | AV153: ='Energy Uses'!KA116 -> 0 | AW153: ='Energy Uses'!JZ116 -> 0 | AX153: ='Energy Uses'!JY116 -> 0 | AY153: ='Energy Uses'!JX116 -> 0 | AZ153: ='Energy Uses'!JW116 -> 0 | BA153: ='Energy Uses'!JV116 -> 0 | BB153: ='Energy Uses'!JU116 -> 0 | BC153: ='Energy Uses'!JT116 -> 0 | BD153: ='Energy Uses'!JS116 -> 0 | BE153: ='Energy Uses'!JR116 -> 0 | BF153: ='Energy Uses'!JQ116 -> 0 | BG153: ='Energy Uses'!JP116 -> 0 | BH153: ='Energy Uses'!JO116 -> 0 | BI153: ='Energy Uses'!JN116 -> 0 | BJ153: ='Energy Uses'!JM116 -> 0
AG154: ='Energy Uses'!M117 -> FALSE | AH154: 0 | AI154: 0 | AJ154: 11 | AK154: ='Energy Uses'!C117 -> 0 | AL154: ='Energy Uses'!KK117 -> 0 | AM154: ='Energy Uses'!KJ117 -> 0 | AN154: ='Energy Uses'!KI117 -> 0 | AO154: ='Energy Uses'!KH117 -> 0 | AP154: ='Energy Uses'!KG117 -> 0 | AQ154: ='Energy Uses'!KF117 -> 0 | AR154: ='Energy Uses'!KE117 -> 0 | AS154: ='Energy Uses'!KD117 -> 0 | AT154: ='Energy Uses'!KC117 -> 0 | AU154: ='Energy Uses'!KB117 -> 0 | AV154: ='Energy Uses'!KA117 -> 0 | AW154: ='Energy Uses'!JZ117 -> 0 | AX154: ='Energy Uses'!JY117 -> 0 | AY154: ='Energy Uses'!JX117 -> 0 | AZ154: ='Energy Uses'!JW117 -> 0 | BA154: ='Energy Uses'!JV117 -> 0 | BB154: ='Energy Uses'!JU117 -> 0 | BC154: ='Energy Uses'!JT117 -> 0 | BD154: ='Energy Uses'!JS117 -> 0 | BE154: ='Energy Uses'!JR117 -> 0 | BF154: ='Energy Uses'!JQ117 -> 0 | BG154: ='Energy Uses'!JP117 -> 0 | BH154: ='Energy Uses'!JO117 -> 0 | BI154: ='Energy Uses'!JN117 -> 0 | BJ154: ='Energy Uses'!JM117 -> 0
AG155: ='Energy Uses'!M118 -> FALSE | AH155: 0 | AI155: 0 | AJ155: 12 | AK155: ='Energy Uses'!C118 -> 0 | AL155: ='Energy Uses'!KK118 -> 0 | AM155: ='Energy Uses'!KJ118 -> 0 | AN155: ='Energy Uses'!KI118 -> 0 | AO155: ='Energy Uses'!KH118 -> 0 | AP155: ='Energy Uses'!KG118 -> 0 | AQ155: ='Energy Uses'!KF118 -> 0 | AR155: ='Energy Uses'!KE118 -> 0 | AS155: ='Energy Uses'!KD118 -> 0 | AT155: ='Energy Uses'!KC118 -> 0 | AU155: ='Energy Uses'!KB118 -> 0 | AV155: ='Energy Uses'!KA118 -> 0 | AW155: ='Energy Uses'!JZ118 -> 0 | AX155: ='Energy Uses'!JY118 -> 0 | AY155: ='Energy Uses'!JX118 -> 0 | AZ155: ='Energy Uses'!JW118 -> 0 | BA155: ='Energy Uses'!JV118 -> 0 | BB155: ='Energy Uses'!JU118 -> 0 | BC155: ='Energy Uses'!JT118 -> 0 | BD155: ='Energy Uses'!JS118 -> 0 | BE155: ='Energy Uses'!JR118 -> 0 | BF155: ='Energy Uses'!JQ118 -> 0 | BG155: ='Energy Uses'!JP118 -> 0 | BH155: ='Energy Uses'!JO118 -> 0 | BI155: ='Energy Uses'!JN118 -> 0 | BJ155: ='Energy Uses'!JM118 -> 0
AG156: ='Energy Uses'!M119 -> FALSE | AH156: 0 | AI156: 0 | AJ156: 13 | AK156: ='Energy Uses'!C119 -> 0 | AL156: ='Energy Uses'!KK119 -> 0 | AM156: ='Energy Uses'!KJ119 -> 0 | AN156: ='Energy Uses'!KI119 -> 0 | AO156: ='Energy Uses'!KH119 -> 0 | AP156: ='Energy Uses'!KG119 -> 0 | AQ156: ='Energy Uses'!KF119 -> 0 | AR156: ='Energy Uses'!KE119 -> 0 | AS156: ='Energy Uses'!KD119 -> 0 | AT156: ='Energy Uses'!KC119 -> 0 | AU156: ='Energy Uses'!KB119 -> 0 | AV156: ='Energy Uses'!KA119 -> 0 | AW156: ='Energy Uses'!JZ119 -> 0 | AX156: ='Energy Uses'!JY119 -> 0 | AY156: ='Energy Uses'!JX119 -> 0 | AZ156: ='Energy Uses'!JW119 -> 0 | BA156: ='Energy Uses'!JV119 -> 0 | BB156: ='Energy Uses'!JU119 -> 0 | BC156: ='Energy Uses'!JT119 -> 0 | BD156: ='Energy Uses'!JS119 -> 0 | BE156: ='Energy Uses'!JR119 -> 0 | BF156: ='Energy Uses'!JQ119 -> 0 | BG156: ='Energy Uses'!JP119 -> 0 | BH156: ='Energy Uses'!JO119 -> 0 | BI156: ='Energy Uses'!JN119 -> 0 | BJ156: ='Energy Uses'!JM119 -> 0
AG157: ='Energy Uses'!M120 -> FALSE | AH157: 0 | AI157: 0 | AJ157: 14 | AK157: ='Energy Uses'!C120 -> 0 | AL157: ='Energy Uses'!KK120 -> 0 | AM157: ='Energy Uses'!KJ120 -> 0 | AN157: ='Energy Uses'!KI120 -> 0 | AO157: ='Energy Uses'!KH120 -> 0 | AP157: ='Energy Uses'!KG120 -> 0 | AQ157: ='Energy Uses'!KF120 -> 0 | AR157: ='Energy Uses'!KE120 -> 0 | AS157: ='Energy Uses'!KD120 -> 0 | AT157: ='Energy Uses'!KC120 -> 0 | AU157: ='Energy Uses'!KB120 -> 0 | AV157: ='Energy Uses'!KA120 -> 0 | AW157: ='Energy Uses'!JZ120 -> 0 | AX157: ='Energy Uses'!JY120 -> 0 | AY157: ='Energy Uses'!JX120 -> 0 | AZ157: ='Energy Uses'!JW120 -> 0 | BA157: ='Energy Uses'!JV120 -> 0 | BB157: ='Energy Uses'!JU120 -> 0 | BC157: ='Energy Uses'!JT120 -> 0 | BD157: ='Energy Uses'!JS120 -> 0 | BE157: ='Energy Uses'!JR120 -> 0 | BF157: ='Energy Uses'!JQ120 -> 0 | BG157: ='Energy Uses'!JP120 -> 0 | BH157: ='Energy Uses'!JO120 -> 0 | BI157: ='Energy Uses'!JN120 -> 0 | BJ157: ='Energy Uses'!JM120 -> 0
AG158: ='Energy Uses'!M121 -> FALSE | AH158: 0 | AI158: 0 | AJ158: 15 | AK158: ='Energy Uses'!C121 -> 0 | AL158: ='Energy Uses'!KK121 -> 0 | AM158: ='Energy Uses'!KJ121 -> 0 | AN158: ='Energy Uses'!KI121 -> 0 | AO158: ='Energy Uses'!KH121 -> 0 | AP158: ='Energy Uses'!KG121 -> 0 | AQ158: ='Energy Uses'!KF121 -> 0 | AR158: ='Energy Uses'!KE121 -> 0 | AS158: ='Energy Uses'!KD121 -> 0 | AT158: ='Energy Uses'!KC121 -> 0 | AU158: ='Energy Uses'!KB121 -> 0 | AV158: ='Energy Uses'!KA121 -> 0 | AW158: ='Energy Uses'!JZ121 -> 0 | AX158: ='Energy Uses'!JY121 -> 0 | AY158: ='Energy Uses'!JX121 -> 0 | AZ158: ='Energy Uses'!JW121 -> 0 | BA158: ='Energy Uses'!JV121 -> 0 | BB158: ='Energy Uses'!JU121 -> 0 | BC158: ='Energy Uses'!JT121 -> 0 | BD158: ='Energy Uses'!JS121 -> 0 | BE158: ='Energy Uses'!JR121 -> 0 | BF158: ='Energy Uses'!JQ121 -> 0 | BG158: ='Energy Uses'!JP121 -> 0 | BH158: ='Energy Uses'!JO121 -> 0 | BI158: ='Energy Uses'!JN121 -> 0 | BJ158: ='Energy Uses'!JM121 -> 0
AG159: ='Energy Uses'!M122 -> FALSE | AH159: 0 | AI159: 0 | AJ159: 16 | AK159: ='Energy Uses'!C122 -> 0 | AL159: ='Energy Uses'!KK122 -> 0 | AM159: ='Energy Uses'!KJ122 -> 0 | AN159: ='Energy Uses'!KI122 -> 0 | AO159: ='Energy Uses'!KH122 -> 0 | AP159: ='Energy Uses'!KG122 -> 0 | AQ159: ='Energy Uses'!KF122 -> 0 | AR159: ='Energy Uses'!KE122 -> 0 | AS159: ='Energy Uses'!KD122 -> 0 | AT159: ='Energy Uses'!KC122 -> 0 | AU159: ='Energy Uses'!KB122 -> 0 | AV159: ='Energy Uses'!KA122 -> 0 | AW159: ='Energy Uses'!JZ122 -> 0 | AX159: ='Energy Uses'!JY122 -> 0 | AY159: ='Energy Uses'!JX122 -> 0 | AZ159: ='Energy Uses'!JW122 -> 0 | BA159: ='Energy Uses'!JV122 -> 0 | BB159: ='Energy Uses'!JU122 -> 0 | BC159: ='Energy Uses'!JT122 -> 0 | BD159: ='Energy Uses'!JS122 -> 0 | BE159: ='Energy Uses'!JR122 -> 0 | BF159: ='Energy Uses'!JQ122 -> 0 | BG159: ='Energy Uses'!JP122 -> 0 | BH159: ='Energy Uses'!JO122 -> 0 | BI159: ='Energy Uses'!JN122 -> 0 | BJ159: ='Energy Uses'!JM122 -> 0
AG160: ='Energy Uses'!M123 -> FALSE | AH160: 0 | AI160: 0 | AJ160: 17 | AK160: ='Energy Uses'!C123 -> 0 | AL160: ='Energy Uses'!KK123 -> 0 | AM160: ='Energy Uses'!KJ123 -> 0 | AN160: ='Energy Uses'!KI123 -> 0 | AO160: ='Energy Uses'!KH123 -> 0 | AP160: ='Energy Uses'!KG123 -> 0 | AQ160: ='Energy Uses'!KF123 -> 0 | AR160: ='Energy Uses'!KE123 -> 0 | AS160: ='Energy Uses'!KD123 -> 0 | AT160: ='Energy Uses'!KC123 -> 0 | AU160: ='Energy Uses'!KB123 -> 0 | AV160: ='Energy Uses'!KA123 -> 0 | AW160: ='Energy Uses'!JZ123 -> 0 | AX160: ='Energy Uses'!JY123 -> 0 | AY160: ='Energy Uses'!JX123 -> 0 | AZ160: ='Energy Uses'!JW123 -> 0 | BA160: ='Energy Uses'!JV123 -> 0 | BB160: ='Energy Uses'!JU123 -> 0 | BC160: ='Energy Uses'!JT123 -> 0 | BD160: ='Energy Uses'!JS123 -> 0 | BE160: ='Energy Uses'!JR123 -> 0 | BF160: ='Energy Uses'!JQ123 -> 0 | BG160: ='Energy Uses'!JP123 -> 0 | BH160: ='Energy Uses'!JO123 -> 0 | BI160: ='Energy Uses'!JN123 -> 0 | BJ160: ='Energy Uses'!JM123 -> 0
AG161: ='Energy Uses'!M124 -> FALSE | AH161: 0 | AI161: 0 | AJ161: 18 | AK161: ='Energy Uses'!C124 -> 0 | AL161: ='Energy Uses'!KK124 -> 0 | AM161: ='Energy Uses'!KJ124 -> 0 | AN161: ='Energy Uses'!KI124 -> 0 | AO161: ='Energy Uses'!KH124 -> 0 | AP161: ='Energy Uses'!KG124 -> 0 | AQ161: ='Energy Uses'!KF124 -> 0 | AR161: ='Energy Uses'!KE124 -> 0 | AS161: ='Energy Uses'!KD124 -> 0 | AT161: ='Energy Uses'!KC124 -> 0 | AU161: ='Energy Uses'!KB124 -> 0 | AV161: ='Energy Uses'!KA124 -> 0 | AW161: ='Energy Uses'!JZ124 -> 0 | AX161: ='Energy Uses'!JY124 -> 0 | AY161: ='Energy Uses'!JX124 -> 0 | AZ161: ='Energy Uses'!JW124 -> 0 | BA161: ='Energy Uses'!JV124 -> 0 | BB161: ='Energy Uses'!JU124 -> 0 | BC161: ='Energy Uses'!JT124 -> 0 | BD161: ='Energy Uses'!JS124 -> 0 | BE161: ='Energy Uses'!JR124 -> 0 | BF161: ='Energy Uses'!JQ124 -> 0 | BG161: ='Energy Uses'!JP124 -> 0 | BH161: ='Energy Uses'!JO124 -> 0 | BI161: ='Energy Uses'!JN124 -> 0 | BJ161: ='Energy Uses'!JM124 -> 0
AG162: ='Energy Uses'!M125 -> FALSE | AH162: 0 | AI162: 0 | AJ162: 19 | AK162: ='Energy Uses'!C125 -> 0 | AL162: ='Energy Uses'!KK125 -> 0 | AM162: ='Energy Uses'!KJ125 -> 0 | AN162: ='Energy Uses'!KI125 -> 0 | AO162: ='Energy Uses'!KH125 -> 0 | AP162: ='Energy Uses'!KG125 -> 0 | AQ162: ='Energy Uses'!KF125 -> 0 | AR162: ='Energy Uses'!KE125 -> 0 | AS162: ='Energy Uses'!KD125 -> 0 | AT162: ='Energy Uses'!KC125 -> 0 | AU162: ='Energy Uses'!KB125 -> 0 | AV162: ='Energy Uses'!KA125 -> 0 | AW162: ='Energy Uses'!JZ125 -> 0 | AX162: ='Energy Uses'!JY125 -> 0 | AY162: ='Energy Uses'!JX125 -> 0 | AZ162: ='Energy Uses'!JW125 -> 0 | BA162: ='Energy Uses'!JV125 -> 0 | BB162: ='Energy Uses'!JU125 -> 0 | BC162: ='Energy Uses'!JT125 -> 0 | BD162: ='Energy Uses'!JS125 -> 0 | BE162: ='Energy Uses'!JR125 -> 0 | BF162: ='Energy Uses'!JQ125 -> 0 | BG162: ='Energy Uses'!JP125 -> 0 | BH162: ='Energy Uses'!JO125 -> 0 | BI162: ='Energy Uses'!JN125 -> 0 | BJ162: ='Energy Uses'!JM125 -> 0
AG163: ='Energy Uses'!M126 -> FALSE | AH163: 0 | AI163: 0 | AJ163: 20 | AK163: ='Energy Uses'!C126 -> 0 | AL163: ='Energy Uses'!KK126 -> 0 | AM163: ='Energy Uses'!KJ126 -> 0 | AN163: ='Energy Uses'!KI126 -> 0 | AO163: ='Energy Uses'!KH126 -> 0 | AP163: ='Energy Uses'!KG126 -> 0 | AQ163: ='Energy Uses'!KF126 -> 0 | AR163: ='Energy Uses'!KE126 -> 0 | AS163: ='Energy Uses'!KD126 -> 0 | AT163: ='Energy Uses'!KC126 -> 0 | AU163: ='Energy Uses'!KB126 -> 0 | AV163: ='Energy Uses'!KA126 -> 0 | AW163: ='Energy Uses'!JZ126 -> 0 | AX163: ='Energy Uses'!JY126 -> 0 | AY163: ='Energy Uses'!JX126 -> 0 | AZ163: ='Energy Uses'!JW126 -> 0 | BA163: ='Energy Uses'!JV126 -> 0 | BB163: ='Energy Uses'!JU126 -> 0 | BC163: ='Energy Uses'!JT126 -> 0 | BD163: ='Energy Uses'!JS126 -> 0 | BE163: ='Energy Uses'!JR126 -> 0 | BF163: ='Energy Uses'!JQ126 -> 0 | BG163: ='Energy Uses'!JP126 -> 0 | BH163: ='Energy Uses'!JO126 -> 0 | BI163: ='Energy Uses'!JN126 -> 0 | BJ163: ='Energy Uses'!JM126 -> 0
AG164: ='Energy Uses'!M127 -> FALSE | AH164: 0 | AI164: 0 | AJ164: 21 | AK164: ='Energy Uses'!C127 -> 0 | AL164: ='Energy Uses'!KK127 -> 0 | AM164: ='Energy Uses'!KJ127 -> 0 | AN164: ='Energy Uses'!KI127 -> 0 | AO164: ='Energy Uses'!KH127 -> 0 | AP164: ='Energy Uses'!KG127 -> 0 | AQ164: ='Energy Uses'!KF127 -> 0 | AR164: ='Energy Uses'!KE127 -> 0 | AS164: ='Energy Uses'!KD127 -> 0 | AT164: ='Energy Uses'!KC127 -> 0 | AU164: ='Energy Uses'!KB127 -> 0 | AV164: ='Energy Uses'!KA127 -> 0 | AW164: ='Energy Uses'!JZ127 -> 0 | AX164: ='Energy Uses'!JY127 -> 0 | AY164: ='Energy Uses'!JX127 -> 0 | AZ164: ='Energy Uses'!JW127 -> 0 | BA164: ='Energy Uses'!JV127 -> 0 | BB164: ='Energy Uses'!JU127 -> 0 | BC164: ='Energy Uses'!JT127 -> 0 | BD164: ='Energy Uses'!JS127 -> 0 | BE164: ='Energy Uses'!JR127 -> 0 | BF164: ='Energy Uses'!JQ127 -> 0 | BG164: ='Energy Uses'!JP127 -> 0 | BH164: ='Energy Uses'!JO127 -> 0 | BI164: ='Energy Uses'!JN127 -> 0 | BJ164: ='Energy Uses'!JM127 -> 0
AG165: ='Energy Uses'!M128 -> FALSE | AH165: 0 | AI165: 0 | AJ165: 22 | AK165: ='Energy Uses'!C128 -> 0 | AL165: ='Energy Uses'!KK128 -> 0 | AM165: ='Energy Uses'!KJ128 -> 0 | AN165: ='Energy Uses'!KI128 -> 0 | AO165: ='Energy Uses'!KH128 -> 0 | AP165: ='Energy Uses'!KG128 -> 0 | AQ165: ='Energy Uses'!KF128 -> 0 | AR165: ='Energy Uses'!KE128 -> 0 | AS165: ='Energy Uses'!KD128 -> 0 | AT165: ='Energy Uses'!KC128 -> 0 | AU165: ='Energy Uses'!KB128 -> 0 | AV165: ='Energy Uses'!KA128 -> 0 | AW165: ='Energy Uses'!JZ128 -> 0 | AX165: ='Energy Uses'!JY128 -> 0 | AY165: ='Energy Uses'!JX128 -> 0 | AZ165: ='Energy Uses'!JW128 -> 0 | BA165: ='Energy Uses'!JV128 -> 0 | BB165: ='Energy Uses'!JU128 -> 0 | BC165: ='Energy Uses'!JT128 -> 0 | BD165: ='Energy Uses'!JS128 -> 0 | BE165: ='Energy Uses'!JR128 -> 0 | BF165: ='Energy Uses'!JQ128 -> 0 | BG165: ='Energy Uses'!JP128 -> 0 | BH165: ='Energy Uses'!JO128 -> 0 | BI165: ='Energy Uses'!JN128 -> 0 | BJ165: ='Energy Uses'!JM128 -> 0
AG166: ='Energy Uses'!M129 -> FALSE | AH166: 0 | AI166: 0 | AJ166: 23 | AK166: ='Energy Uses'!C129 -> 0 | AL166: ='Energy Uses'!KK129 -> 0 | AM166: ='Energy Uses'!KJ129 -> 0 | AN166: ='Energy Uses'!KI129 -> 0 | AO166: ='Energy Uses'!KH129 -> 0 | AP166: ='Energy Uses'!KG129 -> 0 | AQ166: ='Energy Uses'!KF129 -> 0 | AR166: ='Energy Uses'!KE129 -> 0 | AS166: ='Energy Uses'!KD129 -> 0 | AT166: ='Energy Uses'!KC129 -> 0 | AU166: ='Energy Uses'!KB129 -> 0 | AV166: ='Energy Uses'!KA129 -> 0 | AW166: ='Energy Uses'!JZ129 -> 0 | AX166: ='Energy Uses'!JY129 -> 0 | AY166: ='Energy Uses'!JX129 -> 0 | AZ166: ='Energy Uses'!JW129 -> 0 | BA166: ='Energy Uses'!JV129 -> 0 | BB166: ='Energy Uses'!JU129 -> 0 | BC166: ='Energy Uses'!JT129 -> 0 | BD166: ='Energy Uses'!JS129 -> 0 | BE166: ='Energy Uses'!JR129 -> 0 | BF166: ='Energy Uses'!JQ129 -> 0 | BG166: ='Energy Uses'!JP129 -> 0 | BH166: ='Energy Uses'!JO129 -> 0 | BI166: ='Energy Uses'!JN129 -> 0 | BJ166: ='Energy Uses'!JM129 -> 0
AG167: ='Energy Uses'!M130 -> FALSE | AH167: 0 | AI167: 0 | AJ167: 24 | AK167: ='Energy Uses'!C130 -> 0 | AL167: ='Energy Uses'!KK130 -> 0 | AM167: ='Energy Uses'!KJ130 -> 0 | AN167: ='Energy Uses'!KI130 -> 0 | AO167: ='Energy Uses'!KH130 -> 0 | AP167: ='Energy Uses'!KG130 -> 0 | AQ167: ='Energy Uses'!KF130 -> 0 | AR167: ='Energy Uses'!KE130 -> 0 | AS167: ='Energy Uses'!KD130 -> 0 | AT167: ='Energy Uses'!KC130 -> 0 | AU167: ='Energy Uses'!KB130 -> 0 | AV167: ='Energy Uses'!KA130 -> 0 | AW167: ='Energy Uses'!JZ130 -> 0 | AX167: ='Energy Uses'!JY130 -> 0 | AY167: ='Energy Uses'!JX130 -> 0 | AZ167: ='Energy Uses'!JW130 -> 0 | BA167: ='Energy Uses'!JV130 -> 0 | BB167: ='Energy Uses'!JU130 -> 0 | BC167: ='Energy Uses'!JT130 -> 0 | BD167: ='Energy Uses'!JS130 -> 0 | BE167: ='Energy Uses'!JR130 -> 0 | BF167: ='Energy Uses'!JQ130 -> 0 | BG167: ='Energy Uses'!JP130 -> 0 | BH167: ='Energy Uses'!JO130 -> 0 | BI167: ='Energy Uses'!JN130 -> 0 | BJ167: ='Energy Uses'!JM130 -> 0
AG168: ='Energy Uses'!M131 -> FALSE | AH168: 0 | AI168: 0 | AJ168: 25 | AK168: ='Energy Uses'!C131 -> 0 | AL168: ='Energy Uses'!KK131 -> 0 | AM168: ='Energy Uses'!KJ131 -> 0 | AN168: ='Energy Uses'!KI131 -> 0 | AO168: ='Energy Uses'!KH131 -> 0 | AP168: ='Energy Uses'!KG131 -> 0 | AQ168: ='Energy Uses'!KF131 -> 0 | AR168: ='Energy Uses'!KE131 -> 0 | AS168: ='Energy Uses'!KD131 -> 0 | AT168: ='Energy Uses'!KC131 -> 0 | AU168: ='Energy Uses'!KB131 -> 0 | AV168: ='Energy Uses'!KA131 -> 0 | AW168: ='Energy Uses'!JZ131 -> 0 | AX168: ='Energy Uses'!JY131 -> 0 | AY168: ='Energy Uses'!JX131 -> 0 | AZ168: ='Energy Uses'!JW131 -> 0 | BA168: ='Energy Uses'!JV131 -> 0 | BB168: ='Energy Uses'!JU131 -> 0 | BC168: ='Energy Uses'!JT131 -> 0 | BD168: ='Energy Uses'!JS131 -> 0 | BE168: ='Energy Uses'!JR131 -> 0 | BF168: ='Energy Uses'!JQ131 -> 0 | BG168: ='Energy Uses'!JP131 -> 0 | BH168: ='Energy Uses'!JO131 -> 0 | BI168: ='Energy Uses'!JN131 -> 0 | BJ168: ='Energy Uses'!JM131 -> 0
AG169: ='Energy Uses'!M132 -> FALSE | AH169: 0 | AI169: 0 | AJ169: 26 | AK169: ='Energy Uses'!C132 -> 0 | AL169: ='Energy Uses'!KK132 -> 0 | AM169: ='Energy Uses'!KJ132 -> 0 | AN169: ='Energy Uses'!KI132 -> 0 | AO169: ='Energy Uses'!KH132 -> 0 | AP169: ='Energy Uses'!KG132 -> 0 | AQ169: ='Energy Uses'!KF132 -> 0 | AR169: ='Energy Uses'!KE132 -> 0 | AS169: ='Energy Uses'!KD132 -> 0 | AT169: ='Energy Uses'!KC132 -> 0 | AU169: ='Energy Uses'!KB132 -> 0 | AV169: ='Energy Uses'!KA132 -> 0 | AW169: ='Energy Uses'!JZ132 -> 0 | AX169: ='Energy Uses'!JY132 -> 0 | AY169: ='Energy Uses'!JX132 -> 0 | AZ169: ='Energy Uses'!JW132 -> 0 | BA169: ='Energy Uses'!JV132 -> 0 | BB169: ='Energy Uses'!JU132 -> 0 | BC169: ='Energy Uses'!JT132 -> 0 | BD169: ='Energy Uses'!JS132 -> 0 | BE169: ='Energy Uses'!JR132 -> 0 | BF169: ='Energy Uses'!JQ132 -> 0 | BG169: ='Energy Uses'!JP132 -> 0 | BH169: ='Energy Uses'!JO132 -> 0 | BI169: ='Energy Uses'!JN132 -> 0 | BJ169: ='Energy Uses'!JM132 -> 0
AG170: ='Energy Uses'!M133 -> FALSE | AH170: 0 | AI170: 0 | AJ170: 27 | AK170: ='Energy Uses'!C133 -> 0 | AL170: ='Energy Uses'!KK133 -> 0 | AM170: ='Energy Uses'!KJ133 -> 0 | AN170: ='Energy Uses'!KI133 -> 0 | AO170: ='Energy Uses'!KH133 -> 0 | AP170: ='Energy Uses'!KG133 -> 0 | AQ170: ='Energy Uses'!KF133 -> 0 | AR170: ='Energy Uses'!KE133 -> 0 | AS170: ='Energy Uses'!KD133 -> 0 | AT170: ='Energy Uses'!KC133 -> 0 | AU170: ='Energy Uses'!KB133 -> 0 | AV170: ='Energy Uses'!KA133 -> 0 | AW170: ='Energy Uses'!JZ133 -> 0 | AX170: ='Energy Uses'!JY133 -> 0 | AY170: ='Energy Uses'!JX133 -> 0 | AZ170: ='Energy Uses'!JW133 -> 0 | BA170: ='Energy Uses'!JV133 -> 0 | BB170: ='Energy Uses'!JU133 -> 0 | BC170: ='Energy Uses'!JT133 -> 0 | BD170: ='Energy Uses'!JS133 -> 0 | BE170: ='Energy Uses'!JR133 -> 0 | BF170: ='Energy Uses'!JQ133 -> 0 | BG170: ='Energy Uses'!JP133 -> 0 | BH170: ='Energy Uses'!JO133 -> 0 | BI170: ='Energy Uses'!JN133 -> 0 | BJ170: ='Energy Uses'!JM133 -> 0
AG171: ='Energy Uses'!M134 -> FALSE | AH171: 0 | AI171: 0 | AJ171: 28 | AK171: ='Energy Uses'!C134 -> 0 | AL171: ='Energy Uses'!KK134 -> 0 | AM171: ='Energy Uses'!KJ134 -> 0 | AN171: ='Energy Uses'!KI134 -> 0 | AO171: ='Energy Uses'!KH134 -> 0 | AP171: ='Energy Uses'!KG134 -> 0 | AQ171: ='Energy Uses'!KF134 -> 0 | AR171: ='Energy Uses'!KE134 -> 0 | AS171: ='Energy Uses'!KD134 -> 0 | AT171: ='Energy Uses'!KC134 -> 0 | AU171: ='Energy Uses'!KB134 -> 0 | AV171: ='Energy Uses'!KA134 -> 0 | AW171: ='Energy Uses'!JZ134 -> 0 | AX171: ='Energy Uses'!JY134 -> 0 | AY171: ='Energy Uses'!JX134 -> 0 | AZ171: ='Energy Uses'!JW134 -> 0 | BA171: ='Energy Uses'!JV134 -> 0 | BB171: ='Energy Uses'!JU134 -> 0 | BC171: ='Energy Uses'!JT134 -> 0 | BD171: ='Energy Uses'!JS134 -> 0 | BE171: ='Energy Uses'!JR134 -> 0 | BF171: ='Energy Uses'!JQ134 -> 0 | BG171: ='Energy Uses'!JP134 -> 0 | BH171: ='Energy Uses'!JO134 -> 0 | BI171: ='Energy Uses'!JN134 -> 0 | BJ171: ='Energy Uses'!JM134 -> 0
AG172: ='Energy Uses'!M135 -> FALSE | AH172: 0 | AI172: 0 | AJ172: 29 | AK172: ='Energy Uses'!C135 -> 0 | AL172: ='Energy Uses'!KK135 -> 0 | AM172: ='Energy Uses'!KJ135 -> 0 | AN172: ='Energy Uses'!KI135 -> 0 | AO172: ='Energy Uses'!KH135 -> 0 | AP172: ='Energy Uses'!KG135 -> 0 | AQ172: ='Energy Uses'!KF135 -> 0 | AR172: ='Energy Uses'!KE135 -> 0 | AS172: ='Energy Uses'!KD135 -> 0 | AT172: ='Energy Uses'!KC135 -> 0 | AU172: ='Energy Uses'!KB135 -> 0 | AV172: ='Energy Uses'!KA135 -> 0 | AW172: ='Energy Uses'!JZ135 -> 0 | AX172: ='Energy Uses'!JY135 -> 0 | AY172: ='Energy Uses'!JX135 -> 0 | AZ172: ='Energy Uses'!JW135 -> 0 | BA172: ='Energy Uses'!JV135 -> 0 | BB172: ='Energy Uses'!JU135 -> 0 | BC172: ='Energy Uses'!JT135 -> 0 | BD172: ='Energy Uses'!JS135 -> 0 | BE172: ='Energy Uses'!JR135 -> 0 | BF172: ='Energy Uses'!JQ135 -> 0 | BG172: ='Energy Uses'!JP135 -> 0 | BH172: ='Energy Uses'!JO135 -> 0 | BI172: ='Energy Uses'!JN135 -> 0 | BJ172: ='Energy Uses'!JM135 -> 0
AG173: ='Energy Uses'!M136 -> FALSE | AH173: 0 | AI173: 0 | AJ173: 30 | AK173: ='Energy Uses'!C136 -> 0 | AL173: ='Energy Uses'!KK136 -> 0 | AM173: ='Energy Uses'!KJ136 -> 0 | AN173: ='Energy Uses'!KI136 -> 0 | AO173: ='Energy Uses'!KH136 -> 0 | AP173: ='Energy Uses'!KG136 -> 0 | AQ173: ='Energy Uses'!KF136 -> 0 | AR173: ='Energy Uses'!KE136 -> 0 | AS173: ='Energy Uses'!KD136 -> 0 | AT173: ='Energy Uses'!KC136 -> 0 | AU173: ='Energy Uses'!KB136 -> 0 | AV173: ='Energy Uses'!KA136 -> 0 | AW173: ='Energy Uses'!JZ136 -> 0 | AX173: ='Energy Uses'!JY136 -> 0 | AY173: ='Energy Uses'!JX136 -> 0 | AZ173: ='Energy Uses'!JW136 -> 0 | BA173: ='Energy Uses'!JV136 -> 0 | BB173: ='Energy Uses'!JU136 -> 0 | BC173: ='Energy Uses'!JT136 -> 0 | BD173: ='Energy Uses'!JS136 -> 0 | BE173: ='Energy Uses'!JR136 -> 0 | BF173: ='Energy Uses'!JQ136 -> 0 | BG173: ='Energy Uses'!JP136 -> 0 | BH173: ='Energy Uses'!JO136 -> 0 | BI173: ='Energy Uses'!JN136 -> 0 | BJ173: ='Energy Uses'!JM136 -> 0
AG174: ='Energy Uses'!M137 -> FALSE | AH174: 0 | AI174: =HLOOKUP(AI$144,$AL$144:$BJ$174,AJ174,) -> 0 | AJ174: 31 | AK174: ='Energy Uses'!C137 -> 0 | AL174: ='Energy Uses'!KK137 -> 0 | AM174: ='Energy Uses'!KJ137 -> 0 | AN174: ='Energy Uses'!KI137 -> 0 | AO174: ='Energy Uses'!KH137 -> 0 | AP174: ='Energy Uses'!KG137 -> 0 | AQ174: ='Energy Uses'!KF137 -> 0 | AR174: ='Energy Uses'!KE137 -> 0 | AS174: ='Energy Uses'!KD137 -> 0 | AT174: ='Energy Uses'!KC137 -> 0 | AU174: ='Energy Uses'!KB137 -> 0 | AV174: ='Energy Uses'!KA137 -> 0 | AW174: ='Energy Uses'!JZ137 -> 0 | AX174: ='Energy Uses'!JY137 -> 0 | AY174: ='Energy Uses'!JX137 -> 0 | AZ174: ='Energy Uses'!JW137 -> 0 | BA174: ='Energy Uses'!JV137 -> 0 | BB174: ='Energy Uses'!JU137 -> 0 | BC174: ='Energy Uses'!JT137 -> 0 | BD174: ='Energy Uses'!JS137 -> 0 | BE174: ='Energy Uses'!JR137 -> 0 | BF174: ='Energy Uses'!JQ137 -> 0 | BG174: ='Energy Uses'!JP137 -> 0 | BH174: ='Energy Uses'!JO137 -> 0 | BI174: ='Energy Uses'!JN137 -> 0 | BJ174: ='Energy Uses'!JM137 -> 0
AG175: TRUE
AG176: TRUE | AI176: =$AI$68 -> 2015 | AL176: =AM176-1 -> 2005 | AM176: 2006 | AN176: 2007 | AO176: 2008 | AP176: 2009 | AQ176: 2010 | AR176: 2011 | AS176: 2012 | AT176: 2013 | AU176: 2014 | AV176: 2015 | AW176: 2016 | AX176: 2017 | AY176: 2018 | AZ176: 2019 | BA176: 2020 | BB176: 2021 | BC176: 2022 | BD176: 2023 | BE176: 2024 | BF176: 2025 | BG176: 2026 | BH176: 2027 | BI176: =BJ176-1 -> 2028 | BJ176: =FinalYear -> 2029
AG177: ='Energy Uses'!M149 -> FALSE | AH177: =AK177 -> 0 | AI177: =HLOOKUP(AI$176,$AL$176:$BJ$206,AJ177,) -> 0 | AJ177: 2 | AK177: ='Energy Uses'!C149 -> 0 | AL177: ='Energy Uses'!KK149 -> 0 | AM177: ='Energy Uses'!KJ149 -> 0 | AN177: ='Energy Uses'!KI149 -> 0 | AO177: ='Energy Uses'!KH149 -> 0 | AP177: ='Energy Uses'!KG149 -> 0 | AQ177: ='Energy Uses'!KF149 -> 0 | AR177: ='Energy Uses'!KE149 -> 0 | AS177: ='Energy Uses'!KD149 -> 0 | AT177: ='Energy Uses'!KC149 -> 0 | AU177: ='Energy Uses'!KB149 -> 0 | AV177: ='Energy Uses'!KA149 -> 0 | AW177: ='Energy Uses'!JZ149 -> 0 | AX177: ='Energy Uses'!JY149 -> 0 | AY177: ='Energy Uses'!JX149 -> 0 | AZ177: ='Energy Uses'!JW149 -> 0 | BA177: ='Energy Uses'!JV149 -> 0 | BB177: ='Energy Uses'!JU149 -> 0 | BC177: ='Energy Uses'!JT149 -> 0 | BD177: ='Energy Uses'!JS149 -> 0 | BE177: ='Energy Uses'!JR149 -> 0 | BF177: ='Energy Uses'!JQ149 -> 0 | BG177: ='Energy Uses'!JP149 -> 0 | BH177: ='Energy Uses'!JO149 -> 0 | BI177: ='Energy Uses'!JN149 -> 0 | BJ177: ='Energy Uses'!JM149 -> 0
AG178: ='Energy Uses'!M150 -> FALSE | AH178: 0 | AI178: =HLOOKUP(AI$176,$AL$176:$BJ$206,AJ178,) -> 0 | AJ178: 3 | AK178: ='Energy Uses'!C150 -> 0 | AL178: ='Energy Uses'!KK150 -> 0 | AM178: ='Energy Uses'!KJ150 -> 0 | AN178: ='Energy Uses'!KI150 -> 0 | AO178: ='Energy Uses'!KH150 -> 0 | AP178: ='Energy Uses'!KG150 -> 0 | AQ178: ='Energy Uses'!KF150 -> 0 | AR178: ='Energy Uses'!KE150 -> 0 | AS178: ='Energy Uses'!KD150 -> 0 | AT178: ='Energy Uses'!KC150 -> 0 | AU178: ='Energy Uses'!KB150 -> 0 | AV178: ='Energy Uses'!KA150 -> 0 | AW178: ='Energy Uses'!JZ150 -> 0 | AX178: ='Energy Uses'!JY150 -> 0 | AY178: ='Energy Uses'!JX150 -> 0 | AZ178: ='Energy Uses'!JW150 -> 0 | BA178: ='Energy Uses'!JV150 -> 0 | BB178: ='Energy Uses'!JU150 -> 0 | BC178: ='Energy Uses'!JT150 -> 0 | BD178: ='Energy Uses'!JS150 -> 0 | BE178: ='Energy Uses'!JR150 -> 0 | BF178: ='Energy Uses'!JQ150 -> 0 | BG178: ='Energy Uses'!JP150 -> 0 | BH178: ='Energy Uses'!JO150 -> 0 | BI178: ='Energy Uses'!JN150 -> 0 | BJ178: ='Energy Uses'!JM150 -> 0
AG179: ='Energy Uses'!M151 -> FALSE | AH179: 0 | AI179: 0 | AJ179: 4 | AK179: ='Energy Uses'!C151 -> 0 | AL179: ='Energy Uses'!KK151 -> 0 | AM179: ='Energy Uses'!KJ151 -> 0 | AN179: ='Energy Uses'!KI151 -> 0 | AO179: ='Energy Uses'!KH151 -> 0 | AP179: ='Energy Uses'!KG151 -> 0 | AQ179: ='Energy Uses'!KF151 -> 0 | AR179: ='Energy Uses'!KE151 -> 0 | AS179: ='Energy Uses'!KD151 -> 0 | AT179: ='Energy Uses'!KC151 -> 0 | AU179: ='Energy Uses'!KB151 -> 0 | AV179: ='Energy Uses'!KA151 -> 0 | AW179: ='Energy Uses'!JZ151 -> 0 | AX179: ='Energy Uses'!JY151 -> 0 | AY179: ='Energy Uses'!JX151 -> 0 | AZ179: ='Energy Uses'!JW151 -> 0 | BA179: ='Energy Uses'!JV151 -> 0 | BB179: ='Energy Uses'!JU151 -> 0 | BC179: ='Energy Uses'!JT151 -> 0 | BD179: ='Energy Uses'!JS151 -> 0 | BE179: ='Energy Uses'!JR151 -> 0 | BF179: ='Energy Uses'!JQ151 -> 0 | BG179: ='Energy Uses'!JP151 -> 0 | BH179: ='Energy Uses'!JO151 -> 0 | BI179: ='Energy Uses'!JN151 -> 0 | BJ179: ='Energy Uses'!JM151 -> 0
AG180: ='Energy Uses'!M152 -> FALSE | AH180: 0 | AI180: 0 | AJ180: 5 | AK180: ='Energy Uses'!C152 -> 0 | AL180: ='Energy Uses'!KK152 -> 0 | AM180: ='Energy Uses'!KJ152 -> 0 | AN180: ='Energy Uses'!KI152 -> 0 | AO180: ='Energy Uses'!KH152 -> 0 | AP180: ='Energy Uses'!KG152 -> 0 | AQ180: ='Energy Uses'!KF152 -> 0 | AR180: ='Energy Uses'!KE152 -> 0 | AS180: ='Energy Uses'!KD152 -> 0 | AT180: ='Energy Uses'!KC152 -> 0 | AU180: ='Energy Uses'!KB152 -> 0 | AV180: ='Energy Uses'!KA152 -> 0 | AW180: ='Energy Uses'!JZ152 -> 0 | AX180: ='Energy Uses'!JY152 -> 0 | AY180: ='Energy Uses'!JX152 -> 0 | AZ180: ='Energy Uses'!JW152 -> 0 | BA180: ='Energy Uses'!JV152 -> 0 | BB180: ='Energy Uses'!JU152 -> 0 | BC180: ='Energy Uses'!JT152 -> 0 | BD180: ='Energy Uses'!JS152 -> 0 | BE180: ='Energy Uses'!JR152 -> 0 | BF180: ='Energy Uses'!JQ152 -> 0 | BG180: ='Energy Uses'!JP152 -> 0 | BH180: ='Energy Uses'!JO152 -> 0 | BI180: ='Energy Uses'!JN152 -> 0 | BJ180: ='Energy Uses'!JM152 -> 0
AG181: ='Energy Uses'!M153 -> FALSE | AH181: 0 | AI181: 0 | AJ181: 6 | AK181: ='Energy Uses'!C153 -> 0 | AL181: ='Energy Uses'!KK153 -> 0 | AM181: ='Energy Uses'!KJ153 -> 0 | AN181: ='Energy Uses'!KI153 -> 0 | AO181: ='Energy Uses'!KH153 -> 0 | AP181: ='Energy Uses'!KG153 -> 0 | AQ181: ='Energy Uses'!KF153 -> 0 | AR181: ='Energy Uses'!KE153 -> 0 | AS181: ='Energy Uses'!KD153 -> 0 | AT181: ='Energy Uses'!KC153 -> 0 | AU181: ='Energy Uses'!KB153 -> 0 | AV181: ='Energy Uses'!KA153 -> 0 | AW181: ='Energy Uses'!JZ153 -> 0 | AX181: ='Energy Uses'!JY153 -> 0 | AY181: ='Energy Uses'!JX153 -> 0 | AZ181: ='Energy Uses'!JW153 -> 0 | BA181: ='Energy Uses'!JV153 -> 0 | BB181: ='Energy Uses'!JU153 -> 0 | BC181: ='Energy Uses'!JT153 -> 0 | BD181: ='Energy Uses'!JS153 -> 0 | BE181: ='Energy Uses'!JR153 -> 0 | BF181: ='Energy Uses'!JQ153 -> 0 | BG181: ='Energy Uses'!JP153 -> 0 | BH181: ='Energy Uses'!JO153 -> 0 | BI181: ='Energy Uses'!JN153 -> 0 | BJ181: ='Energy Uses'!JM153 -> 0
AG182: ='Energy Uses'!M154 -> FALSE | AH182: 0 | AI182: 0 | AJ182: 7 | AK182: ='Energy Uses'!C154 -> 0 | AL182: ='Energy Uses'!KK154 -> 0 | AM182: ='Energy Uses'!KJ154 -> 0 | AN182: ='Energy Uses'!KI154 -> 0 | AO182: ='Energy Uses'!KH154 -> 0 | AP182: ='Energy Uses'!KG154 -> 0 | AQ182: ='Energy Uses'!KF154 -> 0 | AR182: ='Energy Uses'!KE154 -> 0 | AS182: ='Energy Uses'!KD154 -> 0 | AT182: ='Energy Uses'!KC154 -> 0 | AU182: ='Energy Uses'!KB154 -> 0 | AV182: ='Energy Uses'!KA154 -> 0 | AW182: ='Energy Uses'!JZ154 -> 0 | AX182: ='Energy Uses'!JY154 -> 0 | AY182: ='Energy Uses'!JX154 -> 0 | AZ182: ='Energy Uses'!JW154 -> 0 | BA182: ='Energy Uses'!JV154 -> 0 | BB182: ='Energy Uses'!JU154 -> 0 | BC182: ='Energy Uses'!JT154 -> 0 | BD182: ='Energy Uses'!JS154 -> 0 | BE182: ='Energy Uses'!JR154 -> 0 | BF182: ='Energy Uses'!JQ154 -> 0 | BG182: ='Energy Uses'!JP154 -> 0 | BH182: ='Energy Uses'!JO154 -> 0 | BI182: ='Energy Uses'!JN154 -> 0 | BJ182: ='Energy Uses'!JM154 -> 0
AG183: ='Energy Uses'!M155 -> FALSE | AH183: 0 | AI183: 0 | AJ183: 8 | AK183: ='Energy Uses'!C155 -> 0 | AL183: ='Energy Uses'!KK155 -> 0 | AM183: ='Energy Uses'!KJ155 -> 0 | AN183: ='Energy Uses'!KI155 -> 0 | AO183: ='Energy Uses'!KH155 -> 0 | AP183: ='Energy Uses'!KG155 -> 0 | AQ183: ='Energy Uses'!KF155 -> 0 | AR183: ='Energy Uses'!KE155 -> 0 | AS183: ='Energy Uses'!KD155 -> 0 | AT183: ='Energy Uses'!KC155 -> 0 | AU183: ='Energy Uses'!KB155 -> 0 | AV183: ='Energy Uses'!KA155 -> 0 | AW183: ='Energy Uses'!JZ155 -> 0 | AX183: ='Energy Uses'!JY155 -> 0 | AY183: ='Energy Uses'!JX155 -> 0 | AZ183: ='Energy Uses'!JW155 -> 0 | BA183: ='Energy Uses'!JV155 -> 0 | BB183: ='Energy Uses'!JU155 -> 0 | BC183: ='Energy Uses'!JT155 -> 0 | BD183: ='Energy Uses'!JS155 -> 0 | BE183: ='Energy Uses'!JR155 -> 0 | BF183: ='Energy Uses'!JQ155 -> 0 | BG183: ='Energy Uses'!JP155 -> 0 | BH183: ='Energy Uses'!JO155 -> 0 | BI183: ='Energy Uses'!JN155 -> 0 | BJ183: ='Energy Uses'!JM155 -> 0
AG184: ='Energy Uses'!M156 -> FALSE | AH184: 0 | AI184: 0 | AJ184: 9 | AK184: ='Energy Uses'!C156 -> 0 | AL184: ='Energy Uses'!KK156 -> 0 | AM184: ='Energy Uses'!KJ156 -> 0 | AN184: ='Energy Uses'!KI156 -> 0 | AO184: ='Energy Uses'!KH156 -> 0 | AP184: ='Energy Uses'!KG156 -> 0 | AQ184: ='Energy Uses'!KF156 -> 0 | AR184: ='Energy Uses'!KE156 -> 0 | AS184: ='Energy Uses'!KD156 -> 0 | AT184: ='Energy Uses'!KC156 -> 0 | AU184: ='Energy Uses'!KB156 -> 0 | AV184: ='Energy Uses'!KA156 -> 0 | AW184: ='Energy Uses'!JZ156 -> 0 | AX184: ='Energy Uses'!JY156 -> 0 | AY184: ='Energy Uses'!JX156 -> 0 | AZ184: ='Energy Uses'!JW156 -> 0 | BA184: ='Energy Uses'!JV156 -> 0 | BB184: ='Energy Uses'!JU156 -> 0 | BC184: ='Energy Uses'!JT156 -> 0 | BD184: ='Energy Uses'!JS156 -> 0 | BE184: ='Energy Uses'!JR156 -> 0 | BF184: ='Energy Uses'!JQ156 -> 0 | BG184: ='Energy Uses'!JP156 -> 0 | BH184: ='Energy Uses'!JO156 -> 0 | BI184: ='Energy Uses'!JN156 -> 0 | BJ184: ='Energy Uses'!JM156 -> 0
AG185: ='Energy Uses'!M157 -> FALSE | AH185: 0 | AI185: 0 | AJ185: 10 | AK185: ='Energy Uses'!C157 -> 0 | AL185: ='Energy Uses'!KK157 -> 0 | AM185: ='Energy Uses'!KJ157 -> 0 | AN185: ='Energy Uses'!KI157 -> 0 | AO185: ='Energy Uses'!KH157 -> 0 | AP185: ='Energy Uses'!KG157 -> 0 | AQ185: ='Energy Uses'!KF157 -> 0 | AR185: ='Energy Uses'!KE157 -> 0 | AS185: ='Energy Uses'!KD157 -> 0 | AT185: ='Energy Uses'!KC157 -> 0 | AU185: ='Energy Uses'!KB157 -> 0 | AV185: ='Energy Uses'!KA157 -> 0 | AW185: ='Energy Uses'!JZ157 -> 0 | AX185: ='Energy Uses'!JY157 -> 0 | AY185: ='Energy Uses'!JX157 -> 0 | AZ185: ='Energy Uses'!JW157 -> 0 | BA185: ='Energy Uses'!JV157 -> 0 | BB185: ='Energy Uses'!JU157 -> 0 | BC185: ='Energy Uses'!JT157 -> 0 | BD185: ='Energy Uses'!JS157 -> 0 | BE185: ='Energy Uses'!JR157 -> 0 | BF185: ='Energy Uses'!JQ157 -> 0 | BG185: ='Energy Uses'!JP157 -> 0 | BH185: ='Energy Uses'!JO157 -> 0 | BI185: ='Energy Uses'!JN157 -> 0 | BJ185: ='Energy Uses'!JM157 -> 0
AG186: ='Energy Uses'!M158 -> FALSE | AH186: 0 | AI186: 0 | AJ186: 11 | AK186: ='Energy Uses'!C158 -> 0 | AL186: ='Energy Uses'!KK158 -> 0 | AM186: ='Energy Uses'!KJ158 -> 0 | AN186: ='Energy Uses'!KI158 -> 0 | AO186: ='Energy Uses'!KH158 -> 0 | AP186: ='Energy Uses'!KG158 -> 0 | AQ186: ='Energy Uses'!KF158 -> 0 | AR186: ='Energy Uses'!KE158 -> 0 | AS186: ='Energy Uses'!KD158 -> 0 | AT186: ='Energy Uses'!KC158 -> 0 | AU186: ='Energy Uses'!KB158 -> 0 | AV186: ='Energy Uses'!KA158 -> 0 | AW186: ='Energy Uses'!JZ158 -> 0 | AX186: ='Energy Uses'!JY158 -> 0 | AY186: ='Energy Uses'!JX158 -> 0 | AZ186: ='Energy Uses'!JW158 -> 0 | BA186: ='Energy Uses'!JV158 -> 0 | BB186: ='Energy Uses'!JU158 -> 0 | BC186: ='Energy Uses'!JT158 -> 0 | BD186: ='Energy Uses'!JS158 -> 0 | BE186: ='Energy Uses'!JR158 -> 0 | BF186: ='Energy Uses'!JQ158 -> 0 | BG186: ='Energy Uses'!JP158 -> 0 | BH186: ='Energy Uses'!JO158 -> 0 | BI186: ='Energy Uses'!JN158 -> 0 | BJ186: ='Energy Uses'!JM158 -> 0
AG187: ='Energy Uses'!M159 -> FALSE | AH187: 0 | AI187: 0 | AJ187: 12 | AK187: ='Energy Uses'!C159 -> 0 | AL187: ='Energy Uses'!KK159 -> 0 | AM187: ='Energy Uses'!KJ159 -> 0 | AN187: ='Energy Uses'!KI159 -> 0 | AO187: ='Energy Uses'!KH159 -> 0 | AP187: ='Energy Uses'!KG159 -> 0 | AQ187: ='Energy Uses'!KF159 -> 0 | AR187: ='Energy Uses'!KE159 -> 0 | AS187: ='Energy Uses'!KD159 -> 0 | AT187: ='Energy Uses'!KC159 -> 0 | AU187: ='Energy Uses'!KB159 -> 0 | AV187: ='Energy Uses'!KA159 -> 0 | AW187: ='Energy Uses'!JZ159 -> 0 | AX187: ='Energy Uses'!JY159 -> 0 | AY187: ='Energy Uses'!JX159 -> 0 | AZ187: ='Energy Uses'!JW159 -> 0 | BA187: ='Energy Uses'!JV159 -> 0 | BB187: ='Energy Uses'!JU159 -> 0 | BC187: ='Energy Uses'!JT159 -> 0 | BD187: ='Energy Uses'!JS159 -> 0 | BE187: ='Energy Uses'!JR159 -> 0 | BF187: ='Energy Uses'!JQ159 -> 0 | BG187: ='Energy Uses'!JP159 -> 0 | BH187: ='Energy Uses'!JO159 -> 0 | BI187: ='Energy Uses'!JN159 -> 0 | BJ187: ='Energy Uses'!JM159 -> 0
AG188: ='Energy Uses'!M160 -> FALSE | AH188: 0 | AI188: 0 | AJ188: 13 | AK188: ='Energy Uses'!C160 -> 0 | AL188: ='Energy Uses'!KK160 -> 0 | AM188: ='Energy Uses'!KJ160 -> 0 | AN188: ='Energy Uses'!KI160 -> 0 | AO188: ='Energy Uses'!KH160 -> 0 | AP188: ='Energy Uses'!KG160 -> 0 | AQ188: ='Energy Uses'!KF160 -> 0 | AR188: ='Energy Uses'!KE160 -> 0 | AS188: ='Energy Uses'!KD160 -> 0 | AT188: ='Energy Uses'!KC160 -> 0 | AU188: ='Energy Uses'!KB160 -> 0 | AV188: ='Energy Uses'!KA160 -> 0 | AW188: ='Energy Uses'!JZ160 -> 0 | AX188: ='Energy Uses'!JY160 -> 0 | AY188: ='Energy Uses'!JX160 -> 0 | AZ188: ='Energy Uses'!JW160 -> 0 | BA188: ='Energy Uses'!JV160 -> 0 | BB188: ='Energy Uses'!JU160 -> 0 | BC188: ='Energy Uses'!JT160 -> 0 | BD188: ='Energy Uses'!JS160 -> 0 | BE188: ='Energy Uses'!JR160 -> 0 | BF188: ='Energy Uses'!JQ160 -> 0 | BG188: ='Energy Uses'!JP160 -> 0 | BH188: ='Energy Uses'!JO160 -> 0 | BI188: ='Energy Uses'!JN160 -> 0 | BJ188: ='Energy Uses'!JM160 -> 0
AG189: ='Energy Uses'!M161 -> FALSE | AH189: 0 | AI189: 0 | AJ189: 14 | AK189: ='Energy Uses'!C161 -> 0 | AL189: ='Energy Uses'!KK161 -> 0 | AM189: ='Energy Uses'!KJ161 -> 0 | AN189: ='Energy Uses'!KI161 -> 0 | AO189: ='Energy Uses'!KH161 -> 0 | AP189: ='Energy Uses'!KG161 -> 0 | AQ189: ='Energy Uses'!KF161 -> 0 | AR189: ='Energy Uses'!KE161 -> 0 | AS189: ='Energy Uses'!KD161 -> 0 | AT189: ='Energy Uses'!KC161 -> 0 | AU189: ='Energy Uses'!KB161 -> 0 | AV189: ='Energy Uses'!KA161 -> 0 | AW189: ='Energy Uses'!JZ161 -> 0 | AX189: ='Energy Uses'!JY161 -> 0 | AY189: ='Energy Uses'!JX161 -> 0 | AZ189: ='Energy Uses'!JW161 -> 0 | BA189: ='Energy Uses'!JV161 -> 0 | BB189: ='Energy Uses'!JU161 -> 0 | BC189: ='Energy Uses'!JT161 -> 0 | BD189: ='Energy Uses'!JS161 -> 0 | BE189: ='Energy Uses'!JR161 -> 0 | BF189: ='Energy Uses'!JQ161 -> 0 | BG189: ='Energy Uses'!JP161 -> 0 | BH189: ='Energy Uses'!JO161 -> 0 | BI189: ='Energy Uses'!JN161 -> 0 | BJ189: ='Energy Uses'!JM161 -> 0
AG190: ='Energy Uses'!M162 -> FALSE | AH190: 0 | AI190: 0 | AJ190: 15 | AK190: ='Energy Uses'!C162 -> 0 | AL190: ='Energy Uses'!KK162 -> 0 | AM190: ='Energy Uses'!KJ162 -> 0 | AN190: ='Energy Uses'!KI162 -> 0 | AO190: ='Energy Uses'!KH162 -> 0 | AP190: ='Energy Uses'!KG162 -> 0 | AQ190: ='Energy Uses'!KF162 -> 0 | AR190: ='Energy Uses'!KE162 -> 0 | AS190: ='Energy Uses'!KD162 -> 0 | AT190: ='Energy Uses'!KC162 -> 0 | AU190: ='Energy Uses'!KB162 -> 0 | AV190: ='Energy Uses'!KA162 -> 0 | AW190: ='Energy Uses'!JZ162 -> 0 | AX190: ='Energy Uses'!JY162 -> 0 | AY190: ='Energy Uses'!JX162 -> 0 | AZ190: ='Energy Uses'!JW162 -> 0 | BA190: ='Energy Uses'!JV162 -> 0 | BB190: ='Energy Uses'!JU162 -> 0 | BC190: ='Energy Uses'!JT162 -> 0 | BD190: ='Energy Uses'!JS162 -> 0 | BE190: ='Energy Uses'!JR162 -> 0 | BF190: ='Energy Uses'!JQ162 -> 0 | BG190: ='Energy Uses'!JP162 -> 0 | BH190: ='Energy Uses'!JO162 -> 0 | BI190: ='Energy Uses'!JN162 -> 0 | BJ190: ='Energy Uses'!JM162 -> 0
AG191: ='Energy Uses'!M163 -> FALSE | AH191: 0 | AI191: 0 | AJ191: 16 | AK191: ='Energy Uses'!C163 -> 0 | AL191: ='Energy Uses'!KK163 -> 0 | AM191: ='Energy Uses'!KJ163 -> 0 | AN191: ='Energy Uses'!KI163 -> 0 | AO191: ='Energy Uses'!KH163 -> 0 | AP191: ='Energy Uses'!KG163 -> 0 | AQ191: ='Energy Uses'!KF163 -> 0 | AR191: ='Energy Uses'!KE163 -> 0 | AS191: ='Energy Uses'!KD163 -> 0 | AT191: ='Energy Uses'!KC163 -> 0 | AU191: ='Energy Uses'!KB163 -> 0 | AV191: ='Energy Uses'!KA163 -> 0 | AW191: ='Energy Uses'!JZ163 -> 0 | AX191: ='Energy Uses'!JY163 -> 0 | AY191: ='Energy Uses'!JX163 -> 0 | AZ191: ='Energy Uses'!JW163 -> 0 | BA191: ='Energy Uses'!JV163 -> 0 | BB191: ='Energy Uses'!JU163 -> 0 | BC191: ='Energy Uses'!JT163 -> 0 | BD191: ='Energy Uses'!JS163 -> 0 | BE191: ='Energy Uses'!JR163 -> 0 | BF191: ='Energy Uses'!JQ163 -> 0 | BG191: ='Energy Uses'!JP163 -> 0 | BH191: ='Energy Uses'!JO163 -> 0 | BI191: ='Energy Uses'!JN163 -> 0 | BJ191: ='Energy Uses'!JM163 -> 0
AG192: ='Energy Uses'!M164 -> FALSE | AH192: 0 | AI192: 0 | AJ192: 17 | AK192: ='Energy Uses'!C164 -> 0 | AL192: ='Energy Uses'!KK164 -> 0 | AM192: ='Energy Uses'!KJ164 -> 0 | AN192: ='Energy Uses'!KI164 -> 0 | AO192: ='Energy Uses'!KH164 -> 0 | AP192: ='Energy Uses'!KG164 -> 0 | AQ192: ='Energy Uses'!KF164 -> 0 | AR192: ='Energy Uses'!KE164 -> 0 | AS192: ='Energy Uses'!KD164 -> 0 | AT192: ='Energy Uses'!KC164 -> 0 | AU192: ='Energy Uses'!KB164 -> 0 | AV192: ='Energy Uses'!KA164 -> 0 | AW192: ='Energy Uses'!JZ164 -> 0 | AX192: ='Energy Uses'!JY164 -> 0 | AY192: ='Energy Uses'!JX164 -> 0 | AZ192: ='Energy Uses'!JW164 -> 0 | BA192: ='Energy Uses'!JV164 -> 0 | BB192: ='Energy Uses'!JU164 -> 0 | BC192: ='Energy Uses'!JT164 -> 0 | BD192: ='Energy Uses'!JS164 -> 0 | BE192: ='Energy Uses'!JR164 -> 0 | BF192: ='Energy Uses'!JQ164 -> 0 | BG192: ='Energy Uses'!JP164 -> 0 | BH192: ='Energy Uses'!JO164 -> 0 | BI192: ='Energy Uses'!JN164 -> 0 | BJ192: ='Energy Uses'!JM164 -> 0
AG193: ='Energy Uses'!M165 -> FALSE | AH193: 0 | AI193: 0 | AJ193: 18 | AK193: ='Energy Uses'!C165 -> 0 | AL193: ='Energy Uses'!KK165 -> 0 | AM193: ='Energy Uses'!KJ165 -> 0 | AN193: ='Energy Uses'!KI165 -> 0 | AO193: ='Energy Uses'!KH165 -> 0 | AP193: ='Energy Uses'!KG165 -> 0 | AQ193: ='Energy Uses'!KF165 -> 0 | AR193: ='Energy Uses'!KE165 -> 0 | AS193: ='Energy Uses'!KD165 -> 0 | AT193: ='Energy Uses'!KC165 -> 0 | AU193: ='Energy Uses'!KB165 -> 0 | AV193: ='Energy Uses'!KA165 -> 0 | AW193: ='Energy Uses'!JZ165 -> 0 | AX193: ='Energy Uses'!JY165 -> 0 | AY193: ='Energy Uses'!JX165 -> 0 | AZ193: ='Energy Uses'!JW165 -> 0 | BA193: ='Energy Uses'!JV165 -> 0 | BB193: ='Energy Uses'!JU165 -> 0 | BC193: ='Energy Uses'!JT165 -> 0 | BD193: ='Energy Uses'!JS165 -> 0 | BE193: ='Energy Uses'!JR165 -> 0 | BF193: ='Energy Uses'!JQ165 -> 0 | BG193: ='Energy Uses'!JP165 -> 0 | BH193: ='Energy Uses'!JO165 -> 0 | BI193: ='Energy Uses'!JN165 -> 0 | BJ193: ='Energy Uses'!JM165 -> 0
AG194: ='Energy Uses'!M166 -> FALSE | AH194: 0 | AI194: 0 | AJ194: 19 | AK194: ='Energy Uses'!C166 -> 0 | AL194: ='Energy Uses'!KK166 -> 0 | AM194: ='Energy Uses'!KJ166 -> 0 | AN194: ='Energy Uses'!KI166 -> 0 | AO194: ='Energy Uses'!KH166 -> 0 | AP194: ='Energy Uses'!KG166 -> 0 | AQ194: ='Energy Uses'!KF166 -> 0 | AR194: ='Energy Uses'!KE166 -> 0 | AS194: ='Energy Uses'!KD166 -> 0 | AT194: ='Energy Uses'!KC166 -> 0 | AU194: ='Energy Uses'!KB166 -> 0 | AV194: ='Energy Uses'!KA166 -> 0 | AW194: ='Energy Uses'!JZ166 -> 0 | AX194: ='Energy Uses'!JY166 -> 0 | AY194: ='Energy Uses'!JX166 -> 0 | AZ194: ='Energy Uses'!JW166 -> 0 | BA194: ='Energy Uses'!JV166 -> 0 | BB194: ='Energy Uses'!JU166 -> 0 | BC194: ='Energy Uses'!JT166 -> 0 | BD194: ='Energy Uses'!JS166 -> 0 | BE194: ='Energy Uses'!JR166 -> 0 | BF194: ='Energy Uses'!JQ166 -> 0 | BG194: ='Energy Uses'!JP166 -> 0 | BH194: ='Energy Uses'!JO166 -> 0 | BI194: ='Energy Uses'!JN166 -> 0 | BJ194: ='Energy Uses'!JM166 -> 0
AG195: ='Energy Uses'!M167 -> FALSE | AH195: 0 | AI195: 0 | AJ195: 20 | AK195: ='Energy Uses'!C167 -> 0 | AL195: ='Energy Uses'!KK167 -> 0 | AM195: ='Energy Uses'!KJ167 -> 0 | AN195: ='Energy Uses'!KI167 -> 0 | AO195: ='Energy Uses'!KH167 -> 0 | AP195: ='Energy Uses'!KG167 -> 0 | AQ195: ='Energy Uses'!KF167 -> 0 | AR195: ='Energy Uses'!KE167 -> 0 | AS195: ='Energy Uses'!KD167 -> 0 | AT195: ='Energy Uses'!KC167 -> 0 | AU195: ='Energy Uses'!KB167 -> 0 | AV195: ='Energy Uses'!KA167 -> 0 | AW195: ='Energy Uses'!JZ167 -> 0 | AX195: ='Energy Uses'!JY167 -> 0 | AY195: ='Energy Uses'!JX167 -> 0 | AZ195: ='Energy Uses'!JW167 -> 0 | BA195: ='Energy Uses'!JV167 -> 0 | BB195: ='Energy Uses'!JU167 -> 0 | BC195: ='Energy Uses'!JT167 -> 0 | BD195: ='Energy Uses'!JS167 -> 0 | BE195: ='Energy Uses'!JR167 -> 0 | BF195: ='Energy Uses'!JQ167 -> 0 | BG195: ='Energy Uses'!JP167 -> 0 | BH195: ='Energy Uses'!JO167 -> 0 | BI195: ='Energy Uses'!JN167 -> 0 | BJ195: ='Energy Uses'!JM167 -> 0
AG196: ='Energy Uses'!M168 -> FALSE | AH196: 0 | AI196: 0 | AJ196: 21 | AK196: ='Energy Uses'!C168 -> 0 | AL196: ='Energy Uses'!KK168 -> 0 | AM196: ='Energy Uses'!KJ168 -> 0 | AN196: ='Energy Uses'!KI168 -> 0 | AO196: ='Energy Uses'!KH168 -> 0 | AP196: ='Energy Uses'!KG168 -> 0 | AQ196: ='Energy Uses'!KF168 -> 0 | AR196: ='Energy Uses'!KE168 -> 0 | AS196: ='Energy Uses'!KD168 -> 0 | AT196: ='Energy Uses'!KC168 -> 0 | AU196: ='Energy Uses'!KB168 -> 0 | AV196: ='Energy Uses'!KA168 -> 0 | AW196: ='Energy Uses'!JZ168 -> 0 | AX196: ='Energy Uses'!JY168 -> 0 | AY196: ='Energy Uses'!JX168 -> 0 | AZ196: ='Energy Uses'!JW168 -> 0 | BA196: ='Energy Uses'!JV168 -> 0 | BB196: ='Energy Uses'!JU168 -> 0 | BC196: ='Energy Uses'!JT168 -> 0 | BD196: ='Energy Uses'!JS168 -> 0 | BE196: ='Energy Uses'!JR168 -> 0 | BF196: ='Energy Uses'!JQ168 -> 0 | BG196: ='Energy Uses'!JP168 -> 0 | BH196: ='Energy Uses'!JO168 -> 0 | BI196: ='Energy Uses'!JN168 -> 0 | BJ196: ='Energy Uses'!JM168 -> 0
AG197: ='Energy Uses'!M169 -> FALSE | AH197: 0 | AI197: 0 | AJ197: 22 | AK197: ='Energy Uses'!C169 -> 0 | AL197: ='Energy Uses'!KK169 -> 0 | AM197: ='Energy Uses'!KJ169 -> 0 | AN197: ='Energy Uses'!KI169 -> 0 | AO197: ='Energy Uses'!KH169 -> 0 | AP197: ='Energy Uses'!KG169 -> 0 | AQ197: ='Energy Uses'!KF169 -> 0 | AR197: ='Energy Uses'!KE169 -> 0 | AS197: ='Energy Uses'!KD169 -> 0 | AT197: ='Energy Uses'!KC169 -> 0 | AU197: ='Energy Uses'!KB169 -> 0 | AV197: ='Energy Uses'!KA169 -> 0 | AW197: ='Energy Uses'!JZ169 -> 0 | AX197: ='Energy Uses'!JY169 -> 0 | AY197: ='Energy Uses'!JX169 -> 0 | AZ197: ='Energy Uses'!JW169 -> 0 | BA197: ='Energy Uses'!JV169 -> 0 | BB197: ='Energy Uses'!JU169 -> 0 | BC197: ='Energy Uses'!JT169 -> 0 | BD197: ='Energy Uses'!JS169 -> 0 | BE197: ='Energy Uses'!JR169 -> 0 | BF197: ='Energy Uses'!JQ169 -> 0 | BG197: ='Energy Uses'!JP169 -> 0 | BH197: ='Energy Uses'!JO169 -> 0 | BI197: ='Energy Uses'!JN169 -> 0 | BJ197: ='Energy Uses'!JM169 -> 0
AG198: ='Energy Uses'!M170 -> FALSE | AH198: 0 | AI198: 0 | AJ198: 23 | AK198: ='Energy Uses'!C170 -> 0 | AL198: ='Energy Uses'!KK170 -> 0 | AM198: ='Energy Uses'!KJ170 -> 0 | AN198: ='Energy Uses'!KI170 -> 0 | AO198: ='Energy Uses'!KH170 -> 0 | AP198: ='Energy Uses'!KG170 -> 0 | AQ198: ='Energy Uses'!KF170 -> 0 | AR198: ='Energy Uses'!KE170 -> 0 | AS198: ='Energy Uses'!KD170 -> 0 | AT198: ='Energy Uses'!KC170 -> 0 | AU198: ='Energy Uses'!KB170 -> 0 | AV198: ='Energy Uses'!KA170 -> 0 | AW198: ='Energy Uses'!JZ170 -> 0 | AX198: ='Energy Uses'!JY170 -> 0 | AY198: ='Energy Uses'!JX170 -> 0 | AZ198: ='Energy Uses'!JW170 -> 0 | BA198: ='Energy Uses'!JV170 -> 0 | BB198: ='Energy Uses'!JU170 -> 0 | BC198: ='Energy Uses'!JT170 -> 0 | BD198: ='Energy Uses'!JS170 -> 0 | BE198: ='Energy Uses'!JR170 -> 0 | BF198: ='Energy Uses'!JQ170 -> 0 | BG198: ='Energy Uses'!JP170 -> 0 | BH198: ='Energy Uses'!JO170 -> 0 | BI198: ='Energy Uses'!JN170 -> 0 | BJ198: ='Energy Uses'!JM170 -> 0
AG199: ='Energy Uses'!M171 -> FALSE | AH199: 0 | AI199: 0 | AJ199: 24 | AK199: ='Energy Uses'!C171 -> 0 | AL199: ='Energy Uses'!KK171 -> 0 | AM199: ='Energy Uses'!KJ171 -> 0 | AN199: ='Energy Uses'!KI171 -> 0 | AO199: ='Energy Uses'!KH171 -> 0 | AP199: ='Energy Uses'!KG171 -> 0 | AQ199: ='Energy Uses'!KF171 -> 0 | AR199: ='Energy Uses'!KE171 -> 0 | AS199: ='Energy Uses'!KD171 -> 0 | AT199: ='Energy Uses'!KC171 -> 0 | AU199: ='Energy Uses'!KB171 -> 0 | AV199: ='Energy Uses'!KA171 -> 0 | AW199: ='Energy Uses'!JZ171 -> 0 | AX199: ='Energy Uses'!JY171 -> 0 | AY199: ='Energy Uses'!JX171 -> 0 | AZ199: ='Energy Uses'!JW171 -> 0 | BA199: ='Energy Uses'!JV171 -> 0 | BB199: ='Energy Uses'!JU171 -> 0 | BC199: ='Energy Uses'!JT171 -> 0 | BD199: ='Energy Uses'!JS171 -> 0 | BE199: ='Energy Uses'!JR171 -> 0 | BF199: ='Energy Uses'!JQ171 -> 0 | BG199: ='Energy Uses'!JP171 -> 0 | BH199: ='Energy Uses'!JO171 -> 0 | BI199: ='Energy Uses'!JN171 -> 0 | BJ199: ='Energy Uses'!JM171 -> 0
AG200: ='Energy Uses'!M172 -> FALSE | AH200: 0 | AI200: 0 | AJ200: 25 | AK200: ='Energy Uses'!C172 -> 0 | AL200: ='Energy Uses'!KK172 -> 0 | AM200: ='Energy Uses'!KJ172 -> 0 | AN200: ='Energy Uses'!KI172 -> 0 | AO200: ='Energy Uses'!KH172 -> 0 | AP200: ='Energy Uses'!KG172 -> 0 | AQ200: ='Energy Uses'!KF172 -> 0 | AR200: ='Energy Uses'!KE172 -> 0 | AS200: ='Energy Uses'!KD172 -> 0 | AT200: ='Energy Uses'!KC172 -> 0 | AU200: ='Energy Uses'!KB172 -> 0 | AV200: ='Energy Uses'!KA172 -> 0 | AW200: ='Energy Uses'!JZ172 -> 0 | AX200: ='Energy Uses'!JY172 -> 0 | AY200: ='Energy Uses'!JX172 -> 0 | AZ200: ='Energy Uses'!JW172 -> 0 | BA200: ='Energy Uses'!JV172 -> 0 | BB200: ='Energy Uses'!JU172 -> 0 | BC200: ='Energy Uses'!JT172 -> 0 | BD200: ='Energy Uses'!JS172 -> 0 | BE200: ='Energy Uses'!JR172 -> 0 | BF200: ='Energy Uses'!JQ172 -> 0 | BG200: ='Energy Uses'!JP172 -> 0 | BH200: ='Energy Uses'!JO172 -> 0 | BI200: ='Energy Uses'!JN172 -> 0 | BJ200: ='Energy Uses'!JM172 -> 0
AG201: ='Energy Uses'!M173 -> FALSE | AH201: 0 | AI201: 0 | AJ201: 26 | AK201: ='Energy Uses'!C173 -> 0 | AL201: ='Energy Uses'!KK173 -> 0 | AM201: ='Energy Uses'!KJ173 -> 0 | AN201: ='Energy Uses'!KI173 -> 0 | AO201: ='Energy Uses'!KH173 -> 0 | AP201: ='Energy Uses'!KG173 -> 0 | AQ201: ='Energy Uses'!KF173 -> 0 | AR201: ='Energy Uses'!KE173 -> 0 | AS201: ='Energy Uses'!KD173 -> 0 | AT201: ='Energy Uses'!KC173 -> 0 | AU201: ='Energy Uses'!KB173 -> 0 | AV201: ='Energy Uses'!KA173 -> 0 | AW201: ='Energy Uses'!JZ173 -> 0 | AX201: ='Energy Uses'!JY173 -> 0 | AY201: ='Energy Uses'!JX173 -> 0 | AZ201: ='Energy Uses'!JW173 -> 0 | BA201: ='Energy Uses'!JV173 -> 0 | BB201: ='Energy Uses'!JU173 -> 0 | BC201: ='Energy Uses'!JT173 -> 0 | BD201: ='Energy Uses'!JS173 -> 0 | BE201: ='Energy Uses'!JR173 -> 0 | BF201: ='Energy Uses'!JQ173 -> 0 | BG201: ='Energy Uses'!JP173 -> 0 | BH201: ='Energy Uses'!JO173 -> 0 | BI201: ='Energy Uses'!JN173 -> 0 | BJ201: ='Energy Uses'!JM173 -> 0
AG202: ='Energy Uses'!M174 -> FALSE | AH202: 0 | AI202: 0 | AJ202: 27 | AK202: ='Energy Uses'!C174 -> 0 | AL202: ='Energy Uses'!KK174 -> 0 | AM202: ='Energy Uses'!KJ174 -> 0 | AN202: ='Energy Uses'!KI174 -> 0 | AO202: ='Energy Uses'!KH174 -> 0 | AP202: ='Energy Uses'!KG174 -> 0 | AQ202: ='Energy Uses'!KF174 -> 0 | AR202: ='Energy Uses'!KE174 -> 0 | AS202: ='Energy Uses'!KD174 -> 0 | AT202: ='Energy Uses'!KC174 -> 0 | AU202: ='Energy Uses'!KB174 -> 0 | AV202: ='Energy Uses'!KA174 -> 0 | AW202: ='Energy Uses'!JZ174 -> 0 | AX202: ='Energy Uses'!JY174 -> 0 | AY202: ='Energy Uses'!JX174 -> 0 | AZ202: ='Energy Uses'!JW174 -> 0 | BA202: ='Energy Uses'!JV174 -> 0 | BB202: ='Energy Uses'!JU174 -> 0 | BC202: ='Energy Uses'!JT174 -> 0 | BD202: ='Energy Uses'!JS174 -> 0 | BE202: ='Energy Uses'!JR174 -> 0 | BF202: ='Energy Uses'!JQ174 -> 0 | BG202: ='Energy Uses'!JP174 -> 0 | BH202: ='Energy Uses'!JO174 -> 0 | BI202: ='Energy Uses'!JN174 -> 0 | BJ202: ='Energy Uses'!JM174 -> 0
AG203: ='Energy Uses'!M175 -> FALSE | AH203: 0 | AI203: 0 | AJ203: 28 | AK203: ='Energy Uses'!C175 -> 0 | AL203: ='Energy Uses'!KK175 -> 0 | AM203: ='Energy Uses'!KJ175 -> 0 | AN203: ='Energy Uses'!KI175 -> 0 | AO203: ='Energy Uses'!KH175 -> 0 | AP203: ='Energy Uses'!KG175 -> 0 | AQ203: ='Energy Uses'!KF175 -> 0 | AR203: ='Energy Uses'!KE175 -> 0 | AS203: ='Energy Uses'!KD175 -> 0 | AT203: ='Energy Uses'!KC175 -> 0 | AU203: ='Energy Uses'!KB175 -> 0 | AV203: ='Energy Uses'!KA175 -> 0 | AW203: ='Energy Uses'!JZ175 -> 0 | AX203: ='Energy Uses'!JY175 -> 0 | AY203: ='Energy Uses'!JX175 -> 0 | AZ203: ='Energy Uses'!JW175 -> 0 | BA203: ='Energy Uses'!JV175 -> 0 | BB203: ='Energy Uses'!JU175 -> 0 | BC203: ='Energy Uses'!JT175 -> 0 | BD203: ='Energy Uses'!JS175 -> 0 | BE203: ='Energy Uses'!JR175 -> 0 | BF203: ='Energy Uses'!JQ175 -> 0 | BG203: ='Energy Uses'!JP175 -> 0 | BH203: ='Energy Uses'!JO175 -> 0 | BI203: ='Energy Uses'!JN175 -> 0 | BJ203: ='Energy Uses'!JM175 -> 0
AG204: ='Energy Uses'!M176 -> FALSE | AH204: 0 | AI204: 0 | AJ204: 29 | AK204: ='Energy Uses'!C176 -> 0 | AL204: ='Energy Uses'!KK176 -> 0 | AM204: ='Energy Uses'!KJ176 -> 0 | AN204: ='Energy Uses'!KI176 -> 0 | AO204: ='Energy Uses'!KH176 -> 0 | AP204: ='Energy Uses'!KG176 -> 0 | AQ204: ='Energy Uses'!KF176 -> 0 | AR204: ='Energy Uses'!KE176 -> 0 | AS204: ='Energy Uses'!KD176 -> 0 | AT204: ='Energy Uses'!KC176 -> 0 | AU204: ='Energy Uses'!KB176 -> 0 | AV204: ='Energy Uses'!KA176 -> 0 | AW204: ='Energy Uses'!JZ176 -> 0 | AX204: ='Energy Uses'!JY176 -> 0 | AY204: ='Energy Uses'!JX176 -> 0 | AZ204: ='Energy Uses'!JW176 -> 0 | BA204: ='Energy Uses'!JV176 -> 0 | BB204: ='Energy Uses'!JU176 -> 0 | BC204: ='Energy Uses'!JT176 -> 0 | BD204: ='Energy Uses'!JS176 -> 0 | BE204: ='Energy Uses'!JR176 -> 0 | BF204: ='Energy Uses'!JQ176 -> 0 | BG204: ='Energy Uses'!JP176 -> 0 | BH204: ='Energy Uses'!JO176 -> 0 | BI204: ='Energy Uses'!JN176 -> 0 | BJ204: ='Energy Uses'!JM176 -> 0
AG205: ='Energy Uses'!M177 -> FALSE | AH205: 0 | AI205: 0 | AJ205: 30 | AK205: ='Energy Uses'!C177 -> 0 | AL205: ='Energy Uses'!KK177 -> 0 | AM205: ='Energy Uses'!KJ177 -> 0 | AN205: ='Energy Uses'!KI177 -> 0 | AO205: ='Energy Uses'!KH177 -> 0 | AP205: ='Energy Uses'!KG177 -> 0 | AQ205: ='Energy Uses'!KF177 -> 0 | AR205: ='Energy Uses'!KE177 -> 0 | AS205: ='Energy Uses'!KD177 -> 0 | AT205: ='Energy Uses'!KC177 -> 0 | AU205: ='Energy Uses'!KB177 -> 0 | AV205: ='Energy Uses'!KA177 -> 0 | AW205: ='Energy Uses'!JZ177 -> 0 | AX205: ='Energy Uses'!JY177 -> 0 | AY205: ='Energy Uses'!JX177 -> 0 | AZ205: ='Energy Uses'!JW177 -> 0 | BA205: ='Energy Uses'!JV177 -> 0 | BB205: ='Energy Uses'!JU177 -> 0 | BC205: ='Energy Uses'!JT177 -> 0 | BD205: ='Energy Uses'!JS177 -> 0 | BE205: ='Energy Uses'!JR177 -> 0 | BF205: ='Energy Uses'!JQ177 -> 0 | BG205: ='Energy Uses'!JP177 -> 0 | BH205: ='Energy Uses'!JO177 -> 0 | BI205: ='Energy Uses'!JN177 -> 0 | BJ205: ='Energy Uses'!JM177 -> 0
AG206: ='Energy Uses'!M178 -> FALSE | AH206: 0 | AI206: =HLOOKUP(AI$176,$AL$176:$BJ$206,AJ206,) -> 0 | AJ206: 31 | AK206: ='Energy Uses'!C178 -> 0 | AL206: ='Energy Uses'!KK178 -> 0 | AM206: ='Energy Uses'!KJ178 -> 0 | AN206: ='Energy Uses'!KI178 -> 0 | AO206: ='Energy Uses'!KH178 -> 0 | AP206: ='Energy Uses'!KG178 -> 0 | AQ206: ='Energy Uses'!KF178 -> 0 | AR206: ='Energy Uses'!KE178 -> 0 | AS206: ='Energy Uses'!KD178 -> 0 | AT206: ='Energy Uses'!KC178 -> 0 | AU206: ='Energy Uses'!KB178 -> 0 | AV206: ='Energy Uses'!KA178 -> 0 | AW206: ='Energy Uses'!JZ178 -> 0 | AX206: ='Energy Uses'!JY178 -> 0 | AY206: ='Energy Uses'!JX178 -> 0 | AZ206: ='Energy Uses'!JW178 -> 0 | BA206: ='Energy Uses'!JV178 -> 0 | BB206: ='Energy Uses'!JU178 -> 0 | BC206: ='Energy Uses'!JT178 -> 0 | BD206: ='Energy Uses'!JS178 -> 0 | BE206: ='Energy Uses'!JR178 -> 0 | BF206: ='Energy Uses'!JQ178 -> 0 | BG206: ='Energy Uses'!JP178 -> 0 | BH206: ='Energy Uses'!JO178 -> 0 | BI206: ='Energy Uses'!JN178 -> 0 | BJ206: ='Energy Uses'!JM178 -> 0
AG207: TRUE
AG208: TRUE | AI208: =$AI$68 -> 2015 | AL208: =AM208-1 -> 2005 | AM208: 2006 | AN208: 2007 | AO208: 2008 | AP208: 2009 | AQ208: 2010 | AR208: 2011 | AS208: 2012 | AT208: 2013 | AU208: 2014 | AV208: 2015 | AW208: 2016 | AX208: 2017 | AY208: 2018 | AZ208: 2019 | BA208: 2020 | BB208: 2021 | BC208: 2022 | BD208: 2023 | BE208: 2024 | BF208: 2025 | BG208: 2026 | BH208: 2027 | BI208: =BJ208-1 -> 2028 | BJ208: =FinalYear -> 2029
AG209: ='Energy Uses'!M190 -> FALSE | AH209: =AK209 -> 0 | AI209: =HLOOKUP(AI$208,$AL$208:$BJ$238,AJ209,) -> 0 | AJ209: 2 | AK209: ='Energy Uses'!C190 -> 0 | AL209: ='Energy Uses'!KK190 -> 0 | AM209: ='Energy Uses'!KJ190 -> 0 | AN209: ='Energy Uses'!KI190 -> 0 | AO209: ='Energy Uses'!KH190 -> 0 | AP209: ='Energy Uses'!KG190 -> 0 | AQ209: ='Energy Uses'!KF190 -> 0 | AR209: ='Energy Uses'!KE190 -> 0 | AS209: ='Energy Uses'!KD190 -> 0 | AT209: ='Energy Uses'!KC190 -> 0 | AU209: ='Energy Uses'!KB190 -> 0 | AV209: ='Energy Uses'!KA190 -> 0 | AW209: ='Energy Uses'!JZ190 -> 0 | AX209: ='Energy Uses'!JY190 -> 0 | AY209: ='Energy Uses'!JX190 -> 0 | AZ209: ='Energy Uses'!JW190 -> 0 | BA209: ='Energy Uses'!JV190 -> 0 | BB209: ='Energy Uses'!JU190 -> 0 | BC209: ='Energy Uses'!JT190 -> 0 | BD209: ='Energy Uses'!JS190 -> 0 | BE209: ='Energy Uses'!JR190 -> 0 | BF209: ='Energy Uses'!JQ190 -> 0 | BG209: ='Energy Uses'!JP190 -> 0 | BH209: ='Energy Uses'!JO190 -> 0 | BI209: ='Energy Uses'!JN190 -> 0 | BJ209: ='Energy Uses'!JM190 -> 0
AG210: ='Energy Uses'!M191 -> FALSE | AH210: 0 | AI210: =HLOOKUP(AI$208,$AL$208:$BJ$238,AJ210,) -> 0 | AJ210: 3 | AK210: ='Energy Uses'!C191 -> 0 | AL210: ='Energy Uses'!KK191 -> 0 | AM210: ='Energy Uses'!KJ191 -> 0 | AN210: ='Energy Uses'!KI191 -> 0 | AO210: ='Energy Uses'!KH191 -> 0 | AP210: ='Energy Uses'!KG191 -> 0 | AQ210: ='Energy Uses'!KF191 -> 0 | AR210: ='Energy Uses'!KE191 -> 0 | AS210: ='Energy Uses'!KD191 -> 0 | AT210: ='Energy Uses'!KC191 -> 0 | AU210: ='Energy Uses'!KB191 -> 0 | AV210: ='Energy Uses'!KA191 -> 0 | AW210: ='Energy Uses'!JZ191 -> 0 | AX210: ='Energy Uses'!JY191 -> 0 | AY210: ='Energy Uses'!JX191 -> 0 | AZ210: ='Energy Uses'!JW191 -> 0 | BA210: ='Energy Uses'!JV191 -> 0 | BB210: ='Energy Uses'!JU191 -> 0 | BC210: ='Energy Uses'!JT191 -> 0 | BD210: ='Energy Uses'!JS191 -> 0 | BE210: ='Energy Uses'!JR191 -> 0 | BF210: ='Energy Uses'!JQ191 -> 0 | BG210: ='Energy Uses'!JP191 -> 0 | BH210: ='Energy Uses'!JO191 -> 0 | BI210: ='Energy Uses'!JN191 -> 0 | BJ210: ='Energy Uses'!JM191 -> 0
AG211: ='Energy Uses'!M192 -> FALSE | AH211: 0 | AI211: 0 | AJ211: 4 | AK211: ='Energy Uses'!C192 -> 0 | AL211: ='Energy Uses'!KK192 -> 0 | AM211: ='Energy Uses'!KJ192 -> 0 | AN211: ='Energy Uses'!KI192 -> 0 | AO211: ='Energy Uses'!KH192 -> 0 | AP211: ='Energy Uses'!KG192 -> 0 | AQ211: ='Energy Uses'!KF192 -> 0 | AR211: ='Energy Uses'!KE192 -> 0 | AS211: ='Energy Uses'!KD192 -> 0 | AT211: ='Energy Uses'!KC192 -> 0 | AU211: ='Energy Uses'!KB192 -> 0 | AV211: ='Energy Uses'!KA192 -> 0 | AW211: ='Energy Uses'!JZ192 -> 0 | AX211: ='Energy Uses'!JY192 -> 0 | AY211: ='Energy Uses'!JX192 -> 0 | AZ211: ='Energy Uses'!JW192 -> 0 | BA211: ='Energy Uses'!JV192 -> 0 | BB211: ='Energy Uses'!JU192 -> 0 | BC211: ='Energy Uses'!JT192 -> 0 | BD211: ='Energy Uses'!JS192 -> 0 | BE211: ='Energy Uses'!JR192 -> 0 | BF211: ='Energy Uses'!JQ192 -> 0 | BG211: ='Energy Uses'!JP192 -> 0 | BH211: ='Energy Uses'!JO192 -> 0 | BI211: ='Energy Uses'!JN192 -> 0 | BJ211: ='Energy Uses'!JM192 -> 0
AG212: ='Energy Uses'!M193 -> FALSE | AH212: 0 | AI212: 0 | AJ212: 5 | AK212: ='Energy Uses'!C193 -> 0 | AL212: ='Energy Uses'!KK193 -> 0 | AM212: ='Energy Uses'!KJ193 -> 0 | AN212: ='Energy Uses'!KI193 -> 0 | AO212: ='Energy Uses'!KH193 -> 0 | AP212: ='Energy Uses'!KG193 -> 0 | AQ212: ='Energy Uses'!KF193 -> 0 | AR212: ='Energy Uses'!KE193 -> 0 | AS212: ='Energy Uses'!KD193 -> 0 | AT212: ='Energy Uses'!KC193 -> 0 | AU212: ='Energy Uses'!KB193 -> 0 | AV212: ='Energy Uses'!KA193 -> 0 | AW212: ='Energy Uses'!JZ193 -> 0 | AX212: ='Energy Uses'!JY193 -> 0 | AY212: ='Energy Uses'!JX193 -> 0 | AZ212: ='Energy Uses'!JW193 -> 0 | BA212: ='Energy Uses'!JV193 -> 0 | BB212: ='Energy Uses'!JU193 -> 0 | BC212: ='Energy Uses'!JT193 -> 0 | BD212: ='Energy Uses'!JS193 -> 0 | BE212: ='Energy Uses'!JR193 -> 0 | BF212: ='Energy Uses'!JQ193 -> 0 | BG212: ='Energy Uses'!JP193 -> 0 | BH212: ='Energy Uses'!JO193 -> 0 | BI212: ='Energy Uses'!JN193 -> 0 | BJ212: ='Energy Uses'!JM193 -> 0
AG213: ='Energy Uses'!M194 -> FALSE | AH213: 0 | AI213: 0 | AJ213: 6 | AK213: ='Energy Uses'!C194 -> 0 | AL213: ='Energy Uses'!KK194 -> 0 | AM213: ='Energy Uses'!KJ194 -> 0 | AN213: ='Energy Uses'!KI194 -> 0 | AO213: ='Energy Uses'!KH194 -> 0 | AP213: ='Energy Uses'!KG194 -> 0 | AQ213: ='Energy Uses'!KF194 -> 0 | AR213: ='Energy Uses'!KE194 -> 0 | AS213: ='Energy Uses'!KD194 -> 0 | AT213: ='Energy Uses'!KC194 -> 0 | AU213: ='Energy Uses'!KB194 -> 0 | AV213: ='Energy Uses'!KA194 -> 0 | AW213: ='Energy Uses'!JZ194 -> 0 | AX213: ='Energy Uses'!JY194 -> 0 | AY213: ='Energy Uses'!JX194 -> 0 | AZ213: ='Energy Uses'!JW194 -> 0 | BA213: ='Energy Uses'!JV194 -> 0 | BB213: ='Energy Uses'!JU194 -> 0 | BC213: ='Energy Uses'!JT194 -> 0 | BD213: ='Energy Uses'!JS194 -> 0 | BE213: ='Energy Uses'!JR194 -> 0 | BF213: ='Energy Uses'!JQ194 -> 0 | BG213: ='Energy Uses'!JP194 -> 0 | BH213: ='Energy Uses'!JO194 -> 0 | BI213: ='Energy Uses'!JN194 -> 0 | BJ213: ='Energy Uses'!JM194 -> 0
AG214: ='Energy Uses'!M195 -> FALSE | AH214: 0 | AI214: 0 | AJ214: 7 | AK214: ='Energy Uses'!C195 -> 0 | AL214: ='Energy Uses'!KK195 -> 0 | AM214: ='Energy Uses'!KJ195 -> 0 | AN214: ='Energy Uses'!KI195 -> 0 | AO214: ='Energy Uses'!KH195 -> 0 | AP214: ='Energy Uses'!KG195 -> 0 | AQ214: ='Energy Uses'!KF195 -> 0 | AR214: ='Energy Uses'!KE195 -> 0 | AS214: ='Energy Uses'!KD195 -> 0 | AT214: ='Energy Uses'!KC195 -> 0 | AU214: ='Energy Uses'!KB195 -> 0 | AV214: ='Energy Uses'!KA195 -> 0 | AW214: ='Energy Uses'!JZ195 -> 0 | AX214: ='Energy Uses'!JY195 -> 0 | AY214: ='Energy Uses'!JX195 -> 0 | AZ214: ='Energy Uses'!JW195 -> 0 | BA214: ='Energy Uses'!JV195 -> 0 | BB214: ='Energy Uses'!JU195 -> 0 | BC214: ='Energy Uses'!JT195 -> 0 | BD214: ='Energy Uses'!JS195 -> 0 | BE214: ='Energy Uses'!JR195 -> 0 | BF214: ='Energy Uses'!JQ195 -> 0 | BG214: ='Energy Uses'!JP195 -> 0 | BH214: ='Energy Uses'!JO195 -> 0 | BI214: ='Energy Uses'!JN195 -> 0 | BJ214: ='Energy Uses'!JM195 -> 0
AG215: ='Energy Uses'!M196 -> FALSE | AH215: 0 | AI215: 0 | AJ215: 8 | AK215: ='Energy Uses'!C196 -> 0 | AL215: ='Energy Uses'!KK196 -> 0 | AM215: ='Energy Uses'!KJ196 -> 0 | AN215: ='Energy Uses'!KI196 -> 0 | AO215: ='Energy Uses'!KH196 -> 0 | AP215: ='Energy Uses'!KG196 -> 0 | AQ215: ='Energy Uses'!KF196 -> 0 | AR215: ='Energy Uses'!KE196 -> 0 | AS215: ='Energy Uses'!KD196 -> 0 | AT215: ='Energy Uses'!KC196 -> 0 | AU215: ='Energy Uses'!KB196 -> 0 | AV215: ='Energy Uses'!KA196 -> 0 | AW215: ='Energy Uses'!JZ196 -> 0 | AX215: ='Energy Uses'!JY196 -> 0 | AY215: ='Energy Uses'!JX196 -> 0 | AZ215: ='Energy Uses'!JW196 -> 0 | BA215: ='Energy Uses'!JV196 -> 0 | BB215: ='Energy Uses'!JU196 -> 0 | BC215: ='Energy Uses'!JT196 -> 0 | BD215: ='Energy Uses'!JS196 -> 0 | BE215: ='Energy Uses'!JR196 -> 0 | BF215: ='Energy Uses'!JQ196 -> 0 | BG215: ='Energy Uses'!JP196 -> 0 | BH215: ='Energy Uses'!JO196 -> 0 | BI215: ='Energy Uses'!JN196 -> 0 | BJ215: ='Energy Uses'!JM196 -> 0
... 183 more rows

Sheet Main
A1: DOE Advanced Manufacturing Office | J1: QUESTIONS, COMMENTS, or ISSUES
A2: =" Energy Footprint "&"[v"&version&"]" -> Energy Footprint [v1.1] | J2: email: eGuidefeedback@ee.doe.gov
A3: Developed for the DOE Advanced Manufacturing Office
B4: Description
B5: The Energy Footprint tracks energy consumption by source, factors affecting to energy consumption, and specific energy uses on a monthly basis for 1 or multiple years.
P6: introtoggle= | Q6: FALSE
D8: Plant Name
D9: Additional Details
C11: Worksheets (click to goto)
D12: Energy Consumption | E12: =HYPERLINK("#'Energy Consumption'!A1","Tables") -> Tables | F12: =HYPERLINK("#'EC Charts'!A1","Charts") -> Charts | G12: =HYPERLINK("#'EC-RV'!A1","EC vs RV Charts") -> EC vs RV Charts | J12: First Month | K12: Jan
D13: Relevant Variables | E13: =HYPERLINK("#'Relevant Variables'!A1","Tables") -> Tables | F13: =HYPERLINK("#'RV Charts'!A1","Charts") -> Charts | J13: Current Year* | K13: 2015 | L13: *of first month
D14: Energy Uses | E14: =HYPERLINK("#'Energy Uses'!A1","Tables") -> Tables | F14: =HYPERLINK("#'EU Charts'!A1","Charts") -> Charts | J14: Number of Years | K14: 3
D15: EnPI Table | E15: =HYPERLINK("#'EnPI Table'!A1","Table") -> Table
B17: Select Energy Sources | I17: Select Relevant Variables Tracked
B18: Select | C18: Type | E18: Units | G18: # Used | I18: Select | J18: Type | L18: Units | M18: # Used | O18: Selected | P18: CheckEnabled | R18: Name | S18: Unit | T18: CostCode | U18: UsageCode | W18: Energy Sources Selected | AA18: Energy_Units
B19: locked | C19: Electricity | E19: kWh site | G19: =COUNTIF(EnergySourcesSelected,"="&R19) -> 1 | I19: locked | J19: Production | L19: count | M19: =COUNTIF(RelatedFactorsSelected,"="&R43) -> 0 | O19: TRUE | P19: =IF(G19,FALSE,TRUE) -> FALSE | Q19: =IF(O19,Q18+1,Q18) -> 1 | R19: =C19 -> Electricity | S19: =E19 -> kWh site | T19: ECcost | U19: ECusage | V19: 1 | W19: =IFERROR(VLOOKUP(V19,$Q$19:$R$35,2,),) -> Electricity | AA19: none | AB19: EOcost | AC19: none | AD19: 0
B20: locked | C20: Electricity Demand | E20: kW | G20: =COUNTIF(EnergySourcesSelected,"="&R20) -> 0 | I20: locked | J20: Heating Degree Days | L20: HDD | M20: =COUNTIF(RelatedFactorsSelected,"="&R44) -> 1 | O20: TRUE | P20: =IF(G20,FALSE,TRUE) -> TRUE | Q20: 2 | R20: Electricity Demand | S20: =E20 -> kW | T20: ECcost | U20: ECdemand | V20: 2 | W20: Electricity Demand | AA20: kWh site | AB20: ECcost | AC20: ECusage | AD20: =J36 -> 0.01022843505
B21: locked | C21: Electricity Fees | E21: none | G21: 0 | I21: locked | J21: Cooling Degree Days | L21: CDD | M21: =COUNTIF(RelatedFactorsSelected,"="&R45) -> 0 | O21: TRUE | P21: TRUE | Q21: =IF(O21,Q20+1,Q20) -> 3 | R21: Electricity Fees | S21: none | T21: ECcost | U21: ECnone | V21: 3 | W21: Electricity Fees | AA21: Therm | AB21: EOcost | AC21: EOusage | AD21: 0.1
B22: locked | C22: Natural Gas | E22: Dtherm | G22: 1 | I22: locked | J22: Customers Served | L22: count | M22: 0 | O22: TRUE | P22: FALSE | Q22: 4 | R22: Natural Gas | S22: Dtherm | T22: E2cost | U22: E2usage | V22: 4 | W22: Natural Gas | AA22: Dtherm | AB22: EOcost | AC22: EOusage | AD22: =J38 -> 1
B23: locked | C23: LPG | E23: MMBtu | G23: 0 | I23: locked | J23: Production Hours | L23: hours | M23: 0 | O23: TRUE | P23: TRUE | Q23: 5 | R23: LPG | S23: MMBtu | T23: EOcost | U23: EOusage | V23: 5 | W23: LPG | AA23: MMBtu | AB23: EOcost | AC23: EOusage | AD23: =J39 -> 1
B24: locked | C24: #1 Fuel Oil | E24: MMBtu | G24: 0 | I24: locked | J24: Facility Operating Hours | L24: hours | M24: 0 | O24: FALSE | P24: TRUE | Q24: 5 | R24: #1 Fuel Oil | S24: MMBtu | T24: EOcost | U24: EOusage | V24: 6 | W24: 0 | AA24: GJ | AB24: EOcost | AC24: EOusage | AD24: =J40 -> 0.947086289
B25: locked | C25: #2 Fuel Oil | E25: MMBtu | G25: 0 | I25: locked | J25: Water Usage | L25: Tgal | M25: 0 | O25: FALSE | P25: TRUE | Q25: 5 | R25: #2 Fuel Oil | S25: MMBtu | T25: EOcost | U25: EOusage | V25: 7 | W25: 0
B26: locked | C26: #4 Fuel Oil | E26: MMBtu | G26: 0 | I26: locked | J26: Occupancy | L26: count | M26: 0 | O26: FALSE | P26: TRUE | Q26: 5 | R26: #4 Fuel Oil | S26: MMBtu | T26: EOcost | U26: EOusage | V26: 8 | W26: 0
B27: locked | C27: #6 Fuel Oil | E27: MMBtu | G27: 0 | I27: locked | J27: Occupancy | L27: misc | M27: =COUNTIF(RelatedFactorsSelected,"="&R51) -> 0 | O27: FALSE | P27: TRUE | Q27: 5 | R27: #6 Fuel Oil | S27: MMBtu | T27: EOcost | U27: EOusage | V27: 9 | W27: 0
B28: locked | C28: Coal | E28: MMBtu | G28: 0 | I28: locked | J28: custom 2 (edit) | L28: misc | M28: 0 | O28: FALSE | P28: TRUE | Q28: 5 | R28: Coal | S28: MMBtu | T28: EOcost | U28: EOusage | V28: 10 | W28: 0
B29: locked | C29: Wood | E29: MMBtu | G29: 0 | I29: locked | J29: custom 3 (edit) | L29: misc | M29: 0 | O29: FALSE | P29: TRUE | Q29: 5 | R29: Wood | S29: MMBtu | T29: EOcost | U29: EOusage | V29: 11 | W29: 0
B30: locked | C30: Paper | E30: MMBtu | G30: 0 | I30: locked | J30: custom 4 (edit) | L30: misc | M30: 0 | O30: FALSE | P30: TRUE | Q30: 5 | R30: Paper | S30: MMBtu | T30: EOcost | U30: EOusage | V30: 12 | W30: 0
B31: locked | C31: Other Gas | E31: MMBtu | G31: 0 | I31: locked | J31: custom 5 (edit) | L31: misc | M31: 0 | O31: FALSE | P31: TRUE | Q31: 5 | R31: Other Gas | S31: MMBtu | T31: EOcost | U31: EOusage | V31: 13 | W31: 0
B32: locked | C32: Other Energy | E32: MMBtu | G32: 0 | I32: * used Related Factors cannot be unselected | O32: FALSE | P32: TRUE | Q32: 5 | R32: Other Energy | S32: MMBtu | T32: EOcost | U32: EOusage | V32: 14 | W32: 0
B33: locked | C33: custom 1 (edit) | E33: none | G33: 0 | O33: FALSE | P33: TRUE | Q33: 5 | R33: ="C1: "&C33 -> C1: custom 1 (edit) | S33: none | T33: =VLOOKUP(S33,$AA$19:$AC$30,2,) -> EOcost | U33: =VLOOKUP(S33,$AA$19:$AC$30,3,) -> none | V33: 15 | W33: 0
B34: locked | C34: custom 2 (edit) | E34: MMBtu | G34: 0 | J34: MMBtu (primary) | O34: FALSE | P34: TRUE | Q34: 5 | R34: ="C2: "&C34 -> C2: custom 2 (edit) | S34: MMBtu | T34: =VLOOKUP(S34,$AA$19:$AC$30,2,) -> EOcost | U34: =VLOOKUP(S34,$AA$19:$AC$30,3,) -> EOusage | V34: 16 | W34: 0
B35: locked | C35: custom 3 (edit) | E35: none | G35: 0 | O35: FALSE | P35: TRUE | Q35: 5 | R35: ="C3: "&C35 -> C3: custom 3 (edit) | S35: none | T35: =VLOOKUP(S35,$AA$19:$AC$30,2,) -> EOcost | U35: =VLOOKUP(S35,$AA$19:$AC$30,3,) -> none | V35: 17 | W35: 0
B36: * active Energy Sources cannot be unselected | I36: ="1 "&AA20&" = " -> 1 kWh site = | J36: =1/293.3*3 -> 0.01022843505 | K36: FOR REFERENCE: These energy conversion factors are used only to calculate the total primary energy comsumption and are not otherwise used.
I37: ="1 "&AA21&" = " -> 1 Therm = | J37: 0.1
I38: ="1 "&AA22&" = " -> 1 Dtherm = | J38: 1
C39: =" version:" -> version: | D39: =version -> 1.1 | I39: ="1 "&AA23&" = " -> 1 MMBtu = | J39: 1
C40: build date: | D40: =buildDate -> 2016.04.24 | I40: ="1 "&AA24&" = " -> 1 GJ = | J40: =1/1.05587 -> 0.947086289
O42: Selected | P42: CheckEnabled | R42: RelatedFactorUnits | W42: Related Factors Selected | AA42: Prod_Units
O43: TRUE | P43: =IF(M19,FALSE,TRUE) -> TRUE | Q43: =IF(O43,Q42+1,Q42) -> 1 | R43: =J19 -> Production | S43: =L19 -> count | V43: 1 | W43: =IFERROR(VLOOKUP(V43,$Q$43:$R$55,2,),) -> Production | AA43: count
O44: TRUE | P44: =IF(M20,FALSE,TRUE) -> FALSE | Q44: 2 | R44: =J20 -> Heating Degree Days | S44: =L20 -> HDD | V44: 2 | W44: Heating Degree Days | AA44: tons
O45: FALSE | P45: =IF(M21,FALSE,TRUE) -> TRUE | Q45: 2 | R45: =J21 -> Cooling Degree Days | S45: =L21 -> CDD | V45: 3 | W45: 0 | AA45: kg
O46: FALSE | P46: TRUE | Q46: 2 | R46: Customers Served | S46: count | V46: 4 | W46: 0 | AA46: Tgal
O47: FALSE | P47: TRUE | Q47: 2 | R47: Production Hours | S47: hours | V47: 5 | W47: 0 | AA47: Mgal
O48: FALSE | P48: TRUE | Q48: 2 | R48: Facility Operating Hours | S48: hours | V48: 6 | W48: 0 | AA48: hours
O49: FALSE | P49: TRUE | Q49: 2 | R49: Water Usage | S49: Tgal | V49: 7 | W49: 0 | AA49: misc
O50: FALSE | P50: TRUE | Q50: 2 | R50: Occupancy | S50: count | V50: 8 | W50: 0 | AA50: pieces
O51: FALSE | P51: TRUE | Q51: 2 | R51: ="C1: "&J27 -> C1: Occupancy | S51: misc | V51: 9 | W51: 0
O52: FALSE | P52: TRUE | Q52: 2 | R52: ="C2: "&J28 -> C2: custom 2 (edit) | S52: misc | V52: 10 | W52: 0
O53: FALSE | P53: TRUE | Q53: 2 | R53: ="C3: "&J29 -> C3: custom 3 (edit) | S53: misc | V53: 11 | W53: 0
O54: FALSE | P54: TRUE | Q54: 2 | R54: ="C4: "&J30 -> C4: custom 4 (edit) | S54: misc | V54: 12 | W54: 0
O55: FALSE | P55: TRUE | Q55: 2 | R55: ="C5: "&J31 -> C5: custom 5 (edit) | S55: misc | V55: 13 | W55: 0

Sheet Energy Consumption
A1: DOE Advanced Manufacturing Office
A2: Energy Footprint - ENERGY CONSUMPTION | T2: Source | U2: Year | V2: UnitCost | W2: Visible
W3: TRUE
B4: Tracked Energy Sources | G4: Notes (to edit notes, follow the "goto" link) | W4: TRUE
B5: 1 | C5: Electricity | F5: =IF(U5,"goto","") -> goto | G5: =IF(AND(U5,INDIRECT("G"&S5)<>""),INDIRECT("G"&S5),"") -> Location, day of month read, etc | H5: =INDIRECT("G"&I5) ->  | S5: 28 | T5: 1 | U5: =W6 -> TRUE | W5: TRUE | Y5: =VLOOKUP(C5,EnergyUnits,3,) -> ECcost | Z5: =VLOOKUP(C5,EnergyUnits,4,) -> ECusage | AC5: TOTAL Energy | AD5: 1 | AE5: =AC5 -> TOTAL Energy | AF5: MMBtu | AG5: =AE5&" Consumption" -> TOTAL Energy Consumption | AH5: 1 | AI5: =IFERROR(VLOOKUP(AH5,$AD$5:$AE$29,2,),) -> TOTAL Energy | AJ5: =IFERROR(VLOOKUP(AH5,$AD$5:$AF$29,3,),) -> MMBtu | AK5: 1 | AL5: Units Costs Status
B6: 2 | C6: Natural Gas | F6: =IF(U6,"goto","") -> goto | G6: =IF(AND(U6,INDIRECT("G"&S6)<>""),INDIRECT("G"&S6),"") -> Location, day of month read, etc | H6: =INDIRECT("G"&I6) ->  | I6: =INDIRECT("G"&J6) ->  | J6: =INDIRECT("G"&K6) ->  | K6: =INDIRECT("G"&L6) ->  | L6: =INDIRECT("G"&M6) ->  | M6: =INDIRECT("G"&N6) ->  | N6: =INDIRECT("G"&O6) ->  | O6: =INDIRECT("G"&P6) ->  | P6: =INDIRECT("G"&Q6) ->  | Q6: =INDIRECT("G"&R6) ->  | S6: =S5+82 -> 110 | T6: 2 | U6: =W7 -> TRUE | W6: =IF(NOT(W5),FALSE,C5<>"") -> TRUE | Y6: E2cost | Z6: E2usage | AB6: =COUNTIF(AB10:AB29,"=Electricity*") -> 1 | AC6: TOTAL Electricity | AD6: =IF(AB6>1,AD5+1,AD5) -> 1 | AE6: =AC6 -> TOTAL Electricity | AF6: kWh site | AG6: =AE6&" Consumption" -> TOTAL Electricity Consumption | AH6: 2 | AI6: --------------------------- | AJ6: =IFERROR(VLOOKUP(AH6,$AD$5:$AF$29,3,),) -> 0 | AK6: 2 | AL6: Show | AM6: SHOW Unit Costs
B7: 3 | S7: 192 | T7: 3 | U7: FALSE | W7: TRUE | AB7: =COUNTIF(AB10:AB29,"=Natural Gas") -> 1 | AC7: TOTAL Natural Gas | AD7: =IF(AB7>1,AD6+1,AD6) -> 1 | AE7: TOTAL Natural Gas | AF7: Dtherm | AG7: =AE7&" Consumption" -> TOTAL Natural Gas Consumption | AH7: 3 | AI7: 1: Electricity | AJ7: kWh site | AK7: 3 | AL7: Hide | AM7: HIDE Unit Costs
B8: 4 | S8: 274 | T8: 4 | U8: FALSE | W8: FALSE | AB8: =COUNTIF(AC10:AC29,"<>0")-SUM(AB6:AB7) -> 0 | AC8: TOTAL Other Energy | AD8: =IF(AB8>1,AD7+1,AD7) -> 1 | AE8: TOTAL Other Energy | AF8: MMBtu | AG8: =AE8&" Consumption" -> TOTAL Other Energy Consumption | AH8: 4 | AI8: 2: Natural Gas | AJ8: Dtherm | AK8: 4
B9: 5 | S9: 356 | T9: 5 | U9: FALSE | W9: FALSE | AC9: --------------------------- | AD9: =AD8+1 -> 2 | AE9: =AC9 -> --------------------------- | AH9: 5 | AI9: 0 | AJ9: 0 | AK9: 5 | AL9: FALSE | AM9: =IF(UnitCostStatus,AM7,AM6) -> SHOW Unit Costs
B10: 6 | S10: 438 | T10: 6 | U10: FALSE | W10: FALSE | AB10: =IF(U5,C5,"") -> Electricity | AC10: =IF(U5,B5&": "&C5,0) -> 1: Electricity | AD10: =IF(AC10<>0,AD9+1,AD9) -> 3 | AE10: 1: Electricity | AF10: =IFERROR(VLOOKUP(AB10,EnergyUnits,2,),"none") -> kWh site | AG10: =AE10 -> 1: Electricity | AH10: 6 | AI10: 0 | AJ10: 0 | AK10: 6
B11: 7 | S11: 520 | T11: 7 | U11: FALSE | W11: FALSE | AB11: Natural Gas | AC11: 2: Natural Gas | AD11: 4 | AE11: 2: Natural Gas | AF11: Dtherm | AG11: =AE11 -> 2: Natural Gas | AH11: 7 | AI11: 0 | AJ11: 0 | AK11: 7
B12: 8 | S12: 602 | T12: 8 | U12: FALSE | W12: FALSE | AC12: 0 | AD12: 4 | AE12: 0 | AF12: none | AG12: 0 | AH12: 8 | AI12: 0 | AJ12: 0 | AK12: 8
B13: 9 | S13: 684 | T13: 9 | U13: FALSE | W13: FALSE | AC13: 0 | AD13: 4 | AE13: 0 | AF13: none | AG13: 0 | AH13: 9 | AI13: 0 | AJ13: 0 | AK13: 9
B14: 10 | S14: 766 | T14: 10 | U14: FALSE | W14: FALSE | AC14: 0 | AD14: 4 | AE14: 0 | AF14: none | AG14: 0 | AH14: 10 | AI14: 0 | AJ14: 0 | AK14: 10
B15: 11 | S15: 848 | T15: 11 | U15: FALSE | W15: FALSE | AC15: 0 | AD15: 4 | AE15: 0 | AF15: none | AG15: 0 | AH15: 11 | AI15: 0 | AJ15: 0 | AK15: 11
B16: 12 | S16: 930 | T16: 12 | U16: FALSE | W16: FALSE | AC16: 0 | AD16: 4 | AE16: 0 | AF16: none | AG16: 0 | AH16: 12 | AI16: 0 | AJ16: 0 | AK16: 12
B17: 13 | S17: 1012 | T17: 13 | U17: FALSE | W17: FALSE | AC17: 0 | AD17: 4 | AE17: 0 | AF17: none | AG17: 0 | AH17: 13 | AI17: 0 | AJ17: 0 | AK17: 13
B18: 14 | S18: 1094 | T18: 14 | U18: FALSE | W18: FALSE | AC18: 0 | AD18: 4 | AE18: 0 | AF18: none | AG18: 0 | AH18: 14 | AI18: 0 | AJ18: 0 | AK18: 14
B19: 15 | S19: 1176 | T19: 15 | U19: FALSE | W19: FALSE | AC19: 0 | AD19: 4 | AE19: 0 | AF19: none | AG19: 0 | AH19: 15 | AI19: 0 | AJ19: 0 | AK19: 15
B20: 16 | S20: 1258 | T20: 16 | U20: FALSE | W20: FALSE | AC20: 0 | AD20: 4 | AE20: 0 | AF20: none | AG20: 0 | AH20: 16 | AI20: 0 | AJ20: 0 | AK20: 16
B21: 17 | S21: 1340 | T21: 17 | U21: FALSE | W21: FALSE | AC21: 0 | AD21: 4 | AE21: 0 | AF21: none | AG21: 0 | AH21: 17 | AI21: 0 | AJ21: 0 | AK21: 17
B22: 18 | S22: 1422 | T22: 18 | U22: FALSE | W22: FALSE | AC22: 0 | AD22: 4 | AE22: 0 | AF22: none | AG22: 0 | AH22: 18 | AI22: 0 | AJ22: 0 | AK22: 18
B23: 19 | S23: 1504 | T23: 19 | U23: FALSE | W23: FALSE | AC23: 0 | AD23: 4 | AE23: 0 | AF23: none | AG23: 0 | AH23: 19 | AI23: 0 | AJ23: 0 | AK23: 19
B24: 20 | S24: 1586 | T24: 20 | U24: =X25 -> FALSE | W24: FALSE | AC24: 0 | AD24: 4 | AE24: 0 | AF24: none | AG24: 0 | AH24: 20 | AI24: 0 | AJ24: 0 | AK24: 20
C25: *Select Another Energy Source Type to Add | W25: =NOT(X25) -> TRUE | X25: =IF(NOT(W24),FALSE,C24<>"") -> FALSE | AC25: 0 | AD25: 4 | AE25: 0 | AF25: none | AG25: 0 | AH25: 21 | AI25: 0 | AJ25: 0
W26: =NOT(W25) -> FALSE | AC26: 0 | AD26: 4 | AE26: 0 | AF26: none | AG26: 0 | AH26: 22 | AI26: 0 | AJ26: 0
B27: Energy Source | F27: UNIT | G27: Notes | T27: =VLOOKUP(B28,$T$5:$U$24,2,) -> TRUE | W27: =AND(S27:V27) -> TRUE | AC27: 0 | AD27: 4 | AE27: 0 | AF27: none | AG27: 0 | AH27: 23 | AI27: 0 | AJ27: 0
A28: back to top | B28: 1 | C28: =VLOOKUP(B28,$B$5:$F$24,2,) -> Electricity | F28: =IFERROR(VLOOKUP(C28,EnergyUnits,2,),"none") -> kWh site | G28: Location, day of month read, etc | T28: =T27 -> TRUE | W28: TRUE | AC28: 0 | AD28: 4 | AE28: 0 | AF28: none | AG28: 0 | AH28: 24 | AI28: 0 | AJ28: 0
T29: =T28 -> TRUE | W29: TRUE | AC29: 0 | AD29: 4 | AE29: 0 | AF29: none | AG29: 0 | AH29: 25 | AI29: 0 | AJ29: 0
D30: =Support!$L$5 -> Jan | E30: =Support!$L$6 -> Feb | F30: =Support!$L$7 -> Mar | G30: =Support!$L$8 -> Apr | H30: =Support!$L$9 -> May | I30: =Support!$L$10 -> Jun | J30: =Support!$L$11 -> Jul | K30: =Support!$L$12 -> Aug | L30: =Support!$L$13 -> Sep | M30: =Support!$L$14 -> Oct | N30: =Support!$L$15 -> Nov | O30: =Support!$L$16 -> Dec | Q30: YEAR | T30: =T29 -> TRUE | W30: TRUE
B31: =FinalYear -> 2029 | C31: $$ | Q31: =SUM(D31:O31) -> 0 | T31: TRUE | U31: =VLOOKUP(B31,ActiveYears,2,) -> FALSE | W31: FALSE
C32: Qty | Q32: 0 | S32: =IF(F28="none",FALSE,TRUE) -> TRUE | T32: TRUE | U32: =U31 -> FALSE | W32: FALSE
B33: =B31-1 -> 2028 | C33: $$ | Q33: 0 | T33: TRUE | U33: =VLOOKUP(B33,ActiveYears,2,) -> FALSE | W33: FALSE
C34: Qty | Q34: 0 | S34: =S32 -> TRUE | T34: TRUE | U34: =U33 -> FALSE | W34: FALSE
B35: =B33-1 -> 2027 | C35: $$ | Q35: 0 | T35: TRUE | U35: =VLOOKUP(B35,ActiveYears,2,) -> FALSE | W35: FALSE
C36: Qty | Q36: 0 | S36: =S34 -> TRUE | T36: TRUE | U36: =U35 -> FALSE | W36: FALSE
B37: =B35-1 -> 2026 | C37: $$ | Q37: 0 | T37: TRUE | U37: =VLOOKUP(B37,ActiveYears,2,) -> FALSE | W37: FALSE
C38: Qty | Q38: 0 | S38: =S36 -> TRUE | T38: TRUE | U38: =U37 -> FALSE | W38: FALSE
B39: =B37-1 -> 2025 | C39: $$ | Q39: 0 | T39: TRUE | U39: =VLOOKUP(B39,ActiveYears,2,) -> FALSE | W39: FALSE
C40: Qty | Q40: 0 | S40: =S38 -> TRUE | T40: TRUE | U40: =U39 -> FALSE | W40: FALSE
B41: =B39-1 -> 2024 | C41: $$ | Q41: 0 | T41: TRUE | U41: =VLOOKUP(B41,ActiveYears,2,) -> FALSE | W41: FALSE
C42: Qty | Q42: 0 | S42: =S40 -> TRUE | T42: TRUE | U42: =U41 -> FALSE | W42: FALSE
B43: =B41-1 -> 2023 | C43: $$ | Q43: =SUM(D43:O43) -> 0 | T43: TRUE | U43: =VLOOKUP(B43,ActiveYears,2,) -> FALSE | W43: FALSE
C44: Qty | Q44: 0 | S44: =S42 -> TRUE | T44: TRUE | U44: =U43 -> FALSE | W44: FALSE
B45: =B43-1 -> 2022 | C45: $$ | Q45: 0 | T45: TRUE | U45: =VLOOKUP(B45,ActiveYears,2,) -> FALSE | W45: FALSE
C46: Qty | Q46: 0 | S46: =S44 -> TRUE | T46: TRUE | U46: =U45 -> FALSE | W46: FALSE
B47: =B45-1 -> 2021 | C47: $$ | Q47: 0 | T47: TRUE | U47: =VLOOKUP(B47,ActiveYears,2,) -> FALSE | W47: FALSE
C48: Qty | Q48: 0 | S48: =S46 -> TRUE | T48: TRUE | U48: =U47 -> FALSE | W48: FALSE
B49: =B47-1 -> 2020 | C49: $$ | Q49: 0 | T49: TRUE | U49: =VLOOKUP(B49,ActiveYears,2,) -> FALSE | W49: FALSE
C50: Qty | Q50: 0 | S50: =S48 -> TRUE | T50: TRUE | U50: =U49 -> FALSE | W50: FALSE
B51: =B49-1 -> 2019 | C51: $$ | Q51: =SUM(D51:O51) -> 0 | T51: TRUE | U51: =VLOOKUP(B51,ActiveYears,2,) -> FALSE | W51: FALSE
C52: Qty | Q52: 0 | S52: =S50 -> TRUE | T52: TRUE | U52: =U51 -> FALSE | W52: FALSE
B53: =B51-1 -> 2018 | C53: $$ | Q53: 0 | T53: TRUE | U53: =VLOOKUP(B53,ActiveYears,2,) -> FALSE | W53: =AND(S53:V53) -> FALSE
C54: Qty | Q54: 0 | S54: =S52 -> TRUE | T54: TRUE | U54: =U53 -> FALSE | W54: FALSE
B55: =B53-1 -> 2017 | C55: $$ | Q55: 0 | T55: TRUE | U55: =VLOOKUP(B55,ActiveYears,2,) -> FALSE | W55: FALSE
C56: Qty | Q56: 0 | S56: =S54 -> TRUE | T56: TRUE | U56: =U55 -> FALSE | W56: FALSE
B57: =B55-1 -> 2016 | C57: $$ | Q57: 0 | T57: TRUE | U57: =VLOOKUP(B57,ActiveYears,2,) -> FALSE | W57: FALSE
C58: Qty | Q58: 0 | S58: =S56 -> TRUE | T58: TRUE | U58: =U57 -> FALSE | W58: FALSE
B59: =B57-1 -> 2015 | C59: $$ | D59: 18799.57 | E59: 17111.78 | F59: 23615.84 | G59: 28495.46 | H59: 24430.42 | I59: 19004.75 | J59: 14554.98 | K59: 17746.82 | L59: 21895.12 | M59: 15587.6 | N59: 16663 | O59: 18281.47 | Q59: =SUM(D59:O59) -> 236186.81 | T59: TRUE | U59: =VLOOKUP(B59,ActiveYears,2,) -> TRUE | W59: TRUE
C60: Qty | D60: 109282 | E60: 98838 | F60: 123900 | G60: 144960 | H60: 128352 | I60: 104215 | J60: 83224 | K60: 106890 | L60: 119200 | M60: 95445 | N60: 93670 | O60: 102588 | Q60: 1310564 | S60: =S58 -> TRUE | T60: TRUE | U60: =U59 -> TRUE | W60: TRUE
B61: =B59-1 -> 2014 | C61: $$ | D61: 12292.81 | E61: 21077.28 | F61: 24305.75 | G61: 28685.28 | H61: 24219.36 | I61: 18381.3 | J61: 14477.05 | K61: 17243.23 | L61: 17742.78 | M61: 21551.04 | N61: 16666.56 | O61: 17028 | Q61: 233670.44 | T61: TRUE | U61: =VLOOKUP(B61,ActiveYears,2,) -> TRUE | W61: TRUE
C62: Qty | D62: 67776 | E62: 113500 | F62: 131047 | G62: 151925 | H62: 133400 | I62: 92640 | J62: 84348 | K62: 90889 | L62: 100400 | M62: 121824 | N62: 93394 | O62: 88896 | Q62: 1270039 | S62: =S60 -> TRUE | T62: TRUE | U62: =U61 -> TRUE | W62: TRUE
B63: =B61-1 -> 2013 | C63: $$ | D63: 13541.3 | E63: 15088 | F63: 25365 | G63: 22205.3 | H63: 22526.4 | I63: 18001.17 | J63: 18395.8 | K63: 13787.62 | L63: 22373.4 | M63: 15670.2 | N63: 18955.68 | O63: 17884.68 | Q63: 223794.55 | T63: TRUE | U63: =VLOOKUP(B63,ActiveYears,2,) -> TRUE | W63: TRUE
C64: Qty | D64: 81480 | E64: 80640 | F64: 149600 | G64: 135975 | H64: 137072 | I64: 101178 | J64: 99372 | K64: 78106 | L64: 123930 | M64: 89991 | N64: 107565 | O64: 99200 | Q64: 1284109 | S64: =S62 -> TRUE | T64: TRUE | U64: =U63 -> TRUE | W64: TRUE
B65: =B63-1 -> 2012 | C65: $$ | Q65: 0 | T65: TRUE | U65: =VLOOKUP(B65,ActiveYears,2,) -> FALSE | W65: FALSE
C66: Qty | Q66: 0 | S66: =S64 -> TRUE | T66: TRUE | U66: =U65 -> FALSE | W66: FALSE
B67: =B65-1 -> 2011 | C67: $$ | Q67: 0 | T67: TRUE | U67: =VLOOKUP(B67,ActiveYears,2,) -> FALSE | W67: FALSE
C68: Qty | Q68: 0 | S68: =S66 -> TRUE | T68: TRUE | U68: =U67 -> FALSE | W68: FALSE
B69: =B67-1 -> 2010 | C69: $$ | Q69: 0 | T69: TRUE | U69: =VLOOKUP(B69,ActiveYears,2,) -> FALSE | W69: FALSE
C70: Qty | Q70: 0 | S70: =S68 -> TRUE | T70: TRUE | U70: =U69 -> FALSE | W70: FALSE
B71: =B69-1 -> 2009 | C71: $$ | Q71: 0 | T71: TRUE | U71: =VLOOKUP(B71,ActiveYears,2,) -> FALSE | W71: FALSE
C72: Qty | Q72: 0 | S72: =S70 -> TRUE | T72: TRUE | U72: =U71 -> FALSE | W72: FALSE
B73: =B71-1 -> 2008 | C73: $$ | Q73: 0 | T73: TRUE | U73: =VLOOKUP(B73,ActiveYears,2,) -> FALSE | W73: =AND(S73:V73) -> FALSE
C74: Qty | Q74: 0 | S74: =S72 -> TRUE | T74: TRUE | U74: =U73 -> FALSE | W74: FALSE
B75: =B73-1 -> 2007 | C75: $$ | Q75: 0 | T75: TRUE | U75: =VLOOKUP(B75,ActiveYears,2,) -> FALSE | W75: FALSE
C76: Qty | Q76: 0 | S76: =S74 -> TRUE | T76: TRUE | U76: =U75 -> FALSE | W76: FALSE
B77: =B75-1 -> 2006 | C77: $$ | Q77: 0 | T77: TRUE | U77: =VLOOKUP(B77,ActiveYears,2,) -> FALSE | W77: FALSE
C78: Qty | Q78: 0 | S78: =S76 -> TRUE | T78: TRUE | U78: =U77 -> FALSE | W78: FALSE
B79: =B77-1 -> 2005 | C79: $$ | Q79: =SUM(D79:O79) -> 0 | T79: TRUE | U79: =VLOOKUP(B79,ActiveYears,2,) -> FALSE | W79: FALSE
C80: Qty | Q80: =SUM(D80:O80) -> 0 | S80: =S78 -> TRUE | T80: TRUE | U80: =U79 -> FALSE | W80: FALSE
T81: =T52 -> TRUE | W81: =AND(S81:V81) -> TRUE
B82: Per Unit Costs | C82: =B31 -> 2029 | D82: =IF(D32<>0,D31/D32,"") ->  | Q82: =IF(Q32<>0,Q31/Q32,"") ->  | S82: =S60 -> TRUE | T82: =T81 -> TRUE | U82: =VLOOKUP(C82,ActiveYears,2,) -> FALSE | V82: =UnitCostStatus -> FALSE | W82: FALSE
C83: =C82-1 -> 2028 | D83: =IF(D34<>0,D33/D34,"") ->  | Q83: =IF(Q34<>0,Q33/Q34,"") ->  | S83: =S82 -> TRUE | T83: TRUE | U83: FALSE | V83: =V82 -> FALSE | W83: FALSE
C84: =C83-1 -> 2027 | D84: =IF(D36<>0,D35/D36,"") ->  | Q84: =IF(Q36<>0,Q35/Q36,"") ->  | S84: TRUE | T84: TRUE | U84: FALSE | V84: =V83 -> FALSE | W84: FALSE
C85: 2026 | D85: =IF(D38<>0,D37/D38,"") ->  | Q85: =IF(Q38<>0,Q37/Q38,"") ->  | S85: TRUE | T85: TRUE | U85: FALSE | V85: =V84 -> FALSE | W85: FALSE
C86: 2025 | D86: =IF(D40<>0,D39/D40,"") ->  | Q86: =IF(Q40<>0,Q39/Q40,"") ->  | S86: TRUE | T86: TRUE | U86: FALSE | V86: FALSE | W86: FALSE
C87: 2024 | D87: =IF(D42<>0,D41/D42,"") ->  | Q87: =IF(Q42<>0,Q41/Q42,"") ->  | S87: TRUE | T87: TRUE | U87: FALSE | V87: FALSE | W87: FALSE
C88: 2023 | D88: =IF(D44<>0,D43/D44,"") ->  | Q88: =IF(Q44<>0,Q43/Q44,"") ->  | S88: TRUE | T88: TRUE | U88: FALSE | V88: FALSE | W88: FALSE
C89: 2022 | D89: =IF(D46<>0,D45/D46,"") ->  | Q89: =IF(Q46<>0,Q45/Q46,"") ->  | S89: TRUE | T89: TRUE | U89: FALSE | V89: FALSE | W89: FALSE
C90: 2021 | D90: =IF(D48<>0,D47/D48,"") ->  | Q90: =IF(Q48<>0,Q47/Q48,"") ->  | S90: TRUE | T90: TRUE | U90: FALSE | V90: FALSE | W90: FALSE
C91: 2020 | D91: =IF(D50<>0,D49/D50,"") ->  | Q91: =IF(Q50<>0,Q49/Q50,"") ->  | S91: TRUE | T91: TRUE | U91: FALSE | V91: FALSE | W91: FALSE
C92: 2019 | D92: =IF(D52<>0,D51/D52,"") ->  | Q92: =IF(Q52<>0,Q51/Q52,"") ->  | S92: TRUE | T92: TRUE | U92: FALSE | V92: FALSE | W92: FALSE
C93: 2018 | D93: =IF(D54<>0,D53/D54,"") ->  | Q93: =IF(Q54<>0,Q53/Q54,"") ->  | S93: TRUE | T93: TRUE | U93: FALSE | V93: FALSE | W93: =AND(S93:V93) -> FALSE
C94: 2017 | D94: =IF(D56<>0,D55/D56,"") ->  | Q94: =IF(Q56<>0,Q55/Q56,"") ->  | S94: TRUE | T94: TRUE | U94: FALSE | V94: FALSE | W94: FALSE
C95: 2016 | D95: =IF(D58<>0,D57/D58,"") ->  | Q95: =IF(Q58<>0,Q57/Q58,"") ->  | S95: TRUE | T95: TRUE | U95: FALSE | V95: FALSE | W95: FALSE
C96: 2015 | D96: =IF(D60<>0,D59/D60,"") -> 0.1720280559 | E96: =IF(E60<>0,E59/E60,"") -> 0.1731295656 | F96: 0.1906040355 | G96: 0.1965746413 | H96: 0.1903392234 | I96: 0.1823609845 | J96: 0.1748892146 | K96: 0.1660288147 | L96: 0.1836838926 | M96: 0.1633149982 | N96: 0.1778904665 | O96: 0.1782028112 | Q96: =IF(Q60<>0,Q59/Q60,"") -> 0.1802176849 | S96: TRUE | T96: TRUE | U96: TRUE | V96: FALSE | W96: FALSE
C97: 2014 | D97: =IF(D62<>0,D61/D62,"") -> 0.1813740852 | E97: =IF(E62<>0,E61/E62,"") -> 0.1857029075 | F97: 0.1854735324 | G97: 0.1888121112 | H97: 0.1815544228 | I97: 0.1984164508 | J97: 0.171634775 | K97: 0.1897174576 | L97: 0.1767209163 | M97: 0.1769030733 | N97: 0.1784542904 | O97: 0.191549676 | Q97: =IF(Q62<>0,Q61/Q62,"") -> 0.1839868225 | S97: TRUE | T97: TRUE | U97: =VLOOKUP(C97,ActiveYears,2,) -> TRUE | V97: FALSE | W97: FALSE
C98: 2013 | D98: =IF(D64<>0,D63/D64,"") -> 0.1661917035 | E98: =IF(E64<>0,E63/E64,"") -> 0.1871031746 | F98: 0.169552139 | G98: 0.1633042839 | H98: 0.164339909 | I98: 0.1779158513 | J98: 0.1851205571 | K98: 0.1765244668 | L98: 0.1805325587 | M98: 0.1741307464 | N98: 0.1762253521 | O98: 0.1802891129 | Q98: =IF(Q64<>0,Q63/Q64,"") -> 0.1742800261 | S98: TRUE | T98: TRUE | U98: TRUE | V98: FALSE | W98: FALSE
C99: 2012 | D99: =IF(D66<>0,D65/D66,"") ->  | E99: =IF(E66<>0,E65/E66,"") ->  | Q99: =IF(Q66<>0,Q65/Q66,"") ->  | S99: =S98 -> TRUE | T99: TRUE | U99: FALSE | V99: FALSE | W99: FALSE
C100: 2011 | D100: =IF(D68<>0,D67/D68,"") ->  | E100: =IF(E68<>0,E67/E68,"") ->  | Q100: =IF(Q68<>0,Q67/Q68,"") ->  | S100: TRUE | T100: TRUE | U100: FALSE | V100: FALSE | W100: FALSE
C101: 2010 | D101: =IF(D70<>0,D69/D70,"") ->  | E101: =IF(E70<>0,E69/E70,"") ->  | Q101: =IF(Q70<>0,Q69/Q70,"") ->  | S101: TRUE | T101: TRUE | U101: FALSE | V101: FALSE | W101: FALSE
C102: 2009 | D102: =IF(D72<>0,D71/D72,"") ->  | E102: =IF(E72<>0,E71/E72,"") ->  | Q102: =IF(Q72<>0,Q71/Q72,"") ->  | S102: TRUE | T102: TRUE | U102: FALSE | V102: FALSE | W102: FALSE
C103: 2008 | D103: =IF(D74<>0,D73/D74,"") ->  | E103: =IF(E74<>0,E73/E74,"") ->  | Q103: =IF(Q74<>0,Q73/Q74,"") ->  | S103: TRUE | T103: TRUE | U103: FALSE | V103: FALSE | W103: =AND(S103:V103) -> FALSE
C104: 2007 | D104: =IF(D76<>0,D75/D76,"") ->  | E104: =IF(E76<>0,E75/E76,"") ->  | Q104: =IF(Q76<>0,Q75/Q76,"") ->  | S104: TRUE | T104: TRUE | U104: FALSE | V104: FALSE | W104: FALSE
C105: 2006 | D105: =IF(D78<>0,D77/D78,"") ->  | E105: =IF(E78<>0,E77/E78,"") ->  | Q105: =IF(Q78<>0,Q77/Q78,"") ->  | S105: TRUE | T105: TRUE | U105: FALSE | V105: FALSE | W105: FALSE
C106: 2005 | D106: =IF(D80<>0,D79/D80,"") ->  | E106: =IF(E80<>0,E79/E80,"") ->  | Q106: =IF(Q80<>0,Q79/Q80,"") ->  | S106: TRUE | T106: TRUE | U106: FALSE | V106: FALSE | W106: FALSE
S107: =S92 -> TRUE | T107: =T92 -> TRUE | V107: =V92 -> FALSE | W107: FALSE
T108: =T107 -> TRUE | W108: TRUE
B109: Energy Source | F109: UNIT | G109: Notes | T109: =VLOOKUP(B110,$T$5:$U$24,2,) -> TRUE | W109: TRUE
A110: back to top | B110: =B28+1 -> 2 | C110: =VLOOKUP(B110,$B$5:$F$24,2,) -> Natural Gas | F110: =IFERROR(VLOOKUP(C110,EnergyUnits,2,),"none") -> Dtherm | G110: Location, day of month read, etc | T110: =T109 -> TRUE | W110: =AND(S110:V110) -> TRUE
T111: =T110 -> TRUE | W111: TRUE
D112: =Support!$L$5 -> Jan | E112: =Support!$L$6 -> Feb | F112: =Support!$L$7 -> Mar | G112: =Support!$L$8 -> Apr | H112: =Support!$L$9 -> May | I112: =Support!$L$10 -> Jun | J112: =Support!$L$11 -> Jul | K112: =Support!$L$12 -> Aug | L112: =Support!$L$13 -> Sep | M112: =Support!$L$14 -> Oct | N112: =Support!$L$15 -> Nov | O112: =Support!$L$16 -> Dec | Q112: YEAR | T112: =T111 -> TRUE | W112: TRUE
B113: =FinalYear -> 2029 | C113: $$ | Q113: =SUM(D113:O113) -> 0 | T113: TRUE | U113: =VLOOKUP(B113,ActiveYears,2,) -> FALSE | W113: FALSE
C114: Qty | Q114: 0 | S114: =IF(F110="none",FALSE,TRUE) -> TRUE | T114: TRUE | U114: =U113 -> FALSE | W114: FALSE
B115: =B113-1 -> 2028 | C115: $$ | Q115: 0 | T115: TRUE | U115: =VLOOKUP(B115,ActiveYears,2,) -> FALSE | W115: FALSE
C116: Qty | Q116: 0 | S116: =S114 -> TRUE | T116: TRUE | U116: =U115 -> FALSE | W116: FALSE
B117: =B115-1 -> 2027 | C117: $$ | Q117: 0 | T117: TRUE | U117: =VLOOKUP(B117,ActiveYears,2,) -> FALSE | W117: FALSE
C118: Qty | Q118: 0 | S118: =S116 -> TRUE | T118: TRUE | U118: =U117 -> FALSE | W118: FALSE
B119: =B117-1 -> 2026 | C119: $$ | Q119: 0 | T119: TRUE | U119: =VLOOKUP(B119,ActiveYears,2,) -> FALSE | W119: FALSE
C120: Qty | Q120: 0 | S120: =S118 -> TRUE | T120: TRUE | U120: =U119 -> FALSE | W120: FALSE
B121: =B119-1 -> 2025 | C121: $$ | Q121: 0 | T121: TRUE | U121: =VLOOKUP(B121,ActiveYears,2,) -> FALSE | W121: FALSE
C122: Qty | Q122: 0 | S122: =S120 -> TRUE | T122: TRUE | U122: =U121 -> FALSE | W122: FALSE
B123: =B121-1 -> 2024 | C123: $$ | Q123: 0 | T123: TRUE | U123: =VLOOKUP(B123,ActiveYears,2,) -> FALSE | W123: FALSE
C124: Qty | Q124: 0 | S124: =S122 -> TRUE | T124: TRUE | U124: =U123 -> FALSE | W124: FALSE
B125: =B123-1 -> 2023 | C125: $$ | Q125: 0 | T125: TRUE | U125: =VLOOKUP(B125,ActiveYears,2,) -> FALSE | W125: FALSE
C126: Qty | Q126: 0 | S126: =S124 -> TRUE | T126: TRUE | U126: =U125 -> FALSE | W126: FALSE
B127: =B125-1 -> 2022 | C127: $$ | Q127: 0 | T127: TRUE | U127: =VLOOKUP(B127,ActiveYears,2,) -> FALSE | W127: FALSE
C128: Qty | Q128: 0 | S128: =S126 -> TRUE | T128: TRUE | U128: =U127 -> FALSE | W128: FALSE
B129: =B127-1 -> 2021 | C129: $$ | Q129: 0 | T129: TRUE | U129: =VLOOKUP(B129,ActiveYears,2,) -> FALSE | W129: FALSE
C130: Qty | Q130: 0 | S130: =S128 -> TRUE | T130: TRUE | U130: =U129 -> FALSE | W130: FALSE
B131: =B129-1 -> 2020 | C131: $$ | Q131: 0 | T131: TRUE | U131: =VLOOKUP(B131,ActiveYears,2,) -> FALSE | W131: FALSE
C132: Qty | Q132: 0 | S132: =S130 -> TRUE | T132: TRUE | U132: =U131 -> FALSE | W132: FALSE
B133: =B131-1 -> 2019 | C133: $$ | Q133: 0 | T133: TRUE | U133: =VLOOKUP(B133,ActiveYears,2,) -> FALSE | W133: FALSE
C134: Qty | Q134: 0 | S134: =S132 -> TRUE | T134: TRUE | U134: =U133 -> FALSE | W134: FALSE
B135: =B133-1 -> 2018 | C135: $$ | Q135: 0 | T135: TRUE | U135: =VLOOKUP(B135,ActiveYears,2,) -> FALSE | W135: FALSE
C136: Qty | Q136: 0 | S136: =S134 -> TRUE | T136: TRUE | U136: =U135 -> FALSE | W136: FALSE
B137: =B135-1 -> 2017 | C137: $$ | Q137: 0 | T137: TRUE | U137: =VLOOKUP(B137,ActiveYears,2,) -> FALSE | W137: FALSE
C138: Qty | Q138: 0 | S138: =S136 -> TRUE | T138: TRUE | U138: =U137 -> FALSE | W138: FALSE
B139: =B137-1 -> 2016 | C139: $$ | Q139: 0 | T139: TRUE | U139: =VLOOKUP(B139,ActiveYears,2,) -> FALSE | W139: FALSE
C140: Qty | Q140: 0 | S140: =S138 -> TRUE | T140: TRUE | U140: =U139 -> FALSE | W140: FALSE
B141: =B139-1 -> 2015 | C141: $$ | D141: 9718.14 | E141: 2280.94 | F141: 1595.15 | G141: 1538.21 | H141: 1296.09 | I141: 1314.72 | J141: 3549.5 | K141: 12560.28 | L141: 15972.56 | M141: 22091.98 | N141: 26033.46 | O141: 15243.17 | Q141: 113194.2 | T141: TRUE | U141: =VLOOKUP(B141,ActiveYears,2,) -> TRUE | W141: TRUE
C142: Qty | D142: 953.5 | E142: 268.3 | F142: 204.4 | G142: 191.5 | H142: 173.8 | I142: 173.3 | J142: 342.5 | K142: 760.6 | L142: 942.7 | M142: 1277.8 | N142: 1559.4 | O142: 908.1 | Q142: 7755.9 | S142: =S140 -> TRUE | T142: TRUE | U142: =U141 -> TRUE | W142: TRUE
B143: =B141-1 -> 2014 | C143: $$ | D143: 6176.65 | E143: 3650.33 | F143: 1405.15 | G143: 1224.1 | H143: 1370.16 | I143: 1290.28 | J143: 3303.78 | K143: 10788.72 | L143: 18571.24 | M143: 22473.31 | N143: 20868.12 | O143: 16513.4 | Q143: 107635.24 | T143: TRUE | U143: =VLOOKUP(B143,ActiveYears,2,) -> TRUE | W143: TRUE
C144: Qty | D144: 613.5 | E144: 375.5 | F144: 188 | G144: 171.7 | H144: 183.3 | I144: 180.8 | J144: 410.2 | K144: 809.9 | L144: 1284.1 | M144: 2312.7 | N144: 1577.2 | O144: 1121.9 | Q144: 9228.8 | S144: =S142 -> TRUE | T144: TRUE | U144: =U143 -> TRUE | W144: TRUE
B145: =B143-1 -> 2013 | C145: $$ | D145: 7489.25 | E145: 2391.9 | F145: 2084.72 | G145: 1365.6 | H145: 1454.51 | I145: 1574.2 | J145: 2716.86 | K145: 14805.6 | L145: 15002.7 | M145: 19376.49 | N145: 21091.29 | O145: 17018.61 | Q145: 106371.73 | T145: TRUE | U145: =VLOOKUP(B145,ActiveYears,2,) -> TRUE | W145: TRUE
C146: Qty | D146: 795.6 | E146: 271.9 | F146: 252.2 | G146: 192.6 | H146: 206.7 | I146: 216.4 | J146: 336 | K146: 1588.6 | L146: 1532.4 | M146: 2065.2 | N146: 2448.6 | O146: 1535.1 | Q146: 11441.3 | S146: =S144 -> TRUE | T146: TRUE | U146: =U145 -> TRUE | W146: TRUE
B147: =B145-1 -> 2012 | C147: $$ | Q147: 0 | T147: TRUE | U147: =VLOOKUP(B147,ActiveYears,2,) -> FALSE | W147: FALSE
C148: Qty | Q148: 0 | S148: =S146 -> TRUE | T148: TRUE | U148: =U147 -> FALSE | W148: FALSE
B149: =B147-1 -> 2011 | C149: $$ | Q149: 0 | T149: TRUE | U149: =VLOOKUP(B149,ActiveYears,2,) -> FALSE | W149: FALSE
C150: Qty | Q150: 0 | S150: =S148 -> TRUE | T150: TRUE | U150: =U149 -> FALSE | W150: FALSE
B151: =B149-1 -> 2010 | C151: $$ | Q151: 0 | T151: TRUE | U151: =VLOOKUP(B151,ActiveYears,2,) -> FALSE | W151: FALSE
C152: Qty | Q152: 0 | S152: =S150 -> TRUE | T152: TRUE | U152: =U151 -> FALSE | W152: FALSE
B153: =B151-1 -> 2009 | C153: $$ | Q153: 0 | T153: TRUE | U153: =VLOOKUP(B153,ActiveYears,2,) -> FALSE | W153: FALSE
C154: Qty | Q154: 0 | S154: =S152 -> TRUE | T154: TRUE | U154: =U153 -> FALSE | W154: FALSE
B155: =B153-1 -> 2008 | C155: $$ | Q155: 0 | T155: TRUE | U155: =VLOOKUP(B155,ActiveYears,2,) -> FALSE | W155: FALSE
C156: Qty | Q156: 0 | S156: =S154 -> TRUE | T156: TRUE | U156: =U155 -> FALSE | W156: FALSE
B157: =B155-1 -> 2007 | C157: $$ | Q157: 0 | T157: TRUE | U157: =VLOOKUP(B157,ActiveYears,2,) -> FALSE | W157: FALSE
C158: Qty | Q158: 0 | S158: =S156 -> TRUE | T158: TRUE | U158: =U157 -> FALSE | W158: FALSE
B159: =B157-1 -> 2006 | C159: $$ | Q159: 0 | T159: TRUE | U159: =VLOOKUP(B159,ActiveYears,2,) -> FALSE | W159: FALSE
C160: Qty | Q160: 0 | S160: =S158 -> TRUE | T160: TRUE | U160: =U159 -> FALSE | W160: FALSE
B161: =B159-1 -> 2005 | C161: $$ | Q161: 0 | T161: TRUE | U161: =VLOOKUP(B161,ActiveYears,2,) -> FALSE | W161: FALSE
C162: Qty | Q162: 0 | S162: =S160 -> TRUE | T162: TRUE | U162: =U161 -> FALSE | W162: FALSE
T163: =T134 -> TRUE | W163: TRUE
B164: Per Unit Costs | C164: =B113 -> 2029 | D164: =IF(D114<>0,D113/D114,"") ->  | Q164: =IF(Q114<>0,Q113/Q114,"") ->  | S164: =S142 -> TRUE | T164: =T163 -> TRUE | U164: =VLOOKUP(C164,ActiveYears,2,) -> FALSE | V164: =UnitCostStatus -> FALSE | W164: FALSE
C165: =C164-1 -> 2028 | D165: =IF(D116<>0,D115/D116,"") ->  | Q165: =IF(Q116<>0,Q115/Q116,"") ->  | S165: =S164 -> TRUE | T165: TRUE | U165: FALSE | V165: =V164 -> FALSE | W165: FALSE
C166: =C165-1 -> 2027 | D166: =IF(D118<>0,D117/D118,"") ->  | Q166: =IF(Q118<>0,Q117/Q118,"") ->  | S166: TRUE | T166: TRUE | U166: FALSE | V166: =V165 -> FALSE | W166: FALSE
C167: 2026 | D167: =IF(D120<>0,D119/D120,"") ->  | Q167: =IF(Q120<>0,Q119/Q120,"") ->  | S167: TRUE | T167: TRUE | U167: FALSE | V167: =V166 -> FALSE | W167: FALSE
C168: 2025 | D168: =IF(D122<>0,D121/D122,"") ->  | Q168: =IF(Q122<>0,Q121/Q122,"") ->  | S168: TRUE | T168: TRUE | U168: FALSE | V168: FALSE | W168: FALSE
C169: 2024 | D169: =IF(D124<>0,D123/D124,"") ->  | Q169: =IF(Q124<>0,Q123/Q124,"") ->  | S169: TRUE | T169: TRUE | U169: FALSE | V169: FALSE | W169: FALSE
C170: 2023 | D170: =IF(D126<>0,D125/D126,"") ->  | Q170: =IF(Q126<>0,Q125/Q126,"") ->  | S170: TRUE | T170: TRUE | U170: FALSE | V170: FALSE | W170: FALSE
C171: 2022 | D171: =IF(D128<>0,D127/D128,"") ->  | Q171: =IF(Q128<>0,Q127/Q128,"") ->  | S171: TRUE | T171: TRUE | U171: FALSE | V171: FALSE | W171: FALSE
C172: 2021 | D172: =IF(D130<>0,D129/D130,"") ->  | Q172: =IF(Q130<>0,Q129/Q130,"") ->  | S172: TRUE | T172: TRUE | U172: FALSE | V172: FALSE | W172: FALSE
C173: 2020 | D173: =IF(D132<>0,D131/D132,"") ->  | Q173: =IF(Q132<>0,Q131/Q132,"") ->  | S173: TRUE | T173: TRUE | U173: FALSE | V173: FALSE | W173: FALSE
C174: 2019 | D174: =IF(D134<>0,D133/D134,"") ->  | Q174: =IF(Q134<>0,Q133/Q134,"") ->  | S174: TRUE | T174: TRUE | U174: FALSE | V174: FALSE | W174: FALSE
C175: 2018 | D175: =IF(D136<>0,D135/D136,"") ->  | Q175: =IF(Q136<>0,Q135/Q136,"") ->  | S175: TRUE | T175: TRUE | U175: FALSE | V175: FALSE | W175: FALSE
C176: 2017 | D176: =IF(D138<>0,D137/D138,"") ->  | Q176: =IF(Q138<>0,Q137/Q138,"") ->  | S176: =S175 -> TRUE | T176: TRUE | U176: FALSE | V176: FALSE | W176: FALSE
C177: 2016 | D177: =IF(D140<>0,D139/D140,"") ->  | Q177: =IF(Q140<>0,Q139/Q140,"") ->  | S177: =S176 -> TRUE | T177: TRUE | U177: FALSE | V177: FALSE | W177: FALSE
C178: 2015 | D178: =IF(D142<>0,D141/D142,"") -> 10.19207132 | E178: 8.501453597 | F178: 7.804060665 | G178: 8.032428198 | H178: 7.457364787 | I178: 7.586381997 | J178: 10.36350365 | K178: 16.51364712 | L178: 16.94341784 | M178: 17.28907497 | N178: 16.69453636 | O178: 16.7857835 | Q178: =IF(Q142<>0,Q141/Q142,"") -> 14.5945925 | S178: TRUE | T178: TRUE | U178: TRUE | V178: FALSE | W178: FALSE
C179: 2014 | D179: =IF(D144<>0,D143/D144,"") -> 10.06788916 | E179: =IF(E144<>0,E143/E144,"") -> 9.721251664 | F179: 7.474202128 | G179: 7.129295282 | H179: 7.474959083 | I179: 7.136504425 | J179: 8.054071185 | K179: 13.32105198 | L179: 14.4624562 | M179: 9.717347689 | N179: 13.23111844 | O179: 14.71913718 | Q179: =IF(Q144<>0,Q143/Q144,"") -> 11.66297243 | S179: TRUE | T179: TRUE | U179: TRUE | V179: FALSE | W179: FALSE
C180: 2013 | D180: =IF(D146<>0,D145/D146,"") -> 9.413335847 | E180: =IF(E146<>0,E145/E146,"") -> 8.796984185 | F180: 8.266137986 | G180: 7.090342679 | H180: 7.036816642 | I180: 7.274491682 | J180: 8.085892857 | K180: 9.319904318 | L180: 9.790328896 | M180: 9.382379431 | N180: 8.61361186 | O180: 11.08632011 | Q180: =IF(Q146<>0,Q145/Q146,"") -> 9.29717165 | S180: TRUE | T180: =T179 -> TRUE | U180: TRUE | V180: FALSE | W180: FALSE
C181: 2012 | D181: =IF(D148<>0,D147/D148,"") ->  | E181: =IF(E148<>0,E147/E148,"") ->  | Q181: =IF(Q148<>0,Q147/Q148,"") ->  | S181: TRUE | T181: TRUE | U181: FALSE | V181: FALSE | W181: FALSE
C182: 2011 | D182: =IF(D150<>0,D149/D150,"") ->  | E182: =IF(E150<>0,E149/E150,"") ->  | Q182: =IF(Q150<>0,Q149/Q150,"") ->  | S182: TRUE | T182: TRUE | U182: FALSE | V182: FALSE | W182: FALSE
C183: 2010 | D183: =IF(D152<>0,D151/D152,"") ->  | E183: =IF(E152<>0,E151/E152,"") ->  | Q183: =IF(Q152<>0,Q151/Q152,"") ->  | S183: TRUE | T183: TRUE | U183: FALSE | V183: FALSE | W183: FALSE
C184: 2009 | D184: =IF(D154<>0,D153/D154,"") ->  | E184: =IF(E154<>0,E153/E154,"") ->  | Q184: =IF(Q154<>0,Q153/Q154,"") ->  | S184: TRUE | T184: TRUE | U184: FALSE | V184: FALSE | W184: FALSE
C185: 2008 | D185: =IF(D156<>0,D155/D156,"") ->  | E185: =IF(E156<>0,E155/E156,"") ->  | Q185: =IF(Q156<>0,Q155/Q156,"") ->  | S185: TRUE | T185: TRUE | U185: FALSE | V185: FALSE | W185: FALSE
C186: 2007 | D186: =IF(D158<>0,D157/D158,"") ->  | E186: =IF(E158<>0,E157/E158,"") ->  | Q186: =IF(Q158<>0,Q157/Q158,"") ->  | S186: TRUE | T186: TRUE | U186: FALSE | V186: FALSE | W186: FALSE
C187: 2006 | D187: =IF(D160<>0,D159/D160,"") ->  | E187: =IF(E160<>0,E159/E160,"") ->  | Q187: =IF(Q160<>0,Q159/Q160,"") ->  | S187: TRUE | T187: TRUE | U187: FALSE | V187: FALSE | W187: FALSE
C188: 2005 | D188: =IF(D162<>0,D161/D162,"") ->  | E188: =IF(E162<>0,E161/E162,"") ->  | Q188: =IF(Q162<>0,Q161/Q162,"") ->  | S188: TRUE | T188: TRUE | U188: FALSE | V188: FALSE | W188: FALSE
S189: =S174 -> TRUE | T189: =T174 -> TRUE | V189: =V174 -> FALSE | W189: FALSE
T190: =T189 -> TRUE | W190: TRUE
B191: Energy Source | F191: UNIT | G191: Notes | T191: =VLOOKUP(B192,$T$5:$U$24,2,) -> FALSE | W191: =AND(S191:V191) -> FALSE
A192: back to top | B192: =B110+1 -> 3 | C192: =VLOOKUP(B192,$B$5:$F$24,2,) -> 0 | F192: =IFERROR(VLOOKUP(C192,EnergyUnits,2,),"none") -> none | G192: Location, day of month read, etc | T192: =T191 -> FALSE | W192: =AND(S192:V192) -> FALSE
T193: =T192 -> FALSE | W193: FALSE
D194: =Support!$L$5 -> Jan | E194: =Support!$L$6 -> Feb | F194: =Support!$L$7 -> Mar | G194: =Support!$L$8 -> Apr | H194: =Support!$L$9 -> May | I194: =Support!$L$10 -> Jun | J194: =Support!$L$11 -> Jul | K194: =Support!$L$12 -> Aug | L194: =Support!$L$13 -> Sep | M194: =Support!$L$14 -> Oct | N194: =Support!$L$15 -> Nov | O194: =Support!$L$16 -> Dec | Q194: YEAR | T194: =T193 -> FALSE | W194: FALSE
B195: =FinalYear -> 2029 | C195: $$ | Q195: =SUM(D195:O195) -> 0 | T195: FALSE | U195: =VLOOKUP(B195,ActiveYears,2,) -> FALSE | W195: FALSE
C196: Qty | Q196: 0 | S196: =IF(F192="none",FALSE,TRUE) -> FALSE | T196: FALSE | U196: =U195 -> FALSE | W196: FALSE
B197: =B195-1 -> 2028 | C197: $$ | Q197: 0 | T197: FALSE | U197: =VLOOKUP(B197,ActiveYears,2,) -> FALSE | W197: FALSE
C198: Qty | Q198: 0 | S198: =S196 -> FALSE | T198: FALSE | U198: =U197 -> FALSE | W198: FALSE
B199: =B197-1 -> 2027 | C199: $$ | Q199: 0 | T199: FALSE | U199: =VLOOKUP(B199,ActiveYears,2,) -> FALSE | W199: FALSE
C200: Qty | Q200: 0 | S200: =S198 -> FALSE | T200: FALSE | U200: =U199 -> FALSE | W200: FALSE
... 1466 more rows

Sheet EC Charts
A1: DOE Advanced Manufacturing Office | AT1: filter
A2: Energy Footprint - ENERGY CONSUMPTION CHARTS | AT2: TRUE
AT3: TRUE
C4: SELECT Energy Source for Chart | AR4: =ECChartMenu -> TRUE | AT4: =AND(AR4:AS4) -> TRUE
C5: Source | D5: TOTAL Energy | AQ5: =IF('EC Charts'!D5<>"",VLOOKUP('EC Charts'!D5,'Energy Consumption'!AC5:AK24,2,),"") -> 1 | AR5: TRUE | AT5: =AND(AR5:AS5) -> TRUE | AV5: selected #
C6: =IF(AND(AV7>0,D5<>""),VLOOKUP(AV7,'Energy Consumption'!B5:Q24,6,),"*no notes for totals") -> *no notes for totals | L6: < these notes can be edited in Energy Consumption | AR6: =ECChartMenu -> TRUE | AT6: =AND(AR6:AS6) -> TRUE | AV6: =IFERROR(VLOOKUP('EC Charts'!D5,'Energy Consumption'!AE5:AH29,4,),"") -> 1
AR7: =ECChartMenu -> TRUE | AT7: =AND(AR7:AS7) -> TRUE | AV7: =IFERROR(AV6-5,"0") -> -4
AR8: =ECChartMenu -> TRUE | AT8: =AND(AR8:AS8) -> TRUE | AV8: =IFERROR(VLOOKUP('EC Charts'!D5,'Energy Consumption'!AI5:AI29,1,),"ERROR") -> TOTAL Energy
AS9: =IF(D5<>"",TRUE,FALSE) -> TRUE | AT9: =AND(AR9:AS9) -> TRUE
C10: =" "&VLOOKUP(D5,'Energy Consumption'!AE5:AG29,3,)&" - $" -> TOTAL Energy Consumption - $ | AS10: =AS9 -> TRUE | AT10: TRUE
AS11: =AS10 -> TRUE | AT11: TRUE
P12: =FirstYear -> 2005 | Q12: =P12+1 -> 2006 | R12: 2007 | S12: 2008 | T12: 2009 | U12: 2010 | V12: 2011 | W12: 2012 | X12: 2013 | Y12: 2014 | Z12: 2015 | AA12: 2016 | AB12: 2017 | AC12: 2018 | AD12: 2019 | AE12: 2020 | AF12: 2021 | AG12: 2022 | AH12: 2023 | AI12: 2024 | AJ12: 2025 | AK12: 2026 | AL12: 2027 | AM12: 2028 | AN12: 2029 | AS12: TRUE | AT12: TRUE
M13: ='EnPI Table'!$AW$10 -> 0 | N13: ='EnPI Table'!$AW$22 -> 0 | O13: =DATE(2010,FirstMonthInt,1) -> 2010-01-01 | P13: =P93 -> 0 | Q13: =Q93 -> 0 | R13: 0 | S13: 0 | T13: 0 | U13: 0 | V13: 0 | W13: 0 | X13: 21030.55 | Y13: 18469.46 | Z13: 28517.71 | AA13: 0 | AB13: 0 | AC13: 0 | AD13: 0 | AE13: 0 | AF13: 0 | AG13: 0 | AH13: 0 | AI13: 0 | AJ13: 0 | AK13: 0 | AL13: 0 | AM13: 0 | AN13: 0 | AS13: TRUE | AT13: TRUE
M14: ='EnPI Table'!$AW$11 -> 0 | N14: ='EnPI Table'!$AW$23 -> 0 | O14: =DATE(YEAR(O13),MONTH(O13)+1,DAY(O13)) -> 2010-02-01 | P14: 0 | Q14: =Q94 -> 0 | R14: 0 | S14: 0 | T14: 0 | U14: 0 | V14: 0 | W14: 0 | X14: 17479.9 | Y14: 24727.61 | Z14: 19392.72 | AA14: 0 | AB14: 0 | AC14: 0 | AD14: 0 | AE14: 0 | AF14: 0 | AG14: 0 | AH14: 0 | AI14: 0 | AJ14: 0 | AK14: 0 | AL14: 0 | AM14: 0 | AN14: 0 | AS14: TRUE | AT14: TRUE
M15: ='EnPI Table'!$AW$12 -> 0 | N15: ='EnPI Table'!$AW$24 -> 0 | O15: =DATE(YEAR(O14),MONTH(O14)+1,DAY(O14)) -> 2010-03-01 | P15: 0 | Q15: 0 | R15: 0 | S15: 0 | T15: 0 | U15: 0 | V15: 0 | W15: 0 | X15: 27449.72 | Y15: 25710.9 | Z15: 25210.99 | AA15: 0 | AB15: 0 | AC15: 0 | AD15: 0 | AE15: 0 | AF15: 0 | AG15: 0 | AH15: 0 | AI15: 0 | AJ15: 0 | AK15: 0 | AL15: 0 | AM15: 0 | AN15: 0 | AS15: TRUE | AT15: TRUE
M16: ='EnPI Table'!$AW$13 -> 0 | N16: ='EnPI Table'!$AW$25 -> 0 | O16: 2010-04-01 | P16: 0 | Q16: 0 | R16: 0 | S16: 0 | T16: 0 | U16: 0 | V16: 0 | W16: 0 | X16: 23570.9 | Y16: 29909.38 | Z16: 30033.67 | AA16: 0 | AB16: 0 | AC16: 0 | AD16: 0 | AE16: 0 | AF16: 0 | AG16: 0 | AH16: 0 | AI16: 0 | AJ16: 0 | AK16: 0 | AL16: 0 | AM16: 0 | AN16: 0 | AS16: TRUE | AT16: TRUE
M17: ='EnPI Table'!$AW$14 -> 0 | N17: ='EnPI Table'!$AW$26 -> 0 | O17: 2010-05-01 | P17: 0 | Q17: 0 | R17: 0 | S17: 0 | T17: 0 | U17: 0 | V17: 0 | W17: 0 | X17: 23980.91 | Y17: 25589.52 | Z17: 25726.51 | AA17: 0 | AB17: 0 | AC17: 0 | AD17: 0 | AE17: 0 | AF17: 0 | AG17: 0 | AH17: 0 | AI17: 0 | AJ17: 0 | AK17: 0 | AL17: 0 | AM17: 0 | AN17: 0 | AS17: TRUE | AT17: TRUE
M18: ='EnPI Table'!$AW$15 -> 0 | N18: ='EnPI Table'!$AW$27 -> 0 | O18: 2010-06-01 | P18: 0 | Q18: 0 | R18: 0 | S18: 0 | T18: 0 | U18: 0 | V18: 0 | W18: 0 | X18: 19575.37 | Y18: 19671.58 | Z18: 20319.47 | AA18: 0 | AB18: 0 | AC18: 0 | AD18: 0 | AE18: 0 | AF18: 0 | AG18: 0 | AH18: 0 | AI18: 0 | AJ18: 0 | AK18: 0 | AL18: 0 | AM18: 0 | AN18: 0 | AS18: TRUE | AT18: TRUE
M19: ='EnPI Table'!$AW$16 -> 0 | N19: ='EnPI Table'!$AW$28 -> 0 | O19: 2010-07-01 | P19: 0 | Q19: 0 | R19: 0 | S19: 0 | T19: 0 | U19: 0 | V19: 0 | W19: 0 | X19: 21112.66 | Y19: 17780.83 | Z19: 18104.48 | AA19: 0 | AB19: 0 | AC19: 0 | AD19: 0 | AE19: 0 | AF19: 0 | AG19: 0 | AH19: 0 | AI19: 0 | AJ19: 0 | AK19: 0 | AL19: 0 | AM19: 0 | AN19: 0 | AS19: TRUE | AT19: TRUE
M20: ='EnPI Table'!$AW$17 -> 0 | N20: ='EnPI Table'!$AW$29 -> 0 | O20: 2010-08-01 | P20: 0 | Q20: 0 | R20: 0 | S20: 0 | T20: 0 | U20: 0 | V20: 0 | W20: 0 | X20: 28593.22 | Y20: 28031.95 | Z20: 30307.1 | AA20: 0 | AB20: 0 | AC20: 0 | AD20: 0 | AE20: 0 | AF20: 0 | AG20: 0 | AH20: 0 | AI20: 0 | AJ20: 0 | AK20: 0 | AL20: 0 | AM20: 0 | AN20: 0 | AS20: TRUE | AT20: TRUE
M21: ='EnPI Table'!$AW$18 -> 0 | N21: ='EnPI Table'!$AW$30 -> 0 | O21: 2010-09-01 | P21: 0 | Q21: 0 | R21: 0 | S21: 0 | T21: 0 | U21: 0 | V21: 0 | W21: 0 | X21: 37376.1 | Y21: 36314.02 | Z21: 37867.68 | AA21: 0 | AB21: 0 | AC21: 0 | AD21: 0 | AE21: 0 | AF21: 0 | AG21: 0 | AH21: 0 | AI21: 0 | AJ21: 0 | AK21: 0 | AL21: 0 | AM21: 0 | AN21: 0 | AS21: TRUE | AT21: TRUE
M22: ='EnPI Table'!$AW$19 -> 0 | N22: ='EnPI Table'!$AW$31 -> 0 | O22: 2010-10-01 | P22: 0 | Q22: 0 | R22: 0 | S22: 0 | T22: 0 | U22: 0 | V22: 0 | W22: 0 | X22: 35046.69 | Y22: 44024.35 | Z22: 37679.58 | AA22: 0 | AB22: 0 | AC22: 0 | AD22: 0 | AE22: 0 | AF22: 0 | AG22: 0 | AH22: 0 | AI22: 0 | AJ22: 0 | AK22: 0 | AL22: 0 | AM22: 0 | AN22: 0 | AS22: TRUE | AT22: TRUE
M23: ='EnPI Table'!$AW$20 -> 0 | N23: ='EnPI Table'!$AW$32 -> 0 | O23: 2010-11-01 | P23: 0 | Q23: 0 | R23: 0 | S23: 0 | T23: 0 | U23: 0 | V23: 0 | W23: 0 | X23: 40046.97 | Y23: 37534.68 | Z23: 42696.46 | AA23: 0 | AB23: 0 | AC23: 0 | AD23: 0 | AE23: 0 | AF23: 0 | AG23: 0 | AH23: 0 | AI23: 0 | AJ23: 0 | AK23: 0 | AL23: 0 | AM23: 0 | AN23: 0 | AS23: TRUE | AT23: TRUE
M24: ='EnPI Table'!$AW$21 -> 0 | N24: ='EnPI Table'!$AW$33 -> 0 | O24: 2010-12-01 | P24: 0 | Q24: 0 | R24: 0 | S24: 0 | T24: 0 | U24: 0 | V24: 0 | W24: =W104 -> 0 | X24: 34903.29 | Y24: 33541.4 | Z24: 33524.64 | AA24: 0 | AB24: 0 | AC24: 0 | AD24: 0 | AE24: 0 | AF24: 0 | AG24: 0 | AH24: 0 | AI24: 0 | AJ24: 0 | AK24: 0 | AL24: 0 | AM24: 0 | AN24: 0 | AS24: TRUE | AT24: TRUE
P25: =FirstYear -> 2005 | Q25: =P25+1 -> 2006 | R25: 2007 | S25: 2008 | T25: 2009 | U25: 2010 | V25: 2011 | W25: 2012 | X25: 2013 | Y25: 2014 | Z25: 2015 | AA25: 2016 | AB25: 2017 | AC25: 2018 | AD25: 2019 | AE25: 2020 | AF25: 2021 | AG25: 2022 | AH25: 2023 | AI25: 2024 | AJ25: 2025 | AK25: 2026 | AL25: 2027 | AM25: 2028 | AN25: 2029 | AS25: TRUE | AT25: TRUE
O26: TOTAL | P26: =SUM(P13:P24) -> 0 | Q26: 0 | R26: 0 | S26: 0 | T26: 0 | U26: 0 | V26: 0 | W26: 0 | X26: 330166.28 | Y26: 341305.68 | Z26: 349381.01 | AA26: 0 | AB26: 0 | AC26: 0 | AD26: 0 | AE26: 0 | AF26: 0 | AG26: 0 | AH26: 0 | AI26: 0 | AJ26: 0 | AK26: 0 | AL26: 0 | AM26: 0 | AN26: 0 | AS26: TRUE | AT26: TRUE
AS27: TRUE | AT27: TRUE
AR28: =IF(VLOOKUP(D5,'Energy Consumption'!AE5:AG29,2,)="none",FALSE,TRUE) -> TRUE | AS28: =AS27 -> TRUE | AT28: TRUE
AR29: =AR28 -> TRUE | AS29: TRUE | AT29: TRUE
C30: =" "&VLOOKUP(D5,'Energy Consumption'!AE5:AG29,3,)&" - "&VLOOKUP(D5,'Energy Consumption'!AE5:AG29,2,) -> TOTAL Energy Consumption - MMBtu | AR30: =AR29 -> TRUE | AS30: TRUE | AT30: TRUE
AR31: TRUE | AS31: TRUE | AT31: TRUE
P32: =FirstYear -> 2005 | Q32: =P32+1 -> 2006 | R32: 2007 | S32: 2008 | T32: 2009 | U32: 2010 | V32: 2011 | W32: 2012 | X32: 2013 | Y32: 2014 | Z32: 2015 | AA32: 2016 | AB32: 2017 | AC32: 2018 | AD32: 2019 | AE32: 2020 | AF32: 2021 | AG32: 2022 | AH32: 2023 | AI32: 2024 | AJ32: 2025 | AK32: 2026 | AL32: 2027 | AM32: 2028 | AN32: 2029 | AR32: TRUE | AS32: TRUE | AT32: TRUE
O33: =DATE(2010,FirstMonthInt,1) -> 2010-01-01 | P33: =P80 -> 0 | Q33: =Q80 -> 0 | R33: 0 | S33: 0 | T33: 0 | U33: 0 | V33: 0 | W33: 0 | X33: 1629.62928 | Y33: 1307.255136 | Z33: 2072.110552 | AA33: 0 | AB33: 0 | AC33: 0 | AD33: 0 | AE33: 0 | AF33: 0 | AG33: 0 | AH33: 0 | AI33: 0 | AJ33: 0 | AK33: 0 | AL33: 0 | AM33: 0 | AN33: 0 | AR33: TRUE | AS33: TRUE | AT33: TRUE
O34: =DATE(YEAR(O33),MONTH(O33)+1,DAY(O33)) -> 2010-02-01 | P34: 0 | Q34: =Q81 -> 0 | R34: 0 | S34: 0 | T34: 0 | U34: 0 | V34: 0 | W34: 0 | X34: 1097.33104 | Y34: 1537.286 | Z34: 1280.005768 | AA34: 0 | AB34: 0 | AC34: 0 | AD34: 0 | AE34: 0 | AF34: 0 | AG34: 0 | AH34: 0 | AI34: 0 | AJ34: 0 | AK34: 0 | AL34: 0 | AM34: 0 | AN34: 0 | AR34: TRUE | AS34: TRUE | AT34: TRUE
O35: =DATE(YEAR(O34),MONTH(O34)+1,DAY(O34)) -> 2010-03-01 | P35: 0 | Q35: 0 | R35: 0 | S35: 0 | T35: 0 | U35: 0 | V35: 0 | W35: 0 | X35: 1783.5056 | Y35: 1529.397092 | Z35: 1472.6404 | AA35: 0 | AB35: 0 | AC35: 0 | AD35: 0 | AE35: 0 | AF35: 0 | AG35: 0 | AH35: 0 | AI35: 0 | AJ35: 0 | AK35: 0 | AL35: 0 | AM35: 0 | AN35: 0 | AR35: TRUE | AS35: TRUE | AT35: TRUE
O36: 2010-04-01 | P36: 0 | Q36: 0 | R36: 0 | S36: 0 | T36: 0 | U36: 0 | V36: 0 | W36: 0 | X36: 1584.4401 | Y36: 1726.8043 | Z36: 1675.31056 | AA36: 0 | AB36: 0 | AC36: 0 | AD36: 0 | AE36: 0 | AF36: 0 | AG36: 0 | AH36: 0 | AI36: 0 | AJ36: 0 | AK36: 0 | AL36: 0 | AM36: 0 | AN36: 0 | AR36: TRUE | AS36: TRUE | AT36: TRUE
O37: 2010-05-01 | P37: 0 | Q37: 0 | R37: 0 | S37: 0 | T37: 0 | U37: 0 | V37: 0 | W37: 0 | X37: 1609.768992 | Y37: 1548.7824 | Z37: 1487.611072 | AA37: 0 | AB37: 0 | AC37: 0 | AD37: 0 | AE37: 0 | AF37: 0 | AG37: 0 | AH37: 0 | AI37: 0 | AJ37: 0 | AK37: 0 | AL37: 0 | AM37: 0 | AN37: 0 | AR37: TRUE | AS37: TRUE | AT37: TRUE
O38: 2010-06-01 | P38: 0 | Q38: 0 | R38: 0 | S38: 0 | T38: 0 | U38: 0 | V38: 0 | W38: 0 | X38: 1252.058008 | Y38: 1129.06304 | Z38: 1240.04474 | AA38: 0 | AB38: 0 | AC38: 0 | AD38: 0 | AE38: 0 | AF38: 0 | AG38: 0 | AH38: 0 | AI38: 0 | AJ38: 0 | AK38: 0 | AL38: 0 | AM38: 0 | AN38: 0 | AR38: TRUE | AS38: TRUE | AT38: TRUE
O39: 2010-07-01 | P39: 0 | Q39: 0 | R39: 0 | S39: 0 | T39: 0 | U39: 0 | V39: 0 | W39: 0 | X39: 1353.171792 | Y39: 1273.586128 | Z39: 1194.380864 | AA39: 0 | AB39: 0 | AC39: 0 | AD39: 0 | AE39: 0 | AF39: 0 | AG39: 0 | AH39: 0 | AI39: 0 | AJ39: 0 | AK39: 0 | AL39: 0 | AM39: 0 | AN39: 0 | AR39: TRUE | AS39: TRUE | AT39: TRUE
O40: 2010-08-01 | P40: 0 | Q40: 0 | R40: 0 | S40: 0 | T40: 0 | U40: 0 | V40: 0 | W40: 0 | X40: 2388.093016 | Y40: 1740.239804 | Z40: 1854.72604 | AA40: 0 | AB40: 0 | AC40: 0 | AD40: 0 | AE40: 0 | AF40: 0 | AG40: 0 | AH40: 0 | AI40: 0 | AJ40: 0 | AK40: 0 | AL40: 0 | AM40: 0 | AN40: 0 | AR40: TRUE | AS40: TRUE | AT40: TRUE
O41: 2010-09-01 | P41: 0 | Q41: 0 | R41: 0 | S41: 0 | T41: 0 | U41: 0 | V41: 0 | W41: 0 | X41: 2800.94748 | Y41: 2311.7944 | Z41: 2162.8312 | AA41: 0 | AB41: 0 | AC41: 0 | AD41: 0 | AE41: 0 | AF41: 0 | AG41: 0 | AH41: 0 | AI41: 0 | AJ41: 0 | AK41: 0 | AL41: 0 | AM41: 0 | AN41: 0 | AR41: TRUE | AS41: TRUE | AT41: TRUE
O42: 2010-10-01 | P42: 0 | Q42: 0 | R42: 0 | S42: 0 | T42: 0 | U42: 0 | V42: 0 | W42: 0 | X42: 2986.347876 | Y42: 3559.690464 | Z42: 2254.77502 | AA42: 0 | AB42: 0 | AC42: 0 | AD42: 0 | AE42: 0 | AF42: 0 | AG42: 0 | AH42: 0 | AI42: 0 | AJ42: 0 | AK42: 0 | AL42: 0 | AM42: 0 | AN42: 0 | AR42: TRUE | AS42: TRUE | AT42: TRUE
O43: 2010-11-01 | P43: 0 | Q43: 0 | R43: 0 | S43: 0 | T43: 0 | U43: 0 | V43: 0 | W43: 0 | X43: 3549.63534 | Y43: 2533.180984 | Z43: 2518.20612 | AA43: 0 | AB43: 0 | AC43: 0 | AD43: 0 | AE43: 0 | AF43: 0 | AG43: 0 | AH43: 0 | AI43: 0 | AJ43: 0 | AK43: 0 | AL43: 0 | AM43: 0 | AN43: 0 | AR43: TRUE | AS43: TRUE | AT43: TRUE
O44: 2010-12-01 | P44: 0 | Q44: 0 | R44: 0 | S44: 0 | T44: 0 | U44: 0 | V44: 0 | W44: =W91 -> 0 | X44: 2550.5112 | Y44: 2031.839456 | Z44: 1958.190768 | AA44: 0 | AB44: 0 | AC44: 0 | AD44: 0 | AE44: 0 | AF44: 0 | AG44: 0 | AH44: 0 | AI44: 0 | AJ44: 0 | AK44: 0 | AL44: 0 | AM44: 0 | AN44: 0 | AR44: TRUE | AS44: TRUE | AT44: TRUE
P45: =FirstYear -> 2005 | Q45: =P45+1 -> 2006 | R45: 2007 | S45: 2008 | T45: 2009 | U45: 2010 | V45: 2011 | W45: 2012 | X45: 2013 | Y45: 2014 | Z45: 2015 | AA45: 2016 | AB45: 2017 | AC45: 2018 | AD45: 2019 | AE45: 2020 | AF45: 2021 | AG45: 2022 | AH45: 2023 | AI45: 2024 | AJ45: 2025 | AK45: 2026 | AL45: 2027 | AM45: 2028 | AN45: 2029 | AR45: TRUE | AS45: TRUE | AT45: TRUE
O46: TOTAL | P46: =SUM(P33:P44) -> 0 | Q46: 0 | R46: 0 | S46: 0 | T46: 0 | U46: 0 | V46: 0 | W46: 0 | X46: 24585.43972 | Y46: 22228.9192 | Z46: 21170.8331 | AA46: 0 | AB46: 0 | AC46: 0 | AD46: 0 | AE46: 0 | AF46: 0 | AG46: 0 | AH46: 0 | AI46: 0 | AJ46: 0 | AK46: 0 | AL46: 0 | AM46: 0 | AN46: 0 | AR46: TRUE | AS46: TRUE | AT46: TRUE
AR47: TRUE | AS47: TRUE | AT47: TRUE
AT48: FALSE
P80: =3412*3/1000/1000*'EnPI Table'!$B$10+'EnPI Table'!$D$10+'EnPI Table'!$F$10 -> 0 | Q80: =3412*3/1000/1000*'EnPI Table'!$B$22+'EnPI Table'!$D$22+'EnPI Table'!$F$22 -> 0 | R80: =3412*3/1000/1000*'EnPI Table'!$B$34+'EnPI Table'!$D$34+'EnPI Table'!$F$34 -> 0 | S80: =3412*3/1000/1000*'EnPI Table'!$B$46+'EnPI Table'!$D$46+'EnPI Table'!$F$46 -> 0 | T80: =3412*3/1000/1000*'EnPI Table'!$B$58+'EnPI Table'!$D$58+'EnPI Table'!$F$58 -> 0 | U80: =3412*3/1000/1000*'EnPI Table'!$B$70+'EnPI Table'!$D$70+'EnPI Table'!$F$70 -> 0 | V80: =3412*3/1000/1000*'EnPI Table'!$B$82+'EnPI Table'!$D$82+'EnPI Table'!$F$82 -> 0 | W80: =3412*3/1000/1000*'EnPI Table'!$B$94+'EnPI Table'!$D$94+'EnPI Table'!$F$94 -> 0 | X80: =3412*3/1000/1000*'EnPI Table'!$B$106+'EnPI Table'!$D$106+'EnPI Table'!$F$106 -> 1629.62928 | Y80: =3412*3/1000/1000*'EnPI Table'!$B$118+'EnPI Table'!$D$118+'EnPI Table'!$F$118 -> 1307.255136 | Z80: =3412*3/1000/1000*'EnPI Table'!$B$130+'EnPI Table'!$D$130+'EnPI Table'!$F$130 -> 2072.110552 | AA80: =3412*3/1000/1000*'EnPI Table'!$B$142+'EnPI Table'!$D$142+'EnPI Table'!$F$142 -> 0 | AB80: =3412*3/1000/1000*'EnPI Table'!$B$154+'EnPI Table'!$D$154+'EnPI Table'!$F$154 -> 0 | AC80: =3412*3/1000/1000*'EnPI Table'!$B$166+'EnPI Table'!$D$166+'EnPI Table'!$F$166 -> 0 | AD80: =3412*3/1000/1000*'EnPI Table'!$B$178+'EnPI Table'!$D$178+'EnPI Table'!$F$178 -> 0 | AE80: =3412*3/1000/1000*'EnPI Table'!$B$190+'EnPI Table'!$D$190+'EnPI Table'!$F$190 -> 0 | AF80: =3412*3/1000/1000*'EnPI Table'!$B$202+'EnPI Table'!$D$202+'EnPI Table'!$F$202 -> 0 | AG80: =3412*3/1000/1000*'EnPI Table'!$B$214+'EnPI Table'!$D$214+'EnPI Table'!$F$214 -> 0 | AH80: =3412*3/1000/1000*'EnPI Table'!$B$226+'EnPI Table'!$D$226+'EnPI Table'!$F$226 -> 0 | AI80: =3412*3/1000/1000*'EnPI Table'!$B$238+'EnPI Table'!$D$238+'EnPI Table'!$F$238 -> 0 | AJ80: =3412*3/1000/1000*'EnPI Table'!$B$250+'EnPI Table'!$D$250+'EnPI Table'!$F$250 -> 0 | AK80: =3412*3/1000/1000*'EnPI Table'!$B$262+'EnPI Table'!$D$262+'EnPI Table'!$F$262 -> 0 | AL80: =3412*3/1000/1000*'EnPI Table'!$B$274+'EnPI Table'!$D$274+'EnPI Table'!$F$274 -> 0 | AM80: =3412*3/1000/1000*'EnPI Table'!$B$286+'EnPI Table'!$D$286+'EnPI Table'!$F$286 -> 0 | AN80: =3412*3/1000/1000*'EnPI Table'!$B$298+'EnPI Table'!$D$298+'EnPI Table'!$F$298 -> 0
P81: =3412*3/1000/1000*'EnPI Table'!$B$11+'EnPI Table'!$D$11+'EnPI Table'!$F$11 -> 0 | Q81: =3412*3/1000/1000*'EnPI Table'!$B$23+'EnPI Table'!$D$23+'EnPI Table'!$F$23 -> 0 | R81: =3412*3/1000/1000*'EnPI Table'!$B$35+'EnPI Table'!$D$35+'EnPI Table'!$F$35 -> 0 | S81: =3412*3/1000/1000*'EnPI Table'!$B$47+'EnPI Table'!$D$47+'EnPI Table'!$F$47 -> 0 | T81: =3412*3/1000/1000*'EnPI Table'!$B$59+'EnPI Table'!$D$59+'EnPI Table'!$F$59 -> 0 | U81: =3412*3/1000/1000*'EnPI Table'!$B$71+'EnPI Table'!$D$71+'EnPI Table'!$F$71 -> 0 | V81: =3412*3/1000/1000*'EnPI Table'!$B$83+'EnPI Table'!$D$83+'EnPI Table'!$F$83 -> 0 | W81: =3412*3/1000/1000*'EnPI Table'!$B$95+'EnPI Table'!$D$95+'EnPI Table'!$F$95 -> 0 | X81: =3412*3/1000/1000*'EnPI Table'!$B$107+'EnPI Table'!$D$107+'EnPI Table'!$F$107 -> 1097.33104 | Y81: =3412*3/1000/1000*'EnPI Table'!$B$119+'EnPI Table'!$D$119+'EnPI Table'!$F$119 -> 1537.286 | Z81: =3412*3/1000/1000*'EnPI Table'!$B$131+'EnPI Table'!$D$131+'EnPI Table'!$F$131 -> 1280.005768 | AA81: =3412*3/1000/1000*'EnPI Table'!$B$143+'EnPI Table'!$D$143+'EnPI Table'!$F$143 -> 0 | AB81: =3412*3/1000/1000*'EnPI Table'!$B$155+'EnPI Table'!$D$155+'EnPI Table'!$F$155 -> 0 | AC81: =3412*3/1000/1000*'EnPI Table'!$B$167+'EnPI Table'!$D$167+'EnPI Table'!$F$167 -> 0 | AD81: =3412*3/1000/1000*'EnPI Table'!$B$179+'EnPI Table'!$D$179+'EnPI Table'!$F$179 -> 0 | AE81: =3412*3/1000/1000*'EnPI Table'!$B$191+'EnPI Table'!$D$191+'EnPI Table'!$F$191 -> 0 | AF81: =3412*3/1000/1000*'EnPI Table'!$B$203+'EnPI Table'!$D$203+'EnPI Table'!$F$203 -> 0 | AG81: =3412*3/1000/1000*'EnPI Table'!$B$215+'EnPI Table'!$D$215+'EnPI Table'!$F$215 -> 0 | AH81: =3412*3/1000/1000*'EnPI Table'!$B$227+'EnPI Table'!$D$227+'EnPI Table'!$F$227 -> 0 | AI81: =3412*3/1000/1000*'EnPI Table'!$B$239+'EnPI Table'!$D$239+'EnPI Table'!$F$239 -> 0 | AJ81: =3412*3/1000/1000*'EnPI Table'!$B$251+'EnPI Table'!$D$251+'EnPI Table'!$F$251 -> 0 | AK81: =3412*3/1000/1000*'EnPI Table'!$B$263+'EnPI Table'!$D$263+'EnPI Table'!$F$263 -> 0 | AL81: =3412*3/1000/1000*'EnPI Table'!$B$275+'EnPI Table'!$D$275+'EnPI Table'!$F$275 -> 0 | AM81: =3412*3/1000/1000*'EnPI Table'!$B$287+'EnPI Table'!$D$287+'EnPI Table'!$F$287 -> 0 | AN81: =3412*3/1000/1000*'EnPI Table'!$B$299+'EnPI Table'!$D$299+'EnPI Table'!$F$299 -> 0
P82: =3412*3/1000/1000*'EnPI Table'!$B$12+'EnPI Table'!$D$12+'EnPI Table'!$F$12 -> 0 | Q82: =3412*3/1000/1000*'EnPI Table'!$B$24+'EnPI Table'!$D$24+'EnPI Table'!$F$24 -> 0 | R82: =3412*3/1000/1000*'EnPI Table'!$B$36+'EnPI Table'!$D$36+'EnPI Table'!$F$36 -> 0 | S82: =3412*3/1000/1000*'EnPI Table'!$B$48+'EnPI Table'!$D$48+'EnPI Table'!$F$48 -> 0 | T82: =3412*3/1000/1000*'EnPI Table'!$B$60+'EnPI Table'!$D$60+'EnPI Table'!$F$60 -> 0 | U82: =3412*3/1000/1000*'EnPI Table'!$B$72+'EnPI Table'!$D$72+'EnPI Table'!$F$72 -> 0 | V82: =3412*3/1000/1000*'EnPI Table'!$B$84+'EnPI Table'!$D$84+'EnPI Table'!$F$84 -> 0 | W82: =3412*3/1000/1000*'EnPI Table'!$B$96+'EnPI Table'!$D$96+'EnPI Table'!$F$96 -> 0 | X82: =3412*3/1000/1000*'EnPI Table'!$B$108+'EnPI Table'!$D$108+'EnPI Table'!$F$108 -> 1783.5056 | Y82: =3412*3/1000/1000*'EnPI Table'!$B$120+'EnPI Table'!$D$120+'EnPI Table'!$F$120 -> 1529.397092 | Z82: =3412*3/1000/1000*'EnPI Table'!$B$132+'EnPI Table'!$D$132+'EnPI Table'!$F$132 -> 1472.6404 | AA82: =3412*3/1000/1000*'EnPI Table'!$B$144+'EnPI Table'!$D$144+'EnPI Table'!$F$144 -> 0 | AB82: =3412*3/1000/1000*'EnPI Table'!$B$156+'EnPI Table'!$D$156+'EnPI Table'!$F$156 -> 0 | AC82: =3412*3/1000/1000*'EnPI Table'!$B$168+'EnPI Table'!$D$168+'EnPI Table'!$F$168 -> 0 | AD82: =3412*3/1000/1000*'EnPI Table'!$B$180+'EnPI Table'!$D$180+'EnPI Table'!$F$180 -> 0 | AE82: =3412*3/1000/1000*'EnPI Table'!$B$192+'EnPI Table'!$D$192+'EnPI Table'!$F$192 -> 0 | AF82: =3412*3/1000/1000*'EnPI Table'!$B$204+'EnPI Table'!$D$204+'EnPI Table'!$F$204 -> 0 | AG82: =3412*3/1000/1000*'EnPI Table'!$B$216+'EnPI Table'!$D$216+'EnPI Table'!$F$216 -> 0 | AH82: =3412*3/1000/1000*'EnPI Table'!$B$228+'EnPI Table'!$D$228+'EnPI Table'!$F$228 -> 0 | AI82: =3412*3/1000/1000*'EnPI Table'!$B$240+'EnPI Table'!$D$240+'EnPI Table'!$F$240 -> 0 | AJ82: =3412*3/1000/1000*'EnPI Table'!$B$252+'EnPI Table'!$D$252+'EnPI Table'!$F$252 -> 0 | AK82: =3412*3/1000/1000*'EnPI Table'!$B$264+'EnPI Table'!$D$264+'EnPI Table'!$F$264 -> 0 | AL82: =3412*3/1000/1000*'EnPI Table'!$B$276+'EnPI Table'!$D$276+'EnPI Table'!$F$276 -> 0 | AM82: =3412*3/1000/1000*'EnPI Table'!$B$288+'EnPI Table'!$D$288+'EnPI Table'!$F$288 -> 0 | AN82: =3412*3/1000/1000*'EnPI Table'!$B$300+'EnPI Table'!$D$300+'EnPI Table'!$F$300 -> 0
P83: =3412*3/1000/1000*'EnPI Table'!$B$13+'EnPI Table'!$D$13+'EnPI Table'!$F$13 -> 0 | Q83: =3412*3/1000/1000*'EnPI Table'!$B$25+'EnPI Table'!$D$25+'EnPI Table'!$F$25 -> 0 | R83: =3412*3/1000/1000*'EnPI Table'!$B$37+'EnPI Table'!$D$37+'EnPI Table'!$F$37 -> 0 | S83: =3412*3/1000/1000*'EnPI Table'!$B$49+'EnPI Table'!$D$49+'EnPI Table'!$F$49 -> 0 | T83: =3412*3/1000/1000*'EnPI Table'!$B$61+'EnPI Table'!$D$61+'EnPI Table'!$F$61 -> 0 | U83: =3412*3/1000/1000*'EnPI Table'!$B$73+'EnPI Table'!$D$73+'EnPI Table'!$F$73 -> 0 | V83: =3412*3/1000/1000*'EnPI Table'!$B$85+'EnPI Table'!$D$85+'EnPI Table'!$F$85 -> 0 | W83: =3412*3/1000/1000*'EnPI Table'!$B$97+'EnPI Table'!$D$97+'EnPI Table'!$F$97 -> 0 | X83: =3412*3/1000/1000*'EnPI Table'!$B$109+'EnPI Table'!$D$109+'EnPI Table'!$F$109 -> 1584.4401 | Y83: =3412*3/1000/1000*'EnPI Table'!$B$121+'EnPI Table'!$D$121+'EnPI Table'!$F$121 -> 1726.8043 | Z83: =3412*3/1000/1000*'EnPI Table'!$B$133+'EnPI Table'!$D$133+'EnPI Table'!$F$133 -> 1675.31056 | AA83: =3412*3/1000/1000*'EnPI Table'!$B$145+'EnPI Table'!$D$145+'EnPI Table'!$F$145 -> 0 | AB83: =3412*3/1000/1000*'EnPI Table'!$B$157+'EnPI Table'!$D$157+'EnPI Table'!$F$157 -> 0 | AC83: =3412*3/1000/1000*'EnPI Table'!$B$169+'EnPI Table'!$D$169+'EnPI Table'!$F$169 -> 0 | AD83: =3412*3/1000/1000*'EnPI Table'!$B$181+'EnPI Table'!$D$181+'EnPI Table'!$F$181 -> 0 | AE83: =3412*3/1000/1000*'EnPI Table'!$B$193+'EnPI Table'!$D$193+'EnPI Table'!$F$193 -> 0 | AF83: =3412*3/1000/1000*'EnPI Table'!$B$205+'EnPI Table'!$D$205+'EnPI Table'!$F$205 -> 0 | AG83: =3412*3/1000/1000*'EnPI Table'!$B$217+'EnPI Table'!$D$217+'EnPI Table'!$F$217 -> 0 | AH83: =3412*3/1000/1000*'EnPI Table'!$B$229+'EnPI Table'!$D$229+'EnPI Table'!$F$229 -> 0 | AI83: =3412*3/1000/1000*'EnPI Table'!$B$241+'EnPI Table'!$D$241+'EnPI Table'!$F$241 -> 0 | AJ83: =3412*3/1000/1000*'EnPI Table'!$B$253+'EnPI Table'!$D$253+'EnPI Table'!$F$253 -> 0 | AK83: =3412*3/1000/1000*'EnPI Table'!$B$265+'EnPI Table'!$D$265+'EnPI Table'!$F$265 -> 0 | AL83: =3412*3/1000/1000*'EnPI Table'!$B$277+'EnPI Table'!$D$277+'EnPI Table'!$F$277 -> 0 | AM83: =3412*3/1000/1000*'EnPI Table'!$B$289+'EnPI Table'!$D$289+'EnPI Table'!$F$289 -> 0 | AN83: =3412*3/1000/1000*'EnPI Table'!$B$301+'EnPI Table'!$D$301+'EnPI Table'!$F$301 -> 0
P84: =3412*3/1000/1000*'EnPI Table'!$B$14+'EnPI Table'!$D$14+'EnPI Table'!$F$14 -> 0 | Q84: =3412*3/1000/1000*'EnPI Table'!$B$26+'EnPI Table'!$D$26+'EnPI Table'!$F$26 -> 0 | R84: =3412*3/1000/1000*'EnPI Table'!$B$38+'EnPI Table'!$D$38+'EnPI Table'!$F$38 -> 0 | S84: =3412*3/1000/1000*'EnPI Table'!$B$50+'EnPI Table'!$D$50+'EnPI Table'!$F$50 -> 0 | T84: =3412*3/1000/1000*'EnPI Table'!$B$62+'EnPI Table'!$D$62+'EnPI Table'!$F$62 -> 0 | U84: =3412*3/1000/1000*'EnPI Table'!$B$74+'EnPI Table'!$D$74+'EnPI Table'!$F$74 -> 0 | V84: =3412*3/1000/1000*'EnPI Table'!$B$86+'EnPI Table'!$D$86+'EnPI Table'!$F$86 -> 0 | W84: =3412*3/1000/1000*'EnPI Table'!$B$98+'EnPI Table'!$D$98+'EnPI Table'!$F$98 -> 0 | X84: =3412*3/1000/1000*'EnPI Table'!$B$110+'EnPI Table'!$D$110+'EnPI Table'!$F$110 -> 1609.768992 | Y84: =3412*3/1000/1000*'EnPI Table'!$B$122+'EnPI Table'!$D$122+'EnPI Table'!$F$122 -> 1548.7824 | Z84: =3412*3/1000/1000*'EnPI Table'!$B$134+'EnPI Table'!$D$134+'EnPI Table'!$F$134 -> 1487.611072 | AA84: =3412*3/1000/1000*'EnPI Table'!$B$146+'EnPI Table'!$D$146+'EnPI Table'!$F$146 -> 0 | AB84: =3412*3/1000/1000*'EnPI Table'!$B$158+'EnPI Table'!$D$158+'EnPI Table'!$F$158 -> 0 | AC84: =3412*3/1000/1000*'EnPI Table'!$B$170+'EnPI Table'!$D$170+'EnPI Table'!$F$170 -> 0 | AD84: =3412*3/1000/1000*'EnPI Table'!$B$182+'EnPI Table'!$D$182+'EnPI Table'!$F$182 -> 0 | AE84: =3412*3/1000/1000*'EnPI Table'!$B$194+'EnPI Table'!$D$194+'EnPI Table'!$F$194 -> 0 | AF84: =3412*3/1000/1000*'EnPI Table'!$B$206+'EnPI Table'!$D$206+'EnPI Table'!$F$206 -> 0 | AG84: =3412*3/1000/1000*'EnPI Table'!$B$218+'EnPI Table'!$D$218+'EnPI Table'!$F$218 -> 0 | AH84: =3412*3/1000/1000*'EnPI Table'!$B$230+'EnPI Table'!$D$230+'EnPI Table'!$F$230 -> 0 | AI84: =3412*3/1000/1000*'EnPI Table'!$B$242+'EnPI Table'!$D$242+'EnPI Table'!$F$242 -> 0 | AJ84: =3412*3/1000/1000*'EnPI Table'!$B$254+'EnPI Table'!$D$254+'EnPI Table'!$F$254 -> 0 | AK84: =3412*3/1000/1000*'EnPI Table'!$B$266+'EnPI Table'!$D$266+'EnPI Table'!$F$266 -> 0 | AL84: =3412*3/1000/1000*'EnPI Table'!$B$278+'EnPI Table'!$D$278+'EnPI Table'!$F$278 -> 0 | AM84: =3412*3/1000/1000*'EnPI Table'!$B$290+'EnPI Table'!$D$290+'EnPI Table'!$F$290 -> 0 | AN84: =3412*3/1000/1000*'EnPI Table'!$B$302+'EnPI Table'!$D$302+'EnPI Table'!$F$302 -> 0
P85: =3412*3/1000/1000*'EnPI Table'!$B$15+'EnPI Table'!$D$15+'EnPI Table'!$F$15 -> 0 | Q85: =3412*3/1000/1000*'EnPI Table'!$B$27+'EnPI Table'!$D$27+'EnPI Table'!$F$27 -> 0 | R85: =3412*3/1000/1000*'EnPI Table'!$B$39+'EnPI Table'!$D$39+'EnPI Table'!$F$39 -> 0 | S85: =3412*3/1000/1000*'EnPI Table'!$B$51+'EnPI Table'!$D$51+'EnPI Table'!$F$51 -> 0 | T85: =3412*3/1000/1000*'EnPI Table'!$B$63+'EnPI Table'!$D$63+'EnPI Table'!$F$63 -> 0 | U85: =3412*3/1000/1000*'EnPI Table'!$B$75+'EnPI Table'!$D$75+'EnPI Table'!$F$75 -> 0 | V85: =3412*3/1000/1000*'EnPI Table'!$B$87+'EnPI Table'!$D$87+'EnPI Table'!$F$87 -> 0 | W85: =3412*3/1000/1000*'EnPI Table'!$B$99+'EnPI Table'!$D$99+'EnPI Table'!$F$99 -> 0 | X85: =3412*3/1000/1000*'EnPI Table'!$B$111+'EnPI Table'!$D$111+'EnPI Table'!$F$111 -> 1252.058008 | Y85: =3412*3/1000/1000*'EnPI Table'!$B$123+'EnPI Table'!$D$123+'EnPI Table'!$F$123 -> 1129.06304 | Z85: =3412*3/1000/1000*'EnPI Table'!$B$135+'EnPI Table'!$D$135+'EnPI Table'!$F$135 -> 1240.04474 | AA85: =3412*3/1000/1000*'EnPI Table'!$B$147+'EnPI Table'!$D$147+'EnPI Table'!$F$147 -> 0 | AB85: =3412*3/1000/1000*'EnPI Table'!$B$159+'EnPI Table'!$D$159+'EnPI Table'!$F$159 -> 0 | AC85: =3412*3/1000/1000*'EnPI Table'!$B$171+'EnPI Table'!$D$171+'EnPI Table'!$F$171 -> 0 | AD85: =3412*3/1000/1000*'EnPI Table'!$B$183+'EnPI Table'!$D$183+'EnPI Table'!$F$183 -> 0 | AE85: =3412*3/1000/1000*'EnPI Table'!$B$195+'EnPI Table'!$D$195+'EnPI Table'!$F$195 -> 0 | AF85: =3412*3/1000/1000*'EnPI Table'!$B$207+'EnPI Table'!$D$207+'EnPI Table'!$F$207 -> 0 | AG85: =3412*3/1000/1000*'EnPI Table'!$B$219+'EnPI Table'!$D$219+'EnPI Table'!$F$219 -> 0 | AH85: =3412*3/1000/1000*'EnPI Table'!$B$231+'EnPI Table'!$D$231+'EnPI Table'!$F$231 -> 0 | AI85: =3412*3/1000/1000*'EnPI Table'!$B$243+'EnPI Table'!$D$243+'EnPI Table'!$F$243 -> 0 | AJ85: =3412*3/1000/1000*'EnPI Table'!$B$255+'EnPI Table'!$D$255+'EnPI Table'!$F$255 -> 0 | AK85: =3412*3/1000/1000*'EnPI Table'!$B$267+'EnPI Table'!$D$267+'EnPI Table'!$F$267 -> 0 | AL85: =3412*3/1000/1000*'EnPI Table'!$B$279+'EnPI Table'!$D$279+'EnPI Table'!$F$279 -> 0 | AM85: =3412*3/1000/1000*'EnPI Table'!$B$291+'EnPI Table'!$D$291+'EnPI Table'!$F$291 -> 0 | AN85: =3412*3/1000/1000*'EnPI Table'!$B$303+'EnPI Table'!$D$303+'EnPI Table'!$F$303 -> 0
P86: =3412*3/1000/1000*'EnPI Table'!$B$16+'EnPI Table'!$D$16+'EnPI Table'!$F$16 -> 0 | Q86: =3412*3/1000/1000*'EnPI Table'!$B$28+'EnPI Table'!$D$28+'EnPI Table'!$F$28 -> 0 | R86: =3412*3/1000/1000*'EnPI Table'!$B$40+'EnPI Table'!$D$40+'EnPI Table'!$F$40 -> 0 | S86: =3412*3/1000/1000*'EnPI Table'!$B$52+'EnPI Table'!$D$52+'EnPI Table'!$F$52 -> 0 | T86: =3412*3/1000/1000*'EnPI Table'!$B$64+'EnPI Table'!$D$64+'EnPI Table'!$F$64 -> 0 | U86: =3412*3/1000/1000*'EnPI Table'!$B$76+'EnPI Table'!$D$76+'EnPI Table'!$F$76 -> 0 | V86: =3412*3/1000/1000*'EnPI Table'!$B$88+'EnPI Table'!$D$88+'EnPI Table'!$F$88 -> 0 | W86: =3412*3/1000/1000*'EnPI Table'!$B$100+'EnPI Table'!$D$100+'EnPI Table'!$F$100 -> 0 | X86: =3412*3/1000/1000*'EnPI Table'!$B$112+'EnPI Table'!$D$112+'EnPI Table'!$F$112 -> 1353.171792 | Y86: =3412*3/1000/1000*'EnPI Table'!$B$124+'EnPI Table'!$D$124+'EnPI Table'!$F$124 -> 1273.586128 | Z86: =3412*3/1000/1000*'EnPI Table'!$B$136+'EnPI Table'!$D$136+'EnPI Table'!$F$136 -> 1194.380864 | AA86: =3412*3/1000/1000*'EnPI Table'!$B$148+'EnPI Table'!$D$148+'EnPI Table'!$F$148 -> 0 | AB86: =3412*3/1000/1000*'EnPI Table'!$B$160+'EnPI Table'!$D$160+'EnPI Table'!$F$160 -> 0 | AC86: =3412*3/1000/1000*'EnPI Table'!$B$172+'EnPI Table'!$D$172+'EnPI Table'!$F$172 -> 0 | AD86: =3412*3/1000/1000*'EnPI Table'!$B$184+'EnPI Table'!$D$184+'EnPI Table'!$F$184 -> 0 | AE86: =3412*3/1000/1000*'EnPI Table'!$B$196+'EnPI Table'!$D$196+'EnPI Table'!$F$196 -> 0 | AF86: =3412*3/1000/1000*'EnPI Table'!$B$208+'EnPI Table'!$D$208+'EnPI Table'!$F$208 -> 0 | AG86: =3412*3/1000/1000*'EnPI Table'!$B$220+'EnPI Table'!$D$220+'EnPI Table'!$F$220 -> 0 | AH86: =3412*3/1000/1000*'EnPI Table'!$B$232+'EnPI Table'!$D$232+'EnPI Table'!$F$232 -> 0 | AI86: =3412*3/1000/1000*'EnPI Table'!$B$244+'EnPI Table'!$D$244+'EnPI Table'!$F$244 -> 0 | AJ86: =3412*3/1000/1000*'EnPI Table'!$B$256+'EnPI Table'!$D$256+'EnPI Table'!$F$256 -> 0 | AK86: =3412*3/1000/1000*'EnPI Table'!$B$268+'EnPI Table'!$D$268+'EnPI Table'!$F$268 -> 0 | AL86: =3412*3/1000/1000*'EnPI Table'!$B$280+'EnPI Table'!$D$280+'EnPI Table'!$F$280 -> 0 | AM86: =3412*3/1000/1000*'EnPI Table'!$B$292+'EnPI Table'!$D$292+'EnPI Table'!$F$292 -> 0 | AN86: =3412*3/1000/1000*'EnPI Table'!$B$304+'EnPI Table'!$D$304+'EnPI Table'!$F$304 -> 0
P87: =3412*3/1000/1000*'EnPI Table'!$B$17+'EnPI Table'!$D$17+'EnPI Table'!$F$17 -> 0 | Q87: =3412*3/1000/1000*'EnPI Table'!$B$29+'EnPI Table'!$D$29+'EnPI Table'!$F$29 -> 0 | R87: =3412*3/1000/1000*'EnPI Table'!$B$41+'EnPI Table'!$D$41+'EnPI Table'!$F$41 -> 0 | S87: =3412*3/1000/1000*'EnPI Table'!$B$53+'EnPI Table'!$D$53+'EnPI Table'!$F$53 -> 0 | T87: =3412*3/1000/1000*'EnPI Table'!$B$65+'EnPI Table'!$D$65+'EnPI Table'!$F$65 -> 0 | U87: =3412*3/1000/1000*'EnPI Table'!$B$77+'EnPI Table'!$D$77+'EnPI Table'!$F$77 -> 0 | V87: =3412*3/1000/1000*'EnPI Table'!$B$89+'EnPI Table'!$D$89+'EnPI Table'!$F$89 -> 0 | W87: =3412*3/1000/1000*'EnPI Table'!$B$101+'EnPI Table'!$D$101+'EnPI Table'!$F$101 -> 0 | X87: =3412*3/1000/1000*'EnPI Table'!$B$113+'EnPI Table'!$D$113+'EnPI Table'!$F$113 -> 2388.093016 | Y87: =3412*3/1000/1000*'EnPI Table'!$B$125+'EnPI Table'!$D$125+'EnPI Table'!$F$125 -> 1740.239804 | Z87: =3412*3/1000/1000*'EnPI Table'!$B$137+'EnPI Table'!$D$137+'EnPI Table'!$F$137 -> 1854.72604 | AA87: =3412*3/1000/1000*'EnPI Table'!$B$149+'EnPI Table'!$D$149+'EnPI Table'!$F$149 -> 0 | AB87: =3412*3/1000/1000*'EnPI Table'!$B$161+'EnPI Table'!$D$161+'EnPI Table'!$F$161 -> 0 | AC87: =3412*3/1000/1000*'EnPI Table'!$B$173+'EnPI Table'!$D$173+'EnPI Table'!$F$173 -> 0 | AD87: =3412*3/1000/1000*'EnPI Table'!$B$185+'EnPI Table'!$D$185+'EnPI Table'!$F$185 -> 0 | AE87: =3412*3/1000/1000*'EnPI Table'!$B$197+'EnPI Table'!$D$197+'EnPI Table'!$F$197 -> 0 | AF87: =3412*3/1000/1000*'EnPI Table'!$B$209+'EnPI Table'!$D$209+'EnPI Table'!$F$209 -> 0 | AG87: =3412*3/1000/1000*'EnPI Table'!$B$221+'EnPI Table'!$D$221+'EnPI Table'!$F$221 -> 0 | AH87: =3412*3/1000/1000*'EnPI Table'!$B$233+'EnPI Table'!$D$233+'EnPI Table'!$F$233 -> 0 | AI87: =3412*3/1000/1000*'EnPI Table'!$B$245+'EnPI Table'!$D$245+'EnPI Table'!$F$245 -> 0 | AJ87: =3412*3/1000/1000*'EnPI Table'!$B$257+'EnPI Table'!$D$257+'EnPI Table'!$F$257 -> 0 | AK87: =3412*3/1000/1000*'EnPI Table'!$B$269+'EnPI Table'!$D$269+'EnPI Table'!$F$269 -> 0 | AL87: =3412*3/1000/1000*'EnPI Table'!$B$281+'EnPI Table'!$D$281+'EnPI Table'!$F$281 -> 0 | AM87: =3412*3/1000/1000*'EnPI Table'!$B$293+'EnPI Table'!$D$293+'EnPI Table'!$F$293 -> 0 | AN87: =3412*3/1000/1000*'EnPI Table'!$B$305+'EnPI Table'!$D$305+'EnPI Table'!$F$305 -> 0
P88: =3412*3/1000/1000*'EnPI Table'!$B$18+'EnPI Table'!$D$18+'EnPI Table'!$F$18 -> 0 | Q88: =3412*3/1000/1000*'EnPI Table'!$B$30+'EnPI Table'!$D$30+'EnPI Table'!$F$30 -> 0 | R88: =3412*3/1000/1000*'EnPI Table'!$B$42+'EnPI Table'!$D$42+'EnPI Table'!$F$42 -> 0 | S88: =3412*3/1000/1000*'EnPI Table'!$B$54+'EnPI Table'!$D$54+'EnPI Table'!$F$54 -> 0 | T88: =3412*3/1000/1000*'EnPI Table'!$B$66+'EnPI Table'!$D$66+'EnPI Table'!$F$66 -> 0 | U88: =3412*3/1000/1000*'EnPI Table'!$B$78+'EnPI Table'!$D$78+'EnPI Table'!$F$78 -> 0 | V88: =3412*3/1000/1000*'EnPI Table'!$B$90+'EnPI Table'!$D$90+'EnPI Table'!$F$90 -> 0 | W88: =3412*3/1000/1000*'EnPI Table'!$B$102+'EnPI Table'!$D$102+'EnPI Table'!$F$102 -> 0 | X88: =3412*3/1000/1000*'EnPI Table'!$B$114+'EnPI Table'!$D$114+'EnPI Table'!$F$114 -> 2800.94748 | Y88: =3412*3/1000/1000*'EnPI Table'!$B$126+'EnPI Table'!$D$126+'EnPI Table'!$F$126 -> 2311.7944 | Z88: =3412*3/1000/1000*'EnPI Table'!$B$138+'EnPI Table'!$D$138+'EnPI Table'!$F$138 -> 2162.8312 | AA88: =3412*3/1000/1000*'EnPI Table'!$B$150+'EnPI Table'!$D$150+'EnPI Table'!$F$150 -> 0 | AB88: =3412*3/1000/1000*'EnPI Table'!$B$162+'EnPI Table'!$D$162+'EnPI Table'!$F$162 -> 0 | AC88: =3412*3/1000/1000*'EnPI Table'!$B$174+'EnPI Table'!$D$174+'EnPI Table'!$F$174 -> 0 | AD88: =3412*3/1000/1000*'EnPI Table'!$B$186+'EnPI Table'!$D$186+'EnPI Table'!$F$186 -> 0 | AE88: =3412*3/1000/1000*'EnPI Table'!$B$198+'EnPI Table'!$D$198+'EnPI Table'!$F$198 -> 0 | AF88: =3412*3/1000/1000*'EnPI Table'!$B$210+'EnPI Table'!$D$210+'EnPI Table'!$F$210 -> 0 | AG88: =3412*3/1000/1000*'EnPI Table'!$B$222+'EnPI Table'!$D$222+'EnPI Table'!$F$222 -> 0 | AH88: =3412*3/1000/1000*'EnPI Table'!$B$234+'EnPI Table'!$D$234+'EnPI Table'!$F$234 -> 0 | AI88: =3412*3/1000/1000*'EnPI Table'!$B$246+'EnPI Table'!$D$246+'EnPI Table'!$F$246 -> 0 | AJ88: =3412*3/1000/1000*'EnPI Table'!$B$258+'EnPI Table'!$D$258+'EnPI Table'!$F$258 -> 0 | AK88: =3412*3/1000/1000*'EnPI Table'!$B$270+'EnPI Table'!$D$270+'EnPI Table'!$F$270 -> 0 | AL88: =3412*3/1000/1000*'EnPI Table'!$B$282+'EnPI Table'!$D$282+'EnPI Table'!$F$282 -> 0 | AM88: =3412*3/1000/1000*'EnPI Table'!$B$294+'EnPI Table'!$D$294+'EnPI Table'!$F$294 -> 0 | AN88: =3412*3/1000/1000*'EnPI Table'!$B$306+'EnPI Table'!$D$306+'EnPI Table'!$F$306 -> 0
P89: =3412*3/1000/1000*'EnPI Table'!$B$19+'EnPI Table'!$D$19+'EnPI Table'!$F$19 -> 0 | Q89: =3412*3/1000/1000*'EnPI Table'!$B$31+'EnPI Table'!$D$31+'EnPI Table'!$F$31 -> 0 | R89: =3412*3/1000/1000*'EnPI Table'!$B$43+'EnPI Table'!$D$43+'EnPI Table'!$F$43 -> 0 | S89: =3412*3/1000/1000*'EnPI Table'!$B$55+'EnPI Table'!$D$55+'EnPI Table'!$F$55 -> 0 | T89: =3412*3/1000/1000*'EnPI Table'!$B$67+'EnPI Table'!$D$67+'EnPI Table'!$F$67 -> 0 | U89: =3412*3/1000/1000*'EnPI Table'!$B$79+'EnPI Table'!$D$79+'EnPI Table'!$F$79 -> 0 | V89: =3412*3/1000/1000*'EnPI Table'!$B$91+'EnPI Table'!$D$91+'EnPI Table'!$F$91 -> 0 | W89: =3412*3/1000/1000*'EnPI Table'!$B$103+'EnPI Table'!$D$103+'EnPI Table'!$F$103 -> 0 | X89: =3412*3/1000/1000*'EnPI Table'!$B$115+'EnPI Table'!$D$115+'EnPI Table'!$F$115 -> 2986.347876 | Y89: =3412*3/1000/1000*'EnPI Table'!$B$127+'EnPI Table'!$D$127+'EnPI Table'!$F$127 -> 3559.690464 | Z89: =3412*3/1000/1000*'EnPI Table'!$B$139+'EnPI Table'!$D$139+'EnPI Table'!$F$139 -> 2254.77502 | AA89: =3412*3/1000/1000*'EnPI Table'!$B$151+'EnPI Table'!$D$151+'EnPI Table'!$F$151 -> 0 | AB89: =3412*3/1000/1000*'EnPI Table'!$B$163+'EnPI Table'!$D$163+'EnPI Table'!$F$163 -> 0 | AC89: =3412*3/1000/1000*'EnPI Table'!$B$175+'EnPI Table'!$D$175+'EnPI Table'!$F$175 -> 0 | AD89: =3412*3/1000/1000*'EnPI Table'!$B$187+'EnPI Table'!$D$187+'EnPI Table'!$F$187 -> 0 | AE89: =3412*3/1000/1000*'EnPI Table'!$B$199+'EnPI Table'!$D$199+'EnPI Table'!$F$199 -> 0 | AF89: =3412*3/1000/1000*'EnPI Table'!$B$211+'EnPI Table'!$D$211+'EnPI Table'!$F$211 -> 0 | AG89: =3412*3/1000/1000*'EnPI Table'!$B$223+'EnPI Table'!$D$223+'EnPI Table'!$F$223 -> 0 | AH89: =3412*3/1000/1000*'EnPI Table'!$B$235+'EnPI Table'!$D$235+'EnPI Table'!$F$235 -> 0 | AI89: =3412*3/1000/1000*'EnPI Table'!$B$247+'EnPI Table'!$D$247+'EnPI Table'!$F$247 -> 0 | AJ89: =3412*3/1000/1000*'EnPI Table'!$B$259+'EnPI Table'!$D$259+'EnPI Table'!$F$259 -> 0 | AK89: =3412*3/1000/1000*'EnPI Table'!$B$271+'EnPI Table'!$D$271+'EnPI Table'!$F$271 -> 0 | AL89: =3412*3/1000/1000*'EnPI Table'!$B$283+'EnPI Table'!$D$283+'EnPI Table'!$F$283 -> 0 | AM89: =3412*3/1000/1000*'EnPI Table'!$B$295+'EnPI Table'!$D$295+'EnPI Table'!$F$295 -> 0 | AN89: =3412*3/1000/1000*'EnPI Table'!$B$307+'EnPI Table'!$D$307+'EnPI Table'!$F$307 -> 0
P90: =3412*3/1000/1000*'EnPI Table'!$B$20+'EnPI Table'!$D$20+'EnPI Table'!$F$20 -> 0 | Q90: =3412*3/1000/1000*'EnPI Table'!$B$32+'EnPI Table'!$D$32+'EnPI Table'!$F$32 -> 0 | R90: =3412*3/1000/1000*'EnPI Table'!$B$44+'EnPI Table'!$D$44+'EnPI Table'!$F$44 -> 0 | S90: =3412*3/1000/1000*'EnPI Table'!$B$56+'EnPI Table'!$D$56+'EnPI Table'!$F$56 -> 0 | T90: =3412*3/1000/1000*'EnPI Table'!$B$68+'EnPI Table'!$D$68+'EnPI Table'!$F$68 -> 0 | U90: =3412*3/1000/1000*'EnPI Table'!$B$80+'EnPI Table'!$D$80+'EnPI Table'!$F$80 -> 0 | V90: =3412*3/1000/1000*'EnPI Table'!$B$92+'EnPI Table'!$D$92+'EnPI Table'!$F$92 -> 0 | W90: =3412*3/1000/1000*'EnPI Table'!$B$104+'EnPI Table'!$D$104+'EnPI Table'!$F$104 -> 0 | X90: =3412*3/1000/1000*'EnPI Table'!$B$116+'EnPI Table'!$D$116+'EnPI Table'!$F$116 -> 3549.63534 | Y90: =3412*3/1000/1000*'EnPI Table'!$B$128+'EnPI Table'!$D$128+'EnPI Table'!$F$128 -> 2533.180984 | Z90: =3412*3/1000/1000*'EnPI Table'!$B$140+'EnPI Table'!$D$140+'EnPI Table'!$F$140 -> 2518.20612 | AA90: =3412*3/1000/1000*'EnPI Table'!$B$152+'EnPI Table'!$D$152+'EnPI Table'!$F$152 -> 0 | AB90: =3412*3/1000/1000*'EnPI Table'!$B$164+'EnPI Table'!$D$164+'EnPI Table'!$F$164 -> 0 | AC90: =3412*3/1000/1000*'EnPI Table'!$B$176+'EnPI Table'!$D$176+'EnPI Table'!$F$176 -> 0 | AD90: =3412*3/1000/1000*'EnPI Table'!$B$188+'EnPI Table'!$D$188+'EnPI Table'!$F$188 -> 0 | AE90: =3412*3/1000/1000*'EnPI Table'!$B$200+'EnPI Table'!$D$200+'EnPI Table'!$F$200 -> 0 | AF90: =3412*3/1000/1000*'EnPI Table'!$B$212+'EnPI Table'!$D$212+'EnPI Table'!$F$212 -> 0 | AG90: =3412*3/1000/1000*'EnPI Table'!$B$224+'EnPI Table'!$D$224+'EnPI Table'!$F$224 -> 0 | AH90: =3412*3/1000/1000*'EnPI Table'!$B$236+'EnPI Table'!$D$236+'EnPI Table'!$F$236 -> 0 | AI90: =3412*3/1000/1000*'EnPI Table'!$B$248+'EnPI Table'!$D$248+'EnPI Table'!$F$248 -> 0 | AJ90: =3412*3/1000/1000*'EnPI Table'!$B$260+'EnPI Table'!$D$260+'EnPI Table'!$F$260 -> 0 | AK90: =3412*3/1000/1000*'EnPI Table'!$B$272+'EnPI Table'!$D$272+'EnPI Table'!$F$272 -> 0 | AL90: =3412*3/1000/1000*'EnPI Table'!$B$284+'EnPI Table'!$D$284+'EnPI Table'!$F$284 -> 0 | AM90: =3412*3/1000/1000*'EnPI Table'!$B$296+'EnPI Table'!$D$296+'EnPI Table'!$F$296 -> 0 | AN90: =3412*3/1000/1000*'EnPI Table'!$B$308+'EnPI Table'!$D$308+'EnPI Table'!$F$308 -> 0
P91: =3412*3/1000/1000*'EnPI Table'!$B$21+'EnPI Table'!$D$21+'EnPI Table'!$F$21 -> 0 | Q91: =3412*3/1000/1000*'EnPI Table'!$B$33+'EnPI Table'!$D$33+'EnPI Table'!$F$33 -> 0 | R91: =3412*3/1000/1000*'EnPI Table'!$B$45+'EnPI Table'!$D$45+'EnPI Table'!$F$45 -> 0 | S91: =3412*3/1000/1000*'EnPI Table'!$B$57+'EnPI Table'!$D$57+'EnPI Table'!$F$57 -> 0 | T91: =3412*3/1000/1000*'EnPI Table'!$B$69+'EnPI Table'!$D$69+'EnPI Table'!$F$69 -> 0 | U91: =3412*3/1000/1000*'EnPI Table'!$B$81+'EnPI Table'!$D$81+'EnPI Table'!$F$81 -> 0 | V91: =3412*3/1000/1000*'EnPI Table'!$B$93+'EnPI Table'!$D$93+'EnPI Table'!$F$93 -> 0 | W91: =3412*3/1000/1000*'EnPI Table'!$B$105+'EnPI Table'!$D$105+'EnPI Table'!$F$105 -> 0 | X91: =3412*3/1000/1000*'EnPI Table'!$B$117+'EnPI Table'!$D$117+'EnPI Table'!$F$117 -> 2550.5112 | Y91: =3412*3/1000/1000*'EnPI Table'!$B$129+'EnPI Table'!$D$129+'EnPI Table'!$F$129 -> 2031.839456 | Z91: =3412*3/1000/1000*'EnPI Table'!$B$141+'EnPI Table'!$D$141+'EnPI Table'!$F$141 -> 1958.190768 | AA91: =3412*3/1000/1000*'EnPI Table'!$B$153+'EnPI Table'!$D$153+'EnPI Table'!$F$153 -> 0 | AB91: =3412*3/1000/1000*'EnPI Table'!$B$165+'EnPI Table'!$D$165+'EnPI Table'!$F$165 -> 0 | AC91: =3412*3/1000/1000*'EnPI Table'!$B$177+'EnPI Table'!$D$177+'EnPI Table'!$F$177 -> 0 | AD91: =3412*3/1000/1000*'EnPI Table'!$B$189+'EnPI Table'!$D$189+'EnPI Table'!$F$189 -> 0 | AE91: =3412*3/1000/1000*'EnPI Table'!$B$201+'EnPI Table'!$D$201+'EnPI Table'!$F$201 -> 0 | AF91: =3412*3/1000/1000*'EnPI Table'!$B$213+'EnPI Table'!$D$213+'EnPI Table'!$F$213 -> 0 | AG91: =3412*3/1000/1000*'EnPI Table'!$B$225+'EnPI Table'!$D$225+'EnPI Table'!$F$225 -> 0 | AH91: =3412*3/1000/1000*'EnPI Table'!$B$237+'EnPI Table'!$D$237+'EnPI Table'!$F$237 -> 0 | AI91: =3412*3/1000/1000*'EnPI Table'!$B$249+'EnPI Table'!$D$249+'EnPI Table'!$F$249 -> 0 | AJ91: =3412*3/1000/1000*'EnPI Table'!$B$261+'EnPI Table'!$D$261+'EnPI Table'!$F$261 -> 0 | AK91: =3412*3/1000/1000*'EnPI Table'!$B$273+'EnPI Table'!$D$273+'EnPI Table'!$F$273 -> 0 | AL91: =3412*3/1000/1000*'EnPI Table'!$B$285+'EnPI Table'!$D$285+'EnPI Table'!$F$285 -> 0 | AM91: =3412*3/1000/1000*'EnPI Table'!$B$297+'EnPI Table'!$D$297+'EnPI Table'!$F$297 -> 0 | AN91: =3412*3/1000/1000*'EnPI Table'!$B$309+'EnPI Table'!$D$309+'EnPI Table'!$F$309 -> 0
P93: ='EnPI Table'!$C$10+'EnPI Table'!$E$10+'EnPI Table'!$G$10 -> 0 | Q93: ='EnPI Table'!$C$22+'EnPI Table'!$E$22+'EnPI Table'!$G$22 -> 0 | R93: ='EnPI Table'!$C$34+'EnPI Table'!$E$34+'EnPI Table'!$G$34 -> 0 | S93: ='EnPI Table'!$C$46+'EnPI Table'!$E$46+'EnPI Table'!$G$46 -> 0 | T93: ='EnPI Table'!$C$58+'EnPI Table'!$E$58+'EnPI Table'!$G$58 -> 0 | U93: ='EnPI Table'!$C$70+'EnPI Table'!$E$70+'EnPI Table'!$G$70 -> 0 | V93: ='EnPI Table'!$C$82+'EnPI Table'!$E$82+'EnPI Table'!$G$82 -> 0 | W93: ='EnPI Table'!$C$94+'EnPI Table'!$E$94+'EnPI Table'!$G$94 -> 0 | X93: ='EnPI Table'!$C$106+'EnPI Table'!$E$106+'EnPI Table'!$G$106 -> 21030.55 | Y93: ='EnPI Table'!$C$118+'EnPI Table'!$E$118+'EnPI Table'!$G$118 -> 18469.46 | Z93: ='EnPI Table'!$C$130+'EnPI Table'!$E$130+'EnPI Table'!$G$130 -> 28517.71 | AA93: ='EnPI Table'!$C$142+'EnPI Table'!$E$142+'EnPI Table'!$G$142 -> 0 | AB93: ='EnPI Table'!$C$154+'EnPI Table'!$E$154+'EnPI Table'!$G$154 -> 0 | AC93: ='EnPI Table'!$C$166+'EnPI Table'!$E$166+'EnPI Table'!$G$166 -> 0 | AD93: ='EnPI Table'!$C$178+'EnPI Table'!$E$178+'EnPI Table'!$G$178 -> 0 | AE93: ='EnPI Table'!$C$190+'EnPI Table'!$E$190+'EnPI Table'!$G$190 -> 0 | AF93: ='EnPI Table'!$C$202+'EnPI Table'!$E$202+'EnPI Table'!$G$202 -> 0 | AG93: ='EnPI Table'!$C$214+'EnPI Table'!$E$214+'EnPI Table'!$G$214 -> 0 | AH93: ='EnPI Table'!$C$226+'EnPI Table'!$E$226+'EnPI Table'!$G$226 -> 0 | AI93: ='EnPI Table'!$C$238+'EnPI Table'!$E$238+'EnPI Table'!$G$238 -> 0 | AJ93: ='EnPI Table'!$C$250+'EnPI Table'!$E$250+'EnPI Table'!$G$250 -> 0 | AK93: ='EnPI Table'!$C$262+'EnPI Table'!$E$262+'EnPI Table'!$G$262 -> 0 | AL93: ='EnPI Table'!$C$274+'EnPI Table'!$E$274+'EnPI Table'!$G$274 -> 0 | AM93: ='EnPI Table'!$C$286+'EnPI Table'!$E$286+'EnPI Table'!$G$286 -> 0 | AN93: ='EnPI Table'!$C$298+'EnPI Table'!$E$298+'EnPI Table'!$G$298 -> 0
P94: ='EnPI Table'!$C$11+'EnPI Table'!$E$11+'EnPI Table'!$G$11 -> 0 | Q94: ='EnPI Table'!$C$23+'EnPI Table'!$E$23+'EnPI Table'!$G$23 -> 0 | R94: ='EnPI Table'!$C$35+'EnPI Table'!$E$35+'EnPI Table'!$G$35 -> 0 | S94: ='EnPI Table'!$C$47+'EnPI Table'!$E$47+'EnPI Table'!$G$47 -> 0 | T94: ='EnPI Table'!$C$59+'EnPI Table'!$E$59+'EnPI Table'!$G$59 -> 0 | U94: ='EnPI Table'!$C$71+'EnPI Table'!$E$71+'EnPI Table'!$G$71 -> 0 | V94: ='EnPI Table'!$C$83+'EnPI Table'!$E$83+'EnPI Table'!$G$83 -> 0 | W94: ='EnPI Table'!$C$95+'EnPI Table'!$E$95+'EnPI Table'!$G$95 -> 0 | X94: ='EnPI Table'!$C$107+'EnPI Table'!$E$107+'EnPI Table'!$G$107 -> 17479.9 | Y94: ='EnPI Table'!$C$119+'EnPI Table'!$E$119+'EnPI Table'!$G$119 -> 24727.61 | Z94: ='EnPI Table'!$C$131+'EnPI Table'!$E$131+'EnPI Table'!$G$131 -> 19392.72 | AA94: ='EnPI Table'!$C$143+'EnPI Table'!$E$143+'EnPI Table'!$G$143 -> 0 | AB94: ='EnPI Table'!$C$155+'EnPI Table'!$E$155+'EnPI Table'!$G$155 -> 0 | AC94: ='EnPI Table'!$C$167+'EnPI Table'!$E$167+'EnPI Table'!$G$167 -> 0 | AD94: ='EnPI Table'!$C$179+'EnPI Table'!$E$179+'EnPI Table'!$G$179 -> 0 | AE94: ='EnPI Table'!$C$191+'EnPI Table'!$E$191+'EnPI Table'!$G$191 -> 0 | AF94: ='EnPI Table'!$C$203+'EnPI Table'!$E$203+'EnPI Table'!$G$203 -> 0 | AG94: ='EnPI Table'!$C$215+'EnPI Table'!$E$215+'EnPI Table'!$G$215 -> 0 | AH94: ='EnPI Table'!$C$227+'EnPI Table'!$E$227+'EnPI Table'!$G$227 -> 0 | AI94: ='EnPI Table'!$C$239+'EnPI Table'!$E$239+'EnPI Table'!$G$239 -> 0 | AJ94: ='EnPI Table'!$C$251+'EnPI Table'!$E$251+'EnPI Table'!$G$251 -> 0 | AK94: ='EnPI Table'!$C$263+'EnPI Table'!$E$263+'EnPI Table'!$G$263 -> 0 | AL94: ='EnPI Table'!$C$275+'EnPI Table'!$E$275+'EnPI Table'!$G$275 -> 0 | AM94: ='EnPI Table'!$C$287+'EnPI Table'!$E$287+'EnPI Table'!$G$287 -> 0 | AN94: ='EnPI Table'!$C$299+'EnPI Table'!$E$299+'EnPI Table'!$G$299 -> 0
P95: ='EnPI Table'!$C$12+'EnPI Table'!$E$12+'EnPI Table'!$G$12 -> 0 | Q95: ='EnPI Table'!$C$24+'EnPI Table'!$E$24+'EnPI Table'!$G$24 -> 0 | R95: ='EnPI Table'!$C$36+'EnPI Table'!$E$36+'EnPI Table'!$G$36 -> 0 | S95: ='EnPI Table'!$C$48+'EnPI Table'!$E$48+'EnPI Table'!$G$48 -> 0 | T95: ='EnPI Table'!$C$60+'EnPI Table'!$E$60+'EnPI Table'!$G$60 -> 0 | U95: ='EnPI Table'!$C$72+'EnPI Table'!$E$72+'EnPI Table'!$G$72 -> 0 | V95: ='EnPI Table'!$C$84+'EnPI Table'!$E$84+'EnPI Table'!$G$84 -> 0 | W95: ='EnPI Table'!$C$96+'EnPI Table'!$E$96+'EnPI Table'!$G$96 -> 0 | X95: ='EnPI Table'!$C$108+'EnPI Table'!$E$108+'EnPI Table'!$G$108 -> 27449.72 | Y95: ='EnPI Table'!$C$120+'EnPI Table'!$E$120+'EnPI Table'!$G$120 -> 25710.9 | Z95: ='EnPI Table'!$C$132+'EnPI Table'!$E$132+'EnPI Table'!$G$132 -> 25210.99 | AA95: ='EnPI Table'!$C$144+'EnPI Table'!$E$144+'EnPI Table'!$G$144 -> 0 | AB95: ='EnPI Table'!$C$156+'EnPI Table'!$E$156+'EnPI Table'!$G$156 -> 0 | AC95: ='EnPI Table'!$C$168+'EnPI Table'!$E$168+'EnPI Table'!$G$168 -> 0 | AD95: ='EnPI Table'!$C$180+'EnPI Table'!$E$180+'EnPI Table'!$G$180 -> 0 | AE95: ='EnPI Table'!$C$192+'EnPI Table'!$E$192+'EnPI Table'!$G$192 -> 0 | AF95: ='EnPI Table'!$C$204+'EnPI Table'!$E$204+'EnPI Table'!$G$204 -> 0 | AG95: ='EnPI Table'!$C$216+'EnPI Table'!$E$216+'EnPI Table'!$G$216 -> 0 | AH95: ='EnPI Table'!$C$228+'EnPI Table'!$E$228+'EnPI Table'!$G$228 -> 0 | AI95: ='EnPI Table'!$C$240+'EnPI Table'!$E$240+'EnPI Table'!$G$240 -> 0 | AJ95: ='EnPI Table'!$C$252+'EnPI Table'!$E$252+'EnPI Table'!$G$252 -> 0 | AK95: ='EnPI Table'!$C$264+'EnPI Table'!$E$264+'EnPI Table'!$G$264 -> 0 | AL95: ='EnPI Table'!$C$276+'EnPI Table'!$E$276+'EnPI Table'!$G$276 -> 0 | AM95: ='EnPI Table'!$C$288+'EnPI Table'!$E$288+'EnPI Table'!$G$288 -> 0 | AN95: ='EnPI Table'!$C$300+'EnPI Table'!$E$300+'EnPI Table'!$G$300 -> 0
P96: ='EnPI Table'!$C$13+'EnPI Table'!$E$13+'EnPI Table'!$G$13 -> 0 | Q96: ='EnPI Table'!$C$25+'EnPI Table'!$E$25+'EnPI Table'!$G$25 -> 0 | R96: ='EnPI Table'!$C$37+'EnPI Table'!$E$37+'EnPI Table'!$G$37 -> 0 | S96: ='EnPI Table'!$C$49+'EnPI Table'!$E$49+'EnPI Table'!$G$49 -> 0 | T96: ='EnPI Table'!$C$61+'EnPI Table'!$E$61+'EnPI Table'!$G$61 -> 0 | U96: ='EnPI Table'!$C$73+'EnPI Table'!$E$73+'EnPI Table'!$G$73 -> 0 | V96: ='EnPI Table'!$C$85+'EnPI Table'!$E$85+'EnPI Table'!$G$85 -> 0 | W96: ='EnPI Table'!$C$97+'EnPI Table'!$E$97+'EnPI Table'!$G$97 -> 0 | X96: ='EnPI Table'!$C$109+'EnPI Table'!$E$109+'EnPI Table'!$G$109 -> 23570.9 | Y96: ='EnPI Table'!$C$121+'EnPI Table'!$E$121+'EnPI Table'!$G$121 -> 29909.38 | Z96: ='EnPI Table'!$C$133+'EnPI Table'!$E$133+'EnPI Table'!$G$133 -> 30033.67 | AA96: ='EnPI Table'!$C$145+'EnPI Table'!$E$145+'EnPI Table'!$G$145 -> 0 | AB96: ='EnPI Table'!$C$157+'EnPI Table'!$E$157+'EnPI Table'!$G$157 -> 0 | AC96: ='EnPI Table'!$C$169+'EnPI Table'!$E$169+'EnPI Table'!$G$169 -> 0 | AD96: ='EnPI Table'!$C$181+'EnPI Table'!$E$181+'EnPI Table'!$G$181 -> 0 | AE96: ='EnPI Table'!$C$193+'EnPI Table'!$E$193+'EnPI Table'!$G$193 -> 0 | AF96: ='EnPI Table'!$C$205+'EnPI Table'!$E$205+'EnPI Table'!$G$205 -> 0 | AG96: ='EnPI Table'!$C$217+'EnPI Table'!$E$217+'EnPI Table'!$G$217 -> 0 | AH96: ='EnPI Table'!$C$229+'EnPI Table'!$E$229+'EnPI Table'!$G$229 -> 0 | AI96: ='EnPI Table'!$C$241+'EnPI Table'!$E$241+'EnPI Table'!$G$241 -> 0 | AJ96: ='EnPI Table'!$C$253+'EnPI Table'!$E$253+'EnPI Table'!$G$253 -> 0 | AK96: ='EnPI Table'!$C$265+'EnPI Table'!$E$265+'EnPI Table'!$G$265 -> 0 | AL96: ='EnPI Table'!$C$277+'EnPI Table'!$E$277+'EnPI Table'!$G$277 -> 0 | AM96: ='EnPI Table'!$C$289+'EnPI Table'!$E$289+'EnPI Table'!$G$289 -> 0 | AN96: ='EnPI Table'!$C$301+'EnPI Table'!$E$301+'EnPI Table'!$G$301 -> 0
P97: ='EnPI Table'!$C$14+'EnPI Table'!$E$14+'EnPI Table'!$G$14 -> 0 | Q97: ='EnPI Table'!$C$26+'EnPI Table'!$E$26+'EnPI Table'!$G$26 -> 0 | R97: ='EnPI Table'!$C$38+'EnPI Table'!$E$38+'EnPI Table'!$G$38 -> 0 | S97: ='EnPI Table'!$C$50+'EnPI Table'!$E$50+'EnPI Table'!$G$50 -> 0 | T97: ='EnPI Table'!$C$62+'EnPI Table'!$E$62+'EnPI Table'!$G$62 -> 0 | U97: ='EnPI Table'!$C$74+'EnPI Table'!$E$74+'EnPI Table'!$G$74 -> 0 | V97: ='EnPI Table'!$C$86+'EnPI Table'!$E$86+'EnPI Table'!$G$86 -> 0 | W97: ='EnPI Table'!$C$98+'EnPI Table'!$E$98+'EnPI Table'!$G$98 -> 0 | X97: ='EnPI Table'!$C$110+'EnPI Table'!$E$110+'EnPI Table'!$G$110 -> 23980.91 | Y97: ='EnPI Table'!$C$122+'EnPI Table'!$E$122+'EnPI Table'!$G$122 -> 25589.52 | Z97: ='EnPI Table'!$C$134+'EnPI Table'!$E$134+'EnPI Table'!$G$134 -> 25726.51 | AA97: ='EnPI Table'!$C$146+'EnPI Table'!$E$146+'EnPI Table'!$G$146 -> 0 | AB97: ='EnPI Table'!$C$158+'EnPI Table'!$E$158+'EnPI Table'!$G$158 -> 0 | AC97: ='EnPI Table'!$C$170+'EnPI Table'!$E$170+'EnPI Table'!$G$170 -> 0 | AD97: ='EnPI Table'!$C$182+'EnPI Table'!$E$182+'EnPI Table'!$G$182 -> 0 | AE97: ='EnPI Table'!$C$194+'EnPI Table'!$E$194+'EnPI Table'!$G$194 -> 0 | AF97: ='EnPI Table'!$C$206+'EnPI Table'!$E$206+'EnPI Table'!$G$206 -> 0 | AG97: ='EnPI Table'!$C$218+'EnPI Table'!$E$218+'EnPI Table'!$G$218 -> 0 | AH97: ='EnPI Table'!$C$230+'EnPI Table'!$E$230+'EnPI Table'!$G$230 -> 0 | AI97: ='EnPI Table'!$C$242+'EnPI Table'!$E$242+'EnPI Table'!$G$242 -> 0 | AJ97: ='EnPI Table'!$C$254+'EnPI Table'!$E$254+'EnPI Table'!$G$254 -> 0 | AK97: ='EnPI Table'!$C$266+'EnPI Table'!$E$266+'EnPI Table'!$G$266 -> 0 | AL97: ='EnPI Table'!$C$278+'EnPI Table'!$E$278+'EnPI Table'!$G$278 -> 0 | AM97: ='EnPI Table'!$C$290+'EnPI Table'!$E$290+'EnPI Table'!$G$290 -> 0 | AN97: ='EnPI Table'!$C$302+'EnPI Table'!$E$302+'EnPI Table'!$G$302 -> 0
P98: ='EnPI Table'!$C$15+'EnPI Table'!$E$15+'EnPI Table'!$G$15 -> 0 | Q98: ='EnPI Table'!$C$27+'EnPI Table'!$E$27+'EnPI Table'!$G$27 -> 0 | R98: ='EnPI Table'!$C$39+'EnPI Table'!$E$39+'EnPI Table'!$G$39 -> 0 | S98: ='EnPI Table'!$C$51+'EnPI Table'!$E$51+'EnPI Table'!$G$51 -> 0 | T98: ='EnPI Table'!$C$63+'EnPI Table'!$E$63+'EnPI Table'!$G$63 -> 0 | U98: ='EnPI Table'!$C$75+'EnPI Table'!$E$75+'EnPI Table'!$G$75 -> 0 | V98: ='EnPI Table'!$C$87+'EnPI Table'!$E$87+'EnPI Table'!$G$87 -> 0 | W98: ='EnPI Table'!$C$99+'EnPI Table'!$E$99+'EnPI Table'!$G$99 -> 0 | X98: ='EnPI Table'!$C$111+'EnPI Table'!$E$111+'EnPI Table'!$G$111 -> 19575.37 | Y98: ='EnPI Table'!$C$123+'EnPI Table'!$E$123+'EnPI Table'!$G$123 -> 19671.58 | Z98: ='EnPI Table'!$C$135+'EnPI Table'!$E$135+'EnPI Table'!$G$135 -> 20319.47 | AA98: ='EnPI Table'!$C$147+'EnPI Table'!$E$147+'EnPI Table'!$G$147 -> 0 | AB98: ='EnPI Table'!$C$159+'EnPI Table'!$E$159+'EnPI Table'!$G$159 -> 0 | AC98: ='EnPI Table'!$C$171+'EnPI Table'!$E$171+'EnPI Table'!$G$171 -> 0 | AD98: ='EnPI Table'!$C$183+'EnPI Table'!$E$183+'EnPI Table'!$G$183 -> 0 | AE98: ='EnPI Table'!$C$195+'EnPI Table'!$E$195+'EnPI Table'!$G$195 -> 0 | AF98: ='EnPI Table'!$C$207+'EnPI Table'!$E$207+'EnPI Table'!$G$207 -> 0 | AG98: ='EnPI Table'!$C$219+'EnPI Table'!$E$219+'EnPI Table'!$G$219 -> 0 | AH98: ='EnPI Table'!$C$231+'EnPI Table'!$E$231+'EnPI Table'!$G$231 -> 0 | AI98: ='EnPI Table'!$C$243+'EnPI Table'!$E$243+'EnPI Table'!$G$243 -> 0 | AJ98: ='EnPI Table'!$C$255+'EnPI Table'!$E$255+'EnPI Table'!$G$255 -> 0 | AK98: ='EnPI Table'!$C$267+'EnPI Table'!$E$267+'EnPI Table'!$G$267 -> 0 | AL98: ='EnPI Table'!$C$279+'EnPI Table'!$E$279+'EnPI Table'!$G$279 -> 0 | AM98: ='EnPI Table'!$C$291+'EnPI Table'!$E$291+'EnPI Table'!$G$291 -> 0 | AN98: ='EnPI Table'!$C$303+'EnPI Table'!$E$303+'EnPI Table'!$G$303 -> 0
P99: ='EnPI Table'!$C$16+'EnPI Table'!$E$16+'EnPI Table'!$G$16 -> 0 | Q99: ='EnPI Table'!$C$28+'EnPI Table'!$E$28+'EnPI Table'!$G$28 -> 0 | R99: ='EnPI Table'!$C$40+'EnPI Table'!$E$40+'EnPI Table'!$G$40 -> 0 | S99: ='EnPI Table'!$C$52+'EnPI Table'!$E$52+'EnPI Table'!$G$52 -> 0 | T99: ='EnPI Table'!$C$64+'EnPI Table'!$E$64+'EnPI Table'!$G$64 -> 0 | U99: ='EnPI Table'!$C$76+'EnPI Table'!$E$76+'EnPI Table'!$G$76 -> 0 | V99: ='EnPI Table'!$C$88+'EnPI Table'!$E$88+'EnPI Table'!$G$88 -> 0 | W99: ='EnPI Table'!$C$100+'EnPI Table'!$E$100+'EnPI Table'!$G$100 -> 0 | X99: ='EnPI Table'!$C$112+'EnPI Table'!$E$112+'EnPI Table'!$G$112 -> 21112.66 | Y99: ='EnPI Table'!$C$124+'EnPI Table'!$E$124+'EnPI Table'!$G$124 -> 17780.83 | Z99: ='EnPI Table'!$C$136+'EnPI Table'!$E$136+'EnPI Table'!$G$136 -> 18104.48 | AA99: ='EnPI Table'!$C$148+'EnPI Table'!$E$148+'EnPI Table'!$G$148 -> 0 | AB99: ='EnPI Table'!$C$160+'EnPI Table'!$E$160+'EnPI Table'!$G$160 -> 0 | AC99: ='EnPI Table'!$C$172+'EnPI Table'!$E$172+'EnPI Table'!$G$172 -> 0 | AD99: ='EnPI Table'!$C$184+'EnPI Table'!$E$184+'EnPI Table'!$G$184 -> 0 | AE99: ='EnPI Table'!$C$196+'EnPI Table'!$E$196+'EnPI Table'!$G$196 -> 0 | AF99: ='EnPI Table'!$C$208+'EnPI Table'!$E$208+'EnPI Table'!$G$208 -> 0 | AG99: ='EnPI Table'!$C$220+'EnPI Table'!$E$220+'EnPI Table'!$G$220 -> 0 | AH99: ='EnPI Table'!$C$232+'EnPI Table'!$E$232+'EnPI Table'!$G$232 -> 0 | AI99: ='EnPI Table'!$C$244+'EnPI Table'!$E$244+'EnPI Table'!$G$244 -> 0 | AJ99: ='EnPI Table'!$C$256+'EnPI Table'!$E$256+'EnPI Table'!$G$256 -> 0 | AK99: ='EnPI Table'!$C$268+'EnPI Table'!$E$268+'EnPI Table'!$G$268 -> 0 | AL99: ='EnPI Table'!$C$280+'EnPI Table'!$E$280+'EnPI Table'!$G$280 -> 0 | AM99: ='EnPI Table'!$C$292+'EnPI Table'!$E$292+'EnPI Table'!$G$292 -> 0 | AN99: ='EnPI Table'!$C$304+'EnPI Table'!$E$304+'EnPI Table'!$G$304 -> 0
P100: ='EnPI Table'!$C$17+'EnPI Table'!$E$17+'EnPI Table'!$G$17 -> 0 | Q100: ='EnPI Table'!$C$29+'EnPI Table'!$E$29+'EnPI Table'!$G$29 -> 0 | R100: ='EnPI Table'!$C$41+'EnPI Table'!$E$41+'EnPI Table'!$G$41 -> 0 | S100: ='EnPI Table'!$C$53+'EnPI Table'!$E$53+'EnPI Table'!$G$53 -> 0 | T100: ='EnPI Table'!$C$65+'EnPI Table'!$E$65+'EnPI Table'!$G$65 -> 0 | U100: ='EnPI Table'!$C$77+'EnPI Table'!$E$77+'EnPI Table'!$G$77 -> 0 | V100: ='EnPI Table'!$C$89+'EnPI Table'!$E$89+'EnPI Table'!$G$89 -> 0 | W100: ='EnPI Table'!$C$101+'EnPI Table'!$E$101+'EnPI Table'!$G$101 -> 0 | X100: ='EnPI Table'!$C$113+'EnPI Table'!$E$113+'EnPI Table'!$G$113 -> 28593.22 | Y100: ='EnPI Table'!$C$125+'EnPI Table'!$E$125+'EnPI Table'!$G$125 -> 28031.95 | Z100: ='EnPI Table'!$C$137+'EnPI Table'!$E$137+'EnPI Table'!$G$137 -> 30307.1 | AA100: ='EnPI Table'!$C$149+'EnPI Table'!$E$149+'EnPI Table'!$G$149 -> 0 | AB100: ='EnPI Table'!$C$161+'EnPI Table'!$E$161+'EnPI Table'!$G$161 -> 0 | AC100: ='EnPI Table'!$C$173+'EnPI Table'!$E$173+'EnPI Table'!$G$173 -> 0 | AD100: ='EnPI Table'!$C$185+'EnPI Table'!$E$185+'EnPI Table'!$G$185 -> 0 | AE100: ='EnPI Table'!$C$197+'EnPI Table'!$E$197+'EnPI Table'!$G$197 -> 0 | AF100: ='EnPI Table'!$C$209+'EnPI Table'!$E$209+'EnPI Table'!$G$209 -> 0 | AG100: ='EnPI Table'!$C$221+'EnPI Table'!$E$221+'EnPI Table'!$G$221 -> 0 | AH100: ='EnPI Table'!$C$233+'EnPI Table'!$E$233+'EnPI Table'!$G$233 -> 0 | AI100: ='EnPI Table'!$C$245+'EnPI Table'!$E$245+'EnPI Table'!$G$245 -> 0 | AJ100: ='EnPI Table'!$C$257+'EnPI Table'!$E$257+'EnPI Table'!$G$257 -> 0 | AK100: ='EnPI Table'!$C$269+'EnPI Table'!$E$269+'EnPI Table'!$G$269 -> 0 | AL100: ='EnPI Table'!$C$281+'EnPI Table'!$E$281+'EnPI Table'!$G$281 -> 0 | AM100: ='EnPI Table'!$C$293+'EnPI Table'!$E$293+'EnPI Table'!$G$293 -> 0 | AN100: ='EnPI Table'!$C$305+'EnPI Table'!$E$305+'EnPI Table'!$G$305 -> 0
P101: ='EnPI Table'!$C$18+'EnPI Table'!$E$18+'EnPI Table'!$G$18 -> 0 | Q101: ='EnPI Table'!$C$30+'EnPI Table'!$E$30+'EnPI Table'!$G$30 -> 0 | R101: ='EnPI Table'!$C$42+'EnPI Table'!$E$42+'EnPI Table'!$G$42 -> 0 | S101: ='EnPI Table'!$C$54+'EnPI Table'!$E$54+'EnPI Table'!$G$54 -> 0 | T101: ='EnPI Table'!$C$66+'EnPI Table'!$E$66+'EnPI Table'!$G$66 -> 0 | U101: ='EnPI Table'!$C$78+'EnPI Table'!$E$78+'EnPI Table'!$G$78 -> 0 | V101: ='EnPI Table'!$C$90+'EnPI Table'!$E$90+'EnPI Table'!$G$90 -> 0 | W101: ='EnPI Table'!$C$102+'EnPI Table'!$E$102+'EnPI Table'!$G$102 -> 0 | X101: ='EnPI Table'!$C$114+'EnPI Table'!$E$114+'EnPI Table'!$G$114 -> 37376.1 | Y101: ='EnPI Table'!$C$126+'EnPI Table'!$E$126+'EnPI Table'!$G$126 -> 36314.02 | Z101: ='EnPI Table'!$C$138+'EnPI Table'!$E$138+'EnPI Table'!$G$138 -> 37867.68 | AA101: ='EnPI Table'!$C$150+'EnPI Table'!$E$150+'EnPI Table'!$G$150 -> 0 | AB101: ='EnPI Table'!$C$162+'EnPI Table'!$E$162+'EnPI Table'!$G$162 -> 0 | AC101: ='EnPI Table'!$C$174+'EnPI Table'!$E$174+'EnPI Table'!$G$174 -> 0 | AD101: ='EnPI Table'!$C$186+'EnPI Table'!$E$186+'EnPI Table'!$G$186 -> 0 | AE101: ='EnPI Table'!$C$198+'EnPI Table'!$E$198+'EnPI Table'!$G$198 -> 0 | AF101: ='EnPI Table'!$C$210+'EnPI Table'!$E$210+'EnPI Table'!$G$210 -> 0 | AG101: ='EnPI Table'!$C$222+'EnPI Table'!$E$222+'EnPI Table'!$G$222 -> 0 | AH101: ='EnPI Table'!$C$234+'EnPI Table'!$E$234+'EnPI Table'!$G$234 -> 0 | AI101: ='EnPI Table'!$C$246+'EnPI Table'!$E$246+'EnPI Table'!$G$246 -> 0 | AJ101: ='EnPI Table'!$C$258+'EnPI Table'!$E$258+'EnPI Table'!$G$258 -> 0 | AK101: ='EnPI Table'!$C$270+'EnPI Table'!$E$270+'EnPI Table'!$G$270 -> 0 | AL101: ='EnPI Table'!$C$282+'EnPI Table'!$E$282+'EnPI Table'!$G$282 -> 0 | AM101: ='EnPI Table'!$C$294+'EnPI Table'!$E$294+'EnPI Table'!$G$294 -> 0 | AN101: ='EnPI Table'!$C$306+'EnPI Table'!$E$306+'EnPI Table'!$G$306 -> 0
P102: ='EnPI Table'!$C$19+'EnPI Table'!$E$19+'EnPI Table'!$G$19 -> 0 | Q102: ='EnPI Table'!$C$31+'EnPI Table'!$E$31+'EnPI Table'!$G$31 -> 0 | R102: ='EnPI Table'!$C$43+'EnPI Table'!$E$43+'EnPI Table'!$G$43 -> 0 | S102: ='EnPI Table'!$C$55+'EnPI Table'!$E$55+'EnPI Table'!$G$55 -> 0 | T102: ='EnPI Table'!$C$67+'EnPI Table'!$E$67+'EnPI Table'!$G$67 -> 0 | U102: ='EnPI Table'!$C$79+'EnPI Table'!$E$79+'EnPI Table'!$G$79 -> 0 | V102: ='EnPI Table'!$C$91+'EnPI Table'!$E$91+'EnPI Table'!$G$91 -> 0 | W102: ='EnPI Table'!$C$103+'EnPI Table'!$E$103+'EnPI Table'!$G$103 -> 0 | X102: ='EnPI Table'!$C$115+'EnPI Table'!$E$115+'EnPI Table'!$G$115 -> 35046.69 | Y102: ='EnPI Table'!$C$127+'EnPI Table'!$E$127+'EnPI Table'!$G$127 -> 44024.35 | Z102: ='EnPI Table'!$C$139+'EnPI Table'!$E$139+'EnPI Table'!$G$139 -> 37679.58 | AA102: ='EnPI Table'!$C$151+'EnPI Table'!$E$151+'EnPI Table'!$G$151 -> 0 | AB102: ='EnPI Table'!$C$163+'EnPI Table'!$E$163+'EnPI Table'!$G$163 -> 0 | AC102: ='EnPI Table'!$C$175+'EnPI Table'!$E$175+'EnPI Table'!$G$175 -> 0 | AD102: ='EnPI Table'!$C$187+'EnPI Table'!$E$187+'EnPI Table'!$G$187 -> 0 | AE102: ='EnPI Table'!$C$199+'EnPI Table'!$E$199+'EnPI Table'!$G$199 -> 0 | AF102: ='EnPI Table'!$C$211+'EnPI Table'!$E$211+'EnPI Table'!$G$211 -> 0 | AG102: ='EnPI Table'!$C$223+'EnPI Table'!$E$223+'EnPI Table'!$G$223 -> 0 | AH102: ='EnPI Table'!$C$235+'EnPI Table'!$E$235+'EnPI Table'!$G$235 -> 0 | AI102: ='EnPI Table'!$C$247+'EnPI Table'!$E$247+'EnPI Table'!$G$247 -> 0 | AJ102: ='EnPI Table'!$C$259+'EnPI Table'!$E$259+'EnPI Table'!$G$259 -> 0 | AK102: ='EnPI Table'!$C$271+'EnPI Table'!$E$271+'EnPI Table'!$G$271 -> 0 | AL102: ='EnPI Table'!$C$283+'EnPI Table'!$E$283+'EnPI Table'!$G$283 -> 0 | AM102: ='EnPI Table'!$C$295+'EnPI Table'!$E$295+'EnPI Table'!$G$295 -> 0 | AN102: ='EnPI Table'!$C$307+'EnPI Table'!$E$307+'EnPI Table'!$G$307 -> 0
P103: ='EnPI Table'!$C$20+'EnPI Table'!$E$20+'EnPI Table'!$G$20 -> 0 | Q103: ='EnPI Table'!$C$32+'EnPI Table'!$E$32+'EnPI Table'!$G$32 -> 0 | R103: ='EnPI Table'!$C$44+'EnPI Table'!$E$44+'EnPI Table'!$G$44 -> 0 | S103: ='EnPI Table'!$C$56+'EnPI Table'!$E$56+'EnPI Table'!$G$56 -> 0 | T103: ='EnPI Table'!$C$68+'EnPI Table'!$E$68+'EnPI Table'!$G$68 -> 0 | U103: ='EnPI Table'!$C$80+'EnPI Table'!$E$80+'EnPI Table'!$G$80 -> 0 | V103: ='EnPI Table'!$C$92+'EnPI Table'!$E$92+'EnPI Table'!$G$92 -> 0 | W103: ='EnPI Table'!$C$104+'EnPI Table'!$E$104+'EnPI Table'!$G$104 -> 0 | X103: ='EnPI Table'!$C$116+'EnPI Table'!$E$116+'EnPI Table'!$G$116 -> 40046.97 | Y103: ='EnPI Table'!$C$128+'EnPI Table'!$E$128+'EnPI Table'!$G$128 -> 37534.68 | Z103: ='EnPI Table'!$C$140+'EnPI Table'!$E$140+'EnPI Table'!$G$140 -> 42696.46 | AA103: ='EnPI Table'!$C$152+'EnPI Table'!$E$152+'EnPI Table'!$G$152 -> 0 | AB103: ='EnPI Table'!$C$164+'EnPI Table'!$E$164+'EnPI Table'!$G$164 -> 0 | AC103: ='EnPI Table'!$C$176+'EnPI Table'!$E$176+'EnPI Table'!$G$176 -> 0 | AD103: ='EnPI Table'!$C$188+'EnPI Table'!$E$188+'EnPI Table'!$G$188 -> 0 | AE103: ='EnPI Table'!$C$200+'EnPI Table'!$E$200+'EnPI Table'!$G$200 -> 0 | AF103: ='EnPI Table'!$C$212+'EnPI Table'!$E$212+'EnPI Table'!$G$212 -> 0 | AG103: ='EnPI Table'!$C$224+'EnPI Table'!$E$224+'EnPI Table'!$G$224 -> 0 | AH103: ='EnPI Table'!$C$236+'EnPI Table'!$E$236+'EnPI Table'!$G$236 -> 0 | AI103: ='EnPI Table'!$C$248+'EnPI Table'!$E$248+'EnPI Table'!$G$248 -> 0 | AJ103: ='EnPI Table'!$C$260+'EnPI Table'!$E$260+'EnPI Table'!$G$260 -> 0 | AK103: ='EnPI Table'!$C$272+'EnPI Table'!$E$272+'EnPI Table'!$G$272 -> 0 | AL103: ='EnPI Table'!$C$284+'EnPI Table'!$E$284+'EnPI Table'!$G$284 -> 0 | AM103: ='EnPI Table'!$C$296+'EnPI Table'!$E$296+'EnPI Table'!$G$296 -> 0 | AN103: ='EnPI Table'!$C$308+'EnPI Table'!$E$308+'EnPI Table'!$G$308 -> 0
P104: ='EnPI Table'!$C$21+'EnPI Table'!$E$21+'EnPI Table'!$G$21 -> 0 | Q104: ='EnPI Table'!$C$33+'EnPI Table'!$E$33+'EnPI Table'!$G$33 -> 0 | R104: ='EnPI Table'!$C$45+'EnPI Table'!$E$45+'EnPI Table'!$G$45 -> 0 | S104: ='EnPI Table'!$C$57+'EnPI Table'!$E$57+'EnPI Table'!$G$57 -> 0 | T104: ='EnPI Table'!$C$69+'EnPI Table'!$E$69+'EnPI Table'!$G$69 -> 0 | U104: ='EnPI Table'!$C$81+'EnPI Table'!$E$81+'EnPI Table'!$G$81 -> 0 | V104: ='EnPI Table'!$C$93+'EnPI Table'!$E$93+'EnPI Table'!$G$93 -> 0 | W104: ='EnPI Table'!$C$105+'EnPI Table'!$E$105+'EnPI Table'!$G$105 -> 0 | X104: ='EnPI Table'!$C$117+'EnPI Table'!$E$117+'EnPI Table'!$G$117 -> 34903.29 | Y104: ='EnPI Table'!$C$129+'EnPI Table'!$E$129+'EnPI Table'!$G$129 -> 33541.4 | Z104: ='EnPI Table'!$C$141+'EnPI Table'!$E$141+'EnPI Table'!$G$141 -> 33524.64 | AA104: ='EnPI Table'!$C$153+'EnPI Table'!$E$153+'EnPI Table'!$G$153 -> 0 | AB104: ='EnPI Table'!$C$165+'EnPI Table'!$E$165+'EnPI Table'!$G$165 -> 0 | AC104: ='EnPI Table'!$C$177+'EnPI Table'!$E$177+'EnPI Table'!$G$177 -> 0 | AD104: ='EnPI Table'!$C$189+'EnPI Table'!$E$189+'EnPI Table'!$G$189 -> 0 | AE104: ='EnPI Table'!$C$201+'EnPI Table'!$E$201+'EnPI Table'!$G$201 -> 0 | AF104: ='EnPI Table'!$C$213+'EnPI Table'!$E$213+'EnPI Table'!$G$213 -> 0 | AG104: ='EnPI Table'!$C$225+'EnPI Table'!$E$225+'EnPI Table'!$G$225 -> 0 | AH104: ='EnPI Table'!$C$237+'EnPI Table'!$E$237+'EnPI Table'!$G$237 -> 0 | AI104: ='EnPI Table'!$C$249+'EnPI Table'!$E$249+'EnPI Table'!$G$249 -> 0 | AJ104: ='EnPI Table'!$C$261+'EnPI Table'!$E$261+'EnPI Table'!$G$261 -> 0 | AK104: ='EnPI Table'!$C$273+'EnPI Table'!$E$273+'EnPI Table'!$G$273 -> 0 | AL104: ='EnPI Table'!$C$285+'EnPI Table'!$E$285+'EnPI Table'!$G$285 -> 0 | AM104: ='EnPI Table'!$C$297+'EnPI Table'!$E$297+'EnPI Table'!$G$297 -> 0 | AN104: ='EnPI Table'!$C$309+'EnPI Table'!$E$309+'EnPI Table'!$G$309 -> 0
P110: =3412*3/1000/1000*'EnPI Table'!$B$10+'EnPI Table'!$D$10+'EnPI Table'!$F$10 -> 0 | Q110: =3412*3/1000/1000*'EnPI Table'!$B$22+'EnPI Table'!$D$22+'EnPI Table'!$F$22 -> 0 | R110: =3412*3/1000/1000*'EnPI Table'!$B$34+'EnPI Table'!$D$34+'EnPI Table'!$F$34 -> 0 | S110: =3412*3/1000/1000*'EnPI Table'!$B$46+'EnPI Table'!$D$46+'EnPI Table'!$F$46 -> 0 | T110: =3412*3/1000/1000*'EnPI Table'!$B$58+'EnPI Table'!$D$58+'EnPI Table'!$F$58 -> 0 | U110: =3412*3/1000/1000*'EnPI Table'!$B$70+'EnPI Table'!$D$70+'EnPI Table'!$F$70 -> 0 | V110: =3412*3/1000/1000*'EnPI Table'!$B$82+'EnPI Table'!$D$82+'EnPI Table'!$F$82 -> 0 | W110: =3412*3/1000/1000*'EnPI Table'!$B$94+'EnPI Table'!$D$94+'EnPI Table'!$F$94 -> 0 | X110: =3412*3/1000/1000*'EnPI Table'!$B$106+'EnPI Table'!$D$106+'EnPI Table'!$F$106 -> 1629.62928 | Y110: =3412*3/1000/1000*'EnPI Table'!$B$118+'EnPI Table'!$D$118+'EnPI Table'!$F$118 -> 1307.255136 | Z110: =3412*3/1000/1000*'EnPI Table'!$B$130+'EnPI Table'!$D$130+'EnPI Table'!$F$130 -> 2072.110552 | AA110: =3412*3/1000/1000*'EnPI Table'!$B$142+'EnPI Table'!$D$142+'EnPI Table'!$F$142 -> 0 | AB110: =3412*3/1000/1000*'EnPI Table'!$B$154+'EnPI Table'!$D$154+'EnPI Table'!$F$154 -> 0 | AC110: =3412*3/1000/1000*'EnPI Table'!$B$166+'EnPI Table'!$D$166+'EnPI Table'!$F$166 -> 0 | AD110: =3412*3/1000/1000*'EnPI Table'!$B$178+'EnPI Table'!$D$178+'EnPI Table'!$F$178 -> 0 | AE110: =3412*3/1000/1000*'EnPI Table'!$B$190+'EnPI Table'!$D$190+'EnPI Table'!$F$190 -> 0 | AF110: =3412*3/1000/1000*'EnPI Table'!$B$202+'EnPI Table'!$D$202+'EnPI Table'!$F$202 -> 0 | AG110: =3412*3/1000/1000*'EnPI Table'!$B$214+'EnPI Table'!$D$214+'EnPI Table'!$F$214 -> 0 | AH110: =3412*3/1000/1000*'EnPI Table'!$B$226+'EnPI Table'!$D$226+'EnPI Table'!$F$226 -> 0 | AI110: =3412*3/1000/1000*'EnPI Table'!$B$238+'EnPI Table'!$D$238+'EnPI Table'!$F$238 -> 0 | AJ110: =3412*3/1000/1000*'EnPI Table'!$B$250+'EnPI Table'!$D$250+'EnPI Table'!$F$250 -> 0 | AK110: =3412*3/1000/1000*'EnPI Table'!$B$262+'EnPI Table'!$D$262+'EnPI Table'!$F$262 -> 0 | AL110: =3412*3/1000/1000*'EnPI Table'!$B$274+'EnPI Table'!$D$274+'EnPI Table'!$F$274 -> 0 | AM110: =3412*3/1000/1000*'EnPI Table'!$B$286+'EnPI Table'!$D$286+'EnPI Table'!$F$286 -> 0 | AN110: =3412*3/1000/1000*'EnPI Table'!$B$298+'EnPI Table'!$D$298+'EnPI Table'!$F$298 -> 0
P111: =3412*3/1000/1000*'EnPI Table'!$B$11+'EnPI Table'!$D$11+'EnPI Table'!$F$11 -> 0 | Q111: =3412*3/1000/1000*'EnPI Table'!$B$23+'EnPI Table'!$D$23+'EnPI Table'!$F$23 -> 0 | R111: =3412*3/1000/1000*'EnPI Table'!$B$35+'EnPI Table'!$D$35+'EnPI Table'!$F$35 -> 0 | S111: =3412*3/1000/1000*'EnPI Table'!$B$47+'EnPI Table'!$D$47+'EnPI Table'!$F$47 -> 0 | T111: =3412*3/1000/1000*'EnPI Table'!$B$59+'EnPI Table'!$D$59+'EnPI Table'!$F$59 -> 0 | U111: =3412*3/1000/1000*'EnPI Table'!$B$71+'EnPI Table'!$D$71+'EnPI Table'!$F$71 -> 0 | V111: =3412*3/1000/1000*'EnPI Table'!$B$83+'EnPI Table'!$D$83+'EnPI Table'!$F$83 -> 0 | W111: =3412*3/1000/1000*'EnPI Table'!$B$95+'EnPI Table'!$D$95+'EnPI Table'!$F$95 -> 0 | X111: =3412*3/1000/1000*'EnPI Table'!$B$107+'EnPI Table'!$D$107+'EnPI Table'!$F$107 -> 1097.33104 | Y111: =3412*3/1000/1000*'EnPI Table'!$B$119+'EnPI Table'!$D$119+'EnPI Table'!$F$119 -> 1537.286 | Z111: =3412*3/1000/1000*'EnPI Table'!$B$131+'EnPI Table'!$D$131+'EnPI Table'!$F$131 -> 1280.005768 | AA111: =3412*3/1000/1000*'EnPI Table'!$B$143+'EnPI Table'!$D$143+'EnPI Table'!$F$143 -> 0 | AB111: =3412*3/1000/1000*'EnPI Table'!$B$155+'EnPI Table'!$D$155+'EnPI Table'!$F$155 -> 0 | AC111: =3412*3/1000/1000*'EnPI Table'!$B$167+'EnPI Table'!$D$167+'EnPI Table'!$F$167 -> 0 | AD111: =3412*3/1000/1000*'EnPI Table'!$B$179+'EnPI Table'!$D$179+'EnPI Table'!$F$179 -> 0 | AE111: =3412*3/1000/1000*'EnPI Table'!$B$191+'EnPI Table'!$D$191+'EnPI Table'!$F$191 -> 0 | AF111: =3412*3/1000/1000*'EnPI Table'!$B$203+'EnPI Table'!$D$203+'EnPI Table'!$F$203 -> 0 | AG111: =3412*3/1000/1000*'EnPI Table'!$B$215+'EnPI Table'!$D$215+'EnPI Table'!$F$215 -> 0 | AH111: =3412*3/1000/1000*'EnPI Table'!$B$227+'EnPI Table'!$D$227+'EnPI Table'!$F$227 -> 0 | AI111: =3412*3/1000/1000*'EnPI Table'!$B$239+'EnPI Table'!$D$239+'EnPI Table'!$F$239 -> 0 | AJ111: =3412*3/1000/1000*'EnPI Table'!$B$251+'EnPI Table'!$D$251+'EnPI Table'!$F$251 -> 0 | AK111: =3412*3/1000/1000*'EnPI Table'!$B$263+'EnPI Table'!$D$263+'EnPI Table'!$F$263 -> 0 | AL111: =3412*3/1000/1000*'EnPI Table'!$B$275+'EnPI Table'!$D$275+'EnPI Table'!$F$275 -> 0 | AM111: =3412*3/1000/1000*'EnPI Table'!$B$287+'EnPI Table'!$D$287+'EnPI Table'!$F$287 -> 0 | AN111: =3412*3/1000/1000*'EnPI Table'!$B$299+'EnPI Table'!$D$299+'EnPI Table'!$F$299 -> 0
P112: =3412*3/1000/1000*'EnPI Table'!$B$12+'EnPI Table'!$D$12+'EnPI Table'!$F$12 -> 0 | Q112: =3412*3/1000/1000*'EnPI Table'!$B$24+'EnPI Table'!$D$24+'EnPI Table'!$F$24 -> 0 | R112: =3412*3/1000/1000*'EnPI Table'!$B$36+'EnPI Table'!$D$36+'EnPI Table'!$F$36 -> 0 | S112: =3412*3/1000/1000*'EnPI Table'!$B$48+'EnPI Table'!$D$48+'EnPI Table'!$F$48 -> 0 | T112: =3412*3/1000/1000*'EnPI Table'!$B$60+'EnPI Table'!$D$60+'EnPI Table'!$F$60 -> 0 | U112: =3412*3/1000/1000*'EnPI Table'!$B$72+'EnPI Table'!$D$72+'EnPI Table'!$F$72 -> 0 | V112: =3412*3/1000/1000*'EnPI Table'!$B$84+'EnPI Table'!$D$84+'EnPI Table'!$F$84 -> 0 | W112: =3412*3/1000/1000*'EnPI Table'!$B$96+'EnPI Table'!$D$96+'EnPI Table'!$F$96 -> 0 | X112: =3412*3/1000/1000*'EnPI Table'!$B$108+'EnPI Table'!$D$108+'EnPI Table'!$F$108 -> 1783.5056 | Y112: =3412*3/1000/1000*'EnPI Table'!$B$120+'EnPI Table'!$D$120+'EnPI Table'!$F$120 -> 1529.397092 | Z112: =3412*3/1000/1000*'EnPI Table'!$B$132+'EnPI Table'!$D$132+'EnPI Table'!$F$132 -> 1472.6404 | AA112: =3412*3/1000/1000*'EnPI Table'!$B$144+'EnPI Table'!$D$144+'EnPI Table'!$F$144 -> 0 | AB112: =3412*3/1000/1000*'EnPI Table'!$B$156+'EnPI Table'!$D$156+'EnPI Table'!$F$156 -> 0 | AC112: =3412*3/1000/1000*'EnPI Table'!$B$168+'EnPI Table'!$D$168+'EnPI Table'!$F$168 -> 0 | AD112: =3412*3/1000/1000*'EnPI Table'!$B$180+'EnPI Table'!$D$180+'EnPI Table'!$F$180 -> 0 | AE112: =3412*3/1000/1000*'EnPI Table'!$B$192+'EnPI Table'!$D$192+'EnPI Table'!$F$192 -> 0 | AF112: =3412*3/1000/1000*'EnPI Table'!$B$204+'EnPI Table'!$D$204+'EnPI Table'!$F$204 -> 0 | AG112: =3412*3/1000/1000*'EnPI Table'!$B$216+'EnPI Table'!$D$216+'EnPI Table'!$F$216 -> 0 | AH112: =3412*3/1000/1000*'EnPI Table'!$B$228+'EnPI Table'!$D$228+'EnPI Table'!$F$228 -> 0 | AI112: =3412*3/1000/1000*'EnPI Table'!$B$240+'EnPI Table'!$D$240+'EnPI Table'!$F$240 -> 0 | AJ112: =3412*3/1000/1000*'EnPI Table'!$B$252+'EnPI Table'!$D$252+'EnPI Table'!$F$252 -> 0 | AK112: =3412*3/1000/1000*'EnPI Table'!$B$264+'EnPI Table'!$D$264+'EnPI Table'!$F$264 -> 0 | AL112: =3412*3/1000/1000*'EnPI Table'!$B$276+'EnPI Table'!$D$276+'EnPI Table'!$F$276 -> 0 | AM112: =3412*3/1000/1000*'EnPI Table'!$B$288+'EnPI Table'!$D$288+'EnPI Table'!$F$288 -> 0 | AN112: =3412*3/1000/1000*'EnPI Table'!$B$300+'EnPI Table'!$D$300+'EnPI Table'!$F$300 -> 0
P113: =3412*3/1000/1000*'EnPI Table'!$B$13+'EnPI Table'!$D$13+'EnPI Table'!$F$13 -> 0 | Q113: =3412*3/1000/1000*'EnPI Table'!$B$25+'EnPI Table'!$D$25+'EnPI Table'!$F$25 -> 0 | R113: =3412*3/1000/1000*'EnPI Table'!$B$37+'EnPI Table'!$D$37+'EnPI Table'!$F$37 -> 0 | S113: =3412*3/1000/1000*'EnPI Table'!$B$49+'EnPI Table'!$D$49+'EnPI Table'!$F$49 -> 0 | T113: =3412*3/1000/1000*'EnPI Table'!$B$61+'EnPI Table'!$D$61+'EnPI Table'!$F$61 -> 0 | U113: =3412*3/1000/1000*'EnPI Table'!$B$73+'EnPI Table'!$D$73+'EnPI Table'!$F$73 -> 0 | V113: =3412*3/1000/1000*'EnPI Table'!$B$85+'EnPI Table'!$D$85+'EnPI Table'!$F$85 -> 0 | W113: =3412*3/1000/1000*'EnPI Table'!$B$97+'EnPI Table'!$D$97+'EnPI Table'!$F$97 -> 0 | X113: =3412*3/1000/1000*'EnPI Table'!$B$109+'EnPI Table'!$D$109+'EnPI Table'!$F$109 -> 1584.4401 | Y113: =3412*3/1000/1000*'EnPI Table'!$B$121+'EnPI Table'!$D$121+'EnPI Table'!$F$121 -> 1726.8043 | Z113: =3412*3/1000/1000*'EnPI Table'!$B$133+'EnPI Table'!$D$133+'EnPI Table'!$F$133 -> 1675.31056 | AA113: =3412*3/1000/1000*'EnPI Table'!$B$145+'EnPI Table'!$D$145+'EnPI Table'!$F$145 -> 0 | AB113: =3412*3/1000/1000*'EnPI Table'!$B$157+'EnPI Table'!$D$157+'EnPI Table'!$F$157 -> 0 | AC113: =3412*3/1000/1000*'EnPI Table'!$B$169+'EnPI Table'!$D$169+'EnPI Table'!$F$169 -> 0 | AD113: =3412*3/1000/1000*'EnPI Table'!$B$181+'EnPI Table'!$D$181+'EnPI Table'!$F$181 -> 0 | AE113: =3412*3/1000/1000*'EnPI Table'!$B$193+'EnPI Table'!$D$193+'EnPI Table'!$F$193 -> 0 | AF113: =3412*3/1000/1000*'EnPI Table'!$B$205+'EnPI Table'!$D$205+'EnPI Table'!$F$205 -> 0 | AG113: =3412*3/1000/1000*'EnPI Table'!$B$217+'EnPI Table'!$D$217+'EnPI Table'!$F$217 -> 0 | AH113: =3412*3/1000/1000*'EnPI Table'!$B$229+'EnPI Table'!$D$229+'EnPI Table'!$F$229 -> 0 | AI113: =3412*3/1000/1000*'EnPI Table'!$B$241+'EnPI Table'!$D$241+'EnPI Table'!$F$241 -> 0 | AJ113: =3412*3/1000/1000*'EnPI Table'!$B$253+'EnPI Table'!$D$253+'EnPI Table'!$F$253 -> 0 | AK113: =3412*3/1000/1000*'EnPI Table'!$B$265+'EnPI Table'!$D$265+'EnPI Table'!$F$265 -> 0 | AL113: =3412*3/1000/1000*'EnPI Table'!$B$277+'EnPI Table'!$D$277+'EnPI Table'!$F$277 -> 0 | AM113: =3412*3/1000/1000*'EnPI Table'!$B$289+'EnPI Table'!$D$289+'EnPI Table'!$F$289 -> 0 | AN113: =3412*3/1000/1000*'EnPI Table'!$B$301+'EnPI Table'!$D$301+'EnPI Table'!$F$301 -> 0
P114: =3412*3/1000/1000*'EnPI Table'!$B$14+'EnPI Table'!$D$14+'EnPI Table'!$F$14 -> 0 | Q114: =3412*3/1000/1000*'EnPI Table'!$B$26+'EnPI Table'!$D$26+'EnPI Table'!$F$26 -> 0 | R114: =3412*3/1000/1000*'EnPI Table'!$B$38+'EnPI Table'!$D$38+'EnPI Table'!$F$38 -> 0 | S114: =3412*3/1000/1000*'EnPI Table'!$B$50+'EnPI Table'!$D$50+'EnPI Table'!$F$50 -> 0 | T114: =3412*3/1000/1000*'EnPI Table'!$B$62+'EnPI Table'!$D$62+'EnPI Table'!$F$62 -> 0 | U114: =3412*3/1000/1000*'EnPI Table'!$B$74+'EnPI Table'!$D$74+'EnPI Table'!$F$74 -> 0 | V114: =3412*3/1000/1000*'EnPI Table'!$B$86+'EnPI Table'!$D$86+'EnPI Table'!$F$86 -> 0 | W114: =3412*3/1000/1000*'EnPI Table'!$B$98+'EnPI Table'!$D$98+'EnPI Table'!$F$98 -> 0 | X114: =3412*3/1000/1000*'EnPI Table'!$B$110+'EnPI Table'!$D$110+'EnPI Table'!$F$110 -> 1609.768992 | Y114: =3412*3/1000/1000*'EnPI Table'!$B$122+'EnPI Table'!$D$122+'EnPI Table'!$F$122 -> 1548.7824 | Z114: =3412*3/1000/1000*'EnPI Table'!$B$134+'EnPI Table'!$D$134+'EnPI Table'!$F$134 -> 1487.611072 | AA114: =3412*3/1000/1000*'EnPI Table'!$B$146+'EnPI Table'!$D$146+'EnPI Table'!$F$146 -> 0 | AB114: =3412*3/1000/1000*'EnPI Table'!$B$158+'EnPI Table'!$D$158+'EnPI Table'!$F$158 -> 0 | AC114: =3412*3/1000/1000*'EnPI Table'!$B$170+'EnPI Table'!$D$170+'EnPI Table'!$F$170 -> 0 | AD114: =3412*3/1000/1000*'EnPI Table'!$B$182+'EnPI Table'!$D$182+'EnPI Table'!$F$182 -> 0 | AE114: =3412*3/1000/1000*'EnPI Table'!$B$194+'EnPI Table'!$D$194+'EnPI Table'!$F$194 -> 0 | AF114: =3412*3/1000/1000*'EnPI Table'!$B$206+'EnPI Table'!$D$206+'EnPI Table'!$F$206 -> 0 | AG114: =3412*3/1000/1000*'EnPI Table'!$B$218+'EnPI Table'!$D$218+'EnPI Table'!$F$218 -> 0 | AH114: =3412*3/1000/1000*'EnPI Table'!$B$230+'EnPI Table'!$D$230+'EnPI Table'!$F$230 -> 0 | AI114: =3412*3/1000/1000*'EnPI Table'!$B$242+'EnPI Table'!$D$242+'EnPI Table'!$F$242 -> 0 | AJ114: =3412*3/1000/1000*'EnPI Table'!$B$254+'EnPI Table'!$D$254+'EnPI Table'!$F$254 -> 0 | AK114: =3412*3/1000/1000*'EnPI Table'!$B$266+'EnPI Table'!$D$266+'EnPI Table'!$F$266 -> 0 | AL114: =3412*3/1000/1000*'EnPI Table'!$B$278+'EnPI Table'!$D$278+'EnPI Table'!$F$278 -> 0 | AM114: =3412*3/1000/1000*'EnPI Table'!$B$290+'EnPI Table'!$D$290+'EnPI Table'!$F$290 -> 0 | AN114: =3412*3/1000/1000*'EnPI Table'!$B$302+'EnPI Table'!$D$302+'EnPI Table'!$F$302 -> 0
P115: =3412*3/1000/1000*'EnPI Table'!$B$15+'EnPI Table'!$D$15+'EnPI Table'!$F$15 -> 0 | Q115: =3412*3/1000/1000*'EnPI Table'!$B$27+'EnPI Table'!$D$27+'EnPI Table'!$F$27 -> 0 | R115: =3412*3/1000/1000*'EnPI Table'!$B$39+'EnPI Table'!$D$39+'EnPI Table'!$F$39 -> 0 | S115: =3412*3/1000/1000*'EnPI Table'!$B$51+'EnPI Table'!$D$51+'EnPI Table'!$F$51 -> 0 | T115: =3412*3/1000/1000*'EnPI Table'!$B$63+'EnPI Table'!$D$63+'EnPI Table'!$F$63 -> 0 | U115: =3412*3/1000/1000*'EnPI Table'!$B$75+'EnPI Table'!$D$75+'EnPI Table'!$F$75 -> 0 | V115: =3412*3/1000/1000*'EnPI Table'!$B$87+'EnPI Table'!$D$87+'EnPI Table'!$F$87 -> 0 | W115: =3412*3/1000/1000*'EnPI Table'!$B$99+'EnPI Table'!$D$99+'EnPI Table'!$F$99 -> 0 | X115: =3412*3/1000/1000*'EnPI Table'!$B$111+'EnPI Table'!$D$111+'EnPI Table'!$F$111 -> 1252.058008 | Y115: =3412*3/1000/1000*'EnPI Table'!$B$123+'EnPI Table'!$D$123+'EnPI Table'!$F$123 -> 1129.06304 | Z115: =3412*3/1000/1000*'EnPI Table'!$B$135+'EnPI Table'!$D$135+'EnPI Table'!$F$135 -> 1240.04474 | AA115: =3412*3/1000/1000*'EnPI Table'!$B$147+'EnPI Table'!$D$147+'EnPI Table'!$F$147 -> 0 | AB115: =3412*3/1000/1000*'EnPI Table'!$B$159+'EnPI Table'!$D$159+'EnPI Table'!$F$159 -> 0 | AC115: =3412*3/1000/1000*'EnPI Table'!$B$171+'EnPI Table'!$D$171+'EnPI Table'!$F$171 -> 0 | AD115: =3412*3/1000/1000*'EnPI Table'!$B$183+'EnPI Table'!$D$183+'EnPI Table'!$F$183 -> 0 | AE115: =3412*3/1000/1000*'EnPI Table'!$B$195+'EnPI Table'!$D$195+'EnPI Table'!$F$195 -> 0 | AF115: =3412*3/1000/1000*'EnPI Table'!$B$207+'EnPI Table'!$D$207+'EnPI Table'!$F$207 -> 0 | AG115: =3412*3/1000/1000*'EnPI Table'!$B$219+'EnPI Table'!$D$219+'EnPI Table'!$F$219 -> 0 | AH115: =3412*3/1000/1000*'EnPI Table'!$B$231+'EnPI Table'!$D$231+'EnPI Table'!$F$231 -> 0 | AI115: =3412*3/1000/1000*'EnPI Table'!$B$243+'EnPI Table'!$D$243+'EnPI Table'!$F$243 -> 0 | AJ115: =3412*3/1000/1000*'EnPI Table'!$B$255+'EnPI Table'!$D$255+'EnPI Table'!$F$255 -> 0 | AK115: =3412*3/1000/1000*'EnPI Table'!$B$267+'EnPI Table'!$D$267+'EnPI Table'!$F$267 -> 0 | AL115: =3412*3/1000/1000*'EnPI Table'!$B$279+'EnPI Table'!$D$279+'EnPI Table'!$F$279 -> 0 | AM115: =3412*3/1000/1000*'EnPI Table'!$B$291+'EnPI Table'!$D$291+'EnPI Table'!$F$291 -> 0 | AN115: =3412*3/1000/1000*'EnPI Table'!$B$303+'EnPI Table'!$D$303+'EnPI Table'!$F$303 -> 0
P116: =3412*3/1000/1000*'EnPI Table'!$B$16+'EnPI Table'!$D$16+'EnPI Table'!$F$16 -> 0 | Q116: =3412*3/1000/1000*'EnPI Table'!$B$28+'EnPI Table'!$D$28+'EnPI Table'!$F$28 -> 0 | R116: =3412*3/1000/1000*'EnPI Table'!$B$40+'EnPI Table'!$D$40+'EnPI Table'!$F$40 -> 0 | S116: =3412*3/1000/1000*'EnPI Table'!$B$52+'EnPI Table'!$D$52+'EnPI Table'!$F$52 -> 0 | T116: =3412*3/1000/1000*'EnPI Table'!$B$64+'EnPI Table'!$D$64+'EnPI Table'!$F$64 -> 0 | U116: =3412*3/1000/1000*'EnPI Table'!$B$76+'EnPI Table'!$D$76+'EnPI Table'!$F$76 -> 0 | V116: =3412*3/1000/1000*'EnPI Table'!$B$88+'EnPI Table'!$D$88+'EnPI Table'!$F$88 -> 0 | W116: =3412*3/1000/1000*'EnPI Table'!$B$100+'EnPI Table'!$D$100+'EnPI Table'!$F$100 -> 0 | X116: =3412*3/1000/1000*'EnPI Table'!$B$112+'EnPI Table'!$D$112+'EnPI Table'!$F$112 -> 1353.171792 | Y116: =3412*3/1000/1000*'EnPI Table'!$B$124+'EnPI Table'!$D$124+'EnPI Table'!$F$124 -> 1273.586128 | Z116: =3412*3/1000/1000*'EnPI Table'!$B$136+'EnPI Table'!$D$136+'EnPI Table'!$F$136 -> 1194.380864 | AA116: =3412*3/1000/1000*'EnPI Table'!$B$148+'EnPI Table'!$D$148+'EnPI Table'!$F$148 -> 0 | AB116: =3412*3/1000/1000*'EnPI Table'!$B$160+'EnPI Table'!$D$160+'EnPI Table'!$F$160 -> 0 | AC116: =3412*3/1000/1000*'EnPI Table'!$B$172+'EnPI Table'!$D$172+'EnPI Table'!$F$172 -> 0 | AD116: =3412*3/1000/1000*'EnPI Table'!$B$184+'EnPI Table'!$D$184+'EnPI Table'!$F$184 -> 0 | AE116: =3412*3/1000/1000*'EnPI Table'!$B$196+'EnPI Table'!$D$196+'EnPI Table'!$F$196 -> 0 | AF116: =3412*3/1000/1000*'EnPI Table'!$B$208+'EnPI Table'!$D$208+'EnPI Table'!$F$208 -> 0 | AG116: =3412*3/1000/1000*'EnPI Table'!$B$220+'EnPI Table'!$D$220+'EnPI Table'!$F$220 -> 0 | AH116: =3412*3/1000/1000*'EnPI Table'!$B$232+'EnPI Table'!$D$232+'EnPI Table'!$F$232 -> 0 | AI116: =3412*3/1000/1000*'EnPI Table'!$B$244+'EnPI Table'!$D$244+'EnPI Table'!$F$244 -> 0 | AJ116: =3412*3/1000/1000*'EnPI Table'!$B$256+'EnPI Table'!$D$256+'EnPI Table'!$F$256 -> 0 | AK116: =3412*3/1000/1000*'EnPI Table'!$B$268+'EnPI Table'!$D$268+'EnPI Table'!$F$268 -> 0 | AL116: =3412*3/1000/1000*'EnPI Table'!$B$280+'EnPI Table'!$D$280+'EnPI Table'!$F$280 -> 0 | AM116: =3412*3/1000/1000*'EnPI Table'!$B$292+'EnPI Table'!$D$292+'EnPI Table'!$F$292 -> 0 | AN116: =3412*3/1000/1000*'EnPI Table'!$B$304+'EnPI Table'!$D$304+'EnPI Table'!$F$304 -> 0
P117: =3412*3/1000/1000*'EnPI Table'!$B$17+'EnPI Table'!$D$17+'EnPI Table'!$F$17 -> 0 | Q117: =3412*3/1000/1000*'EnPI Table'!$B$29+'EnPI Table'!$D$29+'EnPI Table'!$F$29 -> 0 | R117: =3412*3/1000/1000*'EnPI Table'!$B$41+'EnPI Table'!$D$41+'EnPI Table'!$F$41 -> 0 | S117: =3412*3/1000/1000*'EnPI Table'!$B$53+'EnPI Table'!$D$53+'EnPI Table'!$F$53 -> 0 | T117: =3412*3/1000/1000*'EnPI Table'!$B$65+'EnPI Table'!$D$65+'EnPI Table'!$F$65 -> 0 | U117: =3412*3/1000/1000*'EnPI Table'!$B$77+'EnPI Table'!$D$77+'EnPI Table'!$F$77 -> 0 | V117: =3412*3/1000/1000*'EnPI Table'!$B$89+'EnPI Table'!$D$89+'EnPI Table'!$F$89 -> 0 | W117: =3412*3/1000/1000*'EnPI Table'!$B$101+'EnPI Table'!$D$101+'EnPI Table'!$F$101 -> 0 | X117: =3412*3/1000/1000*'EnPI Table'!$B$113+'EnPI Table'!$D$113+'EnPI Table'!$F$113 -> 2388.093016 | Y117: =3412*3/1000/1000*'EnPI Table'!$B$125+'EnPI Table'!$D$125+'EnPI Table'!$F$125 -> 1740.239804 | Z117: =3412*3/1000/1000*'EnPI Table'!$B$137+'EnPI Table'!$D$137+'EnPI Table'!$F$137 -> 1854.72604 | AA117: =3412*3/1000/1000*'EnPI Table'!$B$149+'EnPI Table'!$D$149+'EnPI Table'!$F$149 -> 0 | AB117: =3412*3/1000/1000*'EnPI Table'!$B$161+'EnPI Table'!$D$161+'EnPI Table'!$F$161 -> 0 | AC117: =3412*3/1000/1000*'EnPI Table'!$B$173+'EnPI Table'!$D$173+'EnPI Table'!$F$173 -> 0 | AD117: =3412*3/1000/1000*'EnPI Table'!$B$185+'EnPI Table'!$D$185+'EnPI Table'!$F$185 -> 0 | AE117: =3412*3/1000/1000*'EnPI Table'!$B$197+'EnPI Table'!$D$197+'EnPI Table'!$F$197 -> 0 | AF117: =3412*3/1000/1000*'EnPI Table'!$B$209+'EnPI Table'!$D$209+'EnPI Table'!$F$209 -> 0 | AG117: =3412*3/1000/1000*'EnPI Table'!$B$221+'EnPI Table'!$D$221+'EnPI Table'!$F$221 -> 0 | AH117: =3412*3/1000/1000*'EnPI Table'!$B$233+'EnPI Table'!$D$233+'EnPI Table'!$F$233 -> 0 | AI117: =3412*3/1000/1000*'EnPI Table'!$B$245+'EnPI Table'!$D$245+'EnPI Table'!$F$245 -> 0 | AJ117: =3412*3/1000/1000*'EnPI Table'!$B$257+'EnPI Table'!$D$257+'EnPI Table'!$F$257 -> 0 | AK117: =3412*3/1000/1000*'EnPI Table'!$B$269+'EnPI Table'!$D$269+'EnPI Table'!$F$269 -> 0 | AL117: =3412*3/1000/1000*'EnPI Table'!$B$281+'EnPI Table'!$D$281+'EnPI Table'!$F$281 -> 0 | AM117: =3412*3/1000/1000*'EnPI Table'!$B$293+'EnPI Table'!$D$293+'EnPI Table'!$F$293 -> 0 | AN117: =3412*3/1000/1000*'EnPI Table'!$B$305+'EnPI Table'!$D$305+'EnPI Table'!$F$305 -> 0
P118: =3412*3/1000/1000*'EnPI Table'!$B$18+'EnPI Table'!$D$18+'EnPI Table'!$F$18 -> 0 | Q118: =3412*3/1000/1000*'EnPI Table'!$B$30+'EnPI Table'!$D$30+'EnPI Table'!$F$30 -> 0 | R118: =3412*3/1000/1000*'EnPI Table'!$B$42+'EnPI Table'!$D$42+'EnPI Table'!$F$42 -> 0 | S118: =3412*3/1000/1000*'EnPI Table'!$B$54+'EnPI Table'!$D$54+'EnPI Table'!$F$54 -> 0 | T118: =3412*3/1000/1000*'EnPI Table'!$B$66+'EnPI Table'!$D$66+'EnPI Table'!$F$66 -> 0 | U118: =3412*3/1000/1000*'EnPI Table'!$B$78+'EnPI Table'!$D$78+'EnPI Table'!$F$78 -> 0 | V118: =3412*3/1000/1000*'EnPI Table'!$B$90+'EnPI Table'!$D$90+'EnPI Table'!$F$90 -> 0 | W118: =3412*3/1000/1000*'EnPI Table'!$B$102+'EnPI Table'!$D$102+'EnPI Table'!$F$102 -> 0 | X118: =3412*3/1000/1000*'EnPI Table'!$B$114+'EnPI Table'!$D$114+'EnPI Table'!$F$114 -> 2800.94748 | Y118: =3412*3/1000/1000*'EnPI Table'!$B$126+'EnPI Table'!$D$126+'EnPI Table'!$F$126 -> 2311.7944 | Z118: =3412*3/1000/1000*'EnPI Table'!$B$138+'EnPI Table'!$D$138+'EnPI Table'!$F$138 -> 2162.8312 | AA118: =3412*3/1000/1000*'EnPI Table'!$B$150+'EnPI Table'!$D$150+'EnPI Table'!$F$150 -> 0 | AB118: =3412*3/1000/1000*'EnPI Table'!$B$162+'EnPI Table'!$D$162+'EnPI Table'!$F$162 -> 0 | AC118: =3412*3/1000/1000*'EnPI Table'!$B$174+'EnPI Table'!$D$174+'EnPI Table'!$F$174 -> 0 | AD118: =3412*3/1000/1000*'EnPI Table'!$B$186+'EnPI Table'!$D$186+'EnPI Table'!$F$186 -> 0 | AE118: =3412*3/1000/1000*'EnPI Table'!$B$198+'EnPI Table'!$D$198+'EnPI Table'!$F$198 -> 0 | AF118: =3412*3/1000/1000*'EnPI Table'!$B$210+'EnPI Table'!$D$210+'EnPI Table'!$F$210 -> 0 | AG118: =3412*3/1000/1000*'EnPI Table'!$B$222+'EnPI Table'!$D$222+'EnPI Table'!$F$222 -> 0 | AH118: =3412*3/1000/1000*'EnPI Table'!$B$234+'EnPI Table'!$D$234+'EnPI Table'!$F$234 -> 0 | AI118: =3412*3/1000/1000*'EnPI Table'!$B$246+'EnPI Table'!$D$246+'EnPI Table'!$F$246 -> 0 | AJ118: =3412*3/1000/1000*'EnPI Table'!$B$258+'EnPI Table'!$D$258+'EnPI Table'!$F$258 -> 0 | AK118: =3412*3/1000/1000*'EnPI Table'!$B$270+'EnPI Table'!$D$270+'EnPI Table'!$F$270 -> 0 | AL118: =3412*3/1000/1000*'EnPI Table'!$B$282+'EnPI Table'!$D$282+'EnPI Table'!$F$282 -> 0 | AM118: =3412*3/1000/1000*'EnPI Table'!$B$294+'EnPI Table'!$D$294+'EnPI Table'!$F$294 -> 0 | AN118: =3412*3/1000/1000*'EnPI Table'!$B$306+'EnPI Table'!$D$306+'EnPI Table'!$F$306 -> 0
P119: =3412*3/1000/1000*'EnPI Table'!$B$19+'EnPI Table'!$D$19+'EnPI Table'!$F$19 -> 0 | Q119: =3412*3/1000/1000*'EnPI Table'!$B$31+'EnPI Table'!$D$31+'EnPI Table'!$F$31 -> 0 | R119: =3412*3/1000/1000*'EnPI Table'!$B$43+'EnPI Table'!$D$43+'EnPI Table'!$F$43 -> 0 | S119: =3412*3/1000/1000*'EnPI Table'!$B$55+'EnPI Table'!$D$55+'EnPI Table'!$F$55 -> 0 | T119: =3412*3/1000/1000*'EnPI Table'!$B$67+'EnPI Table'!$D$67+'EnPI Table'!$F$67 -> 0 | U119: =3412*3/1000/1000*'EnPI Table'!$B$79+'EnPI Table'!$D$79+'EnPI Table'!$F$79 -> 0 | V119: =3412*3/1000/1000*'EnPI Table'!$B$91+'EnPI Table'!$D$91+'EnPI Table'!$F$91 -> 0 | W119: =3412*3/1000/1000*'EnPI Table'!$B$103+'EnPI Table'!$D$103+'EnPI Table'!$F$103 -> 0 | X119: =3412*3/1000/1000*'EnPI Table'!$B$115+'EnPI Table'!$D$115+'EnPI Table'!$F$115 -> 2986.347876 | Y119: =3412*3/1000/1000*'EnPI Table'!$B$127+'EnPI Table'!$D$127+'EnPI Table'!$F$127 -> 3559.690464 | Z119: =3412*3/1000/1000*'EnPI Table'!$B$139+'EnPI Table'!$D$139+'EnPI Table'!$F$139 -> 2254.77502 | AA119: =3412*3/1000/1000*'EnPI Table'!$B$151+'EnPI Table'!$D$151+'EnPI Table'!$F$151 -> 0 | AB119: =3412*3/1000/1000*'EnPI Table'!$B$163+'EnPI Table'!$D$163+'EnPI Table'!$F$163 -> 0 | AC119: =3412*3/1000/1000*'EnPI Table'!$B$175+'EnPI Table'!$D$175+'EnPI Table'!$F$175 -> 0 | AD119: =3412*3/1000/1000*'EnPI Table'!$B$187+'EnPI Table'!$D$187+'EnPI Table'!$F$187 -> 0 | AE119: =3412*3/1000/1000*'EnPI Table'!$B$199+'EnPI Table'!$D$199+'EnPI Table'!$F$199 -> 0 | AF119: =3412*3/1000/1000*'EnPI Table'!$B$211+'EnPI Table'!$D$211+'EnPI Table'!$F$211 -> 0 | AG119: =3412*3/1000/1000*'EnPI Table'!$B$223+'EnPI Table'!$D$223+'EnPI Table'!$F$223 -> 0 | AH119: =3412*3/1000/1000*'EnPI Table'!$B$235+'EnPI Table'!$D$235+'EnPI Table'!$F$235 -> 0 | AI119: =3412*3/1000/1000*'EnPI Table'!$B$247+'EnPI Table'!$D$247+'EnPI Table'!$F$247 -> 0 | AJ119: =3412*3/1000/1000*'EnPI Table'!$B$259+'EnPI Table'!$D$259+'EnPI Table'!$F$259 -> 0 | AK119: =3412*3/1000/1000*'EnPI Table'!$B$271+'EnPI Table'!$D$271+'EnPI Table'!$F$271 -> 0 | AL119: =3412*3/1000/1000*'EnPI Table'!$B$283+'EnPI Table'!$D$283+'EnPI Table'!$F$283 -> 0 | AM119: =3412*3/1000/1000*'EnPI Table'!$B$295+'EnPI Table'!$D$295+'EnPI Table'!$F$295 -> 0 | AN119: =3412*3/1000/1000*'EnPI Table'!$B$307+'EnPI Table'!$D$307+'EnPI Table'!$F$307 -> 0
P120: =3412*3/1000/1000*'EnPI Table'!$B$20+'EnPI Table'!$D$20+'EnPI Table'!$F$20 -> 0 | Q120: =3412*3/1000/1000*'EnPI Table'!$B$32+'EnPI Table'!$D$32+'EnPI Table'!$F$32 -> 0 | R120: =3412*3/1000/1000*'EnPI Table'!$B$44+'EnPI Table'!$D$44+'EnPI Table'!$F$44 -> 0 | S120: =3412*3/1000/1000*'EnPI Table'!$B$56+'EnPI Table'!$D$56+'EnPI Table'!$F$56 -> 0 | T120: =3412*3/1000/1000*'EnPI Table'!$B$68+'EnPI Table'!$D$68+'EnPI Table'!$F$68 -> 0 | U120: =3412*3/1000/1000*'EnPI Table'!$B$80+'EnPI Table'!$D$80+'EnPI Table'!$F$80 -> 0 | V120: =3412*3/1000/1000*'EnPI Table'!$B$92+'EnPI Table'!$D$92+'EnPI Table'!$F$92 -> 0 | W120: =3412*3/1000/1000*'EnPI Table'!$B$104+'EnPI Table'!$D$104+'EnPI Table'!$F$104 -> 0 | X120: =3412*3/1000/1000*'EnPI Table'!$B$116+'EnPI Table'!$D$116+'EnPI Table'!$F$116 -> 3549.63534 | Y120: =3412*3/1000/1000*'EnPI Table'!$B$128+'EnPI Table'!$D$128+'EnPI Table'!$F$128 -> 2533.180984 | Z120: =3412*3/1000/1000*'EnPI Table'!$B$140+'EnPI Table'!$D$140+'EnPI Table'!$F$140 -> 2518.20612 | AA120: =3412*3/1000/1000*'EnPI Table'!$B$152+'EnPI Table'!$D$152+'EnPI Table'!$F$152 -> 0 | AB120: =3412*3/1000/1000*'EnPI Table'!$B$164+'EnPI Table'!$D$164+'EnPI Table'!$F$164 -> 0 | AC120: =3412*3/1000/1000*'EnPI Table'!$B$176+'EnPI Table'!$D$176+'EnPI Table'!$F$176 -> 0 | AD120: =3412*3/1000/1000*'EnPI Table'!$B$188+'EnPI Table'!$D$188+'EnPI Table'!$F$188 -> 0 | AE120: =3412*3/1000/1000*'EnPI Table'!$B$200+'EnPI Table'!$D$200+'EnPI Table'!$F$200 -> 0 | AF120: =3412*3/1000/1000*'EnPI Table'!$B$212+'EnPI Table'!$D$212+'EnPI Table'!$F$212 -> 0 | AG120: =3412*3/1000/1000*'EnPI Table'!$B$224+'EnPI Table'!$D$224+'EnPI Table'!$F$224 -> 0 | AH120: =3412*3/1000/1000*'EnPI Table'!$B$236+'EnPI Table'!$D$236+'EnPI Table'!$F$236 -> 0 | AI120: =3412*3/1000/1000*'EnPI Table'!$B$248+'EnPI Table'!$D$248+'EnPI Table'!$F$248 -> 0 | AJ120: =3412*3/1000/1000*'EnPI Table'!$B$260+'EnPI Table'!$D$260+'EnPI Table'!$F$260 -> 0 | AK120: =3412*3/1000/1000*'EnPI Table'!$B$272+'EnPI Table'!$D$272+'EnPI Table'!$F$272 -> 0 | AL120: =3412*3/1000/1000*'EnPI Table'!$B$284+'EnPI Table'!$D$284+'EnPI Table'!$F$284 -> 0 | AM120: =3412*3/1000/1000*'EnPI Table'!$B$296+'EnPI Table'!$D$296+'EnPI Table'!$F$296 -> 0 | AN120: =3412*3/1000/1000*'EnPI Table'!$B$308+'EnPI Table'!$D$308+'EnPI Table'!$F$308 -> 0
P121: =3412*3/1000/1000*'EnPI Table'!$B$21+'EnPI Table'!$D$21+'EnPI Table'!$F$21 -> 0 | Q121: =3412*3/1000/1000*'EnPI Table'!$B$33+'EnPI Table'!$D$33+'EnPI Table'!$F$33 -> 0 | R121: =3412*3/1000/1000*'EnPI Table'!$B$45+'EnPI Table'!$D$45+'EnPI Table'!$F$45 -> 0 | S121: =3412*3/1000/1000*'EnPI Table'!$B$57+'EnPI Table'!$D$57+'EnPI Table'!$F$57 -> 0 | T121: =3412*3/1000/1000*'EnPI Table'!$B$69+'EnPI Table'!$D$69+'EnPI Table'!$F$69 -> 0 | U121: =3412*3/1000/1000*'EnPI Table'!$B$81+'EnPI Table'!$D$81+'EnPI Table'!$F$81 -> 0 | V121: =3412*3/1000/1000*'EnPI Table'!$B$93+'EnPI Table'!$D$93+'EnPI Table'!$F$93 -> 0 | W121: =3412*3/1000/1000*'EnPI Table'!$B$105+'EnPI Table'!$D$105+'EnPI Table'!$F$105 -> 0 | X121: =3412*3/1000/1000*'EnPI Table'!$B$117+'EnPI Table'!$D$117+'EnPI Table'!$F$117 -> 2550.5112 | Y121: =3412*3/1000/1000*'EnPI Table'!$B$129+'EnPI Table'!$D$129+'EnPI Table'!$F$129 -> 2031.839456 | Z121: =3412*3/1000/1000*'EnPI Table'!$B$141+'EnPI Table'!$D$141+'EnPI Table'!$F$141 -> 1958.190768 | AA121: =3412*3/1000/1000*'EnPI Table'!$B$153+'EnPI Table'!$D$153+'EnPI Table'!$F$153 -> 0 | AB121: =3412*3/1000/1000*'EnPI Table'!$B$165+'EnPI Table'!$D$165+'EnPI Table'!$F$165 -> 0 | AC121: =3412*3/1000/1000*'EnPI Table'!$B$177+'EnPI Table'!$D$177+'EnPI Table'!$F$177 -> 0 | AD121: =3412*3/1000/1000*'EnPI Table'!$B$189+'EnPI Table'!$D$189+'EnPI Table'!$F$189 -> 0 | AE121: =3412*3/1000/1000*'EnPI Table'!$B$201+'EnPI Table'!$D$201+'EnPI Table'!$F$201 -> 0 | AF121: =3412*3/1000/1000*'EnPI Table'!$B$213+'EnPI Table'!$D$213+'EnPI Table'!$F$213 -> 0 | AG121: =3412*3/1000/1000*'EnPI Table'!$B$225+'EnPI Table'!$D$225+'EnPI Table'!$F$225 -> 0 | AH121: =3412*3/1000/1000*'EnPI Table'!$B$237+'EnPI Table'!$D$237+'EnPI Table'!$F$237 -> 0 | AI121: =3412*3/1000/1000*'EnPI Table'!$B$249+'EnPI Table'!$D$249+'EnPI Table'!$F$249 -> 0 | AJ121: =3412*3/1000/1000*'EnPI Table'!$B$261+'EnPI Table'!$D$261+'EnPI Table'!$F$261 -> 0 | AK121: =3412*3/1000/1000*'EnPI Table'!$B$273+'EnPI Table'!$D$273+'EnPI Table'!$F$273 -> 0 | AL121: =3412*3/1000/1000*'EnPI Table'!$B$285+'EnPI Table'!$D$285+'EnPI Table'!$F$285 -> 0 | AM121: =3412*3/1000/1000*'EnPI Table'!$B$297+'EnPI Table'!$D$297+'EnPI Table'!$F$297 -> 0 | AN121: =3412*3/1000/1000*'EnPI Table'!$B$309+'EnPI Table'!$D$309+'EnPI Table'!$F$309 -> 0
P123: ='EnPI Table'!$C$10+'EnPI Table'!$E$10+'EnPI Table'!$G$10 -> 0 | Q123: ='EnPI Table'!$C$22+'EnPI Table'!$E$22+'EnPI Table'!$G$22 -> 0 | R123: ='EnPI Table'!$C$34+'EnPI Table'!$E$34+'EnPI Table'!$G$34 -> 0 | S123: ='EnPI Table'!$C$46+'EnPI Table'!$E$46+'EnPI Table'!$G$46 -> 0 | T123: ='EnPI Table'!$C$58+'EnPI Table'!$E$58+'EnPI Table'!$G$58 -> 0 | U123: ='EnPI Table'!$C$70+'EnPI Table'!$E$70+'EnPI Table'!$G$70 -> 0 | V123: ='EnPI Table'!$C$82+'EnPI Table'!$E$82+'EnPI Table'!$G$82 -> 0 | W123: ='EnPI Table'!$C$94+'EnPI Table'!$E$94+'EnPI Table'!$G$94 -> 0 | X123: ='EnPI Table'!$C$106+'EnPI Table'!$E$106+'EnPI Table'!$G$106 -> 21030.55 | Y123: ='EnPI Table'!$C$118+'EnPI Table'!$E$118+'EnPI Table'!$G$118 -> 18469.46 | Z123: ='EnPI Table'!$C$130+'EnPI Table'!$E$130+'EnPI Table'!$G$130 -> 28517.71 | AA123: ='EnPI Table'!$C$142+'EnPI Table'!$E$142+'EnPI Table'!$G$142 -> 0 | AB123: ='EnPI Table'!$C$154+'EnPI Table'!$E$154+'EnPI Table'!$G$154 -> 0 | AC123: ='EnPI Table'!$C$166+'EnPI Table'!$E$166+'EnPI Table'!$G$166 -> 0 | AD123: ='EnPI Table'!$C$178+'EnPI Table'!$E$178+'EnPI Table'!$G$178 -> 0 | AE123: ='EnPI Table'!$C$190+'EnPI Table'!$E$190+'EnPI Table'!$G$190 -> 0 | AF123: ='EnPI Table'!$C$202+'EnPI Table'!$E$202+'EnPI Table'!$G$202 -> 0 | AG123: ='EnPI Table'!$C$214+'EnPI Table'!$E$214+'EnPI Table'!$G$214 -> 0 | AH123: ='EnPI Table'!$C$226+'EnPI Table'!$E$226+'EnPI Table'!$G$226 -> 0 | AI123: ='EnPI Table'!$C$238+'EnPI Table'!$E$238+'EnPI Table'!$G$238 -> 0 | AJ123: ='EnPI Table'!$C$250+'EnPI Table'!$E$250+'EnPI Table'!$G$250 -> 0 | AK123: ='EnPI Table'!$C$262+'EnPI Table'!$E$262+'EnPI Table'!$G$262 -> 0 | AL123: ='EnPI Table'!$C$274+'EnPI Table'!$E$274+'EnPI Table'!$G$274 -> 0 | AM123: ='EnPI Table'!$C$286+'EnPI Table'!$E$286+'EnPI Table'!$G$286 -> 0 | AN123: ='EnPI Table'!$C$298+'EnPI Table'!$E$298+'EnPI Table'!$G$298 -> 0
P124: ='EnPI Table'!$C$11+'EnPI Table'!$E$11+'EnPI Table'!$G$11 -> 0 | Q124: ='EnPI Table'!$C$23+'EnPI Table'!$E$23+'EnPI Table'!$G$23 -> 0 | R124: ='EnPI Table'!$C$35+'EnPI Table'!$E$35+'EnPI Table'!$G$35 -> 0 | S124: ='EnPI Table'!$C$47+'EnPI Table'!$E$47+'EnPI Table'!$G$47 -> 0 | T124: ='EnPI Table'!$C$59+'EnPI Table'!$E$59+'EnPI Table'!$G$59 -> 0 | U124: ='EnPI Table'!$C$71+'EnPI Table'!$E$71+'EnPI Table'!$G$71 -> 0 | V124: ='EnPI Table'!$C$83+'EnPI Table'!$E$83+'EnPI Table'!$G$83 -> 0 | W124: ='EnPI Table'!$C$95+'EnPI Table'!$E$95+'EnPI Table'!$G$95 -> 0 | X124: ='EnPI Table'!$C$107+'EnPI Table'!$E$107+'EnPI Table'!$G$107 -> 17479.9 | Y124: ='EnPI Table'!$C$119+'EnPI Table'!$E$119+'EnPI Table'!$G$119 -> 24727.61 | Z124: ='EnPI Table'!$C$131+'EnPI Table'!$E$131+'EnPI Table'!$G$131 -> 19392.72 | AA124: ='EnPI Table'!$C$143+'EnPI Table'!$E$143+'EnPI Table'!$G$143 -> 0 | AB124: ='EnPI Table'!$C$155+'EnPI Table'!$E$155+'EnPI Table'!$G$155 -> 0 | AC124: ='EnPI Table'!$C$167+'EnPI Table'!$E$167+'EnPI Table'!$G$167 -> 0 | AD124: ='EnPI Table'!$C$179+'EnPI Table'!$E$179+'EnPI Table'!$G$179 -> 0 | AE124: ='EnPI Table'!$C$191+'EnPI Table'!$E$191+'EnPI Table'!$G$191 -> 0 | AF124: ='EnPI Table'!$C$203+'EnPI Table'!$E$203+'EnPI Table'!$G$203 -> 0 | AG124: ='EnPI Table'!$C$215+'EnPI Table'!$E$215+'EnPI Table'!$G$215 -> 0 | AH124: ='EnPI Table'!$C$227+'EnPI Table'!$E$227+'EnPI Table'!$G$227 -> 0 | AI124: ='EnPI Table'!$C$239+'EnPI Table'!$E$239+'EnPI Table'!$G$239 -> 0 | AJ124: ='EnPI Table'!$C$251+'EnPI Table'!$E$251+'EnPI Table'!$G$251 -> 0 | AK124: ='EnPI Table'!$C$263+'EnPI Table'!$E$263+'EnPI Table'!$G$263 -> 0 | AL124: ='EnPI Table'!$C$275+'EnPI Table'!$E$275+'EnPI Table'!$G$275 -> 0 | AM124: ='EnPI Table'!$C$287+'EnPI Table'!$E$287+'EnPI Table'!$G$287 -> 0 | AN124: ='EnPI Table'!$C$299+'EnPI Table'!$E$299+'EnPI Table'!$G$299 -> 0
P125: ='EnPI Table'!$C$12+'EnPI Table'!$E$12+'EnPI Table'!$G$12 -> 0 | Q125: ='EnPI Table'!$C$24+'EnPI Table'!$E$24+'EnPI Table'!$G$24 -> 0 | R125: ='EnPI Table'!$C$36+'EnPI Table'!$E$36+'EnPI Table'!$G$36 -> 0 | S125: ='EnPI Table'!$C$48+'EnPI Table'!$E$48+'EnPI Table'!$G$48 -> 0 | T125: ='EnPI Table'!$C$60+'EnPI Table'!$E$60+'EnPI Table'!$G$60 -> 0 | U125: ='EnPI Table'!$C$72+'EnPI Table'!$E$72+'EnPI Table'!$G$72 -> 0 | V125: ='EnPI Table'!$C$84+'EnPI Table'!$E$84+'EnPI Table'!$G$84 -> 0 | W125: ='EnPI Table'!$C$96+'EnPI Table'!$E$96+'EnPI Table'!$G$96 -> 0 | X125: ='EnPI Table'!$C$108+'EnPI Table'!$E$108+'EnPI Table'!$G$108 -> 27449.72 | Y125: ='EnPI Table'!$C$120+'EnPI Table'!$E$120+'EnPI Table'!$G$120 -> 25710.9 | Z125: ='EnPI Table'!$C$132+'EnPI Table'!$E$132+'EnPI Table'!$G$132 -> 25210.99 | AA125: ='EnPI Table'!$C$144+'EnPI Table'!$E$144+'EnPI Table'!$G$144 -> 0 | AB125: ='EnPI Table'!$C$156+'EnPI Table'!$E$156+'EnPI Table'!$G$156 -> 0 | AC125: ='EnPI Table'!$C$168+'EnPI Table'!$E$168+'EnPI Table'!$G$168 -> 0 | AD125: ='EnPI Table'!$C$180+'EnPI Table'!$E$180+'EnPI Table'!$G$180 -> 0 | AE125: ='EnPI Table'!$C$192+'EnPI Table'!$E$192+'EnPI Table'!$G$192 -> 0 | AF125: ='EnPI Table'!$C$204+'EnPI Table'!$E$204+'EnPI Table'!$G$204 -> 0 | AG125: ='EnPI Table'!$C$216+'EnPI Table'!$E$216+'EnPI Table'!$G$216 -> 0 | AH125: ='EnPI Table'!$C$228+'EnPI Table'!$E$228+'EnPI Table'!$G$228 -> 0 | AI125: ='EnPI Table'!$C$240+'EnPI Table'!$E$240+'EnPI Table'!$G$240 -> 0 | AJ125: ='EnPI Table'!$C$252+'EnPI Table'!$E$252+'EnPI Table'!$G$252 -> 0 | AK125: ='EnPI Table'!$C$264+'EnPI Table'!$E$264+'EnPI Table'!$G$264 -> 0 | AL125: ='EnPI Table'!$C$276+'EnPI Table'!$E$276+'EnPI Table'!$G$276 -> 0 | AM125: ='EnPI Table'!$C$288+'EnPI Table'!$E$288+'EnPI Table'!$G$288 -> 0 | AN125: ='EnPI Table'!$C$300+'EnPI Table'!$E$300+'EnPI Table'!$G$300 -> 0
P126: ='EnPI Table'!$C$13+'EnPI Table'!$E$13+'EnPI Table'!$G$13 -> 0 | Q126: ='EnPI Table'!$C$25+'EnPI Table'!$E$25+'EnPI Table'!$G$25 -> 0 | R126: ='EnPI Table'!$C$37+'EnPI Table'!$E$37+'EnPI Table'!$G$37 -> 0 | S126: ='EnPI Table'!$C$49+'EnPI Table'!$E$49+'EnPI Table'!$G$49 -> 0 | T126: ='EnPI Table'!$C$61+'EnPI Table'!$E$61+'EnPI Table'!$G$61 -> 0 | U126: ='EnPI Table'!$C$73+'EnPI Table'!$E$73+'EnPI Table'!$G$73 -> 0 | V126: ='EnPI Table'!$C$85+'EnPI Table'!$E$85+'EnPI Table'!$G$85 -> 0 | W126: ='EnPI Table'!$C$97+'EnPI Table'!$E$97+'EnPI Table'!$G$97 -> 0 | X126: ='EnPI Table'!$C$109+'EnPI Table'!$E$109+'EnPI Table'!$G$109 -> 23570.9 | Y126: ='EnPI Table'!$C$121+'EnPI Table'!$E$121+'EnPI Table'!$G$121 -> 29909.38 | Z126: ='EnPI Table'!$C$133+'EnPI Table'!$E$133+'EnPI Table'!$G$133 -> 30033.67 | AA126: ='EnPI Table'!$C$145+'EnPI Table'!$E$145+'EnPI Table'!$G$145 -> 0 | AB126: ='EnPI Table'!$C$157+'EnPI Table'!$E$157+'EnPI Table'!$G$157 -> 0 | AC126: ='EnPI Table'!$C$169+'EnPI Table'!$E$169+'EnPI Table'!$G$169 -> 0 | AD126: ='EnPI Table'!$C$181+'EnPI Table'!$E$181+'EnPI Table'!$G$181 -> 0 | AE126: ='EnPI Table'!$C$193+'EnPI Table'!$E$193+'EnPI Table'!$G$193 -> 0 | AF126: ='EnPI Table'!$C$205+'EnPI Table'!$E$205+'EnPI Table'!$G$205 -> 0 | AG126: ='EnPI Table'!$C$217+'EnPI Table'!$E$217+'EnPI Table'!$G$217 -> 0 | AH126: ='EnPI Table'!$C$229+'EnPI Table'!$E$229+'EnPI Table'!$G$229 -> 0 | AI126: ='EnPI Table'!$C$241+'EnPI Table'!$E$241+'EnPI Table'!$G$241 -> 0 | AJ126: ='EnPI Table'!$C$253+'EnPI Table'!$E$253+'EnPI Table'!$G$253 -> 0 | AK126: ='EnPI Table'!$C$265+'EnPI Table'!$E$265+'EnPI Table'!$G$265 -> 0 | AL126: ='EnPI Table'!$C$277+'EnPI Table'!$E$277+'EnPI Table'!$G$277 -> 0 | AM126: ='EnPI Table'!$C$289+'EnPI Table'!$E$289+'EnPI Table'!$G$289 -> 0 | AN126: ='EnPI Table'!$C$301+'EnPI Table'!$E$301+'EnPI Table'!$G$301 -> 0
P127: ='EnPI Table'!$C$14+'EnPI Table'!$E$14+'EnPI Table'!$G$14 -> 0 | Q127: ='EnPI Table'!$C$26+'EnPI Table'!$E$26+'EnPI Table'!$G$26 -> 0 | R127: ='EnPI Table'!$C$38+'EnPI Table'!$E$38+'EnPI Table'!$G$38 -> 0 | S127: ='EnPI Table'!$C$50+'EnPI Table'!$E$50+'EnPI Table'!$G$50 -> 0 | T127: ='EnPI Table'!$C$62+'EnPI Table'!$E$62+'EnPI Table'!$G$62 -> 0 | U127: ='EnPI Table'!$C$74+'EnPI Table'!$E$74+'EnPI Table'!$G$74 -> 0 | V127: ='EnPI Table'!$C$86+'EnPI Table'!$E$86+'EnPI Table'!$G$86 -> 0 | W127: ='EnPI Table'!$C$98+'EnPI Table'!$E$98+'EnPI Table'!$G$98 -> 0 | X127: ='EnPI Table'!$C$110+'EnPI Table'!$E$110+'EnPI Table'!$G$110 -> 23980.91 | Y127: ='EnPI Table'!$C$122+'EnPI Table'!$E$122+'EnPI Table'!$G$122 -> 25589.52 | Z127: ='EnPI Table'!$C$134+'EnPI Table'!$E$134+'EnPI Table'!$G$134 -> 25726.51 | AA127: ='EnPI Table'!$C$146+'EnPI Table'!$E$146+'EnPI Table'!$G$146 -> 0 | AB127: ='EnPI Table'!$C$158+'EnPI Table'!$E$158+'EnPI Table'!$G$158 -> 0 | AC127: ='EnPI Table'!$C$170+'EnPI Table'!$E$170+'EnPI Table'!$G$170 -> 0 | AD127: ='EnPI Table'!$C$182+'EnPI Table'!$E$182+'EnPI Table'!$G$182 -> 0 | AE127: ='EnPI Table'!$C$194+'EnPI Table'!$E$194+'EnPI Table'!$G$194 -> 0 | AF127: ='EnPI Table'!$C$206+'EnPI Table'!$E$206+'EnPI Table'!$G$206 -> 0 | AG127: ='EnPI Table'!$C$218+'EnPI Table'!$E$218+'EnPI Table'!$G$218 -> 0 | AH127: ='EnPI Table'!$C$230+'EnPI Table'!$E$230+'EnPI Table'!$G$230 -> 0 | AI127: ='EnPI Table'!$C$242+'EnPI Table'!$E$242+'EnPI Table'!$G$242 -> 0 | AJ127: ='EnPI Table'!$C$254+'EnPI Table'!$E$254+'EnPI Table'!$G$254 -> 0 | AK127: ='EnPI Table'!$C$266+'EnPI Table'!$E$266+'EnPI Table'!$G$266 -> 0 | AL127: ='EnPI Table'!$C$278+'EnPI Table'!$E$278+'EnPI Table'!$G$278 -> 0 | AM127: ='EnPI Table'!$C$290+'EnPI Table'!$E$290+'EnPI Table'!$G$290 -> 0 | AN127: ='EnPI Table'!$C$302+'EnPI Table'!$E$302+'EnPI Table'!$G$302 -> 0
P128: ='EnPI Table'!$C$15+'EnPI Table'!$E$15+'EnPI Table'!$G$15 -> 0 | Q128: ='EnPI Table'!$C$27+'EnPI Table'!$E$27+'EnPI Table'!$G$27 -> 0 | R128: ='EnPI Table'!$C$39+'EnPI Table'!$E$39+'EnPI Table'!$G$39 -> 0 | S128: ='EnPI Table'!$C$51+'EnPI Table'!$E$51+'EnPI Table'!$G$51 -> 0 | T128: ='EnPI Table'!$C$63+'EnPI Table'!$E$63+'EnPI Table'!$G$63 -> 0 | U128: ='EnPI Table'!$C$75+'EnPI Table'!$E$75+'EnPI Table'!$G$75 -> 0 | V128: ='EnPI Table'!$C$87+'EnPI Table'!$E$87+'EnPI Table'!$G$87 -> 0 | W128: ='EnPI Table'!$C$99+'EnPI Table'!$E$99+'EnPI Table'!$G$99 -> 0 | X128: ='EnPI Table'!$C$111+'EnPI Table'!$E$111+'EnPI Table'!$G$111 -> 19575.37 | Y128: ='EnPI Table'!$C$123+'EnPI Table'!$E$123+'EnPI Table'!$G$123 -> 19671.58 | Z128: ='EnPI Table'!$C$135+'EnPI Table'!$E$135+'EnPI Table'!$G$135 -> 20319.47 | AA128: ='EnPI Table'!$C$147+'EnPI Table'!$E$147+'EnPI Table'!$G$147 -> 0 | AB128: ='EnPI Table'!$C$159+'EnPI Table'!$E$159+'EnPI Table'!$G$159 -> 0 | AC128: ='EnPI Table'!$C$171+'EnPI Table'!$E$171+'EnPI Table'!$G$171 -> 0 | AD128: ='EnPI Table'!$C$183+'EnPI Table'!$E$183+'EnPI Table'!$G$183 -> 0 | AE128: ='EnPI Table'!$C$195+'EnPI Table'!$E$195+'EnPI Table'!$G$195 -> 0 | AF128: ='EnPI Table'!$C$207+'EnPI Table'!$E$207+'EnPI Table'!$G$207 -> 0 | AG128: ='EnPI Table'!$C$219+'EnPI Table'!$E$219+'EnPI Table'!$G$219 -> 0 | AH128: ='EnPI Table'!$C$231+'EnPI Table'!$E$231+'EnPI Table'!$G$231 -> 0 | AI128: ='EnPI Table'!$C$243+'EnPI Table'!$E$243+'EnPI Table'!$G$243 -> 0 | AJ128: ='EnPI Table'!$C$255+'EnPI Table'!$E$255+'EnPI Table'!$G$255 -> 0 | AK128: ='EnPI Table'!$C$267+'EnPI Table'!$E$267+'EnPI Table'!$G$267 -> 0 | AL128: ='EnPI Table'!$C$279+'EnPI Table'!$E$279+'EnPI Table'!$G$279 -> 0 | AM128: ='EnPI Table'!$C$291+'EnPI Table'!$E$291+'EnPI Table'!$G$291 -> 0 | AN128: ='EnPI Table'!$C$303+'EnPI Table'!$E$303+'EnPI Table'!$G$303 -> 0
P129: ='EnPI Table'!$C$16+'EnPI Table'!$E$16+'EnPI Table'!$G$16 -> 0 | Q129: ='EnPI Table'!$C$28+'EnPI Table'!$E$28+'EnPI Table'!$G$28 -> 0 | R129: ='EnPI Table'!$C$40+'EnPI Table'!$E$40+'EnPI Table'!$G$40 -> 0 | S129: ='EnPI Table'!$C$52+'EnPI Table'!$E$52+'EnPI Table'!$G$52 -> 0 | T129: ='EnPI Table'!$C$64+'EnPI Table'!$E$64+'EnPI Table'!$G$64 -> 0 | U129: ='EnPI Table'!$C$76+'EnPI Table'!$E$76+'EnPI Table'!$G$76 -> 0 | V129: ='EnPI Table'!$C$88+'EnPI Table'!$E$88+'EnPI Table'!$G$88 -> 0 | W129: ='EnPI Table'!$C$100+'EnPI Table'!$E$100+'EnPI Table'!$G$100 -> 0 | X129: ='EnPI Table'!$C$112+'EnPI Table'!$E$112+'EnPI Table'!$G$112 -> 21112.66 | Y129: ='EnPI Table'!$C$124+'EnPI Table'!$E$124+'EnPI Table'!$G$124 -> 17780.83 | Z129: ='EnPI Table'!$C$136+'EnPI Table'!$E$136+'EnPI Table'!$G$136 -> 18104.48 | AA129: ='EnPI Table'!$C$148+'EnPI Table'!$E$148+'EnPI Table'!$G$148 -> 0 | AB129: ='EnPI Table'!$C$160+'EnPI Table'!$E$160+'EnPI Table'!$G$160 -> 0 | AC129: ='EnPI Table'!$C$172+'EnPI Table'!$E$172+'EnPI Table'!$G$172 -> 0 | AD129: ='EnPI Table'!$C$184+'EnPI Table'!$E$184+'EnPI Table'!$G$184 -> 0 | AE129: ='EnPI Table'!$C$196+'EnPI Table'!$E$196+'EnPI Table'!$G$196 -> 0 | AF129: ='EnPI Table'!$C$208+'EnPI Table'!$E$208+'EnPI Table'!$G$208 -> 0 | AG129: ='EnPI Table'!$C$220+'EnPI Table'!$E$220+'EnPI Table'!$G$220 -> 0 | AH129: ='EnPI Table'!$C$232+'EnPI Table'!$E$232+'EnPI Table'!$G$232 -> 0 | AI129: ='EnPI Table'!$C$244+'EnPI Table'!$E$244+'EnPI Table'!$G$244 -> 0 | AJ129: ='EnPI Table'!$C$256+'EnPI Table'!$E$256+'EnPI Table'!$G$256 -> 0 | AK129: ='EnPI Table'!$C$268+'EnPI Table'!$E$268+'EnPI Table'!$G$268 -> 0 | AL129: ='EnPI Table'!$C$280+'EnPI Table'!$E$280+'EnPI Table'!$G$280 -> 0 | AM129: ='EnPI Table'!$C$292+'EnPI Table'!$E$292+'EnPI Table'!$G$292 -> 0 | AN129: ='EnPI Table'!$C$304+'EnPI Table'!$E$304+'EnPI Table'!$G$304 -> 0
P130: ='EnPI Table'!$C$17+'EnPI Table'!$E$17+'EnPI Table'!$G$17 -> 0 | Q130: ='EnPI Table'!$C$29+'EnPI Table'!$E$29+'EnPI Table'!$G$29 -> 0 | R130: ='EnPI Table'!$C$41+'EnPI Table'!$E$41+'EnPI Table'!$G$41 -> 0 | S130: ='EnPI Table'!$C$53+'EnPI Table'!$E$53+'EnPI Table'!$G$53 -> 0 | T130: ='EnPI Table'!$C$65+'EnPI Table'!$E$65+'EnPI Table'!$G$65 -> 0 | U130: ='EnPI Table'!$C$77+'EnPI Table'!$E$77+'EnPI Table'!$G$77 -> 0 | V130: ='EnPI Table'!$C$89+'EnPI Table'!$E$89+'EnPI Table'!$G$89 -> 0 | W130: ='EnPI Table'!$C$101+'EnPI Table'!$E$101+'EnPI Table'!$G$101 -> 0 | X130: ='EnPI Table'!$C$113+'EnPI Table'!$E$113+'EnPI Table'!$G$113 -> 28593.22 | Y130: ='EnPI Table'!$C$125+'EnPI Table'!$E$125+'EnPI Table'!$G$125 -> 28031.95 | Z130: ='EnPI Table'!$C$137+'EnPI Table'!$E$137+'EnPI Table'!$G$137 -> 30307.1 | AA130: ='EnPI Table'!$C$149+'EnPI Table'!$E$149+'EnPI Table'!$G$149 -> 0 | AB130: ='EnPI Table'!$C$161+'EnPI Table'!$E$161+'EnPI Table'!$G$161 -> 0 | AC130: ='EnPI Table'!$C$173+'EnPI Table'!$E$173+'EnPI Table'!$G$173 -> 0 | AD130: ='EnPI Table'!$C$185+'EnPI Table'!$E$185+'EnPI Table'!$G$185 -> 0 | AE130: ='EnPI Table'!$C$197+'EnPI Table'!$E$197+'EnPI Table'!$G$197 -> 0 | AF130: ='EnPI Table'!$C$209+'EnPI Table'!$E$209+'EnPI Table'!$G$209 -> 0 | AG130: ='EnPI Table'!$C$221+'EnPI Table'!$E$221+'EnPI Table'!$G$221 -> 0 | AH130: ='EnPI Table'!$C$233+'EnPI Table'!$E$233+'EnPI Table'!$G$233 -> 0 | AI130: ='EnPI Table'!$C$245+'EnPI Table'!$E$245+'EnPI Table'!$G$245 -> 0 | AJ130: ='EnPI Table'!$C$257+'EnPI Table'!$E$257+'EnPI Table'!$G$257 -> 0 | AK130: ='EnPI Table'!$C$269+'EnPI Table'!$E$269+'EnPI Table'!$G$269 -> 0 | AL130: ='EnPI Table'!$C$281+'EnPI Table'!$E$281+'EnPI Table'!$G$281 -> 0 | AM130: ='EnPI Table'!$C$293+'EnPI Table'!$E$293+'EnPI Table'!$G$293 -> 0 | AN130: ='EnPI Table'!$C$305+'EnPI Table'!$E$305+'EnPI Table'!$G$305 -> 0
P131: ='EnPI Table'!$C$18+'EnPI Table'!$E$18+'EnPI Table'!$G$18 -> 0 | Q131: ='EnPI Table'!$C$30+'EnPI Table'!$E$30+'EnPI Table'!$G$30 -> 0 | R131: ='EnPI Table'!$C$42+'EnPI Table'!$E$42+'EnPI Table'!$G$42 -> 0 | S131: ='EnPI Table'!$C$54+'EnPI Table'!$E$54+'EnPI Table'!$G$54 -> 0 | T131: ='EnPI Table'!$C$66+'EnPI Table'!$E$66+'EnPI Table'!$G$66 -> 0 | U131: ='EnPI Table'!$C$78+'EnPI Table'!$E$78+'EnPI Table'!$G$78 -> 0 | V131: ='EnPI Table'!$C$90+'EnPI Table'!$E$90+'EnPI Table'!$G$90 -> 0 | W131: ='EnPI Table'!$C$102+'EnPI Table'!$E$102+'EnPI Table'!$G$102 -> 0 | X131: ='EnPI Table'!$C$114+'EnPI Table'!$E$114+'EnPI Table'!$G$114 -> 37376.1 | Y131: ='EnPI Table'!$C$126+'EnPI Table'!$E$126+'EnPI Table'!$G$126 -> 36314.02 | Z131: ='EnPI Table'!$C$138+'EnPI Table'!$E$138+'EnPI Table'!$G$138 -> 37867.68 | AA131: ='EnPI Table'!$C$150+'EnPI Table'!$E$150+'EnPI Table'!$G$150 -> 0 | AB131: ='EnPI Table'!$C$162+'EnPI Table'!$E$162+'EnPI Table'!$G$162 -> 0 | AC131: ='EnPI Table'!$C$174+'EnPI Table'!$E$174+'EnPI Table'!$G$174 -> 0 | AD131: ='EnPI Table'!$C$186+'EnPI Table'!$E$186+'EnPI Table'!$G$186 -> 0 | AE131: ='EnPI Table'!$C$198+'EnPI Table'!$E$198+'EnPI Table'!$G$198 -> 0 | AF131: ='EnPI Table'!$C$210+'EnPI Table'!$E$210+'EnPI Table'!$G$210 -> 0 | AG131: ='EnPI Table'!$C$222+'EnPI Table'!$E$222+'EnPI Table'!$G$222 -> 0 | AH131: ='EnPI Table'!$C$234+'EnPI Table'!$E$234+'EnPI Table'!$G$234 -> 0 | AI131: ='EnPI Table'!$C$246+'EnPI Table'!$E$246+'EnPI Table'!$G$246 -> 0 | AJ131: ='EnPI Table'!$C$258+'EnPI Table'!$E$258+'EnPI Table'!$G$258 -> 0 | AK131: ='EnPI Table'!$C$270+'EnPI Table'!$E$270+'EnPI Table'!$G$270 -> 0 | AL131: ='EnPI Table'!$C$282+'EnPI Table'!$E$282+'EnPI Table'!$G$282 -> 0 | AM131: ='EnPI Table'!$C$294+'EnPI Table'!$E$294+'EnPI Table'!$G$294 -> 0 | AN131: ='EnPI Table'!$C$306+'EnPI Table'!$E$306+'EnPI Table'!$G$306 -> 0
P132: ='EnPI Table'!$C$19+'EnPI Table'!$E$19+'EnPI Table'!$G$19 -> 0 | Q132: ='EnPI Table'!$C$31+'EnPI Table'!$E$31+'EnPI Table'!$G$31 -> 0 | R132: ='EnPI Table'!$C$43+'EnPI Table'!$E$43+'EnPI Table'!$G$43 -> 0 | S132: ='EnPI Table'!$C$55+'EnPI Table'!$E$55+'EnPI Table'!$G$55 -> 0 | T132: ='EnPI Table'!$C$67+'EnPI Table'!$E$67+'EnPI Table'!$G$67 -> 0 | U132: ='EnPI Table'!$C$79+'EnPI Table'!$E$79+'EnPI Table'!$G$79 -> 0 | V132: ='EnPI Table'!$C$91+'EnPI Table'!$E$91+'EnPI Table'!$G$91 -> 0 | W132: ='EnPI Table'!$C$103+'EnPI Table'!$E$103+'EnPI Table'!$G$103 -> 0 | X132: ='EnPI Table'!$C$115+'EnPI Table'!$E$115+'EnPI Table'!$G$115 -> 35046.69 | Y132: ='EnPI Table'!$C$127+'EnPI Table'!$E$127+'EnPI Table'!$G$127 -> 44024.35 | Z132: ='EnPI Table'!$C$139+'EnPI Table'!$E$139+'EnPI Table'!$G$139 -> 37679.58 | AA132: ='EnPI Table'!$C$151+'EnPI Table'!$E$151+'EnPI Table'!$G$151 -> 0 | AB132: ='EnPI Table'!$C$163+'EnPI Table'!$E$163+'EnPI Table'!$G$163 -> 0 | AC132: ='EnPI Table'!$C$175+'EnPI Table'!$E$175+'EnPI Table'!$G$175 -> 0 | AD132: ='EnPI Table'!$C$187+'EnPI Table'!$E$187+'EnPI Table'!$G$187 -> 0 | AE132: ='EnPI Table'!$C$199+'EnPI Table'!$E$199+'EnPI Table'!$G$199 -> 0 | AF132: ='EnPI Table'!$C$211+'EnPI Table'!$E$211+'EnPI Table'!$G$211 -> 0 | AG132: ='EnPI Table'!$C$223+'EnPI Table'!$E$223+'EnPI Table'!$G$223 -> 0 | AH132: ='EnPI Table'!$C$235+'EnPI Table'!$E$235+'EnPI Table'!$G$235 -> 0 | AI132: ='EnPI Table'!$C$247+'EnPI Table'!$E$247+'EnPI Table'!$G$247 -> 0 | AJ132: ='EnPI Table'!$C$259+'EnPI Table'!$E$259+'EnPI Table'!$G$259 -> 0 | AK132: ='EnPI Table'!$C$271+'EnPI Table'!$E$271+'EnPI Table'!$G$271 -> 0 | AL132: ='EnPI Table'!$C$283+'EnPI Table'!$E$283+'EnPI Table'!$G$283 -> 0 | AM132: ='EnPI Table'!$C$295+'EnPI Table'!$E$295+'EnPI Table'!$G$295 -> 0 | AN132: ='EnPI Table'!$C$307+'EnPI Table'!$E$307+'EnPI Table'!$G$307 -> 0
P133: ='EnPI Table'!$C$20+'EnPI Table'!$E$20+'EnPI Table'!$G$20 -> 0 | Q133: ='EnPI Table'!$C$32+'EnPI Table'!$E$32+'EnPI Table'!$G$32 -> 0 | R133: ='EnPI Table'!$C$44+'EnPI Table'!$E$44+'EnPI Table'!$G$44 -> 0 | S133: ='EnPI Table'!$C$56+'EnPI Table'!$E$56+'EnPI Table'!$G$56 -> 0 | T133: ='EnPI Table'!$C$68+'EnPI Table'!$E$68+'EnPI Table'!$G$68 -> 0 | U133: ='EnPI Table'!$C$80+'EnPI Table'!$E$80+'EnPI Table'!$G$80 -> 0 | V133: ='EnPI Table'!$C$92+'EnPI Table'!$E$92+'EnPI Table'!$G$92 -> 0 | W133: ='EnPI Table'!$C$104+'EnPI Table'!$E$104+'EnPI Table'!$G$104 -> 0 | X133: ='EnPI Table'!$C$116+'EnPI Table'!$E$116+'EnPI Table'!$G$116 -> 40046.97 | Y133: ='EnPI Table'!$C$128+'EnPI Table'!$E$128+'EnPI Table'!$G$128 -> 37534.68 | Z133: ='EnPI Table'!$C$140+'EnPI Table'!$E$140+'EnPI Table'!$G$140 -> 42696.46 | AA133: ='EnPI Table'!$C$152+'EnPI Table'!$E$152+'EnPI Table'!$G$152 -> 0 | AB133: ='EnPI Table'!$C$164+'EnPI Table'!$E$164+'EnPI Table'!$G$164 -> 0 | AC133: ='EnPI Table'!$C$176+'EnPI Table'!$E$176+'EnPI Table'!$G$176 -> 0 | AD133: ='EnPI Table'!$C$188+'EnPI Table'!$E$188+'EnPI Table'!$G$188 -> 0 | AE133: ='EnPI Table'!$C$200+'EnPI Table'!$E$200+'EnPI Table'!$G$200 -> 0 | AF133: ='EnPI Table'!$C$212+'EnPI Table'!$E$212+'EnPI Table'!$G$212 -> 0 | AG133: ='EnPI Table'!$C$224+'EnPI Table'!$E$224+'EnPI Table'!$G$224 -> 0 | AH133: ='EnPI Table'!$C$236+'EnPI Table'!$E$236+'EnPI Table'!$G$236 -> 0 | AI133: ='EnPI Table'!$C$248+'EnPI Table'!$E$248+'EnPI Table'!$G$248 -> 0 | AJ133: ='EnPI Table'!$C$260+'EnPI Table'!$E$260+'EnPI Table'!$G$260 -> 0 | AK133: ='EnPI Table'!$C$272+'EnPI Table'!$E$272+'EnPI Table'!$G$272 -> 0 | AL133: ='EnPI Table'!$C$284+'EnPI Table'!$E$284+'EnPI Table'!$G$284 -> 0 | AM133: ='EnPI Table'!$C$296+'EnPI Table'!$E$296+'EnPI Table'!$G$296 -> 0 | AN133: ='EnPI Table'!$C$308+'EnPI Table'!$E$308+'EnPI Table'!$G$308 -> 0
P134: ='EnPI Table'!$C$21+'EnPI Table'!$E$21+'EnPI Table'!$G$21 -> 0 | Q134: ='EnPI Table'!$C$33+'EnPI Table'!$E$33+'EnPI Table'!$G$33 -> 0 | R134: ='EnPI Table'!$C$45+'EnPI Table'!$E$45+'EnPI Table'!$G$45 -> 0 | S134: ='EnPI Table'!$C$57+'EnPI Table'!$E$57+'EnPI Table'!$G$57 -> 0 | T134: ='EnPI Table'!$C$69+'EnPI Table'!$E$69+'EnPI Table'!$G$69 -> 0 | U134: ='EnPI Table'!$C$81+'EnPI Table'!$E$81+'EnPI Table'!$G$81 -> 0 | V134: ='EnPI Table'!$C$93+'EnPI Table'!$E$93+'EnPI Table'!$G$93 -> 0 | W134: ='EnPI Table'!$C$105+'EnPI Table'!$E$105+'EnPI Table'!$G$105 -> 0 | X134: ='EnPI Table'!$C$117+'EnPI Table'!$E$117+'EnPI Table'!$G$117 -> 34903.29 | Y134: ='EnPI Table'!$C$129+'EnPI Table'!$E$129+'EnPI Table'!$G$129 -> 33541.4 | Z134: ='EnPI Table'!$C$141+'EnPI Table'!$E$141+'EnPI Table'!$G$141 -> 33524.64 | AA134: ='EnPI Table'!$C$153+'EnPI Table'!$E$153+'EnPI Table'!$G$153 -> 0 | AB134: ='EnPI Table'!$C$165+'EnPI Table'!$E$165+'EnPI Table'!$G$165 -> 0 | AC134: ='EnPI Table'!$C$177+'EnPI Table'!$E$177+'EnPI Table'!$G$177 -> 0 | AD134: ='EnPI Table'!$C$189+'EnPI Table'!$E$189+'EnPI Table'!$G$189 -> 0 | AE134: ='EnPI Table'!$C$201+'EnPI Table'!$E$201+'EnPI Table'!$G$201 -> 0 | AF134: ='EnPI Table'!$C$213+'EnPI Table'!$E$213+'EnPI Table'!$G$213 -> 0 | AG134: ='EnPI Table'!$C$225+'EnPI Table'!$E$225+'EnPI Table'!$G$225 -> 0 | AH134: ='EnPI Table'!$C$237+'EnPI Table'!$E$237+'EnPI Table'!$G$237 -> 0 | AI134: ='EnPI Table'!$C$249+'EnPI Table'!$E$249+'EnPI Table'!$G$249 -> 0 | AJ134: ='EnPI Table'!$C$261+'EnPI Table'!$E$261+'EnPI Table'!$G$261 -> 0 | AK134: ='EnPI Table'!$C$273+'EnPI Table'!$E$273+'EnPI Table'!$G$273 -> 0 | AL134: ='EnPI Table'!$C$285+'EnPI Table'!$E$285+'EnPI Table'!$G$285 -> 0 | AM134: ='EnPI Table'!$C$297+'EnPI Table'!$E$297+'EnPI Table'!$G$297 -> 0 | AN134: ='EnPI Table'!$C$309+'EnPI Table'!$E$309+'EnPI Table'!$G$309 -> 0
P136: ='EnPI Table'!$B$10 -> 0 | Q136: ='EnPI Table'!$B$22 -> 0 | R136: ='EnPI Table'!$B$34 -> 0 | S136: ='EnPI Table'!$B$46 -> 0 | T136: ='EnPI Table'!$B$58 -> 0 | U136: ='EnPI Table'!$B$70 -> 0 | V136: ='EnPI Table'!$B$82 -> 0 | W136: ='EnPI Table'!$B$94 -> 0 | X136: ='EnPI Table'!$B$106 -> 81480 | Y136: ='EnPI Table'!$B$118 -> 67776 | Z136: ='EnPI Table'!$B$130 -> 109282 | AA136: ='EnPI Table'!$B$142 -> 0 | AB136: ='EnPI Table'!$B$154 -> 0 | AC136: ='EnPI Table'!$B$166 -> 0 | AD136: ='EnPI Table'!$B$178 -> 0 | AE136: ='EnPI Table'!$B$190 -> 0 | AF136: ='EnPI Table'!$B$202 -> 0 | AG136: ='EnPI Table'!$B$214 -> 0 | AH136: ='EnPI Table'!$B$226 -> 0 | AI136: ='EnPI Table'!$B$238 -> 0 | AJ136: ='EnPI Table'!$B$250 -> 0 | AK136: ='EnPI Table'!$B$262 -> 0 | AL136: ='EnPI Table'!$B$274 -> 0 | AM136: ='EnPI Table'!$B$286 -> 0 | AN136: ='EnPI Table'!$B$298 -> 0
P137: ='EnPI Table'!$B$11 -> 0 | Q137: ='EnPI Table'!$B$23 -> 0 | R137: ='EnPI Table'!$B$35 -> 0 | S137: ='EnPI Table'!$B$47 -> 0 | T137: ='EnPI Table'!$B$59 -> 0 | U137: ='EnPI Table'!$B$71 -> 0 | V137: ='EnPI Table'!$B$83 -> 0 | W137: ='EnPI Table'!$B$95 -> 0 | X137: ='EnPI Table'!$B$107 -> 80640 | Y137: ='EnPI Table'!$B$119 -> 113500 | Z137: ='EnPI Table'!$B$131 -> 98838 | AA137: ='EnPI Table'!$B$143 -> 0 | AB137: ='EnPI Table'!$B$155 -> 0 | AC137: ='EnPI Table'!$B$167 -> 0 | AD137: ='EnPI Table'!$B$179 -> 0 | AE137: ='EnPI Table'!$B$191 -> 0 | AF137: ='EnPI Table'!$B$203 -> 0 | AG137: ='EnPI Table'!$B$215 -> 0 | AH137: ='EnPI Table'!$B$227 -> 0 | AI137: ='EnPI Table'!$B$239 -> 0 | AJ137: ='EnPI Table'!$B$251 -> 0 | AK137: ='EnPI Table'!$B$263 -> 0 | AL137: ='EnPI Table'!$B$275 -> 0 | AM137: ='EnPI Table'!$B$287 -> 0 | AN137: ='EnPI Table'!$B$299 -> 0
P138: ='EnPI Table'!$B$12 -> 0 | Q138: ='EnPI Table'!$B$24 -> 0 | R138: ='EnPI Table'!$B$36 -> 0 | S138: ='EnPI Table'!$B$48 -> 0 | T138: ='EnPI Table'!$B$60 -> 0 | U138: ='EnPI Table'!$B$72 -> 0 | V138: ='EnPI Table'!$B$84 -> 0 | W138: ='EnPI Table'!$B$96 -> 0 | X138: ='EnPI Table'!$B$108 -> 149600 | Y138: ='EnPI Table'!$B$120 -> 131047 | Z138: ='EnPI Table'!$B$132 -> 123900 | AA138: ='EnPI Table'!$B$144 -> 0 | AB138: ='EnPI Table'!$B$156 -> 0 | AC138: ='EnPI Table'!$B$168 -> 0 | AD138: ='EnPI Table'!$B$180 -> 0 | AE138: ='EnPI Table'!$B$192 -> 0 | AF138: ='EnPI Table'!$B$204 -> 0 | AG138: ='EnPI Table'!$B$216 -> 0 | AH138: ='EnPI Table'!$B$228 -> 0 | AI138: ='EnPI Table'!$B$240 -> 0 | AJ138: ='EnPI Table'!$B$252 -> 0 | AK138: ='EnPI Table'!$B$264 -> 0 | AL138: ='EnPI Table'!$B$276 -> 0 | AM138: ='EnPI Table'!$B$288 -> 0 | AN138: ='EnPI Table'!$B$300 -> 0
P139: ='EnPI Table'!$B$13 -> 0 | Q139: ='EnPI Table'!$B$25 -> 0 | R139: ='EnPI Table'!$B$37 -> 0 | S139: ='EnPI Table'!$B$49 -> 0 | T139: ='EnPI Table'!$B$61 -> 0 | U139: ='EnPI Table'!$B$73 -> 0 | V139: ='EnPI Table'!$B$85 -> 0 | W139: ='EnPI Table'!$B$97 -> 0 | X139: ='EnPI Table'!$B$109 -> 135975 | Y139: ='EnPI Table'!$B$121 -> 151925 | Z139: ='EnPI Table'!$B$133 -> 144960 | AA139: ='EnPI Table'!$B$145 -> 0 | AB139: ='EnPI Table'!$B$157 -> 0 | AC139: ='EnPI Table'!$B$169 -> 0 | AD139: ='EnPI Table'!$B$181 -> 0 | AE139: ='EnPI Table'!$B$193 -> 0 | AF139: ='EnPI Table'!$B$205 -> 0 | AG139: ='EnPI Table'!$B$217 -> 0 | AH139: ='EnPI Table'!$B$229 -> 0 | AI139: ='EnPI Table'!$B$241 -> 0 | AJ139: ='EnPI Table'!$B$253 -> 0 | AK139: ='EnPI Table'!$B$265 -> 0 | AL139: ='EnPI Table'!$B$277 -> 0 | AM139: ='EnPI Table'!$B$289 -> 0 | AN139: ='EnPI Table'!$B$301 -> 0
P140: ='EnPI Table'!$B$14 -> 0 | Q140: ='EnPI Table'!$B$26 -> 0 | R140: ='EnPI Table'!$B$38 -> 0 | S140: ='EnPI Table'!$B$50 -> 0 | T140: ='EnPI Table'!$B$62 -> 0 | U140: ='EnPI Table'!$B$74 -> 0 | V140: ='EnPI Table'!$B$86 -> 0 | W140: ='EnPI Table'!$B$98 -> 0 | X140: ='EnPI Table'!$B$110 -> 137072 | Y140: ='EnPI Table'!$B$122 -> 133400 | Z140: ='EnPI Table'!$B$134 -> 128352 | AA140: ='EnPI Table'!$B$146 -> 0 | AB140: ='EnPI Table'!$B$158 -> 0 | AC140: ='EnPI Table'!$B$170 -> 0 | AD140: ='EnPI Table'!$B$182 -> 0 | AE140: ='EnPI Table'!$B$194 -> 0 | AF140: ='EnPI Table'!$B$206 -> 0 | AG140: ='EnPI Table'!$B$218 -> 0 | AH140: ='EnPI Table'!$B$230 -> 0 | AI140: ='EnPI Table'!$B$242 -> 0 | AJ140: ='EnPI Table'!$B$254 -> 0 | AK140: ='EnPI Table'!$B$266 -> 0 | AL140: ='EnPI Table'!$B$278 -> 0 | AM140: ='EnPI Table'!$B$290 -> 0 | AN140: ='EnPI Table'!$B$302 -> 0
P141: ='EnPI Table'!$B$15 -> 0 | Q141: ='EnPI Table'!$B$27 -> 0 | R141: ='EnPI Table'!$B$39 -> 0 | S141: ='EnPI Table'!$B$51 -> 0 | T141: ='EnPI Table'!$B$63 -> 0 | U141: ='EnPI Table'!$B$75 -> 0 | V141: ='EnPI Table'!$B$87 -> 0 | W141: ='EnPI Table'!$B$99 -> 0 | X141: ='EnPI Table'!$B$111 -> 101178 | Y141: ='EnPI Table'!$B$123 -> 92640 | Z141: ='EnPI Table'!$B$135 -> 104215 | AA141: ='EnPI Table'!$B$147 -> 0 | AB141: ='EnPI Table'!$B$159 -> 0 | AC141: ='EnPI Table'!$B$171 -> 0 | AD141: ='EnPI Table'!$B$183 -> 0 | AE141: ='EnPI Table'!$B$195 -> 0 | AF141: ='EnPI Table'!$B$207 -> 0 | AG141: ='EnPI Table'!$B$219 -> 0 | AH141: ='EnPI Table'!$B$231 -> 0 | AI141: ='EnPI Table'!$B$243 -> 0 | AJ141: ='EnPI Table'!$B$255 -> 0 | AK141: ='EnPI Table'!$B$267 -> 0 | AL141: ='EnPI Table'!$B$279 -> 0 | AM141: ='EnPI Table'!$B$291 -> 0 | AN141: ='EnPI Table'!$B$303 -> 0
